Workbook

Sheet Instructions
A1: ='DNSP Inputs O & M'!$A$3 -> AusNet
A3: Instructions
A5: This model is to be used for the setting of Public Lighting Tariffs for the Regulatory Period 2016 to 2020 based on forecast inflation rates and Real Pre Tax WACC.
A7: Distributor data input fields are shaded | C7: and located in tabs "DNSP Inputs General" , "DNSP Inputs O & M" and "DNSP Inputs Capex"
A8: NOTE : All Distributor data input fields have been populated with AER Preliminary Decision data in this model.
A12: This model will also to be used for the annual Public Lighting Tariff Approvals in the Regulatory Period 2016 to 2020 based on actual inflation rates and Real Pre Tax WACC.
H70: =G70 -> 0 | I70: =H70 -> 0 | J70: =I70 -> 0 | K70: =J70 -> 0 | L70: =K70 -> 0

Sheet DNSP Inputs General
A1: ='DNSP Inputs O & M'!$A$3 -> AusNet
D2: 2009 | E2: 2010 | F2: 2011 | G2: 2012 | H2: 2013 | I2: 2014 | J2: 2015 | K2: 2016 | L2: 2017 | M2: 2018 | N2: 2019 | O2: 2020
A3: Capital Expenditure | D3: Nominal $ - Actual | J3: Real 2015 $ - Forecast
A4: (Net of customer contributions)
A6: Poles and Brackets | D6: 945891.2356 | E6: 957809.4651 | F6: 880178.8893 | G6: 925158.8499 | H6: 998447.2314 | I6: 775787.6177 | J6: 1086336.971 | K6: ='Capex 2016-2020'!B24 -> 1306411.346 | L6: ='Capex 2016-2020'!C24 -> 1321767.346 | M6: ='Capex 2016-2020'!D24 -> 1322122.346 | N6: ='Capex 2016-2020'!E24 -> 1322478.346 | O6: ='Capex 2016-2020'!F24 -> 1322834.346
A8: Existing Lights
A9: Luminaires | D9: 448491.4405 | E9: 418018.4138 | F9: -892269.5328 | G9: 258757.3149 | H9: 398955.5693 | I9: 829176.3823 | J9: 1161608.129 | K9: ='Capex 2016-2020'!B13-'Capex 2016-2020'!B38 -> 693844.8008 | L9: ='Capex 2016-2020'!C13-'Capex 2016-2020'!C38 -> 642540.7336 | M9: ='Capex 2016-2020'!D13-'Capex 2016-2020'!D38 -> 598808.3188 | N9: ='Capex 2016-2020'!E13-'Capex 2016-2020'!E38 -> 562085.5486 | O9: ='Capex 2016-2020'!F13-'Capex 2016-2020'!F38 -> 532078.8254
A11: Energy Efficient Lights
A12: Luminaires | D12: 0 | E12: 1941138.457 | F12: 0 | G12: 0 | H12: 0 | I12: 0 | J12: 0 | K12: ='Capex 2016-2020'!B19 -> 0 | L12: ='Capex 2016-2020'!C19 -> 0 | M12: ='Capex 2016-2020'!D19 -> 0 | N12: ='Capex 2016-2020'!E19 -> 0 | O12: ='Capex 2016-2020'!F19 -> 0
A14: Total Net Capex | D14: =SUM(D6,D9,D12) -> 1394382.676 | E14: 3316966.336 | F14: -12090.64345 | G14: 1183916.165 | H14: 1397402.801 | I14: 1604964 | J14: 2247945.101 | K14: 2000256.147 | L14: 1964308.08 | M14: 1920930.665 | N14: 1884563.895 | O14: 1854913.172
F17: 2011 | G17: 2012 | H17: 2013 | I17: 2014 | J17: 2015 | K17: 2016 | L17: 2017 | M17: 2018 | N17: 2019 | O17: 2020
A18: Operating and Maintenance Expenditure | F18: Nominal $ - Actual | J18: Real 2015 $ - Forecast
A20: Total O & M | F20: 2283204.04 | G20: 2209782.26 | H20: 2391738.64 | I20: 1580678 | J20: 5580946.519 | K20: ='Cashflow Summary'!K13 -> 5222581.799 | L20: ='Cashflow Summary'!L13 -> 5258670.397 | M20: ='Cashflow Summary'!M13 -> 5299440.87 | N20: ='Cashflow Summary'!N13 -> 5342837.37 | O20: ='Cashflow Summary'!O13 -> 5388724.339
A24: WACC
A25: Regulatory Period | B25: 2016 | C25: 2017 | D25: 2018 | E25: 2019 | F25: 2020
A26: Real Pre Tax WACC | B26: 0.06935090998 | C26: 0.06835276927 | D26: 0.06682620111 | E26: 0.06377306479 | F26: 0.06077864264
A29: CPI Index | B29: CPI Index | C29: Actual CPI | D29: F'cast CPI
A30: 2014-09-30 | B30: 106.4
A31: 2015-09-30 | C31: =IF(B31="","",B31/B30-1) ->  | D31: 0.0219
A32: 2016-09-30 | D32: 0.0219
A33: 2017-09-30 | D33: 0.0219
A34: 2018-09-30 | D34: 0.0219
A35: 2019-09-30 | D35: 0.0219
A39: Number Of Lights | B39: Central | E39: =J$2 -> 2015 | F39: =F$2 -> 2011 | G39: 2012 | H39: 2013 | I39: 2014 | J39: 2015 | K39: 2016 | L39: 2017 | M39: 2018 | N39: 2019 | O39: 2020
E40: Actual Prices | F40: Actual Volumes | J40: Forecast Volumes
A41: Existing Lights | B41: Reference Light | D41: Price Factor
A42: Mercury Vapour 80W | B42: =A$42 -> Mercury Vapour 80W | D42: 1 | E42: 48.26 | F42: 59322.5 | G42: 58866.85 | H42: 58715.36667 | I42: 56826.28333 | J42: 48843.3699 | K42: 42382.16665 | L42: 36589.69508 | M42: 31578.28651 | N42: 27237.14398 | O42: 23481.41757
A43: HP Sodium 150W | B43: =A$43 -> HP Sodium 150W | D43: 1 | E43: 105.11 | F43: 12679.83333 | G43: 13325.13333 | H43: 13781.75 | I43: 14149.8 | J43: 14308.29031 | K43: 14606.50637 | L43: 14835.52986 | M43: 15063.08431 | N43: 15285.08953 | O43: 15502.85933
A44: HP Sodium 250W | B44: =A$44 -> HP Sodium 250W | D44: 1 | E44: 106.4 | F44: 6080.266667 | G44: 6156.533333 | H44: 6248.633333 | I44: 6374.183333 | J44: 6445.579842 | K44: 6579.919819 | L44: 6683.090022 | M44: 6785.598452 | N44: 6885.607072 | O44: 6983.707725
A45: Mercury Vapour 50W | B45: =A$42 -> Mercury Vapour 80W | D45: 1.53 | E45: 73.85 | F45: 324 | G45: 322.3333333 | H45: 319.5833333 | I45: 270.1666667 | J45: 273.192773 | K45: 278.8867077 | L45: 283.2595267 | M45: 287.6042968 | N45: 291.8431136 | O45: 296.0010622
A46: Mercury Vapour 125W | B46: =A$42 -> Mercury Vapour 80W | D46: 1.47 | E46: 70.95 | F46: 855.25 | G46: 848.0833333 | H46: 839.5 | I46: 803.65 | J46: 812.651593 | K46: 829.589029 | L46: 842.5966144 | M46: 855.5207641 | N46: 868.1297405 | O46: 880.4981627
A47: Mercury Vapour 250W | B47: =A$44 -> HP Sodium 250W | D47: 1.05 | E47: 111.72 | F47: 875.8666667 | G47: 850.0833333 | H47: 817.7833333 | I47: 791.6 | J47: 800.4666223 | K47: 817.1500969 | L47: 829.9626454 | M47: 842.6930092 | N47: 855.1129255 | O47: 867.2958944
A48: Mercury Vapour 400W | B48: =A$44 -> HP Sodium 250W | D48: 1.09 | E48: 115.97 | F48: 151.1666667 | G48: 146.8666667 | H48: 148 | I48: 147.9166667 | J48: 149.5734646 | K48: 152.6909026 | L48: 155.0850277 | M48: 157.463796 | N48: 159.7845548 | O48: 162.061038
A49: HP Sodium 100W | B49: =A$43 -> HP Sodium 150W | D49: 1.07 | E49: 112.46 | F49: 2304.166667 | G49: 2478.2 | H49: 2612.416667 | I49: 2729.483333 | J49: 2760.055968 | K49: 2817.581569 | L49: 2861.75999 | M49: 2905.655033 | N49: 2948.479634 | O49: 2990.487227
A50: HP Sodium 400W | B50: =A$44 -> HP Sodium 250W | D50: 1.42 | E50: 151.08 | F50: 289.5 | G50: 283.55 | H50: 275.25 | I50: 267.9166667 | J50: 270.917571 | K50: 276.5640856 | L50: 280.9004869 | M50: 285.2090728 | N50: 289.412588 | O50: 293.5359084
A51: Metal Halide 70W | B51: =A$42 -> Mercury Vapour 80W | D51: 4.365105678 | E51: 210.66 | F51: 31 | G51: 31 | H51: 31 | I51: 31 | J51: 31.3472275 | K51: 32.00057226 | L51: 32.50232694 | M51: 33.00086317 | N51: 33.4872419 | O51: 33.9643415
A52: Metal Halide 100W | B52: HP Sodium 150W | D52: 2.387689088 | E52: 250.97 | F52: 34 | G52: 34 | H52: 34 | I52: 34 | J52: 34.38083016 | K52: 35.09740184 | L52: 35.64771342 | M52: 36.19449509 | N52: 36.72794273 | O52: 37.25121325
A53: Metal Halide 150W | B53: HP Sodium 150W | D53: 2.712586814 | E53: 285.12 | F53: 32 | G53: 32 | H53: 32 | I53: 32.16666667 | J53: 32.52696187 | K53: 33.20489488 | L53: 33.7255328 | M53: 34.24283114 | N53: 34.74751445 | O53: 35.2425694
A54: HP Sodium 50W | B54: =A$43 -> HP Sodium 150W | D54: 0.4433450671 | E54: 46.6 | F54: 94 | G54: 95 | H54: 95 | I54: 95 | J54: 96.06408428 | K54: 98.06626984 | L54: 99.60390515 | M54: 101.1316775 | N54: 102.6221929 | O54: 104.0842723
A66: Total Existing Lights | F66: =SUM(F42:F65) -> 83073.55 | G66: 83469.63333 | H66: 83950.28333 | I66: 82553.16667 | J66: 74858.41715 | K66: 68939.42436 | L66: 63563.35873 | M66: 58965.68512 | N66: 55028.18803 | O66: 51668.40632
A68: Energy Efficient Lights | B68: Reference Light | D68: Price Factor
A69: T5 2X14W | B69: =A$69 -> T5 2X14W | D69: 1 | E69: 39.13 | F69: 3208.75 | G69: 5202.25 | H69: 6045.833333 | I69: 8439.583333 | J69: 11516.80288 | K69: 14344.96455 | L69: 16804.28812 | M69: 18990.41258 | N69: 20933.5745 | O69: 22665.74504
A70: T5 2X24W | B70: =A$70 -> T5 2X24W | D70: 1 | E70: 44.31 | F70: 105.1666667 | G70: 277 | H70: 352.4166667 | I70: 542.9166667 | J70: 932.7493248 | K70: 1285.177131 | L70: 1592.805243 | M70: 1865.340035 | N70: 2106.828286 | O70: 2321.332983
A71: LED 18W | B71: =A$71 -> LED 18W | D71: 1 | E71: 21.29 | F71: 0 | G71: 0 | H71: 0 | I71: 0 | J71: 2982.688731 | K71: 5632.980798 | L71: 7955.704351 | M71: 10006.105 | N71: 11816.85293 | O71: 13419.13567
A72: Compact Fluorescent 32W | B72: =A$69 -> T5 2X14W | D72: 0.8875543062 | E72: 34.73 | F72: 1978.933333 | G72: 2125.083333 | H72: 2279.5 | I72: 2420.833333 | J72: 4159.074119 | K72: 5730.528881 | L72: 7102.22445 | M72: 8317.440984 | N72: 9394.222827 | O72: 10350.68659
A73: Compact Fluorescent 42W | B73: T5 2X14W | D73: 0.8875543062 | E73: 34.73 | F73: 245.5 | G73: 366.3333333 | H73: 572.1666667 | I73: 791.0833333 | J73: 1359.108111 | K73: 1872.630315 | L73: 2320.87493 | M73: 2717.985104 | N73: 3069.857394 | O73: 3382.411974
A74: Total Energy Efficient Lights | F74: =SUM(F69:F73) -> 5538.35 | G74: 7970.666667 | H74: 9249.916667 | I74: 12194.41667 | J74: 20950.42317 | K74: 28866.28168 | L74: 35775.89709 | M74: 41897.2837 | N74: 47321.33594 | O74: 52139.31227
A76: Total Number of Lights | F76: =SUM(F66,F74) -> 88611.9 | G76: 91440.3 | H76: 93200.2 | I76: 94747.58333 | J76: 95808.84032 | K76: 97805.70604 | L76: 99339.25582 | M76: 100862.9688 | N76: 102349.524 | O76: 103807.7186
A79: Number Of Lights | B79: North & East | E79: =J$2 -> 2015 | F79: =F$2 -> 2011 | G79: 2012 | H79: 2013 | I79: 2014 | J79: 2015 | K79: 2016 | L79: 2017 | M79: 2018 | N79: 2019 | O79: 2020
E80: Actual Prices | F80: Actual Volumes | J80: Forecast Volumes
A81: Existing Lights | B81: Reference Light | D81: Price Factor
A82: Mercury Vapour 80W | B82: =A$82 -> Mercury Vapour 80W | D82: 1 | E82: 55.38 | F82: 28734.83333 | G82: 28906.48333 | H82: 28889.05 | I82: 26233.91667 | J82: 22548.59584 | K82: 19565.77419 | L82: 16891.67327 | M82: 14578.15096 | N82: 12574.0577 | O82: 10840.22244
A83: HP Sodium 150W | B83: =A$83 -> HP Sodium 150W | D83: 1 | E83: 118.51 | F83: 4571.583333 | G83: 4712.166667 | H83: 4750.25 | I83: 4824.416667 | J83: 4878.454413 | K83: 4980.13207 | L83: 5058.218316 | M83: 5135.803687 | N83: 5211.497031 | O83: 5285.746296
A84: HP Sodium 250W | B84: =A$84 -> HP Sodium 250W | D84: 1 | E84: 117.57 | F84: 4504.7 | G84: 4586.866667 | H84: 4654.616667 | I84: 4713.483333 | J84: 4766.278528 | K84: 4865.618194 | L84: 4941.908914 | M84: 5017.710276 | N84: 5091.663116 | O84: 5164.205083
A85: Mercury Vapour 50W | B85: =A$82 -> Mercury Vapour 80W | D85: 1.48 | E85: 81.97 | F85: 376.75 | G85: 367.75 | H85: 363.1666667 | I85: 289.4166667 | J85: 292.6583901 | K85: 298.7580308 | L85: 303.4424233 | M85: 308.0967683 | N85: 312.6376106 | O85: 317.0918226
A86: Mercury Vapour 125W | B86: =A$82 -> Mercury Vapour 80W | D86: 1.48 | E86: 81.97 | F86: 62 | G86: 62.08333333 | H86: 60.33333333 | I86: 54.58333333 | J86: 55.19471509 | K86: 56.34509364 | L86: 57.22855954 | M86: 58.10635854 | N86: 58.9627512 | O86: 59.80280559
A87: Mercury Vapour 250W | B87: =A$84 -> HP Sodium 250W | D87: 1.04 | E87: 122.28 | F87: 433.85 | G87: 433.2833333 | H87: 427.8 | I87: 417.6833333 | J87: 422.3617572 | K87: 431.1646997 | L87: 437.9251696 | M87: 444.6422752 | N87: 451.1955749 | O87: 457.6238507
A88: Mercury Vapour 400W | B88: =A$84 -> HP Sodium 250W | D88: 1.07 | E88: 125.8 | F88: 132 | G88: 131.3333333 | H88: 127.6666667 | I88: 123.1666667 | J88: 124.5462426 | K88: 127.1420586 | L88: 129.1355893 | M88: 131.1163327 | N88: 133.0487729 | O88: 134.944346
A89: HP Sodium 100W | B89: =A$83 -> HP Sodium 150W | D89: 1.07 | E89: 126.8 | F89: 143.9166667 | G89: 196.8333333 | H89: 222.9166667 | I89: 248.5 | J89: 251.2834205 | K89: 256.5207164 | L89: 260.5428466 | M89: 264.5391774 | N89: 268.438052 | O89: 272.2625439
A90: HP Sodium 400W | B90: =A$84 -> HP Sodium 250W | D90: 1.42 | E90: 166.96 | F90: 299.0833333 | G90: 310.4166667 | H90: 321.5 | I90: 330.0833333 | J90: 333.7805595 | K90: 340.7372762 | L90: 346.0798845 | M90: 351.3882232 | N90: 356.5671107 | O90: 361.6471953
A91: Metal Halide 70W | B91: =A$82 -> Mercury Vapour 80W | D91: 3.804442037 | E91: 210.69 | F91: 0 | G91: 0 | H91: 0 | I91: 0 | J91: 0 | K91: 0 | L91: 0 | M91: 0 | N91: 0 | O91: 0
A92: Metal Halide 100W | B92: =A$83 -> HP Sodium 150W | D92: 2.11804911 | E92: 251.01 | F92: 0 | G92: 0 | H92: 0 | I92: 0 | J92: 0 | K92: 0 | L92: 0 | M92: 0 | N92: 0 | O92: 0
A93: Metal Halide 150W | B93: =A$83 -> HP Sodium 150W | D93: 2.406294827 | E93: 285.17 | F93: 0 | G93: 0 | H93: 0 | I93: 0 | J93: 0 | K93: 0 | L93: 0 | M93: 0 | N93: 0 | O93: 0
A94: =A54 -> HP Sodium 50W | B94: =A$83 -> HP Sodium 150W | D94: 0.4547295587 | E94: 53.89 | F94: 0 | G94: 0 | H94: 0 | I94: 0 | J94: 0 | K94: 0 | L94: 0 | M94: 0 | N94: 0 | O94: 0
A106: Total Existing Lights | F106: =SUM(F82:F105) -> 39258.71667 | G106: 39707.21667 | H106: 39817.3 | I106: 37235.25 | J106: 33673.15386 | K106: 30922.19233 | L106: 28426.15498 | M106: 26289.55406 | N106: 24458.06772 | O106: 22893.54638
A108: Energy Efficient Lights | B108: Reference Light | D108: Price Factor
A109: T5 2X14W | B109: =A$109 -> T5 2X14W | D109: 1 | E109: 45.39 | F109: 64.75 | G109: 140 | H109: 249.5833333 | I109: 3014.583333 | J109: 5220.598408 | K109: 7214.302057 | L109: 8954.700975 | M109: 10496.45808 | N109: 11862.49733 | O109: 13075.81205
A110: T5 2X24W | B110: =A$110 -> T5 2X24W | D110: 1 | E110: 50.68 | F110: 36.5 | G110: 44.33333333 | H110: 64.41666667 | I110: 93.5 | J110: 128.2344074 | K110: 160.1379449 | L110: 187.8846383 | M110: 212.5459514 | N110: 234.4639068 | O110: 253.9994247
A111: LED 18W | B111: =A$111 -> LED 18W | D111: 1 | E111: 22.92 | F111: 0 | G111: 0 | H111: 0 | I111: 0 | J111: 33.68712443 | K111: 63.62008986 | L111: 89.85342644 | M111: 113.0110899 | N111: 133.4620643 | O111: 151.5585883
A112: Compact Fluorescent 32W | B112: =A$109 -> T5 2X14W | D112: 0.8898435779 | E112: 40.39 | F112: 180.5833333 | G112: 291.75 | H112: 405.75 | I112: 536.5833333 | J112: 929.2448693 | K112: 1284.115852 | L112: 1593.899643 | M112: 1868.326015 | N112: 2111.475337 | O112: 2327.440326
A113: Compact Fluorescent 42W | B113: T5 2X14W | D113: 0.8898435779 | E113: 40.39 | F113: 709.1666667 | G113: 1220.083333 | H113: 1602.333333 | I113: 1877.5 | J113: 3251.418995 | K113: 4493.109201 | L113: 5577.03975 | M113: 6537.255028 | N113: 7388.0322 | O113: 8143.691651
A114: Total Energy Efficient Lights | F114: =SUM(F109:F113) -> 991 | G114: 1696.166667 | H114: 2322.083333 | I114: 5522.166667 | J114: 9563.183804 | K114: 13215.28515 | L114: 16403.37843 | M114: 19227.59617 | N114: 21729.93084 | O114: 23952.50204
A116: Total Number of Lights | F116: =SUM(F106,F114) -> 40249.71667 | G116: 41403.38333 | H116: 42139.38333 | I116: 42757.41667 | J116: 43236.33767 | K116: 44137.47748 | L116: 44829.53341 | M116: 45517.15023 | N116: 46187.99855 | O116: 46846.04842

Sheet DNSP Inputs O & M
A1: Public Lighting Cost Build-up Model
A3: AusNet | C3: O & M Data Inputs
C5: Real 2015 $
A7: Input parameters | C7: 2015 | D7: 2016 | E7: 2017 | F7: 2018 | G7: 2019 | H7: 2020
A9: Inputs - all lamps
A11: Material premium for rural areas | C11: 0.05 | D11: 0.05 | E11: 0.05 | F11: 0.05 | G11: 0.05 | H11: 0.05
A12: Labour rate (per hour) | C12: 95.82595654 | D12: 95.82595654 | E12: 95.82595654 | F12: 95.82595654 | G12: 95.82595654 | H12: 95.82595654
A13: Labour rate for night patrols (per hour) | C13: 119.7793071 | D13: 119.7793071 | E13: 119.7793071 | F13: 119.7793071 | G13: 119.7793071 | H13: 119.7793071
A14: Elevated platform vehicle (per hour) - urban MV,urban T5 | C14: 45.37701738 | D14: 45.37701738 | E14: 45.37701738 | F14: 45.37701738 | G14: 45.37701738 | H14: 45.37701738
A15: Elevated platform vehicle (per hour) - rural MV, rural T5, S-HP | C15: 81.99627041 | D15: 81.99627041 | E15: 81.99627041 | F15: 81.99627041 | G15: 81.99627041 | H15: 81.99627041
A16: Patrol vehicle (per hour) | C16: 31.08325691 | D16: 31.08325691 | E16: 31.08325691 | F16: 31.08325691 | G16: 31.08325691 | H16: 31.08325691
A17: Number of hours in a day | C17: 8 | D17: 8 | E17: 8 | F17: 8 | G17: 8 | H17: 8
A18: Indirect overheads | C18: 0.25 | D18: 0.25 | E18: 0.25 | F18: 0.25 | G18: 0.25 | H18: 0.25
A22: Inputs - MV80
A24: Depreciation period | B24: years | C24: 20 | D24: =C24 -> 20 | E24: =D24 -> 20 | F24: =E24 -> 20 | G24: =F24 -> 20 | H24: =G24 -> 20
A25: Lamps - bulk change | B25: years | C25: 4 | D25: 4 | E25: 4 | F25: 4 | G25: 4 | H25: 4
A26: PE cells - bulk change | B26: years | C26: 8 | D26: 8 | E26: 8 | F26: 8 | G26: 8 | H26: 8
A27: Proportion of lamps that fail between bulk change | C27: 0.107 | D27: 0.107 | E27: 0.107 | F27: 0.107 | G27: 0.107 | H27: 0.107
A28: Unit cost - lamp | C28: 5.569879772 | D28: 5.57 | E28: 5.57 | F28: 5.57 | G28: 5.57 | H28: 5.57
A29: Unit cost - PE cell | C29: 22.48671374 | D29: 22.48671374 | E29: 22.48671374 | F29: 22.48671374 | G29: 22.48671374 | H29: 22.48671374
A30: Unit cost - luminaire | C30: 193.2394831 | D30: 193.24 | E30: 193.24 | F30: 193.24 | G30: 193.24 | H30: 193.24
A31: Unit cost - miscellaneous materials (bulk lamp) | C31: 1.218792073 | D31: 1.218792073 | E31: 1.218792073 | F31: 1.218792073 | G31: 1.218792073 | H31: 1.218792073
A32: Unit cost - miscellaneous materials (repair) | C32: 12.18792073 | D32: 12.18792073 | E32: 12.18792073 | F32: 12.18792073 | G32: 12.18792073 | H32: 12.18792073
A33: Number of men in crew | C33: 2 | D33: 2 | E33: 2 | F33: 2 | G33: 2 | H33: 2
A34: Number of bulk lamp changes in 1 day - urban | C34: 85 | D34: 85 | E34: 85 | F34: 85 | G34: 85 | H34: 85
A35: Number of bulk lamp changes in 1 day - rural | C35: 70 | D35: 70 | E35: 70 | F35: 70 | G35: 70 | H35: 70
A36: Number of bulk lamp changes in 1 day - remote | C36: 50 | D36: 50 | E36: 50 | F36: 50 | G36: 50 | H36: 50
A37: Number of repairs in 1 day - urban | C37: 20 | D37: 20 | E37: 20 | F37: 20 | G37: 20 | H37: 20
A38: Number of repairs in 1 day - rural | C38: 15 | D38: 15 | E38: 15 | F38: 15 | G38: 15 | H38: 15
A39: Number of repairs in 1 day - remote | C39: 10 | D39: 10 | E39: 10 | F39: 10 | G39: 10 | H39: 10
A40: % of repairs - lamps | C40: 0.6 | D40: 0.6 | E40: 0.6 | F40: 0.6 | G40: 0.6 | H40: 0.6
A41: % of repairs - PE cells | C41: 0.5 | D41: 0.5 | E41: 0.5 | F41: 0.5 | G41: 0.5 | H41: 0.5
A42: % of repairs - luminaires | C42: 0.15 | D42: 0.15 | E42: 0.15 | F42: 0.15 | G42: 0.15 | H42: 0.15
A43: % of repairs - other | C43: 0.1 | D43: 0.1 | E43: 0.1 | F43: 0.1 | G43: 0.1 | H43: 0.1
A45: Other Maintenance and Repair costs
A46: Traffic control costs | C46: 12316.62368 | D46: 11138.09586 | E46: 9615.825792 | F46: 8298.820236 | G46: 7157.961579 | H46: 6170.951145
A47: Other costs : Describe……………………………………. | C47: 0 | D47: 0 | E47: 0 | F47: 0 | G47: 0 | H47: 0
C48: =SUM(C46:C47) -> 12316.62368 | D48: 11138.09586 | E48: 9615.825792 | F48: 8298.820236 | G48: 7157.961579 | H48: 6170.951145
A49: Number of Lights | C49: =SUM('DNSP Inputs General'!J42,'DNSP Inputs General'!J82) -> 71391.96574 | D49: =SUM('DNSP Inputs General'!K42,'DNSP Inputs General'!K82) -> 61947.94084 | E49: =SUM('DNSP Inputs General'!L42,'DNSP Inputs General'!L82) -> 53481.36835 | F49: =SUM('DNSP Inputs General'!M42,'DNSP Inputs General'!M82) -> 46156.43747 | G49: =SUM('DNSP Inputs General'!N42,'DNSP Inputs General'!N82) -> 39811.20167 | H49: =SUM('DNSP Inputs General'!O42,'DNSP Inputs General'!O82) -> 34321.64001
A50: Unit Cost | C50: =IF(C49=0,0,C48/C49) -> 0.1725211451 | D50: 0.179797677 | E50: 0.179797677 | F50: 0.179797677 | G50: 0.179797677 | H50: 0.179797677
A52: Other O & M costs specific to North/East zone
A53: Other N\E O & M costs : Describe……………………………………. | C53: 23584.79189 | D53: 4726.674857 | E53: 4080.668956 | F53: 3521.771176 | G53: 3037.624873 | H53: 2618.767156
A54: Number of Lights | C54: ='DNSP Inputs General'!J82 -> 22548.59584 | D54: ='DNSP Inputs General'!K82 -> 19565.77419 | E54: ='DNSP Inputs General'!L82 -> 16891.67327 | F54: ='DNSP Inputs General'!M82 -> 14578.15096 | G54: ='DNSP Inputs General'!N82 -> 12574.0577 | H54: ='DNSP Inputs General'!O82 -> 10840.22244
A55: Unit Cost | C55: =IF(C54=0,0,C53/C54) -> 1.045953906 | D55: 0.2415787287 | E55: 0.2415787287 | F55: 0.2415787287 | G55: 0.2415787287 | H55: 0.2415787287
A57: Location of selected public lighting assets within distributors' areas (%)
A58: SP AusNet - Central
A59: Urban | C59: 0.96 | D59: 0.96 | E59: 0.96 | F59: 0.96 | G59: 0.96 | H59: 0.96
A60: Rural | C60: 0.04 | D60: 0.04 | E60: 0.04 | F60: 0.04 | G60: 0.04 | H60: 0.04
A61: Remote | C61: 0 | D61: 0 | E61: 0 | F61: 0 | G61: 0 | H61: 0
A63: SP AusNet - North/East
A64: Urban | C64: 0.35 | D64: 0.35 | E64: 0.35 | F64: 0.35 | G64: 0.35 | H64: 0.35
A65: Rural | C65: 0.53 | D65: 0.53 | E65: 0.53 | F65: 0.53 | G65: 0.53 | H65: 0.53
A66: Remote | C66: 0.12 | D66: 0.12 | E66: 0.12 | F66: 0.12 | G66: 0.12 | H66: 0.12
A70: Inputs - S-HP150
A72: Depreciation period | B72: years | C72: 20 | D72: =C72 -> 20 | E72: =D72 -> 20 | F72: =E72 -> 20 | G72: =F72 -> 20 | H72: =G72 -> 20
A73: Number of patrols per year | C73: 3 | D73: 3 | E73: 3 | F73: 3 | G73: 3 | H73: 3
A74: Lamps - frequency of replacement | B74: years | C74: 5 | D74: 5 | E74: 5 | F74: 5 | G74: 5 | H74: 5
A75: PE cells - frequency of replacement | B75: years | C75: 10 | D75: 10 | E75: 10 | F75: 10 | G75: 10 | H75: 10
A76: Unit cost - lamp | C76: 40.281078 | D76: 40.28 | E76: 40.28 | F76: 40.28 | G76: 40.28 | H76: 40.28
A77: Unit cost - PE cell | C77: 21.8773177 | D77: 21.8773177 | E77: 21.8773177 | F77: 21.8773177 | G77: 21.8773177 | H77: 21.8773177
A78: Unit cost - miscellaneous materials | C78: 2.437584145 | D78: 2.437584145 | E78: 2.437584145 | F78: 2.437584145 | G78: 2.437584145 | H78: 2.437584145
A79: Number of men in crew - road patrols | C79: 2 | D79: 2 | E79: 2 | F79: 2 | G79: 2 | H79: 2
A80: Number of men in crew - repairs | C80: 2 | D80: 2 | E80: 2 | F80: 2 | G80: 2 | H80: 2
A81: Number of lamps patrolled in 1 day - urban | C81: 3000 | D81: 3000 | E81: 3000 | F81: 3000 | G81: 3000 | H81: 3000
A82: Number of lamps patrolled in 1 day - rural | C82: 2000 | D82: 2000 | E82: 2000 | F82: 2000 | G82: 2000 | H82: 2000
A83: Number of lamps patrolled in 1 day - remote | C83: 1000 | D83: 1000 | E83: 1000 | F83: 1000 | G83: 1000 | H83: 1000
A84: Number of repairs in 1 day - urban | C84: 15 | D84: 15 | E84: 15 | F84: 15 | G84: 15 | H84: 15
A85: Number of repairs in 1 day - rural | C85: 12 | D85: 12 | E85: 12 | F85: 12 | G85: 12 | H85: 12
A86: Number of repairs in 1 day - remote | C86: 9 | D86: 9 | E86: 9 | F86: 9 | G86: 9 | H86: 9
A88: Other Maintenance and Repair costs
A89: Traffic control costs | C89: 5672.127172 | D89: 3521.632091 | E89: 3576.849709 | F89: 3631.71314 | G89: 3685.23865 | H89: 3737.743
A90: Other costs : Describe……………………………………. | C90: 907.5403476 | D90: 907.5403476 | E90: 907.5403476 | F90: 907.5403476 | G90: 907.5403476 | H90: 907.5403476
C91: =SUM(C89:C90) -> 6579.66752 | D91: 4429.172439 | E91: 4484.390057 | F91: 4539.253488 | G91: 4592.778998 | H91: 4645.283348
A92: Number of Lights | C92: =SUM('DNSP Inputs General'!J43,'DNSP Inputs General'!J83) -> 19186.74473 | D92: =SUM('DNSP Inputs General'!K43,'DNSP Inputs General'!K83) -> 19586.63844 | E92: =SUM('DNSP Inputs General'!L43,'DNSP Inputs General'!L83) -> 19893.74818 | F92: =SUM('DNSP Inputs General'!M43,'DNSP Inputs General'!M83) -> 20198.888 | G92: =SUM('DNSP Inputs General'!N43,'DNSP Inputs General'!N83) -> 20496.58656 | H92: =SUM('DNSP Inputs General'!O43,'DNSP Inputs General'!O83) -> 20788.60563
A93: Unit Cost | C93: =IF(C92=0,0,C91/C92) -> 0.3429277667 | D93: 0.2261323429 | E93: 0.2254170515 | F93: 0.2247278904 | G93: 0.2240753105 | H93: 0.2234533393
A95: Other O & M costs specific to North/East zone
A96: Other N\E O & M costs : Describe……………………………………. | C96: 0 | D96: 1203.093974 | E96: 1221.957951 | F96: 1240.700926 | G96: 1258.986828 | H96: 1276.923871
A97: Number of Lights | C97: ='DNSP Inputs General'!J83 -> 4878.454413 | D97: ='DNSP Inputs General'!K83 -> 4980.13207 | E97: ='DNSP Inputs General'!L83 -> 5058.218316 | F97: ='DNSP Inputs General'!M83 -> 5135.803687 | G97: ='DNSP Inputs General'!N83 -> 5211.497031 | H97: ='DNSP Inputs General'!O83 -> 5285.746296
A98: Unit Cost | C98: =IF(C97=0,0,C96/C97) -> 0 | D98: 0.2415787287 | E98: 0.2415787287 | F98: 0.2415787287 | G98: 0.2415787287 | H98: 0.2415787287
A100: Location of selected public lighting assets within distributors' areas (%)
A101: SP AusNet - Central
A102: Urban | C102: 0.94 | D102: 0.94 | E102: 0.94 | F102: 0.94 | G102: 0.94 | H102: 0.94
A103: Rural | C103: 0.06 | D103: 0.06 | E103: 0.06 | F103: 0.06 | G103: 0.06 | H103: 0.06
A104: Remote | C104: 0 | D104: 0 | E104: 0 | F104: 0 | G104: 0 | H104: 0
A106: SP AusNet - North/East
A107: Urban | C107: 0.3 | D107: 0.3 | E107: 0.3 | F107: 0.3 | G107: 0.3 | H107: 0.3
A108: Rural | C108: 0.63 | D108: 0.63 | E108: 0.63 | F108: 0.63 | G108: 0.63 | H108: 0.63
A109: Remote | C109: 0.07 | D109: 0.07 | E109: 0.07 | F109: 0.07 | G109: 0.07 | H109: 0.07
A113: Inputs - S-HP250
A115: Depreciation period | B115: years | C115: =C72 -> 20 | D115: 20 | E115: 20 | F115: 20 | G115: 20 | H115: 20
A116: Number of patrols per year | C116: 3 | D116: 3 | E116: 3 | F116: 3 | G116: 3 | H116: 3
A117: Lamps - frequency of replacement | B117: years | C117: 5 | D117: 5 | E117: 5 | F117: 5 | G117: 5 | H117: 5
A118: PE cells - frequency of replacement | B118: years | C118: 10 | D118: 10 | E118: 10 | F118: 10 | G118: 10 | H118: 10
A119: Unit cost - lamp | C119: 40.47608473 | D119: 40.48 | E119: 40.48 | F119: 40.48 | G119: 40.48 | H119: 40.48
A120: Unit cost - PE cell | C120: 21.8773177 | D120: 21.8773177 | E120: 21.8773177 | F120: 21.8773177 | G120: 21.8773177 | H120: 21.8773177
A121: Unit cost - miscellaneous materials | C121: 2.437584145 | D121: 2.437584145 | E121: 2.437584145 | F121: 2.437584145 | G121: 2.437584145 | H121: 2.437584145
A122: Number of men in crew - road patrols | C122: =C79 -> 2 | D122: 2 | E122: 2 | F122: 2 | G122: 2 | H122: 2
A123: Number of men in crew - repairs | C123: 2 | D123: 2 | E123: 2 | F123: 2 | G123: 2 | H123: 2
A124: Number of lamps patrolled in 1 day - urban | C124: =C81 -> 3000 | D124: 3000 | E124: 3000 | F124: 3000 | G124: 3000 | H124: 3000
A125: Number of lamps patrolled in 1 day - rural | C125: 2000 | D125: 2000 | E125: 2000 | F125: 2000 | G125: 2000 | H125: 2000
A126: Number of lamps patrolled in 1 day - remote | C126: 1000 | D126: 1000 | E126: 1000 | F126: 1000 | G126: 1000 | H126: 1000
A127: Number of repairs in 1 day - urban | C127: 15 | D127: 15 | E127: 15 | F127: 15 | G127: 15 | H127: 15
A128: Number of repairs in 1 day - rural | C128: 12 | D128: 12 | E128: 12 | F128: 12 | G128: 12 | H128: 12
A129: Number of repairs in 1 day - remote | C129: 9 | D129: 9 | E129: 9 | F129: 9 | G129: 9 | H129: 9
A131: Other Maintenance and Repair costs
A132: Traffic control costs | C132: 5672.127172 | D132: 2057.881147 | E132: 2090.147804 | F132: 2122.20749 | G132: 2153.485356 | H132: 2184.166503
A133: Other costs : Describe……………………………………. | C133: 907.5403476 | D133: 907.5403476 | E133: 907.5403476 | F133: 907.5403476 | G133: 907.5403476 | H133: 907.5403476
C134: =SUM(C132:C133) -> 6579.66752 | D134: 2965.421494 | E134: 2997.688151 | F134: 3029.747838 | G134: 3061.025704 | H134: 3091.706851
A135: Number of Lights | C135: =SUM('DNSP Inputs General'!J44,'DNSP Inputs General'!J84) -> 11211.85837 | D135: =SUM('DNSP Inputs General'!K44,'DNSP Inputs General'!K84) -> 11445.53801 | E135: =SUM('DNSP Inputs General'!L44,'DNSP Inputs General'!L84) -> 11624.99894 | F135: =SUM('DNSP Inputs General'!M44,'DNSP Inputs General'!M84) -> 11803.30873 | G135: =SUM('DNSP Inputs General'!N44,'DNSP Inputs General'!N84) -> 11977.27019 | H135: =SUM('DNSP Inputs General'!O44,'DNSP Inputs General'!O84) -> 12147.91281
A136: Unit Cost | C136: =IF(C135=0,0,C134/C135) -> 0.5868489686 | D136: 0.2590897423 | E136: 0.257865671 | F136: 0.2566863163 | G136: 0.2555695627 | H136: 0.2545051895
A138: Other O & M costs specific to North/East zone
A139: Other N\E O & M costs : Describe……………………………………. | C139: 0 | D139: 1175.429858 | E139: 1193.860073 | F139: 1212.17207 | G139: 1230.037503 | H139: 1247.562099
A140: Number of Lights | C140: ='DNSP Inputs General'!J84 -> 4766.278528 | D140: ='DNSP Inputs General'!K84 -> 4865.618194 | E140: ='DNSP Inputs General'!L84 -> 4941.908914 | F140: ='DNSP Inputs General'!M84 -> 5017.710276 | G140: ='DNSP Inputs General'!N84 -> 5091.663116 | H140: ='DNSP Inputs General'!O84 -> 5164.205083
A141: Unit Cost | C141: =IF(C140=0,0,C139/C140) -> 0 | D141: 0.2415787287 | E141: 0.2415787287 | F141: 0.2415787287 | G141: 0.2415787287 | H141: 0.2415787287
A143: Location of selected public lighting assets within distributors' areas (%)
A144: SP AusNet - Central
A145: Urban | C145: 0.9 | D145: 0.9 | E145: 0.9 | F145: 0.9 | G145: 0.9 | H145: 0.9
A146: Rural | C146: 0.1 | D146: 0.1 | E146: 0.1 | F146: 0.1 | G146: 0.1 | H146: 0.1
A147: Remote | C147: 0 | D147: 0 | E147: 0 | F147: 0 | G147: 0 | H147: 0
A149: SP AusNet - North/East
A150: Urban | C150: 0.37 | D150: 0.37 | E150: 0.37 | F150: 0.37 | G150: 0.37 | H150: 0.37
A151: Rural | C151: 0.57 | D151: 0.57 | E151: 0.57 | F151: 0.57 | G151: 0.57 | H151: 0.57
A152: Remote | C152: 0.06 | D152: 0.06 | E152: 0.06 | F152: 0.06 | G152: 0.06 | H152: 0.06
A156: Dedicated street lighting poles
A158: Period of inspection | B158: years | C158: 5 | D158: 5 | E158: 5 | F158: 5 | G158: 5 | H158: 5
A159: Pole inspection rate | B159: per day | C159: 75 | D159: 75 | E159: 75 | F159: 75 | G159: 75 | H159: 75
A160: Depreciation of dedicated street lighting pole & bracket | B160: years | C160: 35 | D160: =C160 -> 35 | E160: =D160 -> 35 | F160: =E160 -> 35 | G160: =F160 -> 35 | H160: =G160 -> 35
A161: Proportion of lights on dedicated poles
A162: SP AusNet - Central | C162: 0.381190625 | D162: 0.381190625 | E162: 0.381190625 | F162: 0.381190625 | G162: 0.381190625 | H162: 0.381190625
A163: SP AusNet - North/East | C163: 0.3829674402 | D163: 0.3829674402 | E163: 0.3829674402 | F163: 0.3829674402 | G163: 0.3829674402 | H163: 0.3829674402
A167: Other direct costs
A168: Call centre
A169: Number of calls | C169: 4000 | D169: 4000 | E169: 4000 | F169: 4000 | G169: 4000 | H169: 4000
A170: Average cost per call $ | C170: 11.34425434 | D170: 14.61 | E170: 14.61 | F170: 14.61 | G170: 14.61 | H170: 14.61
C171: =C169*C170 -> 45377.01738 | D171: 58440 | E171: 58440 | F171: 58440 | G171: 58440 | H171: 58440
A173: GIS and other | C173: 113442.5434 | D173: 113442.5434 | E173: 113442.5434 | F173: 113442.5434 | G173: 113442.5434 | H173: 113442.5434
A174: Complaints handling | C174: 34032.76303 | D174: 34032.76303 | E174: 34032.76303 | F174: 34032.76303 | G174: 34032.76303 | H174: 34032.76303
A178: ENERGY EFFICIENT LIGHTS
A180: Inputs - T5 (2 X 14W)
A182: Depreciation period | B182: years | C182: 20 | D182: =C182 -> 20 | E182: =D182 -> 20 | F182: =E182 -> 20 | G182: =F182 -> 20 | H182: =G182 -> 20
A183: Lamps - bulk change | B183: years | C183: 4 | D183: 4 | E183: 4 | F183: 4 | G183: 4 | H183: 4
A184: PE cells - bulk change | B184: years | C184: 8 | D184: 8 | E184: 8 | F184: 8 | G184: 8 | H184: 8
A185: Ballast unit life | B185: years | C185: 20 | D185: =C185 -> 20 | E185: =D185 -> 20 | F185: =E185 -> 20 | G185: =F185 -> 20 | H185: =G185 -> 20
A186: Proportion of luminaires that fail between bulk change | C186: 0.114 | D186: 0.114 | E186: 0.114 | F186: 0.114 | G186: 0.114 | H186: 0.114
A187: Unit cost - lamp | C187: 9.75033658 | D187: 9.75 | E187: 9.75 | F187: 9.75 | G187: 9.75 | H187: 9.75
A188: Unit cost - PE cell | C188: 16.45369298 | D188: 16.45369298 | E188: 16.45369298 | F188: 16.45369298 | G188: 16.45369298 | H188: 16.45369298
A189: Unit cost - luminaire | C189: 235.22687 | D189: 235.23 | E189: 235.23 | F189: 235.23 | G189: 235.23 | H189: 235.23
A190: Unit cost - miscellaneous materials (bulk lamp) | C190: 1.218792073 | D190: 1.218792073 | E190: 1.218792073 | F190: 1.218792073 | G190: 1.218792073 | H190: 1.218792073
A191: Unit cost - miscellaneous materials (repair) | C191: 12.18792073 | D191: 12.18792073 | E191: 12.18792073 | F191: 12.18792073 | G191: 12.18792073 | H191: 12.18792073
A192: Number of men in crew | C192: 2 | D192: 2 | E192: 2 | F192: 2 | G192: 2 | H192: 2
A193: Number of bulk lamp changes in 1 day - urban | C193: 72 | D193: 85 | E193: 85 | F193: 85 | G193: 85 | H193: 85
A194: Number of bulk lamp changes in 1 day - rural | C194: 59 | D194: 70 | E194: 70 | F194: 70 | G194: 70 | H194: 70
A195: Number of bulk lamp changes in 1 day - remote | C195: 46 | D195: 50 | E195: 50 | F195: 50 | G195: 50 | H195: 50
A196: Number of repairs in 1 day - urban | C196: 20 | D196: 20 | E196: 20 | F196: 20 | G196: 20 | H196: 20
A197: Number of repairs in 1 day - rural | C197: 18 | D197: 15 | E197: 15 | F197: 15 | G197: 15 | H197: 15
A198: Number of repairs in 1 day - remote | C198: 12 | D198: 10 | E198: 10 | F198: 10 | G198: 10 | H198: 10
A199: % of repairs - lamps | C199: 0.6 | D199: 0.6 | E199: 0.6 | F199: 0.6 | G199: 0.6 | H199: 0.6
A200: % of repairs - PE cells | C200: 0.5 | D200: 0.5 | E200: 0.5 | F200: 0.5 | G200: 0.5 | H200: 0.5
A201: % of repairs - luminaires | C201: 0.15 | D201: 0.15 | E201: 0.15 | F201: 0.15 | G201: 0.15 | H201: 0.15
A202: % of repairs - other | C202: 0.1 | D202: 0.1 | E202: 0.1 | F202: 0.1 | G202: 0.1 | H202: 0.1
A204: Other Maintenance and Repair costs
A205: Traffic control costs | C205: 13124.11222 | D205: 3876.306054 | E205: 4631.406401 | F205: 5301.670847 | G205: 5896.657529 | H205: 6426.248938
A206: Other costs : Describe……………………………………. | C206: 0 | D206: 0 | E206: 0 | F206: 0 | G206: 0 | H206: 0
C207: =SUM(C205:C206) -> 13124.11222 | D207: 3876.306054 | E207: 4631.406401 | F207: 5301.670847 | G207: 5896.657529 | H207: 6426.248938
A208: Number of Lights | C208: =SUM('DNSP Inputs General'!J69,'DNSP Inputs General'!J109) -> 16737.40129 | D208: =SUM('DNSP Inputs General'!K69,'DNSP Inputs General'!K109) -> 21559.26661 | E208: =SUM('DNSP Inputs General'!L69,'DNSP Inputs General'!L109) -> 25758.98909 | F208: =SUM('DNSP Inputs General'!M69,'DNSP Inputs General'!M109) -> 29486.87066 | G208: =SUM('DNSP Inputs General'!N69,'DNSP Inputs General'!N109) -> 32796.07183 | H208: =SUM('DNSP Inputs General'!O69,'DNSP Inputs General'!O109) -> 35741.55709
A209: Unit Cost | C209: =IF(C208=0,0,C207/C208) -> 0.7841188721 | D209: 0.179797677 | E209: 0.179797677 | F209: 0.179797677 | G209: 0.179797677 | H209: 0.179797677
A211: Other O & M costs specific to North/East zone
A212: Other N\E O & M costs : Describe……………………………………. | C212: 15198.09509 | D212: 1742.82192 | E212: 2163.265278 | F212: 2535.721 | G212: 2865.727024 | H212: 3158.838052
A213: Number of Lights | C213: ='DNSP Inputs General'!J109 -> 5220.598408 | D213: ='DNSP Inputs General'!K109 -> 7214.302057 | E213: ='DNSP Inputs General'!L109 -> 8954.700975 | F213: ='DNSP Inputs General'!M109 -> 10496.45808 | G213: ='DNSP Inputs General'!N109 -> 11862.49733 | H213: ='DNSP Inputs General'!O109 -> 13075.81205
A214: Unit Cost | C214: =IF(C213=0,0,C212/C213) -> 2.91117874 | D214: 0.2415787287 | E214: 0.2415787287 | F214: 0.2415787287 | G214: 0.2415787287 | H214: 0.2415787287
A216: Location of selected public lighting assets within distributors' areas (%)
A217: SP AusNet - Central
A218: Urban | C218: 0.96 | D218: 0.96 | E218: 0.96 | F218: 0.96 | G218: 0.96 | H218: 0.96
A219: Rural | C219: 0.04 | D219: 0.04 | E219: 0.04 | F219: 0.04 | G219: 0.04 | H219: 0.04
A220: Remote | C220: 0 | D220: 0 | E220: 0 | F220: 0 | G220: 0 | H220: 0
A222: SP AusNet - North/East
A223: Urban | C223: 0.35 | D223: 0.35 | E223: 0.35 | F223: 0.35 | G223: 0.35 | H223: 0.35
A224: Rural | C224: 0.53 | D224: 0.53 | E224: 0.53 | F224: 0.53 | G224: 0.53 | H224: 0.53
A225: Remote | C225: 0.12 | D225: 0.12 | E225: 0.12 | F225: 0.12 | G225: 0.12 | H225: 0.12
A229: Inputs - T5 (2 x 24W)
A231: Depreciation period | B231: years | C231: 20 | D231: =C231 -> 20 | E231: =D231 -> 20 | F231: =E231 -> 20 | G231: =F231 -> 20 | H231: =G231 -> 20
A232: Lamps - bulk change | B232: years | C232: 4 | D232: 4 | E232: 4 | F232: 4 | G232: 4 | H232: 4
A233: PE cells - bulk change | B233: years | C233: 8 | D233: 8 | E233: 8 | F233: 8 | G233: 8 | H233: 8
A234: Ballast unit life | C234: 20 | D234: =C234 -> 20 | E234: =D234 -> 20 | F234: =E234 -> 20 | G234: =F234 -> 20 | H234: =G234 -> 20
A235: Proportion of luminaires that fail between bulk change | C235: 0.114 | D235: 0.114 | E235: 0.114 | F235: 0.114 | G235: 0.114 | H235: 0.114
A236: Unit cost - lamp | C236: 16.8193306 | D236: 16.82 | E236: 16.82 | F236: 16.82 | G236: 16.82 | H236: 16.82
A237: Unit cost - PE cell | C237: 21.32886127 | D237: 21.32886127 | E237: 21.32886127 | F237: 21.32886127 | G237: 21.32886127 | H237: 21.32886127
A238: Unit cost - luminaire | C238: 260.8215035 | D238: 260.82 | E238: 260.82 | F238: 260.82 | G238: 260.82 | H238: 260.82
A239: Unit cost - miscellaneous materials (bulk lamp) | C239: 1.218792073 | D239: 1.218792073 | E239: 1.218792073 | F239: 1.218792073 | G239: 1.218792073 | H239: 1.218792073
A240: Unit cost - miscellaneous materials (repair) | C240: 12.18792073 | D240: 12.18792073 | E240: 12.18792073 | F240: 12.18792073 | G240: 12.18792073 | H240: 12.18792073
A241: Number of men in crew | C241: 2 | D241: 2 | E241: 2 | F241: 2 | G241: 2 | H241: 2
A242: Number of bulk lamp changes in 1 day - urban | C242: 72 | D242: 85 | E242: 85 | F242: 85 | G242: 85 | H242: 85
A243: Number of bulk lamp changes in 1 day - rural | C243: 59 | D243: 70 | E243: 70 | F243: 70 | G243: 70 | H243: 70
A244: Number of bulk lamp changes in 1 day - remote | C244: 46 | D244: 50 | E244: 50 | F244: 50 | G244: 50 | H244: 50
A245: Number of repairs in 1 day - urban | C245: 20 | D245: 20 | E245: 20 | F245: 20 | G245: 20 | H245: 20
A246: Number of repairs in 1 day - rural | C246: 18 | D246: 15 | E246: 15 | F246: 15 | G246: 15 | H246: 15
A247: Number of repairs in 1 day - remote | C247: 12 | D247: 10 | E247: 10 | F247: 10 | G247: 10 | H247: 10
A248: % of repairs - lamps | C248: 0.6 | D248: 0.6 | E248: 0.6 | F248: 0.6 | G248: 0.6 | H248: 0.6
A249: % of repairs - PE cells | C249: 0.5 | D249: 0.5 | E249: 0.5 | F249: 0.5 | G249: 0.5 | H249: 0.5
A250: % of repairs - luminaires | C250: 0.15 | D250: 0.15 | E250: 0.15 | F250: 0.15 | G250: 0.15 | H250: 0.15
... 71 more rows

Sheet DNSP Inputs Capex
A1: Public Lighting Cost Build-up Model
A3: ='DNSP Inputs O & M'!$A$3 -> AusNet | C3: Capex Data Inputs
C5: Real 2015 $
A7: Input parameters | C7: 2015 | D7: 2016 | E7: 2017 | F7: 2018 | G7: 2019 | H7: 2020
A9: Inputs - all lamps
A11: Material premium for rural areas | C11: ='DNSP Inputs O & M'!C11 -> 0.05 | D11: ='DNSP Inputs O & M'!D11 -> 0.05 | E11: ='DNSP Inputs O & M'!E11 -> 0.05 | F11: ='DNSP Inputs O & M'!F11 -> 0.05 | G11: ='DNSP Inputs O & M'!G11 -> 0.05 | H11: ='DNSP Inputs O & M'!H11 -> 0.05
A12: Labour rate (per hour) | C12: ='DNSP Inputs O & M'!C12 -> 95.82595654 | D12: ='DNSP Inputs O & M'!D12 -> 95.82595654 | E12: ='DNSP Inputs O & M'!E12 -> 95.82595654 | F12: ='DNSP Inputs O & M'!F12 -> 95.82595654 | G12: ='DNSP Inputs O & M'!G12 -> 95.82595654 | H12: ='DNSP Inputs O & M'!H12 -> 95.82595654
A13: Elevated platform vehicle (per hour) - urban MV,urban T5 | C13: ='DNSP Inputs O & M'!C14 -> 45.37701738 | D13: ='DNSP Inputs O & M'!D14 -> 45.37701738 | E13: ='DNSP Inputs O & M'!E14 -> 45.37701738 | F13: ='DNSP Inputs O & M'!F14 -> 45.37701738 | G13: ='DNSP Inputs O & M'!G14 -> 45.37701738 | H13: ='DNSP Inputs O & M'!H14 -> 45.37701738
A14: Elevated platform vehicle (per hour) - rural MV, rural T5, S-HP | C14: ='DNSP Inputs O & M'!C15 -> 81.99627041 | D14: ='DNSP Inputs O & M'!D15 -> 81.99627041 | E14: ='DNSP Inputs O & M'!E15 -> 81.99627041 | F14: ='DNSP Inputs O & M'!F15 -> 81.99627041 | G14: ='DNSP Inputs O & M'!G15 -> 81.99627041 | H14: ='DNSP Inputs O & M'!H15 -> 81.99627041
A15: Number of hours in a day | C15: ='DNSP Inputs O & M'!C17 -> 8 | D15: ='DNSP Inputs O & M'!D17 -> 8 | E15: ='DNSP Inputs O & M'!E17 -> 8 | F15: ='DNSP Inputs O & M'!F17 -> 8 | G15: ='DNSP Inputs O & M'!G17 -> 8 | H15: ='DNSP Inputs O & M'!H17 -> 8
A19: Inputs - MV80
A21: Unit cost - luminaire | C21: ='DNSP Inputs O & M'!C30 -> 193.2394831 | D21: ='DNSP Inputs O & M'!D30 -> 193.24 | E21: ='DNSP Inputs O & M'!E30 -> 193.24 | F21: ='DNSP Inputs O & M'!F30 -> 193.24 | G21: ='DNSP Inputs O & M'!G30 -> 193.24 | H21: ='DNSP Inputs O & M'!H30 -> 193.24
A22: Unit cost - miscellaneous materials (bulk lamp) | C22: ='DNSP Inputs O & M'!C31 -> 1.218792073 | D22: ='DNSP Inputs O & M'!D31 -> 1.218792073 | E22: ='DNSP Inputs O & M'!E31 -> 1.218792073 | F22: ='DNSP Inputs O & M'!F31 -> 1.218792073 | G22: ='DNSP Inputs O & M'!G31 -> 1.218792073 | H22: ='DNSP Inputs O & M'!H31 -> 1.218792073
A23: Number of men in crew | C23: ='DNSP Inputs O & M'!C33 -> 2 | D23: ='DNSP Inputs O & M'!D33 -> 2 | E23: ='DNSP Inputs O & M'!E33 -> 2 | F23: ='DNSP Inputs O & M'!F33 -> 2 | G23: ='DNSP Inputs O & M'!G33 -> 2 | H23: ='DNSP Inputs O & M'!H33 -> 2
A24: Number of luminaires replaced per day - urban | C24: 16 | D24: 16 | E24: 16 | F24: 16 | G24: 16 | H24: 16
A25: Number of luminaires replaced per day - rural | C25: 13 | D25: 13 | E25: 13 | F25: 13 | G25: 13 | H25: 13
A26: Number of luminaires replaced per day - remote | C26: 10 | D26: 10 | E26: 10 | F26: 10 | G26: 10 | H26: 10
A28: Other Capex unit costs Describe :……………………… | C28: 0 | D28: 0 | E28: 0 | F28: 0 | G28: 0 | H28: 0
A30: Forecast Quantities to be replaced
A31: Number of luminaires replaced per year - urban | D31: 1182.173114 | E31: 1054.804512 | F31: 941.6125214 | G31: 840.3407267 | H31: 749.9114407
A32: Number of luminaires replaced per year - rural | D32: 298.5735423 | E32: 266.4049081 | F32: 237.8167654 | G32: 212.2392268 | H32: 189.4001079
A33: Number of luminaires replaced per year - remote | D33: 58.04616235 | E33: 51.79220645 | F33: 46.23433967 | G33: 41.26176927 | H33: 36.82157946
A35: MV80 Lights replaced with T5 Energy Efficient Lights
A36: Number of Lights MV80 replaced with T5 per year
A37: SP AusNet - Central | D37: 1500 | E37: 1500 | F37: 1500 | G37: 1500 | H37: 1500
A38: SP AusNet - North/East | D38: 500 | E38: 500 | F38: 500 | G38: 500 | H38: 500
A42: Inputs - S-HP150
A44: Unit cost - luminaire | C44: 228.6941445 | D44: 241.36 | E44: 241.36 | F44: 241.36 | G44: 241.36 | H44: 241.36
A45: Unit cost - miscellaneous materials | C45: ='DNSP Inputs O & M'!C78 -> 2.437584145 | D45: ='DNSP Inputs O & M'!D78 -> 2.437584145 | E45: ='DNSP Inputs O & M'!E78 -> 2.437584145 | F45: ='DNSP Inputs O & M'!F78 -> 2.437584145 | G45: ='DNSP Inputs O & M'!G78 -> 2.437584145 | H45: ='DNSP Inputs O & M'!H78 -> 2.437584145
A46: Number of men in crew | C46: ='DNSP Inputs O & M'!C80 -> 2 | D46: ='DNSP Inputs O & M'!D80 -> 2 | E46: ='DNSP Inputs O & M'!E80 -> 2 | F46: ='DNSP Inputs O & M'!F80 -> 2 | G46: ='DNSP Inputs O & M'!G80 -> 2 | H46: ='DNSP Inputs O & M'!H80 -> 2
A47: Number of luminaires replaced per day - urban | C47: 16 | D47: 16 | E47: 16 | F47: 16 | G47: 16 | H47: 16
A48: Number of luminaires replaced per day - rural | C48: 13 | D48: 13 | E48: 13 | F48: 13 | G48: 13 | H48: 13
A49: Number of luminaires replaced per day - remote | C49: 10 | D49: 10 | E49: 10 | F49: 10 | G49: 10 | H49: 10
A51: Other Capex unit costs Describe :……………………… | C51: 0 | D51: 0 | E51: 0 | F51: 0 | G51: 0 | H51: 0
A53: Forecast Quantities to be replaced
A54: Number of luminaires replaced per year - urban | D54: 275.8396776 | E54: 289.5534287 | F54: 304.0955272 | G54: 319.2818958 | H54: 335.2045732
A55: Number of luminaires replaced per year - rural | D55: 77.78252866 | E55: 81.64959465 | F55: 85.75024181 | G55: 90.03256321 | H55: 94.52251231
A56: Number of luminaires replaced per day - remote | D56: 6.895791954 | E56: 7.238625788 | F56: 7.602167706 | G56: 7.981815912 | H56: 8.379871303
A60: Inputs - S-HP250
A62: Unit cost - luminaire | C62: 232.1067623 | D62: 247.68 | E62: 247.68 | F62: 247.68 | G62: 247.68 | H62: 247.68
A63: Unit cost - miscellaneous materials | C63: ='DNSP Inputs O & M'!C121 -> 2.437584145 | D63: ='DNSP Inputs O & M'!D121 -> 2.437584145 | E63: ='DNSP Inputs O & M'!E121 -> 2.437584145 | F63: ='DNSP Inputs O & M'!F121 -> 2.437584145 | G63: ='DNSP Inputs O & M'!G121 -> 2.437584145 | H63: ='DNSP Inputs O & M'!H121 -> 2.437584145
A64: Number of men in crew | C64: ='DNSP Inputs O & M'!C123 -> 2 | D64: ='DNSP Inputs O & M'!D123 -> 2 | E64: ='DNSP Inputs O & M'!E123 -> 2 | F64: ='DNSP Inputs O & M'!F123 -> 2 | G64: ='DNSP Inputs O & M'!G123 -> 2 | H64: ='DNSP Inputs O & M'!H123 -> 2
A65: Number of luminaires replaced per day - urban | C65: 16 | D65: 16 | E65: 16 | F65: 16 | G65: 16 | H65: 16
A66: Number of luminaires replaced per day - rural | C66: 13 | D66: 13 | E66: 13 | F66: 13 | G66: 13 | H66: 13
A67: Number of luminaires replaced per day - remote | C67: 10 | D67: 10 | E67: 10 | F67: 10 | G67: 10 | H67: 10
A69: Other Capex unit costs Describe :……………………… | C69: 0 | D69: 0 | E69: 0 | F69: 0 | G69: 0 | H69: 0
A71: Forecast Quantities to be replaced
A72: Number of luminaires replaced per year - urban | D72: 174.4926628 | E72: 183.1678068 | F72: 192.3669529 | G72: 201.973656 | H72: 212.0461387
A73: Number of luminaires replaced per year - rural | D73: 50.74388165 | E73: 53.26668391 | F73: 55.9418702 | G73: 58.7355774 | H73: 61.66473706
A74: Number of luminaires replaced per day - remote | D74: 4.305884282 | E74: 4.519957274 | F74: 4.74696085 | G74: 4.984021546 | H74: 5.232576094
A78: Dedicated street lighting poles
A80: Cost of pole & bracket | C80: 598.1859349 | D80: 861.66 | E80: 861.66 | F80: 861.66 | G80: 861.66 | H80: 861.66
A81: Number of poles & brackets replaced per day | C81: 4 | D81: 4 | E81: 4 | F81: 4 | G81: 4 | H81: 4
A82: Cost of bracket on non-dedicated poles | C82: 47.85487479 | D82: 43.74 | E82: 43.74 | F82: 43.74 | G82: 43.74 | H82: 43.74
A83: Number of brackets replaced per day | C83: 20 | D83: 20 | E83: 20 | F83: 20 | G83: 20 | H83: 20
A85: Other poles & brackets Capex unit costs Describe :………………… | C85: 0 | D85: 0 | E85: 18.78904086 | F85: 19.22340589 | G85: 19.65899449 | H85: 20.09458309
A88: Forecast Quantities to be replaced
A89: Number of poles & brackets replaced per year - urban | D89: 598.7331124 | E89: 598.7331124 | F89: 598.7331124 | G89: 598.7331124 | H89: 598.7331124
A90: Number of poles & brackets replaced per year - rural | D90: 203.0623874 | E90: 203.0623874 | F90: 203.0623874 | G90: 203.0623874 | H90: 203.0623874
A91: Number of poles & brackets replaced per year - remote | D91: 15.48943329 | E91: 15.48943329 | F91: 15.48943329 | G91: 15.48943329 | H91: 15.48943329
A93: Brackets on non-dedicated poles :
A94: Number of brackets replaced per year - urban | D94: 970.796428 | E94: 970.796428 | F94: 970.796428 | G94: 970.796428 | H94: 970.796428
A95: Number of brackets replaced per year - rural | D95: 327.8522232 | E95: 327.8522232 | F95: 327.8522232 | G95: 327.8522232 | H95: 327.8522232
A96: Number of brackets replaced per year - remote | D96: 24.95638968 | E96: 24.95638968 | F96: 24.95638968 | G96: 24.95638968 | H96: 24.95638968
A100: Luminaire Replacements - Other Light types (excluding T5s)
A101: Number of luminaires replaced per year | D101: 129.5406343 | E101: 129.5406343 | F101: 129.5406343 | G101: 129.5406343 | H101: 129.5406343
A102: Forecast Capex | D102: 38208.08949 | E102: 38208.08949 | F102: 38208.08949 | G102: 38208.08949 | H102: 38208.08949
A106: Inputs - T5 (2 X 14W)
A108: Unit cost - luminaire | C108: ='DNSP Inputs O & M'!C189 -> 235.22687 | D108: ='DNSP Inputs O & M'!D189 -> 235.23 | E108: ='DNSP Inputs O & M'!E189 -> 235.23 | F108: ='DNSP Inputs O & M'!F189 -> 235.23 | G108: ='DNSP Inputs O & M'!G189 -> 235.23 | H108: ='DNSP Inputs O & M'!H189 -> 235.23
A109: Unit cost - miscellaneous materials (bulk lamp) | C109: ='DNSP Inputs O & M'!C190 -> 1.218792073 | D109: ='DNSP Inputs O & M'!D190 -> 1.218792073 | E109: ='DNSP Inputs O & M'!E190 -> 1.218792073 | F109: ='DNSP Inputs O & M'!F190 -> 1.218792073 | G109: ='DNSP Inputs O & M'!G190 -> 1.218792073 | H109: ='DNSP Inputs O & M'!H190 -> 1.218792073
A110: Number of men in crew | C110: ='DNSP Inputs O & M'!C192 -> 2 | D110: ='DNSP Inputs O & M'!D192 -> 2 | E110: ='DNSP Inputs O & M'!E192 -> 2 | F110: ='DNSP Inputs O & M'!F192 -> 2 | G110: ='DNSP Inputs O & M'!G192 -> 2 | H110: ='DNSP Inputs O & M'!H192 -> 2
A111: Number of luminaires replaced per day - urban | D111: 0 | E111: 0 | F111: 0 | G111: 0 | H111: 0
A112: Number of luminaires replaced per day - rural | D112: 0 | E112: 0 | F112: 0 | G112: 0 | H112: 0
A113: Number of luminaires replaced per day - remote | D113: 0 | E113: 0 | F113: 0 | G113: 0 | H113: 0
A115: Other Capex unit costs Describe :……………………… | D115: 0 | E115: 0 | F115: 0 | G115: 0 | H115: 0
A117: Forecast Quantities to be replaced
A118: Number of luminaires replaced per year - urban | D118: 0 | E118: 0 | F118: 0 | G118: 0 | H118: 0
A119: Number of luminaires replaced per year - rural | D119: 0 | E119: 0 | F119: 0 | G119: 0 | H119: 0
A120: Number of luminaires replaced per year - remote | D120: 0 | E120: 0 | F120: 0 | G120: 0 | H120: 0
A124: Inputs - T5 (2x24W)
A126: Unit cost - luminaire | C126: ='DNSP Inputs O & M'!C238 -> 260.8215035 | D126: ='DNSP Inputs O & M'!D238 -> 260.82 | E126: ='DNSP Inputs O & M'!E238 -> 260.82 | F126: ='DNSP Inputs O & M'!F238 -> 260.82 | G126: ='DNSP Inputs O & M'!G238 -> 260.82 | H126: ='DNSP Inputs O & M'!H238 -> 260.82
A127: Unit cost - miscellaneous materials (bulk lamp) | C127: ='DNSP Inputs O & M'!C239 -> 1.218792073 | D127: ='DNSP Inputs O & M'!D239 -> 1.218792073 | E127: ='DNSP Inputs O & M'!E239 -> 1.218792073 | F127: ='DNSP Inputs O & M'!F239 -> 1.218792073 | G127: ='DNSP Inputs O & M'!G239 -> 1.218792073 | H127: ='DNSP Inputs O & M'!H239 -> 1.218792073
A128: Number of men in crew | C128: ='DNSP Inputs O & M'!C241 -> 2 | D128: ='DNSP Inputs O & M'!D241 -> 2 | E128: ='DNSP Inputs O & M'!E241 -> 2 | F128: ='DNSP Inputs O & M'!F241 -> 2 | G128: ='DNSP Inputs O & M'!G241 -> 2 | H128: ='DNSP Inputs O & M'!H241 -> 2
A129: Number of luminaires replaced per day - urban | D129: 0 | E129: 0 | F129: 0 | G129: 0 | H129: 0
A130: Number of luminaires replaced per day - rural | D130: 0 | E130: 0 | F130: 0 | G130: 0 | H130: 0
A131: Number of luminaires replaced per day - remote | D131: 0 | E131: 0 | F131: 0 | G131: 0 | H131: 0
A133: Other Capex unit costs Describe :……………………… | D133: 0 | E133: 0 | F133: 0 | G133: 0 | H133: 0
A135: Forecast Quantities to be replaced
A136: Number of luminaires replaced per year - urban | D136: 0 | E136: 0 | F136: 0 | G136: 0 | H136: 0
A137: Number of luminaires replaced per year - rural | D137: 0 | E137: 0 | F137: 0 | G137: 0 | H137: 0
A138: Number of luminaires replaced per year - remote | D138: 0 | E138: 0 | F138: 0 | G138: 0 | H138: 0
A142: Inputs - LED 18W
A144: Unit cost - luminaire | D144: ='DNSP Inputs O & M'!D286 -> 356.4706923 | E144: ='DNSP Inputs O & M'!E286 -> 356.4706923 | F144: ='DNSP Inputs O & M'!F286 -> 356.4706923 | G144: ='DNSP Inputs O & M'!G286 -> 356.4706923 | H144: ='DNSP Inputs O & M'!H286 -> 356.4706923
A145: Number of men in crew | D145: ='DNSP Inputs O & M'!D288 -> 2 | E145: ='DNSP Inputs O & M'!E288 -> 2 | F145: ='DNSP Inputs O & M'!F288 -> 2 | G145: ='DNSP Inputs O & M'!G288 -> 2 | H145: ='DNSP Inputs O & M'!H288 -> 2
A146: Number of luminaires replaced per day - urban | D146: 0 | E146: 0 | F146: 0 | G146: 0 | H146: 0
A147: Number of luminaires replaced per day - rural | D147: 0 | E147: 0 | F147: 0 | G147: 0 | H147: 0
A148: Number of luminaires replaced per day - remote | D148: 0 | E148: 0 | F148: 0 | G148: 0 | H148: 0
A150: Other Capex unit costs Describe :……………………… | D150: 0 | E150: 0 | F150: 0 | G150: 0 | H150: 0
A152: Forecast Quantities to be replaced
A153: Number of luminaires replaced per year - urban | D153: 0 | E153: 0 | F153: 0 | G153: 0 | H153: 0
A154: Number of luminaires replaced per year - rural | D154: 0 | E154: 0 | F154: 0 | G154: 0 | H154: 0
A155: Number of luminaires replaced per year - remote | D155: 0 | E155: 0 | F155: 0 | G155: 0 | H155: 0

Sheet PL Tariffs
A1: ='DNSP Inputs O & M'!$A$3 -> AusNet | E1: Global Check | F1: =IF(SUM('Total RAB'!F1,'Depn & WACC Post 2004 N & E'!F1,'Depn & WACC Post 2004 Central'!F1,'Cashflow Summary'!F1,'PL Tariff Components'!W1)<1,"Ok","Error") -> Ok
D3: ='DNSP Inputs General'!$B$39 -> Central
A4: Public Lighting Tariffs | C4: Nominal Prices | J4: Nominal Price Movement | P4: Real Price Movement (Implied X Factor)
C5: Actual
A6: ='DNSP Inputs General'!A$41 -> Existing Lights | C6: ='DNSP Inputs General'!J$2 -> 2015 | D6: ='DNSP Inputs General'!K$2 -> 2016 | E6: ='DNSP Inputs General'!L$2 -> 2017 | F6: ='DNSP Inputs General'!M$2 -> 2018 | G6: ='DNSP Inputs General'!N$2 -> 2019 | H6: ='DNSP Inputs General'!O$2 -> 2020 | J6: =D6 -> 2016 | K6: =E6 -> 2017 | L6: 2018 | M6: 2019 | N6: 2020 | P6: =J6 -> 2016 | Q6: =K6 -> 2017 | R6: 2018 | S6: 2019 | T6: 2020
A7: ='DNSP Inputs General'!A42 -> Mercury Vapour 80W | C7: ='DNSP Inputs General'!E42 -> 48.26 | D7: ='Charges Summary'!D$31 -> 40.61765972 | E7: ='Charges Summary'!E$31 -> 42.81943846 | F7: ='Charges Summary'!F$31 -> 44.89304874 | G7: ='Charges Summary'!G$31 -> 46.65355427 | H7: ='Charges Summary'!H$31 -> 48.31297558 | J7: =IF(C7=0,"",D7/C7-1) -> -0.1583576518 | K7: =IF(D7=0,"",E7/D7-1) -> 0.05420742491 | L7: =IF(E7=0,"",F7/E7-1) -> 0.04842684427 | M7: =IF(F7=0,"",G7/F7-1) -> 0.03921554845 | N7: =IF(G7=0,"",H7/G7-1) -> 0.03556902234 | P7: =IF(C7=0,"",(D7/'Charges Summary'!D$4)/C7-1) -> -0.1763946099 | Q7: =IF(D7=0,"",(E7/'Charges Summary'!E$4)/(D7/'Charges Summary'!D$4)-1) -> 0.0316150552 | R7: =IF(E7=0,"",(F7/'Charges Summary'!F$4)/(E7/'Charges Summary'!E$4)-1) -> 0.02595835627 | S7: =IF(F7=0,"",(G7/'Charges Summary'!G$4)/(F7/'Charges Summary'!F$4)-1) -> 0.01694446468 | T7: =IF(G7=0,"",(H7/'Charges Summary'!H$4)/(G7/'Charges Summary'!G$4)-1) -> 0.01337608606
A8: ='DNSP Inputs General'!A43 -> HP Sodium 150W | C8: ='DNSP Inputs General'!E43 -> 105.11 | D8: ='Charges Summary'!D$55 -> 96.92569165 | E8: ='Charges Summary'!E$55 -> 100.5451839 | F8: ='Charges Summary'!F$55 -> 104.0493572 | G8: ='Charges Summary'!G$55 -> 107.2376035 | H8: ='Charges Summary'!H$55 -> 110.3375478 | J8: -0.07786422172 | K8: 0.03734296027 | L8: 0.03485172661 | M8: 0.03064167293 | N8: 0.02890725028 | P8: =IF(C8=0,"",(D8/'Charges Summary'!D$4)/C8-1) -> -0.09762620777 | Q8: =IF(D8=0,"",(E8/'Charges Summary'!E$4)/(D8/'Charges Summary'!D$4)-1) -> 0.01511200731 | R8: =IF(E8=0,"",(F8/'Charges Summary'!F$4)/(E8/'Charges Summary'!E$4)-1) -> 0.01267416245 | S8: =IF(F8=0,"",(G8/'Charges Summary'!G$4)/(F8/'Charges Summary'!F$4)-1) -> 0.008554333038 | T8: =IF(G8=0,"",(H8/'Charges Summary'!H$4)/(G8/'Charges Summary'!G$4)-1) -> 0.006857080225
A9: ='DNSP Inputs General'!A44 -> HP Sodium 250W | C9: ='DNSP Inputs General'!E44 -> 106.4 | D9: ='Charges Summary'!D$71 -> 97.86896265 | E9: ='Charges Summary'!E$71 -> 101.530488 | F9: ='Charges Summary'!F$71 -> 105.0754612 | G9: ='Charges Summary'!G$71 -> 108.3013611 | H9: ='Charges Summary'!H$71 -> 111.437601 | J9: -0.08017892247 | K9: 0.03741252838 | L9: 0.03491535701 | M9: 0.03070079231 | N9: 0.02895845272 | P9: =IF(C9=0,"",(D9/'Charges Summary'!D$4)/C9-1) -> -0.09989130293 | Q9: =IF(D9=0,"",(E9/'Charges Summary'!E$4)/(D9/'Charges Summary'!D$4)-1) -> 0.01518008452 | R9: =IF(E9=0,"",(F9/'Charges Summary'!F$4)/(E9/'Charges Summary'!E$4)-1) -> 0.01273642921 | S9: =IF(F9=0,"",(G9/'Charges Summary'!G$4)/(F9/'Charges Summary'!F$4)-1) -> 0.00861218545 | T9: =IF(G9=0,"",(H9/'Charges Summary'!H$4)/(G9/'Charges Summary'!G$4)-1) -> 0.00690718536
A10: ='DNSP Inputs General'!A45 -> Mercury Vapour 50W | C10: ='DNSP Inputs General'!E45 -> 73.85 | D10: =IF('DNSP Inputs General'!$B45='DNSP Inputs General'!$A$42,D$7,IF('DNSP Inputs General'!$B45='DNSP Inputs General'!$A$43,D$8,D$9))*'DNSP Inputs General'!$D45 -> 62.14501938 | E10: =IF('DNSP Inputs General'!$B45='DNSP Inputs General'!$A$42,E$7,IF('DNSP Inputs General'!$B45='DNSP Inputs General'!$A$43,E$8,E$9))*'DNSP Inputs General'!$D45 -> 65.51374085 | F10: =IF('DNSP Inputs General'!$B45='DNSP Inputs General'!$A$42,F$7,IF('DNSP Inputs General'!$B45='DNSP Inputs General'!$A$43,F$8,F$9))*'DNSP Inputs General'!$D45 -> 68.68636457 | G10: =IF('DNSP Inputs General'!$B45='DNSP Inputs General'!$A$42,G$7,IF('DNSP Inputs General'!$B45='DNSP Inputs General'!$A$43,G$8,G$9))*'DNSP Inputs General'!$D45 -> 71.37993803 | H10: =IF('DNSP Inputs General'!$B45='DNSP Inputs General'!$A$42,H$7,IF('DNSP Inputs General'!$B45='DNSP Inputs General'!$A$43,H$8,H$9))*'DNSP Inputs General'!$D45 -> 73.91885264 | J10: -0.1584966909 | K10: 0.05420742491 | L10: 0.04842684427 | M10: 0.03921554845 | N10: 0.03556902234 | P10: =IF(C10=0,"",(D10/'Charges Summary'!D$4)/C10-1) -> -0.1765306693 | Q10: =IF(D10=0,"",(E10/'Charges Summary'!E$4)/(D10/'Charges Summary'!D$4)-1) -> 0.0316150552 | R10: =IF(E10=0,"",(F10/'Charges Summary'!F$4)/(E10/'Charges Summary'!E$4)-1) -> 0.02595835627 | S10: =IF(F10=0,"",(G10/'Charges Summary'!G$4)/(F10/'Charges Summary'!F$4)-1) -> 0.01694446468 | T10: =IF(G10=0,"",(H10/'Charges Summary'!H$4)/(G10/'Charges Summary'!G$4)-1) -> 0.01337608606
A11: ='DNSP Inputs General'!A46 -> Mercury Vapour 125W | C11: ='DNSP Inputs General'!E46 -> 70.95 | D11: =IF('DNSP Inputs General'!$B46='DNSP Inputs General'!$A$42,D$7,IF('DNSP Inputs General'!$B46='DNSP Inputs General'!$A$43,D$8,D$9))*'DNSP Inputs General'!$D46 -> 59.70795979 | E11: =IF('DNSP Inputs General'!$B46='DNSP Inputs General'!$A$42,E$7,IF('DNSP Inputs General'!$B46='DNSP Inputs General'!$A$43,E$8,E$9))*'DNSP Inputs General'!$D46 -> 62.94457454 | F11: =IF('DNSP Inputs General'!$B46='DNSP Inputs General'!$A$42,F$7,IF('DNSP Inputs General'!$B46='DNSP Inputs General'!$A$43,F$8,F$9))*'DNSP Inputs General'!$D46 -> 65.99278165 | G11: =IF('DNSP Inputs General'!$B46='DNSP Inputs General'!$A$42,G$7,IF('DNSP Inputs General'!$B46='DNSP Inputs General'!$A$43,G$8,G$9))*'DNSP Inputs General'!$D46 -> 68.58072477 | H11: =IF('DNSP Inputs General'!$B46='DNSP Inputs General'!$A$42,H$7,IF('DNSP Inputs General'!$B46='DNSP Inputs General'!$A$43,H$8,H$9))*'DNSP Inputs General'!$D46 -> 71.02007411 | J11: -0.1584501791 | K11: 0.05420742491 | L11: 0.04842684427 | M11: 0.03921554845 | N11: 0.03556902234 | P11: =IF(C11=0,"",(D11/'Charges Summary'!D$4)/C11-1) -> -0.1764851542 | Q11: =IF(D11=0,"",(E11/'Charges Summary'!E$4)/(D11/'Charges Summary'!D$4)-1) -> 0.0316150552 | R11: =IF(E11=0,"",(F11/'Charges Summary'!F$4)/(E11/'Charges Summary'!E$4)-1) -> 0.02595835627 | S11: =IF(F11=0,"",(G11/'Charges Summary'!G$4)/(F11/'Charges Summary'!F$4)-1) -> 0.01694446468 | T11: =IF(G11=0,"",(H11/'Charges Summary'!H$4)/(G11/'Charges Summary'!G$4)-1) -> 0.01337608606
A12: ='DNSP Inputs General'!A47 -> Mercury Vapour 250W | C12: ='DNSP Inputs General'!E47 -> 111.72 | D12: =IF('DNSP Inputs General'!$B47='DNSP Inputs General'!$A$42,D$7,IF('DNSP Inputs General'!$B47='DNSP Inputs General'!$A$43,D$8,D$9))*'DNSP Inputs General'!$D47 -> 102.7624108 | E12: =IF('DNSP Inputs General'!$B47='DNSP Inputs General'!$A$42,E$7,IF('DNSP Inputs General'!$B47='DNSP Inputs General'!$A$43,E$8,E$9))*'DNSP Inputs General'!$D47 -> 106.6070124 | F12: =IF('DNSP Inputs General'!$B47='DNSP Inputs General'!$A$42,F$7,IF('DNSP Inputs General'!$B47='DNSP Inputs General'!$A$43,F$8,F$9))*'DNSP Inputs General'!$D47 -> 110.3292343 | G12: =IF('DNSP Inputs General'!$B47='DNSP Inputs General'!$A$42,G$7,IF('DNSP Inputs General'!$B47='DNSP Inputs General'!$A$43,G$8,G$9))*'DNSP Inputs General'!$D47 -> 113.7164292 | H12: =IF('DNSP Inputs General'!$B47='DNSP Inputs General'!$A$42,H$7,IF('DNSP Inputs General'!$B47='DNSP Inputs General'!$A$43,H$8,H$9))*'DNSP Inputs General'!$D47 -> 117.009481 | J12: -0.08017892247 | K12: 0.03741252838 | L12: 0.03491535701 | M12: 0.03070079231 | N12: 0.02895845272 | P12: =IF(C12=0,"",(D12/'Charges Summary'!D$4)/C12-1) -> -0.09989130293 | Q12: =IF(D12=0,"",(E12/'Charges Summary'!E$4)/(D12/'Charges Summary'!D$4)-1) -> 0.01518008452 | R12: =IF(E12=0,"",(F12/'Charges Summary'!F$4)/(E12/'Charges Summary'!E$4)-1) -> 0.01273642921 | S12: =IF(F12=0,"",(G12/'Charges Summary'!G$4)/(F12/'Charges Summary'!F$4)-1) -> 0.00861218545 | T12: =IF(G12=0,"",(H12/'Charges Summary'!H$4)/(G12/'Charges Summary'!G$4)-1) -> 0.00690718536
A13: ='DNSP Inputs General'!A48 -> Mercury Vapour 400W | C13: ='DNSP Inputs General'!E48 -> 115.97 | D13: =IF('DNSP Inputs General'!$B48='DNSP Inputs General'!$A$42,D$7,IF('DNSP Inputs General'!$B48='DNSP Inputs General'!$A$43,D$8,D$9))*'DNSP Inputs General'!$D48 -> 106.6771693 | E13: =IF('DNSP Inputs General'!$B48='DNSP Inputs General'!$A$42,E$7,IF('DNSP Inputs General'!$B48='DNSP Inputs General'!$A$43,E$8,E$9))*'DNSP Inputs General'!$D48 -> 110.6682319 | F13: =IF('DNSP Inputs General'!$B48='DNSP Inputs General'!$A$42,F$7,IF('DNSP Inputs General'!$B48='DNSP Inputs General'!$A$43,F$8,F$9))*'DNSP Inputs General'!$D48 -> 114.5322527 | G13: =IF('DNSP Inputs General'!$B48='DNSP Inputs General'!$A$42,G$7,IF('DNSP Inputs General'!$B48='DNSP Inputs General'!$A$43,G$8,G$9))*'DNSP Inputs General'!$D48 -> 118.0484836 | H13: =IF('DNSP Inputs General'!$B48='DNSP Inputs General'!$A$42,H$7,IF('DNSP Inputs General'!$B48='DNSP Inputs General'!$A$43,H$8,H$9))*'DNSP Inputs General'!$D48 -> 121.4669851 | J13: -0.08013133321 | K13: 0.03741252838 | L13: 0.03491535701 | M13: 0.03070079231 | N13: 0.02895845272 | P13: =IF(C13=0,"",(D13/'Charges Summary'!D$4)/C13-1) -> -0.09984473354 | Q13: =IF(D13=0,"",(E13/'Charges Summary'!E$4)/(D13/'Charges Summary'!D$4)-1) -> 0.01518008452 | R13: =IF(E13=0,"",(F13/'Charges Summary'!F$4)/(E13/'Charges Summary'!E$4)-1) -> 0.01273642921 | S13: =IF(F13=0,"",(G13/'Charges Summary'!G$4)/(F13/'Charges Summary'!F$4)-1) -> 0.00861218545 | T13: =IF(G13=0,"",(H13/'Charges Summary'!H$4)/(G13/'Charges Summary'!G$4)-1) -> 0.00690718536
A14: ='DNSP Inputs General'!A49 -> HP Sodium 100W | C14: ='DNSP Inputs General'!E49 -> 112.46 | D14: =IF('DNSP Inputs General'!$B49='DNSP Inputs General'!$A$42,D$7,IF('DNSP Inputs General'!$B49='DNSP Inputs General'!$A$43,D$8,D$9))*'DNSP Inputs General'!$D49 -> 103.7104901 | E14: =IF('DNSP Inputs General'!$B49='DNSP Inputs General'!$A$42,E$7,IF('DNSP Inputs General'!$B49='DNSP Inputs General'!$A$43,E$8,E$9))*'DNSP Inputs General'!$D49 -> 107.5833468 | F14: =IF('DNSP Inputs General'!$B49='DNSP Inputs General'!$A$42,F$7,IF('DNSP Inputs General'!$B49='DNSP Inputs General'!$A$43,F$8,F$9))*'DNSP Inputs General'!$D49 -> 111.3328122 | G14: =IF('DNSP Inputs General'!$B49='DNSP Inputs General'!$A$42,G$7,IF('DNSP Inputs General'!$B49='DNSP Inputs General'!$A$43,G$8,G$9))*'DNSP Inputs General'!$D49 -> 114.7442358 | H14: =IF('DNSP Inputs General'!$B49='DNSP Inputs General'!$A$42,H$7,IF('DNSP Inputs General'!$B49='DNSP Inputs General'!$A$43,H$8,H$9))*'DNSP Inputs General'!$D49 -> 118.0611761 | J14: -0.0778010842 | K14: 0.03734296027 | L14: 0.03485172661 | M14: 0.03064167293 | N14: 0.02890725028 | P14: =IF(C14=0,"",(D14/'Charges Summary'!D$4)/C14-1) -> -0.09756442333 | Q14: =IF(D14=0,"",(E14/'Charges Summary'!E$4)/(D14/'Charges Summary'!D$4)-1) -> 0.01511200731 | R14: =IF(E14=0,"",(F14/'Charges Summary'!F$4)/(E14/'Charges Summary'!E$4)-1) -> 0.01267416245 | S14: =IF(F14=0,"",(G14/'Charges Summary'!G$4)/(F14/'Charges Summary'!F$4)-1) -> 0.008554333038 | T14: =IF(G14=0,"",(H14/'Charges Summary'!H$4)/(G14/'Charges Summary'!G$4)-1) -> 0.006857080225
A15: ='DNSP Inputs General'!A50 -> HP Sodium 400W | C15: ='DNSP Inputs General'!E50 -> 151.08 | D15: =IF('DNSP Inputs General'!$B50='DNSP Inputs General'!$A$42,D$7,IF('DNSP Inputs General'!$B50='DNSP Inputs General'!$A$43,D$8,D$9))*'DNSP Inputs General'!$D50 -> 138.973927 | E15: =IF('DNSP Inputs General'!$B50='DNSP Inputs General'!$A$42,E$7,IF('DNSP Inputs General'!$B50='DNSP Inputs General'!$A$43,E$8,E$9))*'DNSP Inputs General'!$D50 -> 144.1732929 | F15: =IF('DNSP Inputs General'!$B50='DNSP Inputs General'!$A$42,F$7,IF('DNSP Inputs General'!$B50='DNSP Inputs General'!$A$43,F$8,F$9))*'DNSP Inputs General'!$D50 -> 149.2071549 | G15: =IF('DNSP Inputs General'!$B50='DNSP Inputs General'!$A$42,G$7,IF('DNSP Inputs General'!$B50='DNSP Inputs General'!$A$43,G$8,G$9))*'DNSP Inputs General'!$D50 -> 153.7879328 | H15: =IF('DNSP Inputs General'!$B50='DNSP Inputs General'!$A$42,H$7,IF('DNSP Inputs General'!$B50='DNSP Inputs General'!$A$43,H$8,H$9))*'DNSP Inputs General'!$D50 -> 158.2413934 | J15: -0.08013021603 | K15: 0.03741252838 | L15: 0.03491535701 | M15: 0.03070079231 | N15: 0.02895845272 | P15: =IF(C15=0,"",(D15/'Charges Summary'!D$4)/C15-1) -> -0.09984364031 | Q15: =IF(D15=0,"",(E15/'Charges Summary'!E$4)/(D15/'Charges Summary'!D$4)-1) -> 0.01518008452 | R15: =IF(E15=0,"",(F15/'Charges Summary'!F$4)/(E15/'Charges Summary'!E$4)-1) -> 0.01273642921 | S15: =IF(F15=0,"",(G15/'Charges Summary'!G$4)/(F15/'Charges Summary'!F$4)-1) -> 0.00861218545 | T15: =IF(G15=0,"",(H15/'Charges Summary'!H$4)/(G15/'Charges Summary'!G$4)-1) -> 0.00690718536
A16: ='DNSP Inputs General'!A51 -> Metal Halide 70W | C16: ='DNSP Inputs General'!E51 -> 210.66 | D16: =IF('DNSP Inputs General'!$B51='DNSP Inputs General'!$A$42,D$7,IF('DNSP Inputs General'!$B51='DNSP Inputs General'!$A$43,D$8,D$9))*'DNSP Inputs General'!$D51 -> 177.3003771 | E16: =IF('DNSP Inputs General'!$B51='DNSP Inputs General'!$A$42,E$7,IF('DNSP Inputs General'!$B51='DNSP Inputs General'!$A$43,E$8,E$9))*'DNSP Inputs General'!$D51 -> 186.9113739 | F16: =IF('DNSP Inputs General'!$B51='DNSP Inputs General'!$A$42,F$7,IF('DNSP Inputs General'!$B51='DNSP Inputs General'!$A$43,F$8,F$9))*'DNSP Inputs General'!$D51 -> 195.9629019 | G16: =IF('DNSP Inputs General'!$B51='DNSP Inputs General'!$A$42,G$7,IF('DNSP Inputs General'!$B51='DNSP Inputs General'!$A$43,G$8,G$9))*'DNSP Inputs General'!$D51 -> 203.6476946 | H16: =IF('DNSP Inputs General'!$B51='DNSP Inputs General'!$A$42,H$7,IF('DNSP Inputs General'!$B51='DNSP Inputs General'!$A$43,H$8,H$9))*'DNSP Inputs General'!$D51 -> 210.891244 | J16: =IF(C16=0,"",D16/C16-1) -> -0.1583576518 | K16: =IF(D16=0,"",E16/D16-1) -> 0.05420742491 | L16: =IF(E16=0,"",F16/E16-1) -> 0.04842684427 | M16: =IF(F16=0,"",G16/F16-1) -> 0.03921554845 | N16: =IF(G16=0,"",H16/G16-1) -> 0.03556902234 | P16: =IF(C16=0,"",(D16/'Charges Summary'!D$4)/C16-1) -> -0.1763946099 | Q16: =IF(D16=0,"",(E16/'Charges Summary'!E$4)/(D16/'Charges Summary'!D$4)-1) -> 0.0316150552 | R16: =IF(E16=0,"",(F16/'Charges Summary'!F$4)/(E16/'Charges Summary'!E$4)-1) -> 0.02595835627 | S16: =IF(F16=0,"",(G16/'Charges Summary'!G$4)/(F16/'Charges Summary'!F$4)-1) -> 0.01694446468 | T16: =IF(G16=0,"",(H16/'Charges Summary'!H$4)/(G16/'Charges Summary'!G$4)-1) -> 0.01337608606
A17: ='DNSP Inputs General'!A52 -> Metal Halide 100W | C17: ='DNSP Inputs General'!E52 -> 250.97 | D17: =IF('DNSP Inputs General'!$B52='DNSP Inputs General'!$A$42,D$7,IF('DNSP Inputs General'!$B52='DNSP Inputs General'!$A$43,D$8,D$9))*'DNSP Inputs General'!$D52 -> 231.4284163 | E17: =IF('DNSP Inputs General'!$B52='DNSP Inputs General'!$A$42,E$7,IF('DNSP Inputs General'!$B52='DNSP Inputs General'!$A$43,E$8,E$9))*'DNSP Inputs General'!$D52 -> 240.0706384 | F17: =IF('DNSP Inputs General'!$B52='DNSP Inputs General'!$A$42,F$7,IF('DNSP Inputs General'!$B52='DNSP Inputs General'!$A$43,F$8,F$9))*'DNSP Inputs General'!$D52 -> 248.4375147 | G17: =IF('DNSP Inputs General'!$B52='DNSP Inputs General'!$A$42,G$7,IF('DNSP Inputs General'!$B52='DNSP Inputs General'!$A$43,G$8,G$9))*'DNSP Inputs General'!$D52 -> 256.0500558 | H17: =IF('DNSP Inputs General'!$B52='DNSP Inputs General'!$A$42,H$7,IF('DNSP Inputs General'!$B52='DNSP Inputs General'!$A$43,H$8,H$9))*'DNSP Inputs General'!$D52 -> 263.4517588 | J17: -0.07786422172 | K17: 0.03734296027 | L17: 0.03485172661 | M17: 0.03064167293 | N17: 0.02890725028 | P17: =IF(C17=0,"",(D17/'Charges Summary'!D$4)/C17-1) -> -0.09762620777 | Q17: =IF(D17=0,"",(E17/'Charges Summary'!E$4)/(D17/'Charges Summary'!D$4)-1) -> 0.01511200731 | R17: =IF(E17=0,"",(F17/'Charges Summary'!F$4)/(E17/'Charges Summary'!E$4)-1) -> 0.01267416245 | S17: =IF(F17=0,"",(G17/'Charges Summary'!G$4)/(F17/'Charges Summary'!F$4)-1) -> 0.008554333038 | T17: =IF(G17=0,"",(H17/'Charges Summary'!H$4)/(G17/'Charges Summary'!G$4)-1) -> 0.006857080225
A18: ='DNSP Inputs General'!A53 -> Metal Halide 150W | C18: ='DNSP Inputs General'!E53 -> 285.12 | D18: =IF('DNSP Inputs General'!$B53='DNSP Inputs General'!$A$42,D$7,IF('DNSP Inputs General'!$B53='DNSP Inputs General'!$A$43,D$8,D$9))*'DNSP Inputs General'!$D53 -> 262.9193531 | E18: =IF('DNSP Inputs General'!$B53='DNSP Inputs General'!$A$42,E$7,IF('DNSP Inputs General'!$B53='DNSP Inputs General'!$A$43,E$8,E$9))*'DNSP Inputs General'!$D53 -> 272.7375401 | F18: =IF('DNSP Inputs General'!$B53='DNSP Inputs General'!$A$42,F$7,IF('DNSP Inputs General'!$B53='DNSP Inputs General'!$A$43,F$8,F$9))*'DNSP Inputs General'!$D53 -> 282.2429142 | G18: =IF('DNSP Inputs General'!$B53='DNSP Inputs General'!$A$42,G$7,IF('DNSP Inputs General'!$B53='DNSP Inputs General'!$A$43,G$8,G$9))*'DNSP Inputs General'!$D53 -> 290.8913093 | H18: =IF('DNSP Inputs General'!$B53='DNSP Inputs General'!$A$42,H$7,IF('DNSP Inputs General'!$B53='DNSP Inputs General'!$A$43,H$8,H$9))*'DNSP Inputs General'!$D53 -> 299.3001772 | J18: -0.07786422172 | K18: 0.03734296027 | L18: 0.03485172661 | M18: 0.03064167293 | N18: 0.02890725028 | P18: =IF(C18=0,"",(D18/'Charges Summary'!D$4)/C18-1) -> -0.09762620777 | Q18: =IF(D18=0,"",(E18/'Charges Summary'!E$4)/(D18/'Charges Summary'!D$4)-1) -> 0.01511200731 | R18: =IF(E18=0,"",(F18/'Charges Summary'!F$4)/(E18/'Charges Summary'!E$4)-1) -> 0.01267416245 | S18: =IF(F18=0,"",(G18/'Charges Summary'!G$4)/(F18/'Charges Summary'!F$4)-1) -> 0.008554333038 | T18: =IF(G18=0,"",(H18/'Charges Summary'!H$4)/(G18/'Charges Summary'!G$4)-1) -> 0.006857080225
A19: ='DNSP Inputs General'!A54 -> HP Sodium 50W | C19: ='DNSP Inputs General'!E54 -> 46.6 | D19: =IF('DNSP Inputs General'!$B54='DNSP Inputs General'!$A$42,D$7,IF('DNSP Inputs General'!$B54='DNSP Inputs General'!$A$43,D$8,D$9))*'DNSP Inputs General'!$D54 -> 42.97152727 | E19: =IF('DNSP Inputs General'!$B54='DNSP Inputs General'!$A$42,E$7,IF('DNSP Inputs General'!$B54='DNSP Inputs General'!$A$43,E$8,E$9))*'DNSP Inputs General'!$D54 -> 44.5762113 | F19: =IF('DNSP Inputs General'!$B54='DNSP Inputs General'!$A$42,F$7,IF('DNSP Inputs General'!$B54='DNSP Inputs General'!$A$43,F$8,F$9))*'DNSP Inputs General'!$D54 -> 46.12976923 | G19: =IF('DNSP Inputs General'!$B54='DNSP Inputs General'!$A$42,G$7,IF('DNSP Inputs General'!$B54='DNSP Inputs General'!$A$43,G$8,G$9))*'DNSP Inputs General'!$D54 -> 47.54326253 | H19: =IF('DNSP Inputs General'!$B54='DNSP Inputs General'!$A$42,H$7,IF('DNSP Inputs General'!$B54='DNSP Inputs General'!$A$43,H$8,H$9))*'DNSP Inputs General'!$D54 -> 48.91760752 | J19: -0.07786422172 | K19: 0.03734296027 | L19: 0.03485172661 | M19: 0.03064167293 | N19: 0.02890725028 | P19: =IF(C19=0,"",(D19/'Charges Summary'!D$4)/C19-1) -> -0.09762620777 | Q19: =IF(D19=0,"",(E19/'Charges Summary'!E$4)/(D19/'Charges Summary'!D$4)-1) -> 0.01511200731 | R19: =IF(E19=0,"",(F19/'Charges Summary'!F$4)/(E19/'Charges Summary'!E$4)-1) -> 0.01267416245 | S19: =IF(F19=0,"",(G19/'Charges Summary'!G$4)/(F19/'Charges Summary'!F$4)-1) -> 0.008554333038 | T19: =IF(G19=0,"",(H19/'Charges Summary'!H$4)/(G19/'Charges Summary'!G$4)-1) -> 0.006857080225
A22: ='DNSP Inputs General'!A$68 -> Energy Efficient Lights
A23: ='DNSP Inputs General'!A69 -> T5 2X14W | C23: ='DNSP Inputs General'!E69 -> 39.13 | D23: ='Charges Summary'!D$89 -> 37.75297771 | E23: ='Charges Summary'!E$89 -> 37.65290545 | F23: ='Charges Summary'!F$89 -> 37.95049633 | G23: ='Charges Summary'!G$89 -> 38.2995012 | H23: ='Charges Summary'!H$89 -> 38.76677958 | J23: =IF(C23=0,"",D23/C23-1) -> -0.03519096071 | K23: -0.002650711583 | L23: 0.007903530156 | M23: 0.009196318978 | N23: 0.01220063893 | P23: =IF(C23=0,"",(D23/'Charges Summary'!D$4)/C23-1) -> -0.05586746327 | Q23: =IF(D23=0,"",(E23/'Charges Summary'!E$4)/(D23/'Charges Summary'!D$4)-1) -> -0.02402457343 | R23: =IF(E23=0,"",(F23/'Charges Summary'!F$4)/(E23/'Charges Summary'!E$4)-1) -> -0.01369651614 | S23: =IF(F23=0,"",(G23/'Charges Summary'!G$4)/(F23/'Charges Summary'!F$4)-1) -> -0.01243143265 | T23: =IF(G23=0,"",(H23/'Charges Summary'!H$4)/(G23/'Charges Summary'!G$4)-1) -> -0.009491497282
A24: ='DNSP Inputs General'!A70 -> T5 2X24W | C24: ='DNSP Inputs General'!E70 -> 44.31 | D24: ='Charges Summary'!D$105 -> 44.21908042 | E24: ='Charges Summary'!E$105 -> 44.1163096 | F24: ='Charges Summary'!F$105 -> 44.46408298 | G24: ='Charges Summary'!G$105 -> 44.88996173 | H24: ='Charges Summary'!H$105 -> 45.4531178 | J24: -0.002051897465 | K24: -0.002324128473 | L24: 0.007883102333 | M24: 0.00957803951 | N24: 0.01254525637 | P24: =IF(C24=0,"",(D24/'Charges Summary'!D$4)/C24-1) -> -0.02343859229 | Q24: =IF(D24=0,"",(E24/'Charges Summary'!E$4)/(D24/'Charges Summary'!D$4)-1) -> -0.02370498921 | R24: =IF(E24=0,"",(F24/'Charges Summary'!F$4)/(E24/'Charges Summary'!E$4)-1) -> -0.01371650618 | S24: =IF(F24=0,"",(G24/'Charges Summary'!G$4)/(F24/'Charges Summary'!F$4)-1) -> -0.01205789264 | T24: =IF(G24=0,"",(H24/'Charges Summary'!H$4)/(G24/'Charges Summary'!G$4)-1) -> -0.009154265224
A25: ='DNSP Inputs General'!A71 -> LED 18W | C25: ='DNSP Inputs General'!E71 -> 21.29 | D25: ='Charges Summary'!D$121 -> 21.22192672 | E25: ='Charges Summary'!E$121 -> 20.07612825 | F25: ='Charges Summary'!F$121 -> 19.55591228 | G25: ='Charges Summary'!G$121 -> 19.19045224 | H25: ='Charges Summary'!H$121 -> 19.00967923 | J25: =IF(C25=0,"",D25/C25-1) -> -0.003197429631 | K25: =IF(D25=0,"",E25/D25-1) -> -0.05399125573 | L25: =IF(E25=0,"",F25/E25-1) -> -0.02591216618 | M25: =IF(F25=0,"",G25/F25-1) -> -0.01868795639 | N25: =IF(G25=0,"",H25/G25-1) -> -0.009419945254 | P25: =IF(C25=0,"",(D25/'Charges Summary'!D$4)/C25-1) -> -0.02455957494 | Q25: =IF(D25=0,"",(E25/'Charges Summary'!E$4)/(D25/'Charges Summary'!D$4)-1) -> -0.0742648554 | R25: =IF(E25=0,"",(F25/'Charges Summary'!F$4)/(E25/'Charges Summary'!E$4)-1) -> -0.0467875195 | S25: =IF(F25=0,"",(G25/'Charges Summary'!G$4)/(F25/'Charges Summary'!F$4)-1) -> -0.03971812936 | T25: =IF(G25=0,"",(H25/'Charges Summary'!H$4)/(G25/'Charges Summary'!G$4)-1) -> -0.03064873789
A26: ='DNSP Inputs General'!A72 -> Compact Fluorescent 32W | C26: ='DNSP Inputs General'!E72 -> 34.73 | D26: =IF('DNSP Inputs General'!$B72='DNSP Inputs General'!$A$69,D$23,D$24)*'DNSP Inputs General'!$D72 -> 33.50781793 | E26: =IF('DNSP Inputs General'!$B72='DNSP Inputs General'!$A$69,E$23,E$24)*'DNSP Inputs General'!$D72 -> 33.41899837 | F26: =IF('DNSP Inputs General'!$B72='DNSP Inputs General'!$A$69,F$23,F$24)*'DNSP Inputs General'!$D72 -> 33.68312643 | G26: =IF('DNSP Inputs General'!$B72='DNSP Inputs General'!$A$69,G$23,G$24)*'DNSP Inputs General'!$D72 -> 33.99288721 | H26: =IF('DNSP Inputs General'!$B72='DNSP Inputs General'!$A$69,H$23,H$24)*'DNSP Inputs General'!$D72 -> 34.40762215 | J26: -0.03519096071 | K26: -0.002650711583 | L26: 0.007903530156 | M26: 0.009196318978 | N26: 0.01220063893 | P26: =IF(C26=0,"",(D26/'Charges Summary'!D$4)/C26-1) -> -0.05586746327 | Q26: =IF(D26=0,"",(E26/'Charges Summary'!E$4)/(D26/'Charges Summary'!D$4)-1) -> -0.02402457343 | R26: =IF(E26=0,"",(F26/'Charges Summary'!F$4)/(E26/'Charges Summary'!E$4)-1) -> -0.01369651614 | S26: =IF(F26=0,"",(G26/'Charges Summary'!G$4)/(F26/'Charges Summary'!F$4)-1) -> -0.01243143265 | T26: =IF(G26=0,"",(H26/'Charges Summary'!H$4)/(G26/'Charges Summary'!G$4)-1) -> -0.009491497282
A27: ='DNSP Inputs General'!A73 -> Compact Fluorescent 42W | C27: ='DNSP Inputs General'!E73 -> 34.73 | D27: =IF('DNSP Inputs General'!$B73='DNSP Inputs General'!$A$69,D$23,D$24)*'DNSP Inputs General'!$D73 -> 33.50781793 | E27: =IF('DNSP Inputs General'!$B73='DNSP Inputs General'!$A$69,E$23,E$24)*'DNSP Inputs General'!$D73 -> 33.41899837 | F27: =IF('DNSP Inputs General'!$B73='DNSP Inputs General'!$A$69,F$23,F$24)*'DNSP Inputs General'!$D73 -> 33.68312643 | G27: =IF('DNSP Inputs General'!$B73='DNSP Inputs General'!$A$69,G$23,G$24)*'DNSP Inputs General'!$D73 -> 33.99288721 | H27: =IF('DNSP Inputs General'!$B73='DNSP Inputs General'!$A$69,H$23,H$24)*'DNSP Inputs General'!$D73 -> 34.40762215 | J27: -0.03519096071 | K27: -0.002650711583 | L27: 0.007903530156 | M27: 0.009196318978 | N27: 0.01220063893 | P27: =IF(C27=0,"",(D27/'Charges Summary'!D$4)/C27-1) -> -0.05586746327 | Q27: =IF(D27=0,"",(E27/'Charges Summary'!E$4)/(D27/'Charges Summary'!D$4)-1) -> -0.02402457343 | R27: =IF(E27=0,"",(F27/'Charges Summary'!F$4)/(E27/'Charges Summary'!E$4)-1) -> -0.01369651614 | S27: =IF(F27=0,"",(G27/'Charges Summary'!G$4)/(F27/'Charges Summary'!F$4)-1) -> -0.01243143265 | T27: =IF(G27=0,"",(H27/'Charges Summary'!H$4)/(G27/'Charges Summary'!G$4)-1) -> -0.009491497282
D30: ='DNSP Inputs General'!$B$79 -> North & East
A31: Public Lighting Tariffs | C31: Nominal Prices | J31: Nominal Price Movement | P31: Real Price Movement (Implied X Factor)
C32: Actual
A33: ='DNSP Inputs General'!A$81 -> Existing Lights | C33: ='DNSP Inputs General'!J$2 -> 2015 | D33: ='DNSP Inputs General'!K$2 -> 2016 | E33: ='DNSP Inputs General'!L$2 -> 2017 | F33: ='DNSP Inputs General'!M$2 -> 2018 | G33: ='DNSP Inputs General'!N$2 -> 2019 | H33: ='DNSP Inputs General'!O$2 -> 2020 | J33: =D33 -> 2016 | K33: =E33 -> 2017 | L33: 2018 | M33: 2019 | N33: 2020 | P33: =J33 -> 2016 | Q33: =K33 -> 2017 | R33: 2018 | S33: 2019 | T33: 2020
A34: ='DNSP Inputs General'!A82 -> Mercury Vapour 80W | C34: ='DNSP Inputs General'!E82 -> 55.38 | D34: ='Charges Summary'!K$31 -> 46.05346233 | E34: ='Charges Summary'!L$31 -> 48.48236727 | F34: ='Charges Summary'!M$31 -> 50.7775017 | G34: ='Charges Summary'!N$31 -> 52.74454603 | H34: ='Charges Summary'!O$31 -> 54.60421105 | J34: =IF(C34=0,"",D34/C34-1) -> -0.1684098532 | K34: =IF(D34=0,"",E34/D34-1) -> 0.05274098449 | L34: =IF(E34=0,"",F34/E34-1) -> 0.04733957019 | M34: =IF(F34=0,"",G34/F34-1) -> 0.03873850164 | N34: =IF(G34=0,"",H34/G34-1) -> 0.03525795866 | P34: =IF(C34=0,"",(D34/'Charges Summary'!K$4)/C34-1) -> -0.1862313859 | Q34: =IF(D34=0,"",(E34/'Charges Summary'!L$4)/(D34/'Charges Summary'!K$4)-1) -> 0.03018004158 | R34: =IF(E34=0,"",(F34/'Charges Summary'!M$4)/(E34/'Charges Summary'!L$4)-1) -> 0.02489438319 | S34: =IF(F34=0,"",(G34/'Charges Summary'!N$4)/(F34/'Charges Summary'!M$4)-1) -> 0.01647764129 | T34: =IF(G34=0,"",(H34/'Charges Summary'!O$4)/(G34/'Charges Summary'!N$4)-1) -> 0.01307168868
A35: ='DNSP Inputs General'!A83 -> HP Sodium 150W | C35: ='DNSP Inputs General'!E83 -> 118.51 | D35: ='Charges Summary'!K$55 -> 110.2418429 | E35: ='Charges Summary'!L$55 -> 114.2537946 | F35: ='Charges Summary'!M$55 -> 118.1491576 | G35: ='Charges Summary'!N$55 -> 121.7186592 | H35: ='Charges Summary'!O$55 -> 125.1981129 | J35: -0.06976758991 | K35: 0.03639227734 | L35: 0.03409394804 | M35: 0.03021182457 | N35: 0.02858603379 | P35: =IF(C35=0,"",(D35/'Charges Summary'!K$4)/C35-1) -> -0.08970309219 | Q35: =IF(D35=0,"",(E35/'Charges Summary'!L$4)/(D35/'Charges Summary'!K$4)-1) -> 0.01418169815 | R35: =IF(E35=0,"",(F35/'Charges Summary'!M$4)/(E35/'Charges Summary'!L$4)-1) -> 0.01193262358 | S35: =IF(F35=0,"",(G35/'Charges Summary'!N$4)/(F35/'Charges Summary'!M$4)-1) -> 0.008133696612 | T35: =IF(G35=0,"",(H35/'Charges Summary'!O$4)/(G35/'Charges Summary'!N$4)-1) -> 0.006542747618
A36: ='DNSP Inputs General'!A84 -> HP Sodium 250W | C36: ='DNSP Inputs General'!E84 -> 117.57 | D36: ='Charges Summary'!K$71 -> 109.0206483 | E36: ='Charges Summary'!L$71 -> 113.0138928 | F36: ='Charges Summary'!M$71 -> 116.8892948 | G36: ='Charges Summary'!N$71 -> 120.4368161 | H36: ='Charges Summary'!O$71 -> 123.8929565 | J36: -0.07271711914 | K36: 0.03662833188 | L36: 0.03429137676 | M36: 0.03034941206 | N36: 0.02869671013 | P36: =IF(C36=0,"",(D36/'Charges Summary'!K$4)/C36-1) -> -0.09258941104 | Q36: =IF(D36=0,"",(E36/'Charges Summary'!L$4)/(D36/'Charges Summary'!K$4)-1) -> 0.01441269388 | R36: =IF(E36=0,"",(F36/'Charges Summary'!M$4)/(E36/'Charges Summary'!L$4)-1) -> 0.01212582127 | S36: =IF(F36=0,"",(G36/'Charges Summary'!N$4)/(F36/'Charges Summary'!M$4)-1) -> 0.008268335515 | T36: =IF(G36=0,"",(H36/'Charges Summary'!O$4)/(G36/'Charges Summary'!N$4)-1) -> 0.006651052086
A37: ='DNSP Inputs General'!A85 -> Mercury Vapour 50W | C37: ='DNSP Inputs General'!E85 -> 81.97 | D37: =IF('DNSP Inputs General'!$B85='DNSP Inputs General'!$A$82,D$34,IF('DNSP Inputs General'!$B85='DNSP Inputs General'!$A$83,D$35,D$36))*'DNSP Inputs General'!$D85 -> 68.15912425 | E37: =IF('DNSP Inputs General'!$B85='DNSP Inputs General'!$A$82,E$34,IF('DNSP Inputs General'!$B85='DNSP Inputs General'!$A$83,E$35,E$36))*'DNSP Inputs General'!$D85 -> 71.75390356 | F37: =IF('DNSP Inputs General'!$B85='DNSP Inputs General'!$A$82,F$34,IF('DNSP Inputs General'!$B85='DNSP Inputs General'!$A$83,F$35,F$36))*'DNSP Inputs General'!$D85 -> 75.15070251 | G37: =IF('DNSP Inputs General'!$B85='DNSP Inputs General'!$A$82,G$34,IF('DNSP Inputs General'!$B85='DNSP Inputs General'!$A$83,G$35,G$36))*'DNSP Inputs General'!$D85 -> 78.06192813 | H37: =IF('DNSP Inputs General'!$B85='DNSP Inputs General'!$A$82,H$34,IF('DNSP Inputs General'!$B85='DNSP Inputs General'!$A$83,H$35,H$36))*'DNSP Inputs General'!$D85 -> 80.81423236 | J37: -0.1684869557 | K37: 0.05274098449 | L37: 0.04733957019 | M37: 0.03873850164 | N37: 0.03525795866 | P37: =IF(C37=0,"",(D37/'Charges Summary'!K$4)/C37-1) -> -0.1863068359 | Q37: =IF(D37=0,"",(E37/'Charges Summary'!L$4)/(D37/'Charges Summary'!K$4)-1) -> 0.03018004158 | R37: =IF(E37=0,"",(F37/'Charges Summary'!M$4)/(E37/'Charges Summary'!L$4)-1) -> 0.02489438319 | S37: =IF(F37=0,"",(G37/'Charges Summary'!N$4)/(F37/'Charges Summary'!M$4)-1) -> 0.01647764129 | T37: =IF(G37=0,"",(H37/'Charges Summary'!O$4)/(G37/'Charges Summary'!N$4)-1) -> 0.01307168868
A38: ='DNSP Inputs General'!A86 -> Mercury Vapour 125W | C38: ='DNSP Inputs General'!E86 -> 81.97 | D38: =IF('DNSP Inputs General'!$B86='DNSP Inputs General'!$A$82,D$34,IF('DNSP Inputs General'!$B86='DNSP Inputs General'!$A$83,D$35,D$36))*'DNSP Inputs General'!$D86 -> 68.15912425 | E38: =IF('DNSP Inputs General'!$B86='DNSP Inputs General'!$A$82,E$34,IF('DNSP Inputs General'!$B86='DNSP Inputs General'!$A$83,E$35,E$36))*'DNSP Inputs General'!$D86 -> 71.75390356 | F38: =IF('DNSP Inputs General'!$B86='DNSP Inputs General'!$A$82,F$34,IF('DNSP Inputs General'!$B86='DNSP Inputs General'!$A$83,F$35,F$36))*'DNSP Inputs General'!$D86 -> 75.15070251 | G38: =IF('DNSP Inputs General'!$B86='DNSP Inputs General'!$A$82,G$34,IF('DNSP Inputs General'!$B86='DNSP Inputs General'!$A$83,G$35,G$36))*'DNSP Inputs General'!$D86 -> 78.06192813 | H38: =IF('DNSP Inputs General'!$B86='DNSP Inputs General'!$A$82,H$34,IF('DNSP Inputs General'!$B86='DNSP Inputs General'!$A$83,H$35,H$36))*'DNSP Inputs General'!$D86 -> 80.81423236 | J38: -0.1684869557 | K38: 0.05274098449 | L38: 0.04733957019 | M38: 0.03873850164 | N38: 0.03525795866 | P38: =IF(C38=0,"",(D38/'Charges Summary'!K$4)/C38-1) -> -0.1863068359 | Q38: =IF(D38=0,"",(E38/'Charges Summary'!L$4)/(D38/'Charges Summary'!K$4)-1) -> 0.03018004158 | R38: =IF(E38=0,"",(F38/'Charges Summary'!M$4)/(E38/'Charges Summary'!L$4)-1) -> 0.02489438319 | S38: =IF(F38=0,"",(G38/'Charges Summary'!N$4)/(F38/'Charges Summary'!M$4)-1) -> 0.01647764129 | T38: =IF(G38=0,"",(H38/'Charges Summary'!O$4)/(G38/'Charges Summary'!N$4)-1) -> 0.01307168868
A39: ='DNSP Inputs General'!A87 -> Mercury Vapour 250W | C39: ='DNSP Inputs General'!E87 -> 122.28 | D39: =IF('DNSP Inputs General'!$B87='DNSP Inputs General'!$A$82,D$34,IF('DNSP Inputs General'!$B87='DNSP Inputs General'!$A$83,D$35,D$36))*'DNSP Inputs General'!$D87 -> 113.3814742 | E39: =IF('DNSP Inputs General'!$B87='DNSP Inputs General'!$A$82,E$34,IF('DNSP Inputs General'!$B87='DNSP Inputs General'!$A$83,E$35,E$36))*'DNSP Inputs General'!$D87 -> 117.5344485 | F39: =IF('DNSP Inputs General'!$B87='DNSP Inputs General'!$A$82,F$34,IF('DNSP Inputs General'!$B87='DNSP Inputs General'!$A$83,F$35,F$36))*'DNSP Inputs General'!$D87 -> 121.5648666 | G39: =IF('DNSP Inputs General'!$B87='DNSP Inputs General'!$A$82,G$34,IF('DNSP Inputs General'!$B87='DNSP Inputs General'!$A$83,G$35,G$36))*'DNSP Inputs General'!$D87 -> 125.2542888 | H39: =IF('DNSP Inputs General'!$B87='DNSP Inputs General'!$A$82,H$34,IF('DNSP Inputs General'!$B87='DNSP Inputs General'!$A$83,H$35,H$36))*'DNSP Inputs General'!$D87 -> 128.8486748 | J39: -0.07277171872 | K39: 0.03662833188 | L39: 0.03429137676 | M39: 0.03034941206 | N39: 0.02869671013 | P39: =IF(C39=0,"",(D39/'Charges Summary'!K$4)/C39-1) -> -0.09264284052 | Q39: =IF(D39=0,"",(E39/'Charges Summary'!L$4)/(D39/'Charges Summary'!K$4)-1) -> 0.01441269388 | R39: =IF(E39=0,"",(F39/'Charges Summary'!M$4)/(E39/'Charges Summary'!L$4)-1) -> 0.01212582127 | S39: =IF(F39=0,"",(G39/'Charges Summary'!N$4)/(F39/'Charges Summary'!M$4)-1) -> 0.008268335515 | T39: =IF(G39=0,"",(H39/'Charges Summary'!O$4)/(G39/'Charges Summary'!N$4)-1) -> 0.006651052086
A40: ='DNSP Inputs General'!A88 -> Mercury Vapour 400W | C40: ='DNSP Inputs General'!E88 -> 125.8 | D40: =IF('DNSP Inputs General'!$B88='DNSP Inputs General'!$A$82,D$34,IF('DNSP Inputs General'!$B88='DNSP Inputs General'!$A$83,D$35,D$36))*'DNSP Inputs General'!$D88 -> 116.6520937 | E40: =IF('DNSP Inputs General'!$B88='DNSP Inputs General'!$A$82,E$34,IF('DNSP Inputs General'!$B88='DNSP Inputs General'!$A$83,E$35,E$36))*'DNSP Inputs General'!$D88 -> 120.9248653 | F40: =IF('DNSP Inputs General'!$B88='DNSP Inputs General'!$A$82,F$34,IF('DNSP Inputs General'!$B88='DNSP Inputs General'!$A$83,F$35,F$36))*'DNSP Inputs General'!$D88 -> 125.0715454 | G40: =IF('DNSP Inputs General'!$B88='DNSP Inputs General'!$A$82,G$34,IF('DNSP Inputs General'!$B88='DNSP Inputs General'!$A$83,G$35,G$36))*'DNSP Inputs General'!$D88 -> 128.8673933 | H40: =IF('DNSP Inputs General'!$B88='DNSP Inputs General'!$A$82,H$34,IF('DNSP Inputs General'!$B88='DNSP Inputs General'!$A$83,H$35,H$36))*'DNSP Inputs General'!$D88 -> 132.5654635 | J40: -0.07271785625 | K40: 0.03662833188 | L40: 0.03429137676 | M40: 0.03034941206 | N40: 0.02869671013 | P40: =IF(C40=0,"",(D40/'Charges Summary'!K$4)/C40-1) -> -0.09259013235 | Q40: =IF(D40=0,"",(E40/'Charges Summary'!L$4)/(D40/'Charges Summary'!K$4)-1) -> 0.01441269388 | R40: =IF(E40=0,"",(F40/'Charges Summary'!M$4)/(E40/'Charges Summary'!L$4)-1) -> 0.01212582127 | S40: =IF(F40=0,"",(G40/'Charges Summary'!N$4)/(F40/'Charges Summary'!M$4)-1) -> 0.008268335515 | T40: =IF(G40=0,"",(H40/'Charges Summary'!O$4)/(G40/'Charges Summary'!N$4)-1) -> 0.006651052086
A41: ='DNSP Inputs General'!A89 -> HP Sodium 100W | C41: ='DNSP Inputs General'!E89 -> 126.8 | D41: =IF('DNSP Inputs General'!$B89='DNSP Inputs General'!$A$82,D$34,IF('DNSP Inputs General'!$B89='DNSP Inputs General'!$A$83,D$35,D$36))*'DNSP Inputs General'!$D89 -> 117.9587719 | E41: =IF('DNSP Inputs General'!$B89='DNSP Inputs General'!$A$82,E$34,IF('DNSP Inputs General'!$B89='DNSP Inputs General'!$A$83,E$35,E$36))*'DNSP Inputs General'!$D89 -> 122.2515603 | F41: =IF('DNSP Inputs General'!$B89='DNSP Inputs General'!$A$82,F$34,IF('DNSP Inputs General'!$B89='DNSP Inputs General'!$A$83,F$35,F$36))*'DNSP Inputs General'!$D89 -> 126.4195986 | G41: =IF('DNSP Inputs General'!$B89='DNSP Inputs General'!$A$82,G$34,IF('DNSP Inputs General'!$B89='DNSP Inputs General'!$A$83,G$35,G$36))*'DNSP Inputs General'!$D89 -> 130.2389653 | H41: =IF('DNSP Inputs General'!$B89='DNSP Inputs General'!$A$82,H$34,IF('DNSP Inputs General'!$B89='DNSP Inputs General'!$A$83,H$35,H$36))*'DNSP Inputs General'!$D89 -> 133.9619808 | J41: -0.06972577346 | K41: 0.03639227734 | L41: 0.03409394804 | M41: 0.03021182457 | N41: 0.02858603379 | P41: =IF(C41=0,"",(D41/'Charges Summary'!K$4)/C41-1) -> -0.0896621719 | Q41: =IF(D41=0,"",(E41/'Charges Summary'!L$4)/(D41/'Charges Summary'!K$4)-1) -> 0.01418169815 | R41: =IF(E41=0,"",(F41/'Charges Summary'!M$4)/(E41/'Charges Summary'!L$4)-1) -> 0.01193262358 | S41: =IF(F41=0,"",(G41/'Charges Summary'!N$4)/(F41/'Charges Summary'!M$4)-1) -> 0.008133696612 | T41: =IF(G41=0,"",(H41/'Charges Summary'!O$4)/(G41/'Charges Summary'!N$4)-1) -> 0.006542747618
A42: ='DNSP Inputs General'!A90 -> HP Sodium 400W | C42: ='DNSP Inputs General'!E90 -> 166.96 | D42: =IF('DNSP Inputs General'!$B90='DNSP Inputs General'!$A$82,D$34,IF('DNSP Inputs General'!$B90='DNSP Inputs General'!$A$83,D$35,D$36))*'DNSP Inputs General'!$D90 -> 154.8093206 | E42: =IF('DNSP Inputs General'!$B90='DNSP Inputs General'!$A$82,E$34,IF('DNSP Inputs General'!$B90='DNSP Inputs General'!$A$83,E$35,E$36))*'DNSP Inputs General'!$D90 -> 160.4797278 | F42: =IF('DNSP Inputs General'!$B90='DNSP Inputs General'!$A$82,F$34,IF('DNSP Inputs General'!$B90='DNSP Inputs General'!$A$83,F$35,F$36))*'DNSP Inputs General'!$D90 -> 165.9827986 | G42: =IF('DNSP Inputs General'!$B90='DNSP Inputs General'!$A$82,G$34,IF('DNSP Inputs General'!$B90='DNSP Inputs General'!$A$83,G$35,G$36))*'DNSP Inputs General'!$D90 -> 171.0202789 | H42: =IF('DNSP Inputs General'!$B90='DNSP Inputs General'!$A$82,H$34,IF('DNSP Inputs General'!$B90='DNSP Inputs General'!$A$83,H$35,H$36))*'DNSP Inputs General'!$D90 -> 175.9279983 | J42: -0.07277599072 | K42: 0.03662833188 | L42: 0.03429137676 | M42: 0.03034941206 | N42: 0.02869671013 | P42: =IF(C42=0,"",(D42/'Charges Summary'!K$4)/C42-1) -> -0.09264702096 | Q42: =IF(D42=0,"",(E42/'Charges Summary'!L$4)/(D42/'Charges Summary'!K$4)-1) -> 0.01441269388 | R42: =IF(E42=0,"",(F42/'Charges Summary'!M$4)/(E42/'Charges Summary'!L$4)-1) -> 0.01212582127 | S42: =IF(F42=0,"",(G42/'Charges Summary'!N$4)/(F42/'Charges Summary'!M$4)-1) -> 0.008268335515 | T42: =IF(G42=0,"",(H42/'Charges Summary'!O$4)/(G42/'Charges Summary'!N$4)-1) -> 0.006651052086
A43: ='DNSP Inputs General'!A91 -> Metal Halide 70W | C43: ='DNSP Inputs General'!E91 -> 210.69 | D43: =IF('DNSP Inputs General'!$B91='DNSP Inputs General'!$A$82,D$34,IF('DNSP Inputs General'!$B91='DNSP Inputs General'!$A$83,D$35,D$36))*'DNSP Inputs General'!$D91 -> 175.207728 | E43: =IF('DNSP Inputs General'!$B91='DNSP Inputs General'!$A$82,E$34,IF('DNSP Inputs General'!$B91='DNSP Inputs General'!$A$83,E$35,E$36))*'DNSP Inputs General'!$D91 -> 184.4483561 | F43: =IF('DNSP Inputs General'!$B91='DNSP Inputs General'!$A$82,F$34,IF('DNSP Inputs General'!$B91='DNSP Inputs General'!$A$83,F$35,F$36))*'DNSP Inputs General'!$D91 -> 193.180062 | G43: =IF('DNSP Inputs General'!$B91='DNSP Inputs General'!$A$82,G$34,IF('DNSP Inputs General'!$B91='DNSP Inputs General'!$A$83,G$35,G$36))*'DNSP Inputs General'!$D91 -> 200.6635681 | H43: =IF('DNSP Inputs General'!$B91='DNSP Inputs General'!$A$82,H$34,IF('DNSP Inputs General'!$B91='DNSP Inputs General'!$A$83,H$35,H$36))*'DNSP Inputs General'!$D91 -> 207.7385559 | J43: =IF(C43=0,"",D43/C43-1) -> -0.1684098532 | K43: =IF(D43=0,"",E43/D43-1) -> 0.05274098449 | L43: =IF(E43=0,"",F43/E43-1) -> 0.04733957019 | M43: =IF(F43=0,"",G43/F43-1) -> 0.03873850164 | N43: =IF(G43=0,"",H43/G43-1) -> 0.03525795866 | P43: =IF(C43=0,"",(D43/'Charges Summary'!K$4)/C43-1) -> -0.1862313859 | Q43: =IF(D43=0,"",(E43/'Charges Summary'!L$4)/(D43/'Charges Summary'!K$4)-1) -> 0.03018004158 | R43: =IF(E43=0,"",(F43/'Charges Summary'!M$4)/(E43/'Charges Summary'!L$4)-1) -> 0.02489438319 | S43: =IF(F43=0,"",(G43/'Charges Summary'!N$4)/(F43/'Charges Summary'!M$4)-1) -> 0.01647764129 | T43: =IF(G43=0,"",(H43/'Charges Summary'!O$4)/(G43/'Charges Summary'!N$4)-1) -> 0.01307168868
A44: ='DNSP Inputs General'!A92 -> Metal Halide 100W | C44: ='DNSP Inputs General'!E92 -> 251.01 | D44: =IF('DNSP Inputs General'!$B92='DNSP Inputs General'!$A$82,D$34,IF('DNSP Inputs General'!$B92='DNSP Inputs General'!$A$83,D$35,D$36))*'DNSP Inputs General'!$D92 -> 233.4976373 | E44: =IF('DNSP Inputs General'!$B92='DNSP Inputs General'!$A$82,E$34,IF('DNSP Inputs General'!$B92='DNSP Inputs General'!$A$83,E$35,E$36))*'DNSP Inputs General'!$D92 -> 241.995148 | F44: =IF('DNSP Inputs General'!$B92='DNSP Inputs General'!$A$82,F$34,IF('DNSP Inputs General'!$B92='DNSP Inputs General'!$A$83,F$35,F$36))*'DNSP Inputs General'!$D92 -> 250.245718 | G44: =IF('DNSP Inputs General'!$B92='DNSP Inputs General'!$A$82,G$34,IF('DNSP Inputs General'!$B92='DNSP Inputs General'!$A$83,G$35,G$36))*'DNSP Inputs General'!$D92 -> 257.8060978 | H44: =IF('DNSP Inputs General'!$B92='DNSP Inputs General'!$A$82,H$34,IF('DNSP Inputs General'!$B92='DNSP Inputs General'!$A$83,H$35,H$36))*'DNSP Inputs General'!$D92 -> 265.1757516 | J44: -0.06976758991 | K44: 0.03639227734 | L44: 0.03409394804 | M44: 0.03021182457 | N44: 0.02858603379 | P44: =IF(C44=0,"",(D44/'Charges Summary'!K$4)/C44-1) -> -0.08970309219 | Q44: =IF(D44=0,"",(E44/'Charges Summary'!L$4)/(D44/'Charges Summary'!K$4)-1) -> 0.01418169815 | R44: =IF(E44=0,"",(F44/'Charges Summary'!M$4)/(E44/'Charges Summary'!L$4)-1) -> 0.01193262358 | S44: =IF(F44=0,"",(G44/'Charges Summary'!N$4)/(F44/'Charges Summary'!M$4)-1) -> 0.008133696612 | T44: =IF(G44=0,"",(H44/'Charges Summary'!O$4)/(G44/'Charges Summary'!N$4)-1) -> 0.006542747618
A45: ='DNSP Inputs General'!A93 -> Metal Halide 150W | C45: ='DNSP Inputs General'!E93 -> 285.17 | D45: =IF('DNSP Inputs General'!$B93='DNSP Inputs General'!$A$82,D$34,IF('DNSP Inputs General'!$B93='DNSP Inputs General'!$A$83,D$35,D$36))*'DNSP Inputs General'!$D93 -> 265.2743764 | E45: =IF('DNSP Inputs General'!$B93='DNSP Inputs General'!$A$82,E$34,IF('DNSP Inputs General'!$B93='DNSP Inputs General'!$A$83,E$35,E$36))*'DNSP Inputs General'!$D93 -> 274.9283151 | F45: =IF('DNSP Inputs General'!$B93='DNSP Inputs General'!$A$82,F$34,IF('DNSP Inputs General'!$B93='DNSP Inputs General'!$A$83,F$35,F$36))*'DNSP Inputs General'!$D93 -> 284.3017067 | G45: =IF('DNSP Inputs General'!$B93='DNSP Inputs General'!$A$82,G$34,IF('DNSP Inputs General'!$B93='DNSP Inputs General'!$A$83,G$35,G$36))*'DNSP Inputs General'!$D93 -> 292.89098 | H45: =IF('DNSP Inputs General'!$B93='DNSP Inputs General'!$A$82,H$34,IF('DNSP Inputs General'!$B93='DNSP Inputs General'!$A$83,H$35,H$36))*'DNSP Inputs General'!$D93 -> 301.2635715 | J45: -0.06976758991 | K45: 0.03639227734 | L45: 0.03409394804 | M45: 0.03021182457 | N45: 0.02858603379 | P45: =IF(C45=0,"",(D45/'Charges Summary'!K$4)/C45-1) -> -0.08970309219 | Q45: =IF(D45=0,"",(E45/'Charges Summary'!L$4)/(D45/'Charges Summary'!K$4)-1) -> 0.01418169815 | R45: =IF(E45=0,"",(F45/'Charges Summary'!M$4)/(E45/'Charges Summary'!L$4)-1) -> 0.01193262358 | S45: =IF(F45=0,"",(G45/'Charges Summary'!N$4)/(F45/'Charges Summary'!M$4)-1) -> 0.008133696612 | T45: =IF(G45=0,"",(H45/'Charges Summary'!O$4)/(G45/'Charges Summary'!N$4)-1) -> 0.006542747618
A46: ='DNSP Inputs General'!A94 -> HP Sodium 50W | C46: ='DNSP Inputs General'!E94 -> 53.89 | D46: =IF('DNSP Inputs General'!$B94='DNSP Inputs General'!$A$82,D$34,IF('DNSP Inputs General'!$B94='DNSP Inputs General'!$A$83,D$35,D$36))*'DNSP Inputs General'!$D94 -> 50.13022458 | E46: =IF('DNSP Inputs General'!$B94='DNSP Inputs General'!$A$82,E$34,IF('DNSP Inputs General'!$B94='DNSP Inputs General'!$A$83,E$35,E$36))*'DNSP Inputs General'!$D94 -> 51.95457762 | F46: =IF('DNSP Inputs General'!$B94='DNSP Inputs General'!$A$82,F$34,IF('DNSP Inputs General'!$B94='DNSP Inputs General'!$A$83,F$35,F$36))*'DNSP Inputs General'!$D94 -> 53.72591429 | G46: =IF('DNSP Inputs General'!$B94='DNSP Inputs General'!$A$82,G$34,IF('DNSP Inputs General'!$B94='DNSP Inputs General'!$A$83,G$35,G$36))*'DNSP Inputs General'!$D94 -> 55.34907218 | H46: =IF('DNSP Inputs General'!$B94='DNSP Inputs General'!$A$82,H$34,IF('DNSP Inputs General'!$B94='DNSP Inputs General'!$A$83,H$35,H$36))*'DNSP Inputs General'!$D94 -> 56.93128263 | J46: -0.06976758991 | K46: 0.03639227734 | L46: 0.03409394804 | M46: 0.03021182457 | N46: 0.02858603379 | P46: =IF(C46=0,"",(D46/'Charges Summary'!K$4)/C46-1) -> -0.08970309219 | Q46: =IF(D46=0,"",(E46/'Charges Summary'!L$4)/(D46/'Charges Summary'!K$4)-1) -> 0.01418169815 | R46: =IF(E46=0,"",(F46/'Charges Summary'!M$4)/(E46/'Charges Summary'!L$4)-1) -> 0.01193262358 | S46: =IF(F46=0,"",(G46/'Charges Summary'!N$4)/(F46/'Charges Summary'!M$4)-1) -> 0.008133696612 | T46: =IF(G46=0,"",(H46/'Charges Summary'!O$4)/(G46/'Charges Summary'!N$4)-1) -> 0.006542747618
A49: ='DNSP Inputs General'!A$108 -> Energy Efficient Lights
A50: ='DNSP Inputs General'!A109 -> T5 2X14W | C50: ='DNSP Inputs General'!E109 -> 45.39 | D50: ='Charges Summary'!K$89 -> 42.43921396 | E50: ='Charges Summary'!L$89 -> 42.45954107 | F50: ='Charges Summary'!M$89 -> 42.87845887 | G50: ='Charges Summary'!N$89 -> 43.34825213 | H50: ='Charges Summary'!O$89 -> 43.93715678 | J50: =IF(C50=0,"",D50/C50-1) -> -0.06500960654 | K50: 0.0004789700138 | L50: 0.009866281961 | M50: 0.01095639324 | N50: 0.01358543019 | P50: =IF(C50=0,"",(D50/'Charges Summary'!K$4)/C50-1) -> -0.08504707558 | Q50: =IF(D50=0,"",(E50/'Charges Summary'!L$4)/(D50/'Charges Summary'!K$4)-1) -> -0.020961963 | R50: =IF(E50=0,"",(F50/'Charges Summary'!M$4)/(E50/'Charges Summary'!L$4)-1) -> -0.01177582742 | S50: =IF(F50=0,"",(G50/'Charges Summary'!N$4)/(F50/'Charges Summary'!M$4)-1) -> -0.01070907796 | T50: =IF(G50=0,"",(H50/'Charges Summary'!O$4)/(G50/'Charges Summary'!N$4)-1) -> -0.008136383025
A51: ='DNSP Inputs General'!A110 -> T5 2X24W | C51: ='DNSP Inputs General'!E110 -> 50.68 | D51: ='Charges Summary'!K$105 -> 49.68688188 | E51: ='Charges Summary'!L$105 -> 49.7216267 | F51: ='Charges Summary'!M$105 -> 50.20821814 | G51: ='Charges Summary'!N$105 -> 50.77275945 | H51: ='Charges Summary'!O$105 -> 51.47580742 | J51: -0.01959585874 | K51: 0.0006992755224 | L51: 0.00978631373 | M51: 0.01124400211 | N51: 0.01384695215 | P51: =IF(C51=0,"",(D51/'Charges Summary'!K$4)/C51-1) -> -0.04060657475 | Q51: =IF(D51=0,"",(E51/'Charges Summary'!L$4)/(D51/'Charges Summary'!K$4)-1) -> -0.02074637878 | R51: =IF(E51=0,"",(F51/'Charges Summary'!M$4)/(E51/'Charges Summary'!L$4)-1) -> -0.01185408188 | S51: =IF(F51=0,"",(G51/'Charges Summary'!N$4)/(F51/'Charges Summary'!M$4)-1) -> -0.01042763273 | T51: =IF(G51=0,"",(H51/'Charges Summary'!O$4)/(G51/'Charges Summary'!N$4)-1) -> -0.007880465651
A52: ='DNSP Inputs General'!A111 -> LED 18W | C52: ='DNSP Inputs General'!E111 -> 22.92 | D52: ='Charges Summary'!K$121 -> 21.62640699 | E52: ='Charges Summary'!L$121 -> 20.50723743 | F52: ='Charges Summary'!M$121 -> 20.01252436 | G52: ='Charges Summary'!N$121 -> 19.66993013 | H52: ='Charges Summary'!O$121 -> 19.51071631 | J52: =IF(C52=0,"",D52/C52-1) -> -0.05643948565 | K52: =IF(D52=0,"",E52/D52-1) -> -0.05175013877 | L52: =IF(E52=0,"",F52/E52-1) -> -0.02412382808 | M52: =IF(F52=0,"",G52/F52-1) -> -0.01711899098 | N52: =IF(G52=0,"",H52/G52-1) -> -0.008094274882 | P52: =IF(C52=0,"",(D52/'Charges Summary'!K$4)/C52-1) -> -0.07666061812 | Q52: =IF(D52=0,"",(E52/'Charges Summary'!L$4)/(D52/'Charges Summary'!K$4)-1) -> -0.07207176707 | R52: =IF(E52=0,"",(F52/'Charges Summary'!M$4)/(E52/'Charges Summary'!L$4)-1) -> -0.04503750669 | S52: =IF(F52=0,"",(G52/'Charges Summary'!N$4)/(F52/'Charges Summary'!M$4)-1) -> -0.03818278793 | T52: =IF(G52=0,"",(H52/'Charges Summary'!O$4)/(G52/'Charges Summary'!N$4)-1) -> -0.02935147752
A53: ='DNSP Inputs General'!A112 -> Compact Fluorescent 32W | C53: ='DNSP Inputs General'!E112 -> 40.39 | D53: =IF('DNSP Inputs General'!$B112='DNSP Inputs General'!$A$109,D$50,D$51)*'DNSP Inputs General'!$D112 -> 37.76426199 | E53: =IF('DNSP Inputs General'!$B112='DNSP Inputs General'!$A$109,E$50,E$51)*'DNSP Inputs General'!$D112 -> 37.78234994 | F53: =IF('DNSP Inputs General'!$B112='DNSP Inputs General'!$A$109,F$50,F$51)*'DNSP Inputs General'!$D112 -> 38.15512126 | G53: =IF('DNSP Inputs General'!$B112='DNSP Inputs General'!$A$109,G$50,G$51)*'DNSP Inputs General'!$D112 -> 38.57316377 | H53: =IF('DNSP Inputs General'!$B112='DNSP Inputs General'!$A$109,H$50,H$51)*'DNSP Inputs General'!$D112 -> 39.09719679 | J53: -0.06500960654 | K53: 0.0004789700138 | L53: 0.009866281961 | M53: 0.01095639324 | N53: 0.01358543019 | P53: =IF(C53=0,"",(D53/'Charges Summary'!K$4)/C53-1) -> -0.08504707558 | Q53: =IF(D53=0,"",(E53/'Charges Summary'!L$4)/(D53/'Charges Summary'!K$4)-1) -> -0.020961963 | R53: =IF(E53=0,"",(F53/'Charges Summary'!M$4)/(E53/'Charges Summary'!L$4)-1) -> -0.01177582742 | S53: =IF(F53=0,"",(G53/'Charges Summary'!N$4)/(F53/'Charges Summary'!M$4)-1) -> -0.01070907796 | T53: =IF(G53=0,"",(H53/'Charges Summary'!O$4)/(G53/'Charges Summary'!N$4)-1) -> -0.008136383025
A54: ='DNSP Inputs General'!A113 -> Compact Fluorescent 42W | C54: ='DNSP Inputs General'!E113 -> 40.39 | D54: =IF('DNSP Inputs General'!$B113='DNSP Inputs General'!$A$109,D$50,D$51)*'DNSP Inputs General'!$D113 -> 37.76426199 | E54: =IF('DNSP Inputs General'!$B113='DNSP Inputs General'!$A$109,E$50,E$51)*'DNSP Inputs General'!$D113 -> 37.78234994 | F54: =IF('DNSP Inputs General'!$B113='DNSP Inputs General'!$A$109,F$50,F$51)*'DNSP Inputs General'!$D113 -> 38.15512126 | G54: =IF('DNSP Inputs General'!$B113='DNSP Inputs General'!$A$109,G$50,G$51)*'DNSP Inputs General'!$D113 -> 38.57316377 | H54: =IF('DNSP Inputs General'!$B113='DNSP Inputs General'!$A$109,H$50,H$51)*'DNSP Inputs General'!$D113 -> 39.09719679 | J54: -0.06500960654 | K54: 0.0004789700138 | L54: 0.009866281961 | M54: 0.01095639324 | N54: 0.01358543019 | P54: =IF(C54=0,"",(D54/'Charges Summary'!K$4)/C54-1) -> -0.08504707558 | Q54: =IF(D54=0,"",(E54/'Charges Summary'!L$4)/(D54/'Charges Summary'!K$4)-1) -> -0.020961963 | R54: =IF(E54=0,"",(F54/'Charges Summary'!M$4)/(E54/'Charges Summary'!L$4)-1) -> -0.01177582742 | S54: =IF(F54=0,"",(G54/'Charges Summary'!N$4)/(F54/'Charges Summary'!M$4)-1) -> -0.01070907796 | T54: =IF(G54=0,"",(H54/'Charges Summary'!O$4)/(G54/'Charges Summary'!N$4)-1) -> -0.008136383025

Sheet PL Tariff Components
A1: ='DNSP Inputs O & M'!$A$3 -> AusNet | E1: Global Check | F1: =IF(SUM('Total RAB'!F1,'Depn & WACC Post 2004 N & E'!F1,'Depn & WACC Post 2004 Central'!F1,'Cashflow Summary'!F1,W1)<1,"Ok","Error") -> Ok | V1: Check | W1: =SUM(V7:Z27,V34:Z54) -> 1.174171871e-12
D3: ='DNSP Inputs General'!$B$39 -> Central
A4: Public Lighting Tariffs | C4: Total Tariff | J4: Operations, maintenance and repair Tariff | P4: Replacement Tariff | V4: Check
C5: Actual
A6: ='DNSP Inputs General'!A$41 -> Existing Lights | C6: ='DNSP Inputs General'!J$2 -> 2015 | D6: ='DNSP Inputs General'!K$2 -> 2016 | E6: ='DNSP Inputs General'!L$2 -> 2017 | F6: ='DNSP Inputs General'!M$2 -> 2018 | G6: ='DNSP Inputs General'!N$2 -> 2019 | H6: ='DNSP Inputs General'!O$2 -> 2020 | J6: =D6 -> 2016 | K6: =E6 -> 2017 | L6: 2018 | M6: 2019 | N6: 2020 | P6: =J6 -> 2016 | Q6: =K6 -> 2017 | R6: 2018 | S6: 2019 | T6: 2020 | V6: =P6 -> 2016 | W6: =Q6 -> 2017 | X6: 2018 | Y6: 2019 | Z6: 2020
A7: ='DNSP Inputs General'!A42 -> Mercury Vapour 80W | C7: ='DNSP Inputs General'!E42 -> 48.26 | D7: ='Charges Summary'!D$31 -> 40.61765972 | E7: ='Charges Summary'!E$31 -> 42.81943846 | F7: ='Charges Summary'!F$31 -> 44.89304874 | G7: ='Charges Summary'!G$31 -> 46.65355427 | H7: ='Charges Summary'!H$31 -> 48.31297558 | J7: =SUM('Charges Summary'!D25,'Charges Summary'!D8) -> 21.89540867 | K7: =SUM('Charges Summary'!E25,'Charges Summary'!E8) -> 22.35153148 | L7: =SUM('Charges Summary'!F25,'Charges Summary'!F8) -> 22.81800426 | M7: =SUM('Charges Summary'!G25,'Charges Summary'!G8) -> 23.29543752 | N7: =SUM('Charges Summary'!H25,'Charges Summary'!H8) -> 23.78390657 | P7: =SUM('Charges Summary'!D27,'Charges Summary'!D11) -> 18.72225105 | Q7: =SUM('Charges Summary'!E27,'Charges Summary'!E11) -> 20.46790698 | R7: =SUM('Charges Summary'!F27,'Charges Summary'!F11) -> 22.07504448 | S7: =SUM('Charges Summary'!G27,'Charges Summary'!G11) -> 23.35811675 | T7: =SUM('Charges Summary'!H27,'Charges Summary'!H11) -> 24.52906901 | V7: =ABS(D7-J7-P7) -> 0 | W7: =ABS(E7-K7-Q7) -> 3.552713679e-15 | X7: 3.552713679e-15 | Y7: 3.552713679e-15 | Z7: 0
A8: ='DNSP Inputs General'!A43 -> HP Sodium 150W | C8: ='DNSP Inputs General'!E43 -> 105.11 | D8: ='Charges Summary'!D$55 -> 96.92569165 | E8: ='Charges Summary'!E$55 -> 100.5451839 | F8: ='Charges Summary'!F$55 -> 104.0493572 | G8: ='Charges Summary'!G$55 -> 107.2376035 | H8: ='Charges Summary'!H$55 -> 110.3375478 | J8: =SUM('Charges Summary'!D49,'Charges Summary'!D8) -> 76.45435988 | K8: =SUM('Charges Summary'!E49,'Charges Summary'!E8) -> 78.10439001 | L8: =SUM('Charges Summary'!F49,'Charges Summary'!F8) -> 79.79093109 | M8: =SUM('Charges Summary'!G49,'Charges Summary'!G8) -> 81.51518189 | N8: =SUM('Charges Summary'!H49,'Charges Summary'!H8) -> 83.27779694 | P8: =SUM('Charges Summary'!D51,'Charges Summary'!D11) -> 20.47133178 | Q8: =SUM('Charges Summary'!E51,'Charges Summary'!E11) -> 22.4407939 | R8: =SUM('Charges Summary'!F51,'Charges Summary'!F11) -> 24.25842607 | S8: =SUM('Charges Summary'!G51,'Charges Summary'!G11) -> 25.72242165 | T8: =SUM('Charges Summary'!H51,'Charges Summary'!H11) -> 27.05975085 | V8: =ABS(D8-J8-P8) -> 0 | W8: 1.421085472e-14 | X8: 7.105427358e-15 | Y8: 7.105427358e-15 | Z8: 7.105427358e-15
A9: ='DNSP Inputs General'!A44 -> HP Sodium 250W | C9: ='DNSP Inputs General'!E44 -> 106.4 | D9: ='Charges Summary'!D$71 -> 97.86896265 | E9: ='Charges Summary'!E$71 -> 101.530488 | F9: ='Charges Summary'!F$71 -> 105.0754612 | G9: ='Charges Summary'!G$71 -> 108.3013611 | H9: ='Charges Summary'!H$71 -> 111.437601 | J9: =SUM('Charges Summary'!D65,'Charges Summary'!D8) -> 77.18982091 | K9: =SUM('Charges Summary'!E65,'Charges Summary'!E8) -> 78.85529351 | L9: =SUM('Charges Summary'!F65,'Charges Summary'!F8) -> 80.55762549 | M9: =SUM('Charges Summary'!G65,'Charges Summary'!G8) -> 82.29803415 | N9: =SUM('Charges Summary'!H65,'Charges Summary'!H8) -> 84.0771774 | P9: =SUM('Charges Summary'!D67,'Charges Summary'!D11) -> 20.67914174 | Q9: =SUM('Charges Summary'!E67,'Charges Summary'!E11) -> 22.67519449 | R9: =SUM('Charges Summary'!F67,'Charges Summary'!F11) -> 24.51783574 | S9: =SUM('Charges Summary'!G67,'Charges Summary'!G11) -> 26.00332699 | T9: =SUM('Charges Summary'!H67,'Charges Summary'!H11) -> 27.36042359 | V9: =ABS(D9-J9-P9) -> 0 | W9: =ABS(E9-K9-Q9) -> 7.105427358e-15 | X9: =ABS(F9-L9-R9) -> 1.421085472e-14 | Y9: =ABS(G9-M9-S9) -> 0 | Z9: =ABS(H9-N9-T9) -> 0
A10: ='DNSP Inputs General'!A45 -> Mercury Vapour 50W | C10: ='DNSP Inputs General'!E45 -> 73.85 | D10: =IF('DNSP Inputs General'!$B45='DNSP Inputs General'!$A$42,D$7,IF('DNSP Inputs General'!$B45='DNSP Inputs General'!$A$43,D$8,D$9))*'DNSP Inputs General'!$D45 -> 62.14501938 | E10: =IF('DNSP Inputs General'!$B45='DNSP Inputs General'!$A$42,E$7,IF('DNSP Inputs General'!$B45='DNSP Inputs General'!$A$43,E$8,E$9))*'DNSP Inputs General'!$D45 -> 65.51374085 | F10: =IF('DNSP Inputs General'!$B45='DNSP Inputs General'!$A$42,F$7,IF('DNSP Inputs General'!$B45='DNSP Inputs General'!$A$43,F$8,F$9))*'DNSP Inputs General'!$D45 -> 68.68636457 | G10: =IF('DNSP Inputs General'!$B45='DNSP Inputs General'!$A$42,G$7,IF('DNSP Inputs General'!$B45='DNSP Inputs General'!$A$43,G$8,G$9))*'DNSP Inputs General'!$D45 -> 71.37993803 | H10: =IF('DNSP Inputs General'!$B45='DNSP Inputs General'!$A$42,H$7,IF('DNSP Inputs General'!$B45='DNSP Inputs General'!$A$43,H$8,H$9))*'DNSP Inputs General'!$D45 -> 73.91885264 | J10: =IF('DNSP Inputs General'!$B45='DNSP Inputs General'!$A$42,J$7,IF('DNSP Inputs General'!$B45='DNSP Inputs General'!$A$43,J$8,J$9))*'DNSP Inputs General'!$D45 -> 33.49997527 | K10: =IF('DNSP Inputs General'!$B45='DNSP Inputs General'!$A$42,K$7,IF('DNSP Inputs General'!$B45='DNSP Inputs General'!$A$43,K$8,K$9))*'DNSP Inputs General'!$D45 -> 34.19784317 | L10: =IF('DNSP Inputs General'!$B45='DNSP Inputs General'!$A$42,L$7,IF('DNSP Inputs General'!$B45='DNSP Inputs General'!$A$43,L$8,L$9))*'DNSP Inputs General'!$D45 -> 34.91154652 | M10: =IF('DNSP Inputs General'!$B45='DNSP Inputs General'!$A$42,M$7,IF('DNSP Inputs General'!$B45='DNSP Inputs General'!$A$43,M$8,M$9))*'DNSP Inputs General'!$D45 -> 35.6420194 | N10: =IF('DNSP Inputs General'!$B45='DNSP Inputs General'!$A$42,N$7,IF('DNSP Inputs General'!$B45='DNSP Inputs General'!$A$43,N$8,N$9))*'DNSP Inputs General'!$D45 -> 36.38937706 | P10: =IF('DNSP Inputs General'!$B45='DNSP Inputs General'!$A$42,P$7,IF('DNSP Inputs General'!$B45='DNSP Inputs General'!$A$43,P$8,P$9))*'DNSP Inputs General'!$D45 -> 28.64504411 | Q10: =IF('DNSP Inputs General'!$B45='DNSP Inputs General'!$A$42,Q$7,IF('DNSP Inputs General'!$B45='DNSP Inputs General'!$A$43,Q$8,Q$9))*'DNSP Inputs General'!$D45 -> 31.31589768 | R10: =IF('DNSP Inputs General'!$B45='DNSP Inputs General'!$A$42,R$7,IF('DNSP Inputs General'!$B45='DNSP Inputs General'!$A$43,R$8,R$9))*'DNSP Inputs General'!$D45 -> 33.77481806 | S10: =IF('DNSP Inputs General'!$B45='DNSP Inputs General'!$A$42,S$7,IF('DNSP Inputs General'!$B45='DNSP Inputs General'!$A$43,S$8,S$9))*'DNSP Inputs General'!$D45 -> 35.73791863 | T10: =IF('DNSP Inputs General'!$B45='DNSP Inputs General'!$A$42,T$7,IF('DNSP Inputs General'!$B45='DNSP Inputs General'!$A$43,T$8,T$9))*'DNSP Inputs General'!$D45 -> 37.52947558 | V10: 3.552713679e-15 | W10: 3.552713679e-15 | X10: 0 | Y10: 7.105427358e-15 | Z10: 7.105427358e-15
A11: ='DNSP Inputs General'!A46 -> Mercury Vapour 125W | C11: ='DNSP Inputs General'!E46 -> 70.95 | D11: =IF('DNSP Inputs General'!$B46='DNSP Inputs General'!$A$42,D$7,IF('DNSP Inputs General'!$B46='DNSP Inputs General'!$A$43,D$8,D$9))*'DNSP Inputs General'!$D46 -> 59.70795979 | E11: =IF('DNSP Inputs General'!$B46='DNSP Inputs General'!$A$42,E$7,IF('DNSP Inputs General'!$B46='DNSP Inputs General'!$A$43,E$8,E$9))*'DNSP Inputs General'!$D46 -> 62.94457454 | F11: =IF('DNSP Inputs General'!$B46='DNSP Inputs General'!$A$42,F$7,IF('DNSP Inputs General'!$B46='DNSP Inputs General'!$A$43,F$8,F$9))*'DNSP Inputs General'!$D46 -> 65.99278165 | G11: =IF('DNSP Inputs General'!$B46='DNSP Inputs General'!$A$42,G$7,IF('DNSP Inputs General'!$B46='DNSP Inputs General'!$A$43,G$8,G$9))*'DNSP Inputs General'!$D46 -> 68.58072477 | H11: =IF('DNSP Inputs General'!$B46='DNSP Inputs General'!$A$42,H$7,IF('DNSP Inputs General'!$B46='DNSP Inputs General'!$A$43,H$8,H$9))*'DNSP Inputs General'!$D46 -> 71.02007411 | J11: =IF('DNSP Inputs General'!$B46='DNSP Inputs General'!$A$42,J$7,IF('DNSP Inputs General'!$B46='DNSP Inputs General'!$A$43,J$8,J$9))*'DNSP Inputs General'!$D46 -> 32.18625075 | K11: =IF('DNSP Inputs General'!$B46='DNSP Inputs General'!$A$42,K$7,IF('DNSP Inputs General'!$B46='DNSP Inputs General'!$A$43,K$8,K$9))*'DNSP Inputs General'!$D46 -> 32.85675128 | L11: =IF('DNSP Inputs General'!$B46='DNSP Inputs General'!$A$42,L$7,IF('DNSP Inputs General'!$B46='DNSP Inputs General'!$A$43,L$8,L$9))*'DNSP Inputs General'!$D46 -> 33.54246626 | M11: =IF('DNSP Inputs General'!$B46='DNSP Inputs General'!$A$42,M$7,IF('DNSP Inputs General'!$B46='DNSP Inputs General'!$A$43,M$8,M$9))*'DNSP Inputs General'!$D46 -> 34.24429315 | N11: =IF('DNSP Inputs General'!$B46='DNSP Inputs General'!$A$42,N$7,IF('DNSP Inputs General'!$B46='DNSP Inputs General'!$A$43,N$8,N$9))*'DNSP Inputs General'!$D46 -> 34.96234266 | P11: =IF('DNSP Inputs General'!$B46='DNSP Inputs General'!$A$42,P$7,IF('DNSP Inputs General'!$B46='DNSP Inputs General'!$A$43,P$8,P$9))*'DNSP Inputs General'!$D46 -> 27.52170904 | Q11: =IF('DNSP Inputs General'!$B46='DNSP Inputs General'!$A$42,Q$7,IF('DNSP Inputs General'!$B46='DNSP Inputs General'!$A$43,Q$8,Q$9))*'DNSP Inputs General'!$D46 -> 30.08782326 | R11: =IF('DNSP Inputs General'!$B46='DNSP Inputs General'!$A$42,R$7,IF('DNSP Inputs General'!$B46='DNSP Inputs General'!$A$43,R$8,R$9))*'DNSP Inputs General'!$D46 -> 32.45031539 | S11: =IF('DNSP Inputs General'!$B46='DNSP Inputs General'!$A$42,S$7,IF('DNSP Inputs General'!$B46='DNSP Inputs General'!$A$43,S$8,S$9))*'DNSP Inputs General'!$D46 -> 34.33643162 | T11: =IF('DNSP Inputs General'!$B46='DNSP Inputs General'!$A$42,T$7,IF('DNSP Inputs General'!$B46='DNSP Inputs General'!$A$43,T$8,T$9))*'DNSP Inputs General'!$D46 -> 36.05773144 | V11: 3.552713679e-15 | W11: 7.105427358e-15 | X11: 7.105427358e-15 | Y11: 7.105427358e-15 | Z11: 7.105427358e-15
A12: ='DNSP Inputs General'!A47 -> Mercury Vapour 250W | C12: ='DNSP Inputs General'!E47 -> 111.72 | D12: =IF('DNSP Inputs General'!$B47='DNSP Inputs General'!$A$42,D$7,IF('DNSP Inputs General'!$B47='DNSP Inputs General'!$A$43,D$8,D$9))*'DNSP Inputs General'!$D47 -> 102.7624108 | E12: =IF('DNSP Inputs General'!$B47='DNSP Inputs General'!$A$42,E$7,IF('DNSP Inputs General'!$B47='DNSP Inputs General'!$A$43,E$8,E$9))*'DNSP Inputs General'!$D47 -> 106.6070124 | F12: =IF('DNSP Inputs General'!$B47='DNSP Inputs General'!$A$42,F$7,IF('DNSP Inputs General'!$B47='DNSP Inputs General'!$A$43,F$8,F$9))*'DNSP Inputs General'!$D47 -> 110.3292343 | G12: =IF('DNSP Inputs General'!$B47='DNSP Inputs General'!$A$42,G$7,IF('DNSP Inputs General'!$B47='DNSP Inputs General'!$A$43,G$8,G$9))*'DNSP Inputs General'!$D47 -> 113.7164292 | H12: =IF('DNSP Inputs General'!$B47='DNSP Inputs General'!$A$42,H$7,IF('DNSP Inputs General'!$B47='DNSP Inputs General'!$A$43,H$8,H$9))*'DNSP Inputs General'!$D47 -> 117.009481 | J12: =IF('DNSP Inputs General'!$B47='DNSP Inputs General'!$A$42,J$7,IF('DNSP Inputs General'!$B47='DNSP Inputs General'!$A$43,J$8,J$9))*'DNSP Inputs General'!$D47 -> 81.04931196 | K12: =IF('DNSP Inputs General'!$B47='DNSP Inputs General'!$A$42,K$7,IF('DNSP Inputs General'!$B47='DNSP Inputs General'!$A$43,K$8,K$9))*'DNSP Inputs General'!$D47 -> 82.79805818 | L12: =IF('DNSP Inputs General'!$B47='DNSP Inputs General'!$A$42,L$7,IF('DNSP Inputs General'!$B47='DNSP Inputs General'!$A$43,L$8,L$9))*'DNSP Inputs General'!$D47 -> 84.58550676 | M12: =IF('DNSP Inputs General'!$B47='DNSP Inputs General'!$A$42,M$7,IF('DNSP Inputs General'!$B47='DNSP Inputs General'!$A$43,M$8,M$9))*'DNSP Inputs General'!$D47 -> 86.41293586 | N12: =IF('DNSP Inputs General'!$B47='DNSP Inputs General'!$A$42,N$7,IF('DNSP Inputs General'!$B47='DNSP Inputs General'!$A$43,N$8,N$9))*'DNSP Inputs General'!$D47 -> 88.28103627 | P12: =IF('DNSP Inputs General'!$B47='DNSP Inputs General'!$A$42,P$7,IF('DNSP Inputs General'!$B47='DNSP Inputs General'!$A$43,P$8,P$9))*'DNSP Inputs General'!$D47 -> 21.71309883 | Q12: =IF('DNSP Inputs General'!$B47='DNSP Inputs General'!$A$42,Q$7,IF('DNSP Inputs General'!$B47='DNSP Inputs General'!$A$43,Q$8,Q$9))*'DNSP Inputs General'!$D47 -> 23.80895421 | R12: =IF('DNSP Inputs General'!$B47='DNSP Inputs General'!$A$42,R$7,IF('DNSP Inputs General'!$B47='DNSP Inputs General'!$A$43,R$8,R$9))*'DNSP Inputs General'!$D47 -> 25.74372753 | S12: =IF('DNSP Inputs General'!$B47='DNSP Inputs General'!$A$42,S$7,IF('DNSP Inputs General'!$B47='DNSP Inputs General'!$A$43,S$8,S$9))*'DNSP Inputs General'!$D47 -> 27.30349334 | T12: =IF('DNSP Inputs General'!$B47='DNSP Inputs General'!$A$42,T$7,IF('DNSP Inputs General'!$B47='DNSP Inputs General'!$A$43,T$8,T$9))*'DNSP Inputs General'!$D47 -> 28.72844477 | V12: 3.552713679e-15 | W12: 1.421085472e-14 | X12: 1.776356839e-14 | Y12: 3.552713679e-15 | Z12: 3.552713679e-15
A13: ='DNSP Inputs General'!A48 -> Mercury Vapour 400W | C13: ='DNSP Inputs General'!E48 -> 115.97 | D13: =IF('DNSP Inputs General'!$B48='DNSP Inputs General'!$A$42,D$7,IF('DNSP Inputs General'!$B48='DNSP Inputs General'!$A$43,D$8,D$9))*'DNSP Inputs General'!$D48 -> 106.6771693 | E13: =IF('DNSP Inputs General'!$B48='DNSP Inputs General'!$A$42,E$7,IF('DNSP Inputs General'!$B48='DNSP Inputs General'!$A$43,E$8,E$9))*'DNSP Inputs General'!$D48 -> 110.6682319 | F13: =IF('DNSP Inputs General'!$B48='DNSP Inputs General'!$A$42,F$7,IF('DNSP Inputs General'!$B48='DNSP Inputs General'!$A$43,F$8,F$9))*'DNSP Inputs General'!$D48 -> 114.5322527 | G13: =IF('DNSP Inputs General'!$B48='DNSP Inputs General'!$A$42,G$7,IF('DNSP Inputs General'!$B48='DNSP Inputs General'!$A$43,G$8,G$9))*'DNSP Inputs General'!$D48 -> 118.0484836 | H13: =IF('DNSP Inputs General'!$B48='DNSP Inputs General'!$A$42,H$7,IF('DNSP Inputs General'!$B48='DNSP Inputs General'!$A$43,H$8,H$9))*'DNSP Inputs General'!$D48 -> 121.4669851 | J13: =IF('DNSP Inputs General'!$B48='DNSP Inputs General'!$A$42,J$7,IF('DNSP Inputs General'!$B48='DNSP Inputs General'!$A$43,J$8,J$9))*'DNSP Inputs General'!$D48 -> 84.13690479 | K13: =IF('DNSP Inputs General'!$B48='DNSP Inputs General'!$A$42,K$7,IF('DNSP Inputs General'!$B48='DNSP Inputs General'!$A$43,K$8,K$9))*'DNSP Inputs General'!$D48 -> 85.95226992 | L13: =IF('DNSP Inputs General'!$B48='DNSP Inputs General'!$A$42,L$7,IF('DNSP Inputs General'!$B48='DNSP Inputs General'!$A$43,L$8,L$9))*'DNSP Inputs General'!$D48 -> 87.80781178 | M13: =IF('DNSP Inputs General'!$B48='DNSP Inputs General'!$A$42,M$7,IF('DNSP Inputs General'!$B48='DNSP Inputs General'!$A$43,M$8,M$9))*'DNSP Inputs General'!$D48 -> 89.70485722 | N13: =IF('DNSP Inputs General'!$B48='DNSP Inputs General'!$A$42,N$7,IF('DNSP Inputs General'!$B48='DNSP Inputs General'!$A$43,N$8,N$9))*'DNSP Inputs General'!$D48 -> 91.64412336 | P13: =IF('DNSP Inputs General'!$B48='DNSP Inputs General'!$A$42,P$7,IF('DNSP Inputs General'!$B48='DNSP Inputs General'!$A$43,P$8,P$9))*'DNSP Inputs General'!$D48 -> 22.54026449 | Q13: =IF('DNSP Inputs General'!$B48='DNSP Inputs General'!$A$42,Q$7,IF('DNSP Inputs General'!$B48='DNSP Inputs General'!$A$43,Q$8,Q$9))*'DNSP Inputs General'!$D48 -> 24.71596199 | R13: =IF('DNSP Inputs General'!$B48='DNSP Inputs General'!$A$42,R$7,IF('DNSP Inputs General'!$B48='DNSP Inputs General'!$A$43,R$8,R$9))*'DNSP Inputs General'!$D48 -> 26.72444095 | S13: =IF('DNSP Inputs General'!$B48='DNSP Inputs General'!$A$42,S$7,IF('DNSP Inputs General'!$B48='DNSP Inputs General'!$A$43,S$8,S$9))*'DNSP Inputs General'!$D48 -> 28.34362642 | T13: =IF('DNSP Inputs General'!$B48='DNSP Inputs General'!$A$42,T$7,IF('DNSP Inputs General'!$B48='DNSP Inputs General'!$A$43,T$8,T$9))*'DNSP Inputs General'!$D48 -> 29.82286171 | V13: 3.552713679e-15 | W13: 1.065814104e-14 | X13: 1.421085472e-14 | Y13: 0 | Z13: 7.105427358e-15
A14: ='DNSP Inputs General'!A49 -> HP Sodium 100W | C14: ='DNSP Inputs General'!E49 -> 112.46 | D14: =IF('DNSP Inputs General'!$B49='DNSP Inputs General'!$A$42,D$7,IF('DNSP Inputs General'!$B49='DNSP Inputs General'!$A$43,D$8,D$9))*'DNSP Inputs General'!$D49 -> 103.7104901 | E14: =IF('DNSP Inputs General'!$B49='DNSP Inputs General'!$A$42,E$7,IF('DNSP Inputs General'!$B49='DNSP Inputs General'!$A$43,E$8,E$9))*'DNSP Inputs General'!$D49 -> 107.5833468 | F14: =IF('DNSP Inputs General'!$B49='DNSP Inputs General'!$A$42,F$7,IF('DNSP Inputs General'!$B49='DNSP Inputs General'!$A$43,F$8,F$9))*'DNSP Inputs General'!$D49 -> 111.3328122 | G14: =IF('DNSP Inputs General'!$B49='DNSP Inputs General'!$A$42,G$7,IF('DNSP Inputs General'!$B49='DNSP Inputs General'!$A$43,G$8,G$9))*'DNSP Inputs General'!$D49 -> 114.7442358 | H14: =IF('DNSP Inputs General'!$B49='DNSP Inputs General'!$A$42,H$7,IF('DNSP Inputs General'!$B49='DNSP Inputs General'!$A$43,H$8,H$9))*'DNSP Inputs General'!$D49 -> 118.0611761 | J14: =IF('DNSP Inputs General'!$B49='DNSP Inputs General'!$A$42,J$7,IF('DNSP Inputs General'!$B49='DNSP Inputs General'!$A$43,J$8,J$9))*'DNSP Inputs General'!$D49 -> 81.80616507 | K14: =IF('DNSP Inputs General'!$B49='DNSP Inputs General'!$A$42,K$7,IF('DNSP Inputs General'!$B49='DNSP Inputs General'!$A$43,K$8,K$9))*'DNSP Inputs General'!$D49 -> 83.57169731 | L14: =IF('DNSP Inputs General'!$B49='DNSP Inputs General'!$A$42,L$7,IF('DNSP Inputs General'!$B49='DNSP Inputs General'!$A$43,L$8,L$9))*'DNSP Inputs General'!$D49 -> 85.37629627 | M14: =IF('DNSP Inputs General'!$B49='DNSP Inputs General'!$A$42,M$7,IF('DNSP Inputs General'!$B49='DNSP Inputs General'!$A$43,M$8,M$9))*'DNSP Inputs General'!$D49 -> 87.22124462 | N14: =IF('DNSP Inputs General'!$B49='DNSP Inputs General'!$A$42,N$7,IF('DNSP Inputs General'!$B49='DNSP Inputs General'!$A$43,N$8,N$9))*'DNSP Inputs General'!$D49 -> 89.10724272 | P14: =IF('DNSP Inputs General'!$B49='DNSP Inputs General'!$A$42,P$7,IF('DNSP Inputs General'!$B49='DNSP Inputs General'!$A$43,P$8,P$9))*'DNSP Inputs General'!$D49 -> 21.904325 | Q14: =IF('DNSP Inputs General'!$B49='DNSP Inputs General'!$A$42,Q$7,IF('DNSP Inputs General'!$B49='DNSP Inputs General'!$A$43,Q$8,Q$9))*'DNSP Inputs General'!$D49 -> 24.01164947 | R14: =IF('DNSP Inputs General'!$B49='DNSP Inputs General'!$A$42,R$7,IF('DNSP Inputs General'!$B49='DNSP Inputs General'!$A$43,R$8,R$9))*'DNSP Inputs General'!$D49 -> 25.9565159 | S14: =IF('DNSP Inputs General'!$B49='DNSP Inputs General'!$A$42,S$7,IF('DNSP Inputs General'!$B49='DNSP Inputs General'!$A$43,S$8,S$9))*'DNSP Inputs General'!$D49 -> 27.52299117 | T14: =IF('DNSP Inputs General'!$B49='DNSP Inputs General'!$A$42,T$7,IF('DNSP Inputs General'!$B49='DNSP Inputs General'!$A$43,T$8,T$9))*'DNSP Inputs General'!$D49 -> 28.95393341 | V14: 3.552713679e-15 | W14: 7.105427358e-15 | X14: 7.105427358e-15 | Y14: 7.105427358e-15 | Z14: 7.105427358e-15
A15: ='DNSP Inputs General'!A50 -> HP Sodium 400W | C15: ='DNSP Inputs General'!E50 -> 151.08 | D15: =IF('DNSP Inputs General'!$B50='DNSP Inputs General'!$A$42,D$7,IF('DNSP Inputs General'!$B50='DNSP Inputs General'!$A$43,D$8,D$9))*'DNSP Inputs General'!$D50 -> 138.973927 | E15: =IF('DNSP Inputs General'!$B50='DNSP Inputs General'!$A$42,E$7,IF('DNSP Inputs General'!$B50='DNSP Inputs General'!$A$43,E$8,E$9))*'DNSP Inputs General'!$D50 -> 144.1732929 | F15: =IF('DNSP Inputs General'!$B50='DNSP Inputs General'!$A$42,F$7,IF('DNSP Inputs General'!$B50='DNSP Inputs General'!$A$43,F$8,F$9))*'DNSP Inputs General'!$D50 -> 149.2071549 | G15: =IF('DNSP Inputs General'!$B50='DNSP Inputs General'!$A$42,G$7,IF('DNSP Inputs General'!$B50='DNSP Inputs General'!$A$43,G$8,G$9))*'DNSP Inputs General'!$D50 -> 153.7879328 | H15: =IF('DNSP Inputs General'!$B50='DNSP Inputs General'!$A$42,H$7,IF('DNSP Inputs General'!$B50='DNSP Inputs General'!$A$43,H$8,H$9))*'DNSP Inputs General'!$D50 -> 158.2413934 | J15: =IF('DNSP Inputs General'!$B50='DNSP Inputs General'!$A$42,J$7,IF('DNSP Inputs General'!$B50='DNSP Inputs General'!$A$43,J$8,J$9))*'DNSP Inputs General'!$D50 -> 109.6095457 | K15: =IF('DNSP Inputs General'!$B50='DNSP Inputs General'!$A$42,K$7,IF('DNSP Inputs General'!$B50='DNSP Inputs General'!$A$43,K$8,K$9))*'DNSP Inputs General'!$D50 -> 111.9745168 | L15: =IF('DNSP Inputs General'!$B50='DNSP Inputs General'!$A$42,L$7,IF('DNSP Inputs General'!$B50='DNSP Inputs General'!$A$43,L$8,L$9))*'DNSP Inputs General'!$D50 -> 114.3918282 | M15: =IF('DNSP Inputs General'!$B50='DNSP Inputs General'!$A$42,M$7,IF('DNSP Inputs General'!$B50='DNSP Inputs General'!$A$43,M$8,M$9))*'DNSP Inputs General'!$D50 -> 116.8632085 | N15: =IF('DNSP Inputs General'!$B50='DNSP Inputs General'!$A$42,N$7,IF('DNSP Inputs General'!$B50='DNSP Inputs General'!$A$43,N$8,N$9))*'DNSP Inputs General'!$D50 -> 119.3895919 | P15: =IF('DNSP Inputs General'!$B50='DNSP Inputs General'!$A$42,P$7,IF('DNSP Inputs General'!$B50='DNSP Inputs General'!$A$43,P$8,P$9))*'DNSP Inputs General'!$D50 -> 29.36438127 | Q15: =IF('DNSP Inputs General'!$B50='DNSP Inputs General'!$A$42,Q$7,IF('DNSP Inputs General'!$B50='DNSP Inputs General'!$A$43,Q$8,Q$9))*'DNSP Inputs General'!$D50 -> 32.19877617 | R15: =IF('DNSP Inputs General'!$B50='DNSP Inputs General'!$A$42,R$7,IF('DNSP Inputs General'!$B50='DNSP Inputs General'!$A$43,R$8,R$9))*'DNSP Inputs General'!$D50 -> 34.81532675 | S15: =IF('DNSP Inputs General'!$B50='DNSP Inputs General'!$A$42,S$7,IF('DNSP Inputs General'!$B50='DNSP Inputs General'!$A$43,S$8,S$9))*'DNSP Inputs General'!$D50 -> 36.92472432 | T15: =IF('DNSP Inputs General'!$B50='DNSP Inputs General'!$A$42,T$7,IF('DNSP Inputs General'!$B50='DNSP Inputs General'!$A$43,T$8,T$9))*'DNSP Inputs General'!$D50 -> 38.8518015 | V15: 0 | W15: 0 | X15: 7.105427358e-15 | Y15: 0 | Z15: 1.421085472e-14
A16: ='DNSP Inputs General'!A51 -> Metal Halide 70W | C16: ='DNSP Inputs General'!E51 -> 210.66 | D16: =IF('DNSP Inputs General'!$B51='DNSP Inputs General'!$A$42,D$7,IF('DNSP Inputs General'!$B51='DNSP Inputs General'!$A$43,D$8,D$9))*'DNSP Inputs General'!$D51 -> 177.3003771 | E16: =IF('DNSP Inputs General'!$B51='DNSP Inputs General'!$A$42,E$7,IF('DNSP Inputs General'!$B51='DNSP Inputs General'!$A$43,E$8,E$9))*'DNSP Inputs General'!$D51 -> 186.9113739 | F16: =IF('DNSP Inputs General'!$B51='DNSP Inputs General'!$A$42,F$7,IF('DNSP Inputs General'!$B51='DNSP Inputs General'!$A$43,F$8,F$9))*'DNSP Inputs General'!$D51 -> 195.9629019 | G16: =IF('DNSP Inputs General'!$B51='DNSP Inputs General'!$A$42,G$7,IF('DNSP Inputs General'!$B51='DNSP Inputs General'!$A$43,G$8,G$9))*'DNSP Inputs General'!$D51 -> 203.6476946 | H16: =IF('DNSP Inputs General'!$B51='DNSP Inputs General'!$A$42,H$7,IF('DNSP Inputs General'!$B51='DNSP Inputs General'!$A$43,H$8,H$9))*'DNSP Inputs General'!$D51 -> 210.891244 | J16: =IF('DNSP Inputs General'!$B51='DNSP Inputs General'!$A$42,J$7,IF('DNSP Inputs General'!$B51='DNSP Inputs General'!$A$43,J$8,J$9))*'DNSP Inputs General'!$D51 -> 95.57577271 | K16: =IF('DNSP Inputs General'!$B51='DNSP Inputs General'!$A$42,K$7,IF('DNSP Inputs General'!$B51='DNSP Inputs General'!$A$43,K$8,K$9))*'DNSP Inputs General'!$D51 -> 97.56679697 | L16: =IF('DNSP Inputs General'!$B51='DNSP Inputs General'!$A$42,L$7,IF('DNSP Inputs General'!$B51='DNSP Inputs General'!$A$43,L$8,L$9))*'DNSP Inputs General'!$D51 -> 99.60299994 | M16: =IF('DNSP Inputs General'!$B51='DNSP Inputs General'!$A$42,M$7,IF('DNSP Inputs General'!$B51='DNSP Inputs General'!$A$43,M$8,M$9))*'DNSP Inputs General'!$D51 -> 101.6870466 | N16: =IF('DNSP Inputs General'!$B51='DNSP Inputs General'!$A$42,N$7,IF('DNSP Inputs General'!$B51='DNSP Inputs General'!$A$43,N$8,N$9))*'DNSP Inputs General'!$D51 -> 103.8192656 | P16: =IF('DNSP Inputs General'!$B51='DNSP Inputs General'!$A$42,P$7,IF('DNSP Inputs General'!$B51='DNSP Inputs General'!$A$43,P$8,P$9))*'DNSP Inputs General'!$D51 -> 81.72460435 | Q16: =IF('DNSP Inputs General'!$B51='DNSP Inputs General'!$A$42,Q$7,IF('DNSP Inputs General'!$B51='DNSP Inputs General'!$A$43,Q$8,Q$9))*'DNSP Inputs General'!$D51 -> 89.34457697 | R16: =IF('DNSP Inputs General'!$B51='DNSP Inputs General'!$A$42,R$7,IF('DNSP Inputs General'!$B51='DNSP Inputs General'!$A$43,R$8,R$9))*'DNSP Inputs General'!$D51 -> 96.359902 | S16: =IF('DNSP Inputs General'!$B51='DNSP Inputs General'!$A$42,S$7,IF('DNSP Inputs General'!$B51='DNSP Inputs General'!$A$43,S$8,S$9))*'DNSP Inputs General'!$D51 -> 101.960648 | T16: =IF('DNSP Inputs General'!$B51='DNSP Inputs General'!$A$42,T$7,IF('DNSP Inputs General'!$B51='DNSP Inputs General'!$A$43,T$8,T$9))*'DNSP Inputs General'!$D51 -> 107.0719784 | V16: 1.421085472e-14 | W16: 1.421085472e-14 | X16: 1.421085472e-14 | Y16: 1.421085472e-14 | Z16: 0
A17: ='DNSP Inputs General'!A52 -> Metal Halide 100W | C17: ='DNSP Inputs General'!E52 -> 250.97 | D17: =IF('DNSP Inputs General'!$B52='DNSP Inputs General'!$A$42,D$7,IF('DNSP Inputs General'!$B52='DNSP Inputs General'!$A$43,D$8,D$9))*'DNSP Inputs General'!$D52 -> 231.4284163 | E17: =IF('DNSP Inputs General'!$B52='DNSP Inputs General'!$A$42,E$7,IF('DNSP Inputs General'!$B52='DNSP Inputs General'!$A$43,E$8,E$9))*'DNSP Inputs General'!$D52 -> 240.0706384 | F17: =IF('DNSP Inputs General'!$B52='DNSP Inputs General'!$A$42,F$7,IF('DNSP Inputs General'!$B52='DNSP Inputs General'!$A$43,F$8,F$9))*'DNSP Inputs General'!$D52 -> 248.4375147 | G17: =IF('DNSP Inputs General'!$B52='DNSP Inputs General'!$A$42,G$7,IF('DNSP Inputs General'!$B52='DNSP Inputs General'!$A$43,G$8,G$9))*'DNSP Inputs General'!$D52 -> 256.0500558 | H17: =IF('DNSP Inputs General'!$B52='DNSP Inputs General'!$A$42,H$7,IF('DNSP Inputs General'!$B52='DNSP Inputs General'!$A$43,H$8,H$9))*'DNSP Inputs General'!$D52 -> 263.4517588 | J17: =IF('DNSP Inputs General'!$B52='DNSP Inputs General'!$A$42,J$7,IF('DNSP Inputs General'!$B52='DNSP Inputs General'!$A$43,J$8,J$9))*'DNSP Inputs General'!$D52 -> 182.5492408 | K17: =IF('DNSP Inputs General'!$B52='DNSP Inputs General'!$A$42,K$7,IF('DNSP Inputs General'!$B52='DNSP Inputs General'!$A$43,K$8,K$9))*'DNSP Inputs General'!$D52 -> 186.4889997 | L17: =IF('DNSP Inputs General'!$B52='DNSP Inputs General'!$A$42,L$7,IF('DNSP Inputs General'!$B52='DNSP Inputs General'!$A$43,L$8,L$9))*'DNSP Inputs General'!$D52 -> 190.5159355 | M17: =IF('DNSP Inputs General'!$B52='DNSP Inputs General'!$A$42,M$7,IF('DNSP Inputs General'!$B52='DNSP Inputs General'!$A$43,M$8,M$9))*'DNSP Inputs General'!$D52 -> 194.6329103 | N17: =IF('DNSP Inputs General'!$B52='DNSP Inputs General'!$A$42,N$7,IF('DNSP Inputs General'!$B52='DNSP Inputs General'!$A$43,N$8,N$9))*'DNSP Inputs General'!$D52 -> 198.841487 | P17: =IF('DNSP Inputs General'!$B52='DNSP Inputs General'!$A$42,P$7,IF('DNSP Inputs General'!$B52='DNSP Inputs General'!$A$43,P$8,P$9))*'DNSP Inputs General'!$D52 -> 48.87917549 | Q17: =IF('DNSP Inputs General'!$B52='DNSP Inputs General'!$A$42,Q$7,IF('DNSP Inputs General'!$B52='DNSP Inputs General'!$A$43,Q$8,Q$9))*'DNSP Inputs General'!$D52 -> 53.5816387 | R17: =IF('DNSP Inputs General'!$B52='DNSP Inputs General'!$A$42,R$7,IF('DNSP Inputs General'!$B52='DNSP Inputs General'!$A$43,R$8,R$9))*'DNSP Inputs General'!$D52 -> 57.92157922 | S17: =IF('DNSP Inputs General'!$B52='DNSP Inputs General'!$A$42,S$7,IF('DNSP Inputs General'!$B52='DNSP Inputs General'!$A$43,S$8,S$9))*'DNSP Inputs General'!$D52 -> 61.41714549 | T17: =IF('DNSP Inputs General'!$B52='DNSP Inputs General'!$A$42,T$7,IF('DNSP Inputs General'!$B52='DNSP Inputs General'!$A$43,T$8,T$9))*'DNSP Inputs General'!$D52 -> 64.61027182 | V17: 7.105427358e-15 | W17: 4.263256415e-14 | X17: 3.552713679e-14 | Y17: 7.105427358e-15 | Z17: 2.842170943e-14
A18: ='DNSP Inputs General'!A53 -> Metal Halide 150W | C18: ='DNSP Inputs General'!E53 -> 285.12 | D18: =IF('DNSP Inputs General'!$B53='DNSP Inputs General'!$A$42,D$7,IF('DNSP Inputs General'!$B53='DNSP Inputs General'!$A$43,D$8,D$9))*'DNSP Inputs General'!$D53 -> 262.9193531 | E18: =IF('DNSP Inputs General'!$B53='DNSP Inputs General'!$A$42,E$7,IF('DNSP Inputs General'!$B53='DNSP Inputs General'!$A$43,E$8,E$9))*'DNSP Inputs General'!$D53 -> 272.7375401 | F18: =IF('DNSP Inputs General'!$B53='DNSP Inputs General'!$A$42,F$7,IF('DNSP Inputs General'!$B53='DNSP Inputs General'!$A$43,F$8,F$9))*'DNSP Inputs General'!$D53 -> 282.2429142 | G18: =IF('DNSP Inputs General'!$B53='DNSP Inputs General'!$A$42,G$7,IF('DNSP Inputs General'!$B53='DNSP Inputs General'!$A$43,G$8,G$9))*'DNSP Inputs General'!$D53 -> 290.8913093 | H18: =IF('DNSP Inputs General'!$B53='DNSP Inputs General'!$A$42,H$7,IF('DNSP Inputs General'!$B53='DNSP Inputs General'!$A$43,H$8,H$9))*'DNSP Inputs General'!$D53 -> 299.3001772 | J18: =IF('DNSP Inputs General'!$B53='DNSP Inputs General'!$A$42,J$7,IF('DNSP Inputs General'!$B53='DNSP Inputs General'!$A$43,J$8,J$9))*'DNSP Inputs General'!$D53 -> 207.3890885 | K18: =IF('DNSP Inputs General'!$B53='DNSP Inputs General'!$A$42,K$7,IF('DNSP Inputs General'!$B53='DNSP Inputs General'!$A$43,K$8,K$9))*'DNSP Inputs General'!$D53 -> 211.8649384 | L18: =IF('DNSP Inputs General'!$B53='DNSP Inputs General'!$A$42,L$7,IF('DNSP Inputs General'!$B53='DNSP Inputs General'!$A$43,L$8,L$9))*'DNSP Inputs General'!$D53 -> 216.4398275 | M18: =IF('DNSP Inputs General'!$B53='DNSP Inputs General'!$A$42,M$7,IF('DNSP Inputs General'!$B53='DNSP Inputs General'!$A$43,M$8,M$9))*'DNSP Inputs General'!$D53 -> 221.1170075 | N18: =IF('DNSP Inputs General'!$B53='DNSP Inputs General'!$A$42,N$7,IF('DNSP Inputs General'!$B53='DNSP Inputs General'!$A$43,N$8,N$9))*'DNSP Inputs General'!$D53 -> 225.8982539 | P18: =IF('DNSP Inputs General'!$B53='DNSP Inputs General'!$A$42,P$7,IF('DNSP Inputs General'!$B53='DNSP Inputs General'!$A$43,P$8,P$9))*'DNSP Inputs General'!$D53 -> 55.53026464 | Q18: =IF('DNSP Inputs General'!$B53='DNSP Inputs General'!$A$42,Q$7,IF('DNSP Inputs General'!$B53='DNSP Inputs General'!$A$43,Q$8,Q$9))*'DNSP Inputs General'!$D53 -> 60.87260161 | R18: =IF('DNSP Inputs General'!$B53='DNSP Inputs General'!$A$42,R$7,IF('DNSP Inputs General'!$B53='DNSP Inputs General'!$A$43,R$8,R$9))*'DNSP Inputs General'!$D53 -> 65.80308669 | S18: =IF('DNSP Inputs General'!$B53='DNSP Inputs General'!$A$42,S$7,IF('DNSP Inputs General'!$B53='DNSP Inputs General'!$A$43,S$8,S$9))*'DNSP Inputs General'!$D53 -> 69.77430179 | T18: =IF('DNSP Inputs General'!$B53='DNSP Inputs General'!$A$42,T$7,IF('DNSP Inputs General'!$B53='DNSP Inputs General'!$A$43,T$8,T$9))*'DNSP Inputs General'!$D53 -> 73.40192334 | V18: 7.105427358e-15 | W18: 2.842170943e-14 | X18: 2.842170943e-14 | Y18: 1.421085472e-14 | Z18: 1.421085472e-14
A19: ='DNSP Inputs General'!A54 -> HP Sodium 50W | C19: ='DNSP Inputs General'!E54 -> 46.6 | D19: =IF('DNSP Inputs General'!$B54='DNSP Inputs General'!$A$42,D$7,IF('DNSP Inputs General'!$B54='DNSP Inputs General'!$A$43,D$8,D$9))*'DNSP Inputs General'!$D54 -> 42.97152727 | E19: =IF('DNSP Inputs General'!$B54='DNSP Inputs General'!$A$42,E$7,IF('DNSP Inputs General'!$B54='DNSP Inputs General'!$A$43,E$8,E$9))*'DNSP Inputs General'!$D54 -> 44.5762113 | F19: =IF('DNSP Inputs General'!$B54='DNSP Inputs General'!$A$42,F$7,IF('DNSP Inputs General'!$B54='DNSP Inputs General'!$A$43,F$8,F$9))*'DNSP Inputs General'!$D54 -> 46.12976923 | G19: =IF('DNSP Inputs General'!$B54='DNSP Inputs General'!$A$42,G$7,IF('DNSP Inputs General'!$B54='DNSP Inputs General'!$A$43,G$8,G$9))*'DNSP Inputs General'!$D54 -> 47.54326253 | H19: =IF('DNSP Inputs General'!$B54='DNSP Inputs General'!$A$42,H$7,IF('DNSP Inputs General'!$B54='DNSP Inputs General'!$A$43,H$8,H$9))*'DNSP Inputs General'!$D54 -> 48.91760752 | J19: =IF('DNSP Inputs General'!$B54='DNSP Inputs General'!$A$42,J$7,IF('DNSP Inputs General'!$B54='DNSP Inputs General'!$A$43,J$8,J$9))*'DNSP Inputs General'!$D54 -> 33.89566331 | K19: =IF('DNSP Inputs General'!$B54='DNSP Inputs General'!$A$42,K$7,IF('DNSP Inputs General'!$B54='DNSP Inputs General'!$A$43,K$8,K$9))*'DNSP Inputs General'!$D54 -> 34.62719603 | L19: =IF('DNSP Inputs General'!$B54='DNSP Inputs General'!$A$42,L$7,IF('DNSP Inputs General'!$B54='DNSP Inputs General'!$A$43,L$8,L$9))*'DNSP Inputs General'!$D54 -> 35.3749157 | M19: =IF('DNSP Inputs General'!$B54='DNSP Inputs General'!$A$42,M$7,IF('DNSP Inputs General'!$B54='DNSP Inputs General'!$A$43,M$8,M$9))*'DNSP Inputs General'!$D54 -> 36.13935378 | N19: =IF('DNSP Inputs General'!$B54='DNSP Inputs General'!$A$42,N$7,IF('DNSP Inputs General'!$B54='DNSP Inputs General'!$A$43,N$8,N$9))*'DNSP Inputs General'!$D54 -> 36.92080047 | P19: =IF('DNSP Inputs General'!$B54='DNSP Inputs General'!$A$42,P$7,IF('DNSP Inputs General'!$B54='DNSP Inputs General'!$A$43,P$8,P$9))*'DNSP Inputs General'!$D54 -> 9.07586396 | Q19: =IF('DNSP Inputs General'!$B54='DNSP Inputs General'!$A$42,Q$7,IF('DNSP Inputs General'!$B54='DNSP Inputs General'!$A$43,Q$8,Q$9))*'DNSP Inputs General'!$D54 -> 9.949015275 | R19: =IF('DNSP Inputs General'!$B54='DNSP Inputs General'!$A$42,R$7,IF('DNSP Inputs General'!$B54='DNSP Inputs General'!$A$43,R$8,R$9))*'DNSP Inputs General'!$D54 -> 10.75485354 | S19: =IF('DNSP Inputs General'!$B54='DNSP Inputs General'!$A$42,S$7,IF('DNSP Inputs General'!$B54='DNSP Inputs General'!$A$43,S$8,S$9))*'DNSP Inputs General'!$D54 -> 11.40390875 | T19: =IF('DNSP Inputs General'!$B54='DNSP Inputs General'!$A$42,T$7,IF('DNSP Inputs General'!$B54='DNSP Inputs General'!$A$43,T$8,T$9))*'DNSP Inputs General'!$D54 -> 11.99680706 | V19: 1.776356839e-15 | W19: 1.243449788e-14 | X19: 5.329070518e-15 | Y19: 3.552713679e-15 | Z19: 0
A22: ='DNSP Inputs General'!A$68 -> Energy Efficient Lights
A23: ='DNSP Inputs General'!A69 -> T5 2X14W | C23: ='DNSP Inputs General'!E69 -> 39.13 | D23: ='Charges Summary'!D$89 -> 37.75297771 | E23: ='Charges Summary'!E$89 -> 37.65290545 | F23: ='Charges Summary'!F$89 -> 37.95049633 | G23: ='Charges Summary'!G$89 -> 38.2995012 | H23: ='Charges Summary'!H$89 -> 38.76677958 | J23: =SUM('Charges Summary'!D83,'Charges Summary'!D8) -> 22.52824586 | K23: =SUM('Charges Summary'!E83,'Charges Summary'!E8) -> 22.9982278 | L23: =SUM('Charges Summary'!F83,'Charges Summary'!F8) -> 23.47886323 | M23: =SUM('Charges Summary'!G83,'Charges Summary'!G8) -> 23.9707693 | N23: =SUM('Charges Summary'!H83,'Charges Summary'!H8) -> 24.47402812 | P23: =SUM('Charges Summary'!D85,'Charges Summary'!D11) -> 15.22473185 | Q23: =SUM('Charges Summary'!E85,'Charges Summary'!E11) -> 14.65467765 | R23: =SUM('Charges Summary'!F85,'Charges Summary'!F11) -> 14.4716331 | S23: =SUM('Charges Summary'!G85,'Charges Summary'!G11) -> 14.32873189 | T23: =SUM('Charges Summary'!H85,'Charges Summary'!H11) -> 14.29275146 | V23: =ABS(D23-J23-P23) -> 3.552713679e-15 | W23: =ABS(E23-K23-Q23) -> 1.776356839e-15 | X23: =ABS(F23-L23-R23) -> 1.776356839e-15 | Y23: =ABS(G23-M23-S23) -> 0 | Z23: =ABS(H23-N23-T23) -> 3.552713679e-15
A24: ='DNSP Inputs General'!A70 -> T5 2X24W | C24: ='DNSP Inputs General'!E70 -> 44.31 | D24: ='Charges Summary'!D$105 -> 44.21908042 | E24: ='Charges Summary'!E$105 -> 44.1163096 | F24: ='Charges Summary'!F$105 -> 44.46408298 | G24: ='Charges Summary'!G$105 -> 44.88996173 | H24: ='Charges Summary'!H$105 -> 45.4531178 | J24: =SUM('Charges Summary'!D99,'Charges Summary'!D8) -> 28.43872245 | K24: =SUM('Charges Summary'!E99,'Charges Summary'!E8) -> 29.03814383 | L24: =SUM('Charges Summary'!F99,'Charges Summary'!F8) -> 29.65105342 | M24: =SUM('Charges Summary'!G99,'Charges Summary'!G8) -> 30.27813046 | N24: =SUM('Charges Summary'!H99,'Charges Summary'!H8) -> 30.91952049 | P24: =SUM('Charges Summary'!D101,'Charges Summary'!D11) -> 15.78035797 | Q24: =SUM('Charges Summary'!E101,'Charges Summary'!E11) -> 15.07816577 | R24: =SUM('Charges Summary'!F101,'Charges Summary'!F11) -> 14.81302956 | S24: =SUM('Charges Summary'!G101,'Charges Summary'!G11) -> 14.61183127 | T24: =SUM('Charges Summary'!H101,'Charges Summary'!H11) -> 14.53359732 | V24: 3.552713679e-15 | W24: 0 | X24: 3.552713679e-15 | Y24: 3.552713679e-15 | Z24: 1.776356839e-15
A25: ='DNSP Inputs General'!A71 -> LED 18W | C25: ='DNSP Inputs General'!E71 -> 21.29 | D25: ='Charges Summary'!D$121 -> 21.22192672 | E25: ='Charges Summary'!E$121 -> 20.07612825 | F25: ='Charges Summary'!F$121 -> 19.55591228 | G25: ='Charges Summary'!G$121 -> 19.19045224 | H25: ='Charges Summary'!H$121 -> 19.00967923 | J25: =SUM('Charges Summary'!D115,'Charges Summary'!D8) -> 3.364740962 | K25: =SUM('Charges Summary'!E115,'Charges Summary'!E8) -> 3.415042147 | L25: =SUM('Charges Summary'!F115,'Charges Summary'!F8) -> 3.466805809 | M25: =SUM('Charges Summary'!G115,'Charges Summary'!G8) -> 3.520447823 | N25: =SUM('Charges Summary'!H115,'Charges Summary'!H8) -> 3.575844603 | P25: =SUM('Charges Summary'!D117,'Charges Summary'!D11) -> 17.85718576 | Q25: =SUM('Charges Summary'!E117,'Charges Summary'!E11) -> 16.6610861 | R25: =SUM('Charges Summary'!F117,'Charges Summary'!F11) -> 16.08910647 | S25: =SUM('Charges Summary'!G117,'Charges Summary'!G11) -> 15.67000442 | T25: =SUM('Charges Summary'!H117,'Charges Summary'!H11) -> 15.43383463 | V25: 0 | W25: 0 | X25: 0 | Y25: 1.776356839e-15 | Z25: 1.776356839e-15
A26: ='DNSP Inputs General'!A72 -> Compact Fluorescent 32W | C26: ='DNSP Inputs General'!E72 -> 34.73 | D26: =IF('DNSP Inputs General'!$B72='DNSP Inputs General'!$A$69,D$23,D$24)*'DNSP Inputs General'!$D72 -> 33.50781793 | E26: =IF('DNSP Inputs General'!$B72='DNSP Inputs General'!$A$69,E$23,E$24)*'DNSP Inputs General'!$D72 -> 33.41899837 | F26: =IF('DNSP Inputs General'!$B72='DNSP Inputs General'!$A$69,F$23,F$24)*'DNSP Inputs General'!$D72 -> 33.68312643 | G26: =IF('DNSP Inputs General'!$B72='DNSP Inputs General'!$A$69,G$23,G$24)*'DNSP Inputs General'!$D72 -> 33.99288721 | H26: =IF('DNSP Inputs General'!$B72='DNSP Inputs General'!$A$69,H$23,H$24)*'DNSP Inputs General'!$D72 -> 34.40762215 | J26: =IF('DNSP Inputs General'!$B72='DNSP Inputs General'!$A$69,J$23,J$24)*'DNSP Inputs General'!$D72 -> 19.99504162 | K26: =IF('DNSP Inputs General'!$B72='DNSP Inputs General'!$A$69,K$23,K$24)*'DNSP Inputs General'!$D72 -> 20.41217612 | L26: =IF('DNSP Inputs General'!$B72='DNSP Inputs General'!$A$69,L$23,L$24)*'DNSP Inputs General'!$D72 -> 20.83876616 | M26: =IF('DNSP Inputs General'!$B72='DNSP Inputs General'!$A$69,M$23,M$24)*'DNSP Inputs General'!$D72 -> 21.27535951 | N26: =IF('DNSP Inputs General'!$B72='DNSP Inputs General'!$A$69,N$23,N$24)*'DNSP Inputs General'!$D72 -> 21.72202905 | P26: =IF('DNSP Inputs General'!$B72='DNSP Inputs General'!$A$69,P$23,P$24)*'DNSP Inputs General'!$D72 -> 13.51277631 | Q26: =IF('DNSP Inputs General'!$B72='DNSP Inputs General'!$A$69,Q$23,Q$24)*'DNSP Inputs General'!$D72 -> 13.00682225 | R26: =IF('DNSP Inputs General'!$B72='DNSP Inputs General'!$A$69,R$23,R$24)*'DNSP Inputs General'!$D72 -> 12.84436027 | S26: =IF('DNSP Inputs General'!$B72='DNSP Inputs General'!$A$69,S$23,S$24)*'DNSP Inputs General'!$D72 -> 12.71752769 | T26: =IF('DNSP Inputs General'!$B72='DNSP Inputs General'!$A$69,T$23,T$24)*'DNSP Inputs General'!$D72 -> 12.6855931 | V26: 7.105427358e-15 | W26: 3.552713679e-15 | X26: 1.776356839e-15 | Y26: 1.776356839e-15 | Z26: 8.881784197e-15
A27: ='DNSP Inputs General'!A73 -> Compact Fluorescent 42W | C27: ='DNSP Inputs General'!E73 -> 34.73 | D27: =IF('DNSP Inputs General'!$B73='DNSP Inputs General'!$A$69,D$23,D$24)*'DNSP Inputs General'!$D73 -> 33.50781793 | E27: =IF('DNSP Inputs General'!$B73='DNSP Inputs General'!$A$69,E$23,E$24)*'DNSP Inputs General'!$D73 -> 33.41899837 | F27: =IF('DNSP Inputs General'!$B73='DNSP Inputs General'!$A$69,F$23,F$24)*'DNSP Inputs General'!$D73 -> 33.68312643 | G27: =IF('DNSP Inputs General'!$B73='DNSP Inputs General'!$A$69,G$23,G$24)*'DNSP Inputs General'!$D73 -> 33.99288721 | H27: =IF('DNSP Inputs General'!$B73='DNSP Inputs General'!$A$69,H$23,H$24)*'DNSP Inputs General'!$D73 -> 34.40762215 | J27: =IF('DNSP Inputs General'!$B73='DNSP Inputs General'!$A$69,J$23,J$24)*'DNSP Inputs General'!$D73 -> 19.99504162 | K27: =IF('DNSP Inputs General'!$B73='DNSP Inputs General'!$A$69,K$23,K$24)*'DNSP Inputs General'!$D73 -> 20.41217612 | L27: =IF('DNSP Inputs General'!$B73='DNSP Inputs General'!$A$69,L$23,L$24)*'DNSP Inputs General'!$D73 -> 20.83876616 | M27: =IF('DNSP Inputs General'!$B73='DNSP Inputs General'!$A$69,M$23,M$24)*'DNSP Inputs General'!$D73 -> 21.27535951 | N27: =IF('DNSP Inputs General'!$B73='DNSP Inputs General'!$A$69,N$23,N$24)*'DNSP Inputs General'!$D73 -> 21.72202905 | P27: =IF('DNSP Inputs General'!$B73='DNSP Inputs General'!$A$69,P$23,P$24)*'DNSP Inputs General'!$D73 -> 13.51277631 | Q27: =IF('DNSP Inputs General'!$B73='DNSP Inputs General'!$A$69,Q$23,Q$24)*'DNSP Inputs General'!$D73 -> 13.00682225 | R27: =IF('DNSP Inputs General'!$B73='DNSP Inputs General'!$A$69,R$23,R$24)*'DNSP Inputs General'!$D73 -> 12.84436027 | S27: =IF('DNSP Inputs General'!$B73='DNSP Inputs General'!$A$69,S$23,S$24)*'DNSP Inputs General'!$D73 -> 12.71752769 | T27: =IF('DNSP Inputs General'!$B73='DNSP Inputs General'!$A$69,T$23,T$24)*'DNSP Inputs General'!$D73 -> 12.6855931 | V27: 7.105427358e-15 | W27: 3.552713679e-15 | X27: 1.776356839e-15 | Y27: 1.776356839e-15 | Z27: 8.881784197e-15
D30: ='DNSP Inputs General'!$B$79 -> North & East
A31: Public Lighting Tariffs | C31: Total Tariff | J31: Operations, maintenance and repair Tariff | P31: Replacement Tariff | V31: Check
C32: Actual
A33: ='DNSP Inputs General'!A$81 -> Existing Lights | C33: ='DNSP Inputs General'!J$2 -> 2015 | D33: ='DNSP Inputs General'!K$2 -> 2016 | E33: ='DNSP Inputs General'!L$2 -> 2017 | F33: ='DNSP Inputs General'!M$2 -> 2018 | G33: ='DNSP Inputs General'!N$2 -> 2019 | H33: ='DNSP Inputs General'!O$2 -> 2020 | J33: =D33 -> 2016 | K33: =E33 -> 2017 | L33: 2018 | M33: 2019 | N33: 2020 | P33: =J33 -> 2016 | Q33: =K33 -> 2017 | R33: 2018 | S33: 2019 | T33: 2020 | V33: =P33 -> 2016 | W33: =Q33 -> 2017 | X33: =R33 -> 2018 | Y33: =S33 -> 2019 | Z33: =T33 -> 2020
A34: ='DNSP Inputs General'!A82 -> Mercury Vapour 80W | C34: ='DNSP Inputs General'!E82 -> 55.38 | D34: ='Charges Summary'!K$31 -> 46.05346233 | E34: ='Charges Summary'!L$31 -> 48.48236727 | F34: ='Charges Summary'!M$31 -> 50.7775017 | G34: ='Charges Summary'!N$31 -> 52.74454603 | H34: ='Charges Summary'!O$31 -> 54.60421105 | J34: =SUM('Charges Summary'!K25,'Charges Summary'!K8) -> 26.39357121 | K34: =SUM('Charges Summary'!L25,'Charges Summary'!L8) -> 26.94820377 | L34: =SUM('Charges Summary'!M25,'Charges Summary'!M8) -> 27.51534367 | M34: =SUM('Charges Summary'!N25,'Charges Summary'!N8) -> 28.09564867 | N34: =SUM('Charges Summary'!O25,'Charges Summary'!O8) -> 28.68924235 | P34: =SUM('Charges Summary'!K27,'Charges Summary'!K11) -> 19.65989112 | Q34: =SUM('Charges Summary'!L27,'Charges Summary'!L11) -> 21.5341635 | R34: =SUM('Charges Summary'!M27,'Charges Summary'!M11) -> 23.26215802 | S34: =SUM('Charges Summary'!N27,'Charges Summary'!N11) -> 24.64889736 | T34: =SUM('Charges Summary'!O27,'Charges Summary'!O11) -> 25.91496871 | V34: =ABS(D34-J34-P34) -> 0 | W34: =ABS(E34-K34-Q34) -> 0 | X34: =ABS(F34-L34-R34) -> 0 | Y34: =ABS(G34-M34-S34) -> 3.552713679e-15 | Z34: =ABS(H34-N34-T34) -> 7.105427358e-15
A35: ='DNSP Inputs General'!A83 -> HP Sodium 150W | C35: ='DNSP Inputs General'!E83 -> 118.51 | D35: ='Charges Summary'!K$55 -> 110.2418429 | E35: ='Charges Summary'!L$55 -> 114.2537946 | F35: ='Charges Summary'!M$55 -> 118.1491576 | G35: ='Charges Summary'!N$55 -> 121.7186592 | H35: ='Charges Summary'!O$55 -> 125.1981129 | J35: =SUM('Charges Summary'!K49,'Charges Summary'!K8) -> 88.90119665 | K35: =SUM('Charges Summary'!L49,'Charges Summary'!L8) -> 90.82381251 | L35: =SUM('Charges Summary'!M49,'Charges Summary'!M8) -> 92.78890895 | M35: =SUM('Charges Summary'!N49,'Charges Summary'!N8) -> 94.79781546 | N35: =SUM('Charges Summary'!O49,'Charges Summary'!O8) -> 96.85132018 | P35: =SUM('Charges Summary'!K51,'Charges Summary'!K11) -> 21.34064627 | Q35: =SUM('Charges Summary'!L51,'Charges Summary'!L11) -> 23.42998213 | R35: =SUM('Charges Summary'!M51,'Charges Summary'!M11) -> 25.36024863 | S35: =SUM('Charges Summary'!N51,'Charges Summary'!N11) -> 26.92084374 | T35: =SUM('Charges Summary'!O51,'Charges Summary'!O11) -> 28.34679272 | V35: =ABS(D35-J35-P35) -> 3.552713679e-15 | W35: 3.552713679e-15 | X35: 0 | Y35: 1.065814104e-14 | Z35: 7.105427358e-15
A36: ='DNSP Inputs General'!A84 -> HP Sodium 250W | C36: ='DNSP Inputs General'!E84 -> 117.57 | D36: ='Charges Summary'!K$71 -> 109.0206483 | E36: ='Charges Summary'!L$71 -> 113.0138928 | F36: ='Charges Summary'!M$71 -> 116.8892948 | G36: ='Charges Summary'!N$71 -> 120.4368161 | H36: ='Charges Summary'!O$71 -> 123.8929565 | J36: =SUM('Charges Summary'!K65,'Charges Summary'!K8) -> 87.59796023 | K36: =SUM('Charges Summary'!L65,'Charges Summary'!L8) -> 89.49137108 | L36: =SUM('Charges Summary'!M65,'Charges Summary'!M8) -> 91.42663316 | M36: =SUM('Charges Summary'!N65,'Charges Summary'!N8) -> 93.40507309 | N36: =SUM('Charges Summary'!O65,'Charges Summary'!O8) -> 95.42746049 | P36: =SUM('Charges Summary'!K67,'Charges Summary'!K11) -> 21.42268807 | Q36: =SUM('Charges Summary'!L67,'Charges Summary'!L11) -> 23.52252171 | R36: =SUM('Charges Summary'!M67,'Charges Summary'!M11) -> 25.46266161 | S36: =SUM('Charges Summary'!N67,'Charges Summary'!N11) -> 27.03174305 | T36: =SUM('Charges Summary'!O67,'Charges Summary'!O11) -> 28.46549605 | V36: 0 | W36: 7.105427358e-15 | X36: 3.552713679e-15 | Y36: 7.105427358e-15 | Z36: 0
A37: ='DNSP Inputs General'!A85 -> Mercury Vapour 50W | C37: ='DNSP Inputs General'!E85 -> 81.97 | D37: =IF('DNSP Inputs General'!$B85='DNSP Inputs General'!$A$82,D$34,IF('DNSP Inputs General'!$B85='DNSP Inputs General'!$A$83,D$35,D$36))*'DNSP Inputs General'!$D85 -> 68.15912425 | E37: =IF('DNSP Inputs General'!$B85='DNSP Inputs General'!$A$82,E$34,IF('DNSP Inputs General'!$B85='DNSP Inputs General'!$A$83,E$35,E$36))*'DNSP Inputs General'!$D85 -> 71.75390356 | F37: =IF('DNSP Inputs General'!$B85='DNSP Inputs General'!$A$82,F$34,IF('DNSP Inputs General'!$B85='DNSP Inputs General'!$A$83,F$35,F$36))*'DNSP Inputs General'!$D85 -> 75.15070251 | G37: =IF('DNSP Inputs General'!$B85='DNSP Inputs General'!$A$82,G$34,IF('DNSP Inputs General'!$B85='DNSP Inputs General'!$A$83,G$35,G$36))*'DNSP Inputs General'!$D85 -> 78.06192813 | H37: =IF('DNSP Inputs General'!$B85='DNSP Inputs General'!$A$82,H$34,IF('DNSP Inputs General'!$B85='DNSP Inputs General'!$A$83,H$35,H$36))*'DNSP Inputs General'!$D85 -> 80.81423236 | J37: =IF('DNSP Inputs General'!$B85='DNSP Inputs General'!$A$82,J$34,IF('DNSP Inputs General'!$B85='DNSP Inputs General'!$A$83,J$35,J$36))*'DNSP Inputs General'!$D85 -> 39.06248538 | K37: =IF('DNSP Inputs General'!$B85='DNSP Inputs General'!$A$82,K$34,IF('DNSP Inputs General'!$B85='DNSP Inputs General'!$A$83,K$35,K$36))*'DNSP Inputs General'!$D85 -> 39.88334158 | L37: =IF('DNSP Inputs General'!$B85='DNSP Inputs General'!$A$82,L$34,IF('DNSP Inputs General'!$B85='DNSP Inputs General'!$A$83,L$35,L$36))*'DNSP Inputs General'!$D85 -> 40.72270864 | M37: =IF('DNSP Inputs General'!$B85='DNSP Inputs General'!$A$82,M$34,IF('DNSP Inputs General'!$B85='DNSP Inputs General'!$A$83,M$35,M$36))*'DNSP Inputs General'!$D85 -> 41.58156003 | N37: =IF('DNSP Inputs General'!$B85='DNSP Inputs General'!$A$82,N$34,IF('DNSP Inputs General'!$B85='DNSP Inputs General'!$A$83,N$35,N$36))*'DNSP Inputs General'!$D85 -> 42.46007867 | P37: =IF('DNSP Inputs General'!$B85='DNSP Inputs General'!$A$82,P$34,IF('DNSP Inputs General'!$B85='DNSP Inputs General'!$A$83,P$35,P$36))*'DNSP Inputs General'!$D85 -> 29.09663886 | Q37: =IF('DNSP Inputs General'!$B85='DNSP Inputs General'!$A$82,Q$34,IF('DNSP Inputs General'!$B85='DNSP Inputs General'!$A$83,Q$35,Q$36))*'DNSP Inputs General'!$D85 -> 31.87056198 | R37: =IF('DNSP Inputs General'!$B85='DNSP Inputs General'!$A$82,R$34,IF('DNSP Inputs General'!$B85='DNSP Inputs General'!$A$83,R$35,R$36))*'DNSP Inputs General'!$D85 -> 34.42799388 | S37: =IF('DNSP Inputs General'!$B85='DNSP Inputs General'!$A$82,S$34,IF('DNSP Inputs General'!$B85='DNSP Inputs General'!$A$83,S$35,S$36))*'DNSP Inputs General'!$D85 -> 36.4803681 | T37: =IF('DNSP Inputs General'!$B85='DNSP Inputs General'!$A$82,T$34,IF('DNSP Inputs General'!$B85='DNSP Inputs General'!$A$83,T$35,T$36))*'DNSP Inputs General'!$D85 -> 38.35415369 | V37: 3.552713679e-15 | W37: 7.105427358e-15 | X37: 7.105427358e-15 | Y37: 0 | Z37: 7.105427358e-15
A38: ='DNSP Inputs General'!A86 -> Mercury Vapour 125W | C38: ='DNSP Inputs General'!E86 -> 81.97 | D38: =IF('DNSP Inputs General'!$B86='DNSP Inputs General'!$A$82,D$34,IF('DNSP Inputs General'!$B86='DNSP Inputs General'!$A$83,D$35,D$36))*'DNSP Inputs General'!$D86 -> 68.15912425 | E38: =IF('DNSP Inputs General'!$B86='DNSP Inputs General'!$A$82,E$34,IF('DNSP Inputs General'!$B86='DNSP Inputs General'!$A$83,E$35,E$36))*'DNSP Inputs General'!$D86 -> 71.75390356 | F38: =IF('DNSP Inputs General'!$B86='DNSP Inputs General'!$A$82,F$34,IF('DNSP Inputs General'!$B86='DNSP Inputs General'!$A$83,F$35,F$36))*'DNSP Inputs General'!$D86 -> 75.15070251 | G38: =IF('DNSP Inputs General'!$B86='DNSP Inputs General'!$A$82,G$34,IF('DNSP Inputs General'!$B86='DNSP Inputs General'!$A$83,G$35,G$36))*'DNSP Inputs General'!$D86 -> 78.06192813 | H38: =IF('DNSP Inputs General'!$B86='DNSP Inputs General'!$A$82,H$34,IF('DNSP Inputs General'!$B86='DNSP Inputs General'!$A$83,H$35,H$36))*'DNSP Inputs General'!$D86 -> 80.81423236 | J38: =IF('DNSP Inputs General'!$B86='DNSP Inputs General'!$A$82,J$34,IF('DNSP Inputs General'!$B86='DNSP Inputs General'!$A$83,J$35,J$36))*'DNSP Inputs General'!$D86 -> 39.06248538 | K38: =IF('DNSP Inputs General'!$B86='DNSP Inputs General'!$A$82,K$34,IF('DNSP Inputs General'!$B86='DNSP Inputs General'!$A$83,K$35,K$36))*'DNSP Inputs General'!$D86 -> 39.88334158 | L38: =IF('DNSP Inputs General'!$B86='DNSP Inputs General'!$A$82,L$34,IF('DNSP Inputs General'!$B86='DNSP Inputs General'!$A$83,L$35,L$36))*'DNSP Inputs General'!$D86 -> 40.72270864 | M38: =IF('DNSP Inputs General'!$B86='DNSP Inputs General'!$A$82,M$34,IF('DNSP Inputs General'!$B86='DNSP Inputs General'!$A$83,M$35,M$36))*'DNSP Inputs General'!$D86 -> 41.58156003 | N38: =IF('DNSP Inputs General'!$B86='DNSP Inputs General'!$A$82,N$34,IF('DNSP Inputs General'!$B86='DNSP Inputs General'!$A$83,N$35,N$36))*'DNSP Inputs General'!$D86 -> 42.46007867 | P38: =IF('DNSP Inputs General'!$B86='DNSP Inputs General'!$A$82,P$34,IF('DNSP Inputs General'!$B86='DNSP Inputs General'!$A$83,P$35,P$36))*'DNSP Inputs General'!$D86 -> 29.09663886 | Q38: =IF('DNSP Inputs General'!$B86='DNSP Inputs General'!$A$82,Q$34,IF('DNSP Inputs General'!$B86='DNSP Inputs General'!$A$83,Q$35,Q$36))*'DNSP Inputs General'!$D86 -> 31.87056198 | R38: =IF('DNSP Inputs General'!$B86='DNSP Inputs General'!$A$82,R$34,IF('DNSP Inputs General'!$B86='DNSP Inputs General'!$A$83,R$35,R$36))*'DNSP Inputs General'!$D86 -> 34.42799388 | S38: =IF('DNSP Inputs General'!$B86='DNSP Inputs General'!$A$82,S$34,IF('DNSP Inputs General'!$B86='DNSP Inputs General'!$A$83,S$35,S$36))*'DNSP Inputs General'!$D86 -> 36.4803681 | T38: =IF('DNSP Inputs General'!$B86='DNSP Inputs General'!$A$82,T$34,IF('DNSP Inputs General'!$B86='DNSP Inputs General'!$A$83,T$35,T$36))*'DNSP Inputs General'!$D86 -> 38.35415369 | V38: 3.552713679e-15 | W38: 7.105427358e-15 | X38: 7.105427358e-15 | Y38: 0 | Z38: 7.105427358e-15
A39: ='DNSP Inputs General'!A87 -> Mercury Vapour 250W | C39: ='DNSP Inputs General'!E87 -> 122.28 | D39: =IF('DNSP Inputs General'!$B87='DNSP Inputs General'!$A$82,D$34,IF('DNSP Inputs General'!$B87='DNSP Inputs General'!$A$83,D$35,D$36))*'DNSP Inputs General'!$D87 -> 113.3814742 | E39: =IF('DNSP Inputs General'!$B87='DNSP Inputs General'!$A$82,E$34,IF('DNSP Inputs General'!$B87='DNSP Inputs General'!$A$83,E$35,E$36))*'DNSP Inputs General'!$D87 -> 117.5344485 | F39: =IF('DNSP Inputs General'!$B87='DNSP Inputs General'!$A$82,F$34,IF('DNSP Inputs General'!$B87='DNSP Inputs General'!$A$83,F$35,F$36))*'DNSP Inputs General'!$D87 -> 121.5648666 | G39: =IF('DNSP Inputs General'!$B87='DNSP Inputs General'!$A$82,G$34,IF('DNSP Inputs General'!$B87='DNSP Inputs General'!$A$83,G$35,G$36))*'DNSP Inputs General'!$D87 -> 125.2542888 | H39: =IF('DNSP Inputs General'!$B87='DNSP Inputs General'!$A$82,H$34,IF('DNSP Inputs General'!$B87='DNSP Inputs General'!$A$83,H$35,H$36))*'DNSP Inputs General'!$D87 -> 128.8486748 | J39: =IF('DNSP Inputs General'!$B87='DNSP Inputs General'!$A$82,J$34,IF('DNSP Inputs General'!$B87='DNSP Inputs General'!$A$83,J$35,J$36))*'DNSP Inputs General'!$D87 -> 91.10187864 | K39: =IF('DNSP Inputs General'!$B87='DNSP Inputs General'!$A$82,K$34,IF('DNSP Inputs General'!$B87='DNSP Inputs General'!$A$83,K$35,K$36))*'DNSP Inputs General'!$D87 -> 93.07102592 | L39: =IF('DNSP Inputs General'!$B87='DNSP Inputs General'!$A$82,L$34,IF('DNSP Inputs General'!$B87='DNSP Inputs General'!$A$83,L$35,L$36))*'DNSP Inputs General'!$D87 -> 95.08369849 | M39: =IF('DNSP Inputs General'!$B87='DNSP Inputs General'!$A$82,M$34,IF('DNSP Inputs General'!$B87='DNSP Inputs General'!$A$83,M$35,M$36))*'DNSP Inputs General'!$D87 -> 97.14127601 | N39: =IF('DNSP Inputs General'!$B87='DNSP Inputs General'!$A$82,N$34,IF('DNSP Inputs General'!$B87='DNSP Inputs General'!$A$83,N$35,N$36))*'DNSP Inputs General'!$D87 -> 99.24455891 | P39: =IF('DNSP Inputs General'!$B87='DNSP Inputs General'!$A$82,P$34,IF('DNSP Inputs General'!$B87='DNSP Inputs General'!$A$83,P$35,P$36))*'DNSP Inputs General'!$D87 -> 22.27959559 | Q39: =IF('DNSP Inputs General'!$B87='DNSP Inputs General'!$A$82,Q$34,IF('DNSP Inputs General'!$B87='DNSP Inputs General'!$A$83,Q$35,Q$36))*'DNSP Inputs General'!$D87 -> 24.46342258 | R39: =IF('DNSP Inputs General'!$B87='DNSP Inputs General'!$A$82,R$34,IF('DNSP Inputs General'!$B87='DNSP Inputs General'!$A$83,R$35,R$36))*'DNSP Inputs General'!$D87 -> 26.48116807 | S39: =IF('DNSP Inputs General'!$B87='DNSP Inputs General'!$A$82,S$34,IF('DNSP Inputs General'!$B87='DNSP Inputs General'!$A$83,S$35,S$36))*'DNSP Inputs General'!$D87 -> 28.11301277 | T39: =IF('DNSP Inputs General'!$B87='DNSP Inputs General'!$A$82,T$34,IF('DNSP Inputs General'!$B87='DNSP Inputs General'!$A$83,T$35,T$36))*'DNSP Inputs General'!$D87 -> 29.60411589 | V39: 3.552713679e-15 | W39: 7.105427358e-15 | X39: 0 | Y39: 3.552713679e-15 | Z39: 0
A40: ='DNSP Inputs General'!A88 -> Mercury Vapour 400W | C40: ='DNSP Inputs General'!E88 -> 125.8 | D40: =IF('DNSP Inputs General'!$B88='DNSP Inputs General'!$A$82,D$34,IF('DNSP Inputs General'!$B88='DNSP Inputs General'!$A$83,D$35,D$36))*'DNSP Inputs General'!$D88 -> 116.6520937 | E40: =IF('DNSP Inputs General'!$B88='DNSP Inputs General'!$A$82,E$34,IF('DNSP Inputs General'!$B88='DNSP Inputs General'!$A$83,E$35,E$36))*'DNSP Inputs General'!$D88 -> 120.9248653 | F40: =IF('DNSP Inputs General'!$B88='DNSP Inputs General'!$A$82,F$34,IF('DNSP Inputs General'!$B88='DNSP Inputs General'!$A$83,F$35,F$36))*'DNSP Inputs General'!$D88 -> 125.0715454 | G40: =IF('DNSP Inputs General'!$B88='DNSP Inputs General'!$A$82,G$34,IF('DNSP Inputs General'!$B88='DNSP Inputs General'!$A$83,G$35,G$36))*'DNSP Inputs General'!$D88 -> 128.8673933 | H40: =IF('DNSP Inputs General'!$B88='DNSP Inputs General'!$A$82,H$34,IF('DNSP Inputs General'!$B88='DNSP Inputs General'!$A$83,H$35,H$36))*'DNSP Inputs General'!$D88 -> 132.5654635 | J40: =IF('DNSP Inputs General'!$B88='DNSP Inputs General'!$A$82,J$34,IF('DNSP Inputs General'!$B88='DNSP Inputs General'!$A$83,J$35,J$36))*'DNSP Inputs General'!$D88 -> 93.72981745 | K40: =IF('DNSP Inputs General'!$B88='DNSP Inputs General'!$A$82,K$34,IF('DNSP Inputs General'!$B88='DNSP Inputs General'!$A$83,K$35,K$36))*'DNSP Inputs General'!$D88 -> 95.75576706 | L40: =IF('DNSP Inputs General'!$B88='DNSP Inputs General'!$A$82,L$34,IF('DNSP Inputs General'!$B88='DNSP Inputs General'!$A$83,L$35,L$36))*'DNSP Inputs General'!$D88 -> 97.82649748 | M40: =IF('DNSP Inputs General'!$B88='DNSP Inputs General'!$A$82,M$34,IF('DNSP Inputs General'!$B88='DNSP Inputs General'!$A$83,M$35,M$36))*'DNSP Inputs General'!$D88 -> 99.94342821 | N40: =IF('DNSP Inputs General'!$B88='DNSP Inputs General'!$A$82,N$34,IF('DNSP Inputs General'!$B88='DNSP Inputs General'!$A$83,N$35,N$36))*'DNSP Inputs General'!$D88 -> 102.1073827 | P40: =IF('DNSP Inputs General'!$B88='DNSP Inputs General'!$A$82,P$34,IF('DNSP Inputs General'!$B88='DNSP Inputs General'!$A$83,P$35,P$36))*'DNSP Inputs General'!$D88 -> 22.92227623 | Q40: =IF('DNSP Inputs General'!$B88='DNSP Inputs General'!$A$82,Q$34,IF('DNSP Inputs General'!$B88='DNSP Inputs General'!$A$83,Q$35,Q$36))*'DNSP Inputs General'!$D88 -> 25.16909823 | R40: =IF('DNSP Inputs General'!$B88='DNSP Inputs General'!$A$82,R$34,IF('DNSP Inputs General'!$B88='DNSP Inputs General'!$A$83,R$35,R$36))*'DNSP Inputs General'!$D88 -> 27.24504792 | S40: =IF('DNSP Inputs General'!$B88='DNSP Inputs General'!$A$82,S$34,IF('DNSP Inputs General'!$B88='DNSP Inputs General'!$A$83,S$35,S$36))*'DNSP Inputs General'!$D88 -> 28.92396506 | T40: =IF('DNSP Inputs General'!$B88='DNSP Inputs General'!$A$82,T$34,IF('DNSP Inputs General'!$B88='DNSP Inputs General'!$A$83,T$35,T$36))*'DNSP Inputs General'!$D88 -> 30.45808078 | V40: 3.552713679e-15 | W40: 2.131628207e-14 | X40: 0 | Y40: 1.065814104e-14 | Z40: 1.776356839e-14
A41: ='DNSP Inputs General'!A89 -> HP Sodium 100W | C41: ='DNSP Inputs General'!E89 -> 126.8 | D41: =IF('DNSP Inputs General'!$B89='DNSP Inputs General'!$A$82,D$34,IF('DNSP Inputs General'!$B89='DNSP Inputs General'!$A$83,D$35,D$36))*'DNSP Inputs General'!$D89 -> 117.9587719 | E41: =IF('DNSP Inputs General'!$B89='DNSP Inputs General'!$A$82,E$34,IF('DNSP Inputs General'!$B89='DNSP Inputs General'!$A$83,E$35,E$36))*'DNSP Inputs General'!$D89 -> 122.2515603 | F41: =IF('DNSP Inputs General'!$B89='DNSP Inputs General'!$A$82,F$34,IF('DNSP Inputs General'!$B89='DNSP Inputs General'!$A$83,F$35,F$36))*'DNSP Inputs General'!$D89 -> 126.4195986 | G41: =IF('DNSP Inputs General'!$B89='DNSP Inputs General'!$A$82,G$34,IF('DNSP Inputs General'!$B89='DNSP Inputs General'!$A$83,G$35,G$36))*'DNSP Inputs General'!$D89 -> 130.2389653 | H41: =IF('DNSP Inputs General'!$B89='DNSP Inputs General'!$A$82,H$34,IF('DNSP Inputs General'!$B89='DNSP Inputs General'!$A$83,H$35,H$36))*'DNSP Inputs General'!$D89 -> 133.9619808 | J41: =IF('DNSP Inputs General'!$B89='DNSP Inputs General'!$A$82,J$34,IF('DNSP Inputs General'!$B89='DNSP Inputs General'!$A$83,J$35,J$36))*'DNSP Inputs General'!$D89 -> 95.12428042 | K41: =IF('DNSP Inputs General'!$B89='DNSP Inputs General'!$A$82,K$34,IF('DNSP Inputs General'!$B89='DNSP Inputs General'!$A$83,K$35,K$36))*'DNSP Inputs General'!$D89 -> 97.18147939 | L41: =IF('DNSP Inputs General'!$B89='DNSP Inputs General'!$A$82,L$34,IF('DNSP Inputs General'!$B89='DNSP Inputs General'!$A$83,L$35,L$36))*'DNSP Inputs General'!$D89 -> 99.28413258 | M41: =IF('DNSP Inputs General'!$B89='DNSP Inputs General'!$A$82,M$34,IF('DNSP Inputs General'!$B89='DNSP Inputs General'!$A$83,M$35,M$36))*'DNSP Inputs General'!$D89 -> 101.4336625 | N41: =IF('DNSP Inputs General'!$B89='DNSP Inputs General'!$A$82,N$34,IF('DNSP Inputs General'!$B89='DNSP Inputs General'!$A$83,N$35,N$36))*'DNSP Inputs General'!$D89 -> 103.6309126 | P41: =IF('DNSP Inputs General'!$B89='DNSP Inputs General'!$A$82,P$34,IF('DNSP Inputs General'!$B89='DNSP Inputs General'!$A$83,P$35,P$36))*'DNSP Inputs General'!$D89 -> 22.8344915 | Q41: =IF('DNSP Inputs General'!$B89='DNSP Inputs General'!$A$82,Q$34,IF('DNSP Inputs General'!$B89='DNSP Inputs General'!$A$83,Q$35,Q$36))*'DNSP Inputs General'!$D89 -> 25.07008088 | R41: =IF('DNSP Inputs General'!$B89='DNSP Inputs General'!$A$82,R$34,IF('DNSP Inputs General'!$B89='DNSP Inputs General'!$A$83,R$35,R$36))*'DNSP Inputs General'!$D89 -> 27.13546603 | S41: =IF('DNSP Inputs General'!$B89='DNSP Inputs General'!$A$82,S$34,IF('DNSP Inputs General'!$B89='DNSP Inputs General'!$A$83,S$35,S$36))*'DNSP Inputs General'!$D89 -> 28.8053028 | T41: =IF('DNSP Inputs General'!$B89='DNSP Inputs General'!$A$82,T$34,IF('DNSP Inputs General'!$B89='DNSP Inputs General'!$A$83,T$35,T$36))*'DNSP Inputs General'!$D89 -> 30.33106821 | V41: 3.552713679e-15 | W41: 3.552713679e-15 | X41: 7.105427358e-15 | Y41: 1.065814104e-14 | Z41: 3.552713679e-15
A42: ='DNSP Inputs General'!A90 -> HP Sodium 400W | C42: ='DNSP Inputs General'!E90 -> 166.96 | D42: =IF('DNSP Inputs General'!$B90='DNSP Inputs General'!$A$82,D$34,IF('DNSP Inputs General'!$B90='DNSP Inputs General'!$A$83,D$35,D$36))*'DNSP Inputs General'!$D90 -> 154.8093206 | E42: =IF('DNSP Inputs General'!$B90='DNSP Inputs General'!$A$82,E$34,IF('DNSP Inputs General'!$B90='DNSP Inputs General'!$A$83,E$35,E$36))*'DNSP Inputs General'!$D90 -> 160.4797278 | F42: =IF('DNSP Inputs General'!$B90='DNSP Inputs General'!$A$82,F$34,IF('DNSP Inputs General'!$B90='DNSP Inputs General'!$A$83,F$35,F$36))*'DNSP Inputs General'!$D90 -> 165.9827986 | G42: =IF('DNSP Inputs General'!$B90='DNSP Inputs General'!$A$82,G$34,IF('DNSP Inputs General'!$B90='DNSP Inputs General'!$A$83,G$35,G$36))*'DNSP Inputs General'!$D90 -> 171.0202789 | H42: =IF('DNSP Inputs General'!$B90='DNSP Inputs General'!$A$82,H$34,IF('DNSP Inputs General'!$B90='DNSP Inputs General'!$A$83,H$35,H$36))*'DNSP Inputs General'!$D90 -> 175.9279983 | J42: =IF('DNSP Inputs General'!$B90='DNSP Inputs General'!$A$82,J$34,IF('DNSP Inputs General'!$B90='DNSP Inputs General'!$A$83,J$35,J$36))*'DNSP Inputs General'!$D90 -> 124.3891035 | K42: =IF('DNSP Inputs General'!$B90='DNSP Inputs General'!$A$82,K$34,IF('DNSP Inputs General'!$B90='DNSP Inputs General'!$A$83,K$35,K$36))*'DNSP Inputs General'!$D90 -> 127.0777469 | L42: =IF('DNSP Inputs General'!$B90='DNSP Inputs General'!$A$82,L$34,IF('DNSP Inputs General'!$B90='DNSP Inputs General'!$A$83,L$35,L$36))*'DNSP Inputs General'!$D90 -> 129.8258191 | M42: =IF('DNSP Inputs General'!$B90='DNSP Inputs General'!$A$82,M$34,IF('DNSP Inputs General'!$B90='DNSP Inputs General'!$A$83,M$35,M$36))*'DNSP Inputs General'!$D90 -> 132.6352038 | N42: =IF('DNSP Inputs General'!$B90='DNSP Inputs General'!$A$82,N$34,IF('DNSP Inputs General'!$B90='DNSP Inputs General'!$A$83,N$35,N$36))*'DNSP Inputs General'!$D90 -> 135.5069939 | P42: =IF('DNSP Inputs General'!$B90='DNSP Inputs General'!$A$82,P$34,IF('DNSP Inputs General'!$B90='DNSP Inputs General'!$A$83,P$35,P$36))*'DNSP Inputs General'!$D90 -> 30.42021706 | Q42: =IF('DNSP Inputs General'!$B90='DNSP Inputs General'!$A$82,Q$34,IF('DNSP Inputs General'!$B90='DNSP Inputs General'!$A$83,Q$35,Q$36))*'DNSP Inputs General'!$D90 -> 33.40198083 | R42: =IF('DNSP Inputs General'!$B90='DNSP Inputs General'!$A$82,R$34,IF('DNSP Inputs General'!$B90='DNSP Inputs General'!$A$83,R$35,R$36))*'DNSP Inputs General'!$D90 -> 36.15697948 | S42: =IF('DNSP Inputs General'!$B90='DNSP Inputs General'!$A$82,S$34,IF('DNSP Inputs General'!$B90='DNSP Inputs General'!$A$83,S$35,S$36))*'DNSP Inputs General'!$D90 -> 38.38507513 | T42: =IF('DNSP Inputs General'!$B90='DNSP Inputs General'!$A$82,T$34,IF('DNSP Inputs General'!$B90='DNSP Inputs General'!$A$83,T$35,T$36))*'DNSP Inputs General'!$D90 -> 40.42100439 | V42: 7.105427358e-15 | W42: 1.421085472e-14 | X42: 7.105427358e-15 | Y42: 7.105427358e-15 | Z42: 7.105427358e-15
A43: ='DNSP Inputs General'!A91 -> Metal Halide 70W | C43: ='DNSP Inputs General'!E91 -> 210.69 | D43: =IF('DNSP Inputs General'!$B91='DNSP Inputs General'!$A$82,D$34,IF('DNSP Inputs General'!$B91='DNSP Inputs General'!$A$83,D$35,D$36))*'DNSP Inputs General'!$D91 -> 175.207728 | E43: =IF('DNSP Inputs General'!$B91='DNSP Inputs General'!$A$82,E$34,IF('DNSP Inputs General'!$B91='DNSP Inputs General'!$A$83,E$35,E$36))*'DNSP Inputs General'!$D91 -> 184.4483561 | F43: =IF('DNSP Inputs General'!$B91='DNSP Inputs General'!$A$82,F$34,IF('DNSP Inputs General'!$B91='DNSP Inputs General'!$A$83,F$35,F$36))*'DNSP Inputs General'!$D91 -> 193.180062 | G43: =IF('DNSP Inputs General'!$B91='DNSP Inputs General'!$A$82,G$34,IF('DNSP Inputs General'!$B91='DNSP Inputs General'!$A$83,G$35,G$36))*'DNSP Inputs General'!$D91 -> 200.6635681 | H43: =IF('DNSP Inputs General'!$B91='DNSP Inputs General'!$A$82,H$34,IF('DNSP Inputs General'!$B91='DNSP Inputs General'!$A$83,H$35,H$36))*'DNSP Inputs General'!$D91 -> 207.7385559 | J43: =IF('DNSP Inputs General'!$B91='DNSP Inputs General'!$A$82,J$34,IF('DNSP Inputs General'!$B91='DNSP Inputs General'!$A$83,J$35,J$36))*'DNSP Inputs General'!$D91 -> 100.4128118 | K43: =IF('DNSP Inputs General'!$B91='DNSP Inputs General'!$A$82,K$34,IF('DNSP Inputs General'!$B91='DNSP Inputs General'!$A$83,K$35,K$36))*'DNSP Inputs General'!$D91 -> 102.5228792 | L43: =IF('DNSP Inputs General'!$B91='DNSP Inputs General'!$A$82,L$34,IF('DNSP Inputs General'!$B91='DNSP Inputs General'!$A$83,L$35,L$36))*'DNSP Inputs General'!$D91 -> 104.6805301 | M43: =IF('DNSP Inputs General'!$B91='DNSP Inputs General'!$A$82,M$34,IF('DNSP Inputs General'!$B91='DNSP Inputs General'!$A$83,M$35,M$36))*'DNSP Inputs General'!$D91 -> 106.8882668 | N43: =IF('DNSP Inputs General'!$B91='DNSP Inputs General'!$A$82,N$34,IF('DNSP Inputs General'!$B91='DNSP Inputs General'!$A$83,N$35,N$36))*'DNSP Inputs General'!$D91 -> 109.1465596 | P43: =IF('DNSP Inputs General'!$B91='DNSP Inputs General'!$A$82,P$34,IF('DNSP Inputs General'!$B91='DNSP Inputs General'!$A$83,P$35,P$36))*'DNSP Inputs General'!$D91 -> 74.79491623 | Q43: =IF('DNSP Inputs General'!$B91='DNSP Inputs General'!$A$82,Q$34,IF('DNSP Inputs General'!$B91='DNSP Inputs General'!$A$83,Q$35,Q$36))*'DNSP Inputs General'!$D91 -> 81.92547684 | R43: =IF('DNSP Inputs General'!$B91='DNSP Inputs General'!$A$82,R$34,IF('DNSP Inputs General'!$B91='DNSP Inputs General'!$A$83,R$35,R$36))*'DNSP Inputs General'!$D91 -> 88.49953186 | S43: =IF('DNSP Inputs General'!$B91='DNSP Inputs General'!$A$82,S$34,IF('DNSP Inputs General'!$B91='DNSP Inputs General'!$A$83,S$35,S$36))*'DNSP Inputs General'!$D91 -> 93.77530129 | T43: =IF('DNSP Inputs General'!$B91='DNSP Inputs General'!$A$82,T$34,IF('DNSP Inputs General'!$B91='DNSP Inputs General'!$A$83,T$35,T$36))*'DNSP Inputs General'!$D91 -> 98.59199634 | V43: 0 | W43: 1.421085472e-14 | X43: 0 | Y43: 2.842170943e-14 | Z43: 1.421085472e-14
A44: ='DNSP Inputs General'!A92 -> Metal Halide 100W | C44: ='DNSP Inputs General'!E92 -> 251.01 | D44: =IF('DNSP Inputs General'!$B92='DNSP Inputs General'!$A$82,D$34,IF('DNSP Inputs General'!$B92='DNSP Inputs General'!$A$83,D$35,D$36))*'DNSP Inputs General'!$D92 -> 233.4976373 | E44: =IF('DNSP Inputs General'!$B92='DNSP Inputs General'!$A$82,E$34,IF('DNSP Inputs General'!$B92='DNSP Inputs General'!$A$83,E$35,E$36))*'DNSP Inputs General'!$D92 -> 241.995148 | F44: =IF('DNSP Inputs General'!$B92='DNSP Inputs General'!$A$82,F$34,IF('DNSP Inputs General'!$B92='DNSP Inputs General'!$A$83,F$35,F$36))*'DNSP Inputs General'!$D92 -> 250.245718 | G44: =IF('DNSP Inputs General'!$B92='DNSP Inputs General'!$A$82,G$34,IF('DNSP Inputs General'!$B92='DNSP Inputs General'!$A$83,G$35,G$36))*'DNSP Inputs General'!$D92 -> 257.8060978 | H44: =IF('DNSP Inputs General'!$B92='DNSP Inputs General'!$A$82,H$34,IF('DNSP Inputs General'!$B92='DNSP Inputs General'!$A$83,H$35,H$36))*'DNSP Inputs General'!$D92 -> 265.1757516 | J44: =IF('DNSP Inputs General'!$B92='DNSP Inputs General'!$A$82,J$34,IF('DNSP Inputs General'!$B92='DNSP Inputs General'!$A$83,J$35,J$36))*'DNSP Inputs General'!$D92 -> 188.2971004 | K44: =IF('DNSP Inputs General'!$B92='DNSP Inputs General'!$A$82,K$34,IF('DNSP Inputs General'!$B92='DNSP Inputs General'!$A$83,K$35,K$36))*'DNSP Inputs General'!$D92 -> 192.3692952 | L44: =IF('DNSP Inputs General'!$B92='DNSP Inputs General'!$A$82,L$34,IF('DNSP Inputs General'!$B92='DNSP Inputs General'!$A$83,L$35,L$36))*'DNSP Inputs General'!$D92 -> 196.531466 | M44: =IF('DNSP Inputs General'!$B92='DNSP Inputs General'!$A$82,M$34,IF('DNSP Inputs General'!$B92='DNSP Inputs General'!$A$83,M$35,M$36))*'DNSP Inputs General'!$D92 -> 200.7864286 | N44: =IF('DNSP Inputs General'!$B92='DNSP Inputs General'!$A$82,N$34,IF('DNSP Inputs General'!$B92='DNSP Inputs General'!$A$83,N$35,N$36))*'DNSP Inputs General'!$D92 -> 205.1358525 | P44: =IF('DNSP Inputs General'!$B92='DNSP Inputs General'!$A$82,P$34,IF('DNSP Inputs General'!$B92='DNSP Inputs General'!$A$83,P$35,P$36))*'DNSP Inputs General'!$D92 -> 45.20053682 | Q44: =IF('DNSP Inputs General'!$B92='DNSP Inputs General'!$A$82,Q$34,IF('DNSP Inputs General'!$B92='DNSP Inputs General'!$A$83,Q$35,Q$36))*'DNSP Inputs General'!$D92 -> 49.62585279 | R44: =IF('DNSP Inputs General'!$B92='DNSP Inputs General'!$A$82,R$34,IF('DNSP Inputs General'!$B92='DNSP Inputs General'!$A$83,R$35,R$36))*'DNSP Inputs General'!$D92 -> 53.71425203 | S44: =IF('DNSP Inputs General'!$B92='DNSP Inputs General'!$A$82,S$34,IF('DNSP Inputs General'!$B92='DNSP Inputs General'!$A$83,S$35,S$36))*'DNSP Inputs General'!$D92 -> 57.01966912 | T44: =IF('DNSP Inputs General'!$B92='DNSP Inputs General'!$A$82,T$34,IF('DNSP Inputs General'!$B92='DNSP Inputs General'!$A$83,T$35,T$36))*'DNSP Inputs General'!$D92 -> 60.03989909 | V44: 1.421085472e-14 | W44: 2.842170943e-14 | X44: 1.421085472e-14 | Y44: 3.552713679e-14 | Z44: 7.105427358e-15
A45: ='DNSP Inputs General'!A93 -> Metal Halide 150W | C45: ='DNSP Inputs General'!E93 -> 285.17 | D45: =IF('DNSP Inputs General'!$B93='DNSP Inputs General'!$A$82,D$34,IF('DNSP Inputs General'!$B93='DNSP Inputs General'!$A$83,D$35,D$36))*'DNSP Inputs General'!$D93 -> 265.2743764 | E45: =IF('DNSP Inputs General'!$B93='DNSP Inputs General'!$A$82,E$34,IF('DNSP Inputs General'!$B93='DNSP Inputs General'!$A$83,E$35,E$36))*'DNSP Inputs General'!$D93 -> 274.9283151 | F45: =IF('DNSP Inputs General'!$B93='DNSP Inputs General'!$A$82,F$34,IF('DNSP Inputs General'!$B93='DNSP Inputs General'!$A$83,F$35,F$36))*'DNSP Inputs General'!$D93 -> 284.3017067 | G45: =IF('DNSP Inputs General'!$B93='DNSP Inputs General'!$A$82,G$34,IF('DNSP Inputs General'!$B93='DNSP Inputs General'!$A$83,G$35,G$36))*'DNSP Inputs General'!$D93 -> 292.89098 | H45: =IF('DNSP Inputs General'!$B93='DNSP Inputs General'!$A$82,H$34,IF('DNSP Inputs General'!$B93='DNSP Inputs General'!$A$83,H$35,H$36))*'DNSP Inputs General'!$D93 -> 301.2635715 | J45: =IF('DNSP Inputs General'!$B93='DNSP Inputs General'!$A$82,J$34,IF('DNSP Inputs General'!$B93='DNSP Inputs General'!$A$83,J$35,J$36))*'DNSP Inputs General'!$D93 -> 213.9224897 | K45: =IF('DNSP Inputs General'!$B93='DNSP Inputs General'!$A$82,K$34,IF('DNSP Inputs General'!$B93='DNSP Inputs General'!$A$83,K$35,K$36))*'DNSP Inputs General'!$D93 -> 218.5488703 | L45: =IF('DNSP Inputs General'!$B93='DNSP Inputs General'!$A$82,L$34,IF('DNSP Inputs General'!$B93='DNSP Inputs General'!$A$83,L$35,L$36))*'DNSP Inputs General'!$D93 -> 223.2774716 | M45: =IF('DNSP Inputs General'!$B93='DNSP Inputs General'!$A$82,M$34,IF('DNSP Inputs General'!$B93='DNSP Inputs General'!$A$83,M$35,M$36))*'DNSP Inputs General'!$D93 -> 228.111493 | N45: =IF('DNSP Inputs General'!$B93='DNSP Inputs General'!$A$82,N$34,IF('DNSP Inputs General'!$B93='DNSP Inputs General'!$A$83,N$35,N$36))*'DNSP Inputs General'!$D93 -> 233.0528308 | P45: =IF('DNSP Inputs General'!$B93='DNSP Inputs General'!$A$82,P$34,IF('DNSP Inputs General'!$B93='DNSP Inputs General'!$A$83,P$35,P$36))*'DNSP Inputs General'!$D93 -> 51.35188672 | Q45: =IF('DNSP Inputs General'!$B93='DNSP Inputs General'!$A$82,Q$34,IF('DNSP Inputs General'!$B93='DNSP Inputs General'!$A$83,Q$35,Q$36))*'DNSP Inputs General'!$D93 -> 56.3794448 | R45: =IF('DNSP Inputs General'!$B93='DNSP Inputs General'!$A$82,R$34,IF('DNSP Inputs General'!$B93='DNSP Inputs General'!$A$83,R$35,R$36))*'DNSP Inputs General'!$D93 -> 61.0242351 | S45: =IF('DNSP Inputs General'!$B93='DNSP Inputs General'!$A$82,S$34,IF('DNSP Inputs General'!$B93='DNSP Inputs General'!$A$83,S$35,S$36))*'DNSP Inputs General'!$D93 -> 64.77948705 | T45: =IF('DNSP Inputs General'!$B93='DNSP Inputs General'!$A$82,T$34,IF('DNSP Inputs General'!$B93='DNSP Inputs General'!$A$83,T$35,T$36))*'DNSP Inputs General'!$D93 -> 68.21074071 | V45: 2.842170943e-14 | W45: 1.421085472e-14 | X45: 1.421085472e-14 | Y45: 4.263256415e-14 | Z45: 0
A46: ='DNSP Inputs General'!A94 -> HP Sodium 50W | C46: ='DNSP Inputs General'!E94 -> 53.89 | D46: =IF('DNSP Inputs General'!$B94='DNSP Inputs General'!$A$82,D$34,IF('DNSP Inputs General'!$B94='DNSP Inputs General'!$A$83,D$35,D$36))*'DNSP Inputs General'!$D94 -> 50.13022458 | E46: =IF('DNSP Inputs General'!$B94='DNSP Inputs General'!$A$82,E$34,IF('DNSP Inputs General'!$B94='DNSP Inputs General'!$A$83,E$35,E$36))*'DNSP Inputs General'!$D94 -> 51.95457762 | F46: =IF('DNSP Inputs General'!$B94='DNSP Inputs General'!$A$82,F$34,IF('DNSP Inputs General'!$B94='DNSP Inputs General'!$A$83,F$35,F$36))*'DNSP Inputs General'!$D94 -> 53.72591429 | G46: =IF('DNSP Inputs General'!$B94='DNSP Inputs General'!$A$82,G$34,IF('DNSP Inputs General'!$B94='DNSP Inputs General'!$A$83,G$35,G$36))*'DNSP Inputs General'!$D94 -> 55.34907218 | H46: =IF('DNSP Inputs General'!$B94='DNSP Inputs General'!$A$82,H$34,IF('DNSP Inputs General'!$B94='DNSP Inputs General'!$A$83,H$35,H$36))*'DNSP Inputs General'!$D94 -> 56.93128263 | J46: =IF('DNSP Inputs General'!$B94='DNSP Inputs General'!$A$82,J$34,IF('DNSP Inputs General'!$B94='DNSP Inputs General'!$A$83,J$35,J$36))*'DNSP Inputs General'!$D94 -> 40.42600192 | K46: =IF('DNSP Inputs General'!$B94='DNSP Inputs General'!$A$82,K$34,IF('DNSP Inputs General'!$B94='DNSP Inputs General'!$A$83,K$35,K$36))*'DNSP Inputs General'!$D94 -> 41.30027218 | L46: =IF('DNSP Inputs General'!$B94='DNSP Inputs General'!$A$82,L$34,IF('DNSP Inputs General'!$B94='DNSP Inputs General'!$A$83,L$35,L$36))*'DNSP Inputs General'!$D94 -> 42.19385962 | M46: =IF('DNSP Inputs General'!$B94='DNSP Inputs General'!$A$82,M$34,IF('DNSP Inputs General'!$B94='DNSP Inputs General'!$A$83,M$35,M$36))*'DNSP Inputs General'!$D94 -> 43.10736879 | N46: =IF('DNSP Inputs General'!$B94='DNSP Inputs General'!$A$82,N$34,IF('DNSP Inputs General'!$B94='DNSP Inputs General'!$A$83,N$35,N$36))*'DNSP Inputs General'!$D94 -> 44.04115808 | P46: =IF('DNSP Inputs General'!$B94='DNSP Inputs General'!$A$82,P$34,IF('DNSP Inputs General'!$B94='DNSP Inputs General'!$A$83,P$35,P$36))*'DNSP Inputs General'!$D94 -> 9.704222658 | Q46: =IF('DNSP Inputs General'!$B94='DNSP Inputs General'!$A$82,Q$34,IF('DNSP Inputs General'!$B94='DNSP Inputs General'!$A$83,Q$35,Q$36))*'DNSP Inputs General'!$D94 -> 10.65430543 | R46: =IF('DNSP Inputs General'!$B94='DNSP Inputs General'!$A$82,R$34,IF('DNSP Inputs General'!$B94='DNSP Inputs General'!$A$83,R$35,R$36))*'DNSP Inputs General'!$D94 -> 11.53205467 | S46: =IF('DNSP Inputs General'!$B94='DNSP Inputs General'!$A$82,S$34,IF('DNSP Inputs General'!$B94='DNSP Inputs General'!$A$83,S$35,S$36))*'DNSP Inputs General'!$D94 -> 12.24170339 | T46: =IF('DNSP Inputs General'!$B94='DNSP Inputs General'!$A$82,T$34,IF('DNSP Inputs General'!$B94='DNSP Inputs General'!$A$83,T$35,T$36))*'DNSP Inputs General'!$D94 -> 12.89012455 | V46: 0 | W46: 1.776356839e-15 | X46: 0 | Y46: 7.105427358e-15 | Z46: 3.552713679e-15
A49: ='DNSP Inputs General'!A$108 -> Energy Efficient Lights
A50: ='DNSP Inputs General'!A109 -> T5 2X14W | C50: ='DNSP Inputs General'!E109 -> 45.39 | D50: ='Charges Summary'!K$89 -> 42.43921396 | E50: ='Charges Summary'!L$89 -> 42.45954107 | F50: ='Charges Summary'!M$89 -> 42.87845887 | G50: ='Charges Summary'!N$89 -> 43.34825213 | H50: ='Charges Summary'!O$89 -> 43.93715678 | J50: =SUM('Charges Summary'!K83,'Charges Summary'!K8) -> 27.12838214 | K50: =SUM('Charges Summary'!L83,'Charges Summary'!L8) -> 27.69910707 | L50: =SUM('Charges Summary'!M83,'Charges Summary'!M8) -> 28.28269175 | M50: =SUM('Charges Summary'!N83,'Charges Summary'!N8) -> 28.87980167 | N50: =SUM('Charges Summary'!O83,'Charges Summary'!O8) -> 29.4905683 | P50: =SUM('Charges Summary'!K85,'Charges Summary'!K11) -> 15.31083182 | Q50: =SUM('Charges Summary'!L85,'Charges Summary'!L11) -> 14.760434 | R50: =SUM('Charges Summary'!M85,'Charges Summary'!M11) -> 14.59576712 | S50: =SUM('Charges Summary'!N85,'Charges Summary'!N11) -> 14.46845046 | T50: =SUM('Charges Summary'!O85,'Charges Summary'!O11) -> 14.44658849 | V50: =ABS(D50-J50-P50) -> 0 | W50: =ABS(E50-K50-Q50) -> 0 | X50: =ABS(F50-L50-R50) -> 1.776356839e-15 | Y50: =ABS(G50-M50-S50) -> 1.776356839e-15 | Z50: =ABS(H50-N50-T50) -> 1.776356839e-15
A51: ='DNSP Inputs General'!A110 -> T5 2X24W | C51: ='DNSP Inputs General'!E110 -> 50.68 | D51: ='Charges Summary'!K$105 -> 49.68688188 | E51: ='Charges Summary'!L$105 -> 49.7216267 | F51: ='Charges Summary'!M$105 -> 50.20821814 | G51: ='Charges Summary'!N$105 -> 50.77275945 | H51: ='Charges Summary'!O$105 -> 51.47580742 | J51: =SUM('Charges Summary'!K99,'Charges Summary'!K8) -> 33.82042394 | K51: =SUM('Charges Summary'!L99,'Charges Summary'!L8) -> 34.53770458 | L51: =SUM('Charges Summary'!M99,'Charges Summary'!M8) -> 35.27105455 | M51: =SUM('Charges Summary'!N99,'Charges Summary'!N8) -> 36.02120961 | N51: =SUM('Charges Summary'!O99,'Charges Summary'!O8) -> 36.78837308 | P51: =SUM('Charges Summary'!K101,'Charges Summary'!K11) -> 15.86645794 | Q51: =SUM('Charges Summary'!L101,'Charges Summary'!L11) -> 15.18392212 | R51: =SUM('Charges Summary'!M101,'Charges Summary'!M11) -> 14.93716359 | S51: =SUM('Charges Summary'!N101,'Charges Summary'!N11) -> 14.75154983 | T51: =SUM('Charges Summary'!O101,'Charges Summary'!O11) -> 14.68743434 | V51: 0 | W51: 0 | X51: 7.105427358e-15 | Y51: 3.552713679e-15 | Z51: 3.552713679e-15
A52: ='DNSP Inputs General'!A111 -> LED 18W | C52: ='DNSP Inputs General'!E111 -> 22.92 | D52: ='Charges Summary'!K$121 -> 21.62640699 | E52: ='Charges Summary'!L$121 -> 20.50723743 | F52: ='Charges Summary'!M$121 -> 20.01252436 | G52: ='Charges Summary'!N$121 -> 19.66993013 | H52: ='Charges Summary'!O$121 -> 19.51071631 | J52: =SUM('Charges Summary'!K115,'Charges Summary'!K8) -> 3.683121259 | K52: =SUM('Charges Summary'!L115,'Charges Summary'!L8) -> 3.740394972 | L52: =SUM('Charges Summary'!M115,'Charges Summary'!M8) -> 3.799283861 | M52: =SUM('Charges Summary'!N115,'Charges Summary'!N8) -> 3.860207144 | N52: =SUM('Charges Summary'!O115,'Charges Summary'!O8) -> 3.923044653 | P52: =SUM('Charges Summary'!K117,'Charges Summary'!K11) -> 17.94328573 | Q52: =SUM('Charges Summary'!L117,'Charges Summary'!L11) -> 16.76684245 | R52: =SUM('Charges Summary'!M117,'Charges Summary'!M11) -> 16.2132405 | S52: =SUM('Charges Summary'!N117,'Charges Summary'!N11) -> 15.80972299 | T52: =SUM('Charges Summary'!O117,'Charges Summary'!O11) -> 15.58767166 | V52: 3.552713679e-15 | W52: 0 | X52: 0 | Y52: 1.776356839e-15 | Z52: 0
A53: ='DNSP Inputs General'!A112 -> Compact Fluorescent 32W | C53: ='DNSP Inputs General'!E112 -> 40.39 | D53: =IF('DNSP Inputs General'!$B112='DNSP Inputs General'!$A$109,D$50,D$51)*'DNSP Inputs General'!$D112 -> 37.76426199 | E53: =IF('DNSP Inputs General'!$B112='DNSP Inputs General'!$A$109,E$50,E$51)*'DNSP Inputs General'!$D112 -> 37.78234994 | F53: =IF('DNSP Inputs General'!$B112='DNSP Inputs General'!$A$109,F$50,F$51)*'DNSP Inputs General'!$D112 -> 38.15512126 | G53: =IF('DNSP Inputs General'!$B112='DNSP Inputs General'!$A$109,G$50,G$51)*'DNSP Inputs General'!$D112 -> 38.57316377 | H53: =IF('DNSP Inputs General'!$B112='DNSP Inputs General'!$A$109,H$50,H$51)*'DNSP Inputs General'!$D112 -> 39.09719679 | J53: =IF('DNSP Inputs General'!$B112='DNSP Inputs General'!$A$109,J$50,J$51)*'DNSP Inputs General'!$D112 -> 24.14001663 | K53: =IF('DNSP Inputs General'!$B112='DNSP Inputs General'!$A$109,K$50,K$51)*'DNSP Inputs General'!$D112 -> 24.64787254 | L53: =IF('DNSP Inputs General'!$B112='DNSP Inputs General'!$A$109,L$50,L$51)*'DNSP Inputs General'!$D112 -> 25.16717162 | M53: =IF('DNSP Inputs General'!$B112='DNSP Inputs General'!$A$109,M$50,M$51)*'DNSP Inputs General'!$D112 -> 25.69850605 | N53: =IF('DNSP Inputs General'!$B112='DNSP Inputs General'!$A$109,N$50,N$51)*'DNSP Inputs General'!$D112 -> 26.24199281 | P53: =IF('DNSP Inputs General'!$B112='DNSP Inputs General'!$A$109,P$50,P$51)*'DNSP Inputs General'!$D112 -> 13.62424536 | Q53: =IF('DNSP Inputs General'!$B112='DNSP Inputs General'!$A$109,Q$50,Q$51)*'DNSP Inputs General'!$D112 -> 13.1344774 | R53: =IF('DNSP Inputs General'!$B112='DNSP Inputs General'!$A$109,R$50,R$51)*'DNSP Inputs General'!$D112 -> 12.98794964 | S53: =IF('DNSP Inputs General'!$B112='DNSP Inputs General'!$A$109,S$50,S$51)*'DNSP Inputs General'!$D112 -> 12.87465773 | T53: =IF('DNSP Inputs General'!$B112='DNSP Inputs General'!$A$109,T$50,T$51)*'DNSP Inputs General'!$D112 -> 12.85520399 | V53: 3.552713679e-15 | W53: 0 | X53: 1.776356839e-15 | Y53: 1.776356839e-15 | Z53: 3.552713679e-15
A54: ='DNSP Inputs General'!A113 -> Compact Fluorescent 42W | C54: ='DNSP Inputs General'!E113 -> 40.39 | D54: =IF('DNSP Inputs General'!$B113='DNSP Inputs General'!$A$109,D$50,D$51)*'DNSP Inputs General'!$D113 -> 37.76426199 | E54: =IF('DNSP Inputs General'!$B113='DNSP Inputs General'!$A$109,E$50,E$51)*'DNSP Inputs General'!$D113 -> 37.78234994 | F54: =IF('DNSP Inputs General'!$B113='DNSP Inputs General'!$A$109,F$50,F$51)*'DNSP Inputs General'!$D113 -> 38.15512126 | G54: =IF('DNSP Inputs General'!$B113='DNSP Inputs General'!$A$109,G$50,G$51)*'DNSP Inputs General'!$D113 -> 38.57316377 | H54: =IF('DNSP Inputs General'!$B113='DNSP Inputs General'!$A$109,H$50,H$51)*'DNSP Inputs General'!$D113 -> 39.09719679 | J54: =IF('DNSP Inputs General'!$B113='DNSP Inputs General'!$A$109,J$50,J$51)*'DNSP Inputs General'!$D113 -> 24.14001663 | K54: =IF('DNSP Inputs General'!$B113='DNSP Inputs General'!$A$109,K$50,K$51)*'DNSP Inputs General'!$D113 -> 24.64787254 | L54: =IF('DNSP Inputs General'!$B113='DNSP Inputs General'!$A$109,L$50,L$51)*'DNSP Inputs General'!$D113 -> 25.16717162 | M54: =IF('DNSP Inputs General'!$B113='DNSP Inputs General'!$A$109,M$50,M$51)*'DNSP Inputs General'!$D113 -> 25.69850605 | N54: =IF('DNSP Inputs General'!$B113='DNSP Inputs General'!$A$109,N$50,N$51)*'DNSP Inputs General'!$D113 -> 26.24199281 | P54: =IF('DNSP Inputs General'!$B113='DNSP Inputs General'!$A$109,P$50,P$51)*'DNSP Inputs General'!$D113 -> 13.62424536 | Q54: =IF('DNSP Inputs General'!$B113='DNSP Inputs General'!$A$109,Q$50,Q$51)*'DNSP Inputs General'!$D113 -> 13.1344774 | R54: =IF('DNSP Inputs General'!$B113='DNSP Inputs General'!$A$109,R$50,R$51)*'DNSP Inputs General'!$D113 -> 12.98794964 | S54: =IF('DNSP Inputs General'!$B113='DNSP Inputs General'!$A$109,S$50,S$51)*'DNSP Inputs General'!$D113 -> 12.87465773 | T54: =IF('DNSP Inputs General'!$B113='DNSP Inputs General'!$A$109,T$50,T$51)*'DNSP Inputs General'!$D113 -> 12.85520399 | V54: 3.552713679e-15 | W54: 0 | X54: 1.776356839e-15 | Y54: 1.776356839e-15 | Z54: 3.552713679e-15

Sheet Cashflow Summary
A1: ='DNSP Inputs O & M'!$A$3 -> AusNet | E1: Check | F1: =SUM(C21,C27,C50,C184,C320) -> 2.630986273e-08
C2: ='DNSP Inputs General'!J$2 -> 2015 | D2: ='DNSP Inputs General'!K$2 -> 2016 | E2: ='DNSP Inputs General'!L$2 -> 2017 | F2: ='DNSP Inputs General'!M$2 -> 2018 | G2: ='DNSP Inputs General'!N$2 -> 2019 | H2: ='DNSP Inputs General'!O$2 -> 2020 | J2: =C2 -> 2015 | K2: =D2 -> 2016 | L2: 2017 | M2: 2018 | N2: 2019 | O2: 2020
A4: Public Lighting - Revenue | C4: Revenue - Nominal | J4: Revenue - Real 2015 $
C5: =C$2 -> 2015 | D5: =D$2 -> 2016 | E5: 2017 | F5: 2018 | G5: 2019 | H5: 2020 | J5: =J$2 -> 2015 | K5: 2016 | L5: 2017 | M5: 2018 | N5: 2019 | O5: 2020
A7: Total Revenue | C7: =C88+C224 -> 8795547.681 | D7: 7963543.634 | E7: 8266504.727 | F7: 8559042.324 | G7: 8817415.671 | H7: 9073607.068 | J7: =J88+J224 -> 8795547.681 | K7: 7792879.572 | L7: 7915987.871 | M7: 8020472.914 | N7: 8085515.579 | O7: 8142128.88 | S7: 7843184.631 | T7: 7978136.914 | U7: 8104328.82 | V7: 8221390.424 | W7: 8330726.998
S8: =+K7-S7 -> -50305.0598 | T8: =+L7-T7 -> -62149.04315 | U8: -83855.90674 | V8: -135874.8449 | W8: -188598.1179
A10: Public Lighting - O & M | D10: Forecast O & M - Nominal | K10: Forecast O & M - Real 2015 $
D11: =D$2 -> 2016 | E11: 2017 | F11: 2018 | G11: 2019 | H11: 2020 | K11: =K$2 -> 2016 | L11: 2017 | M11: 2018 | N11: 2019 | O11: 2020
A13: Total O & M | D13: =D135+D271 -> 5336956.341 | E13: =E135+E271 -> 5491522.271 | F13: =F135+F271 -> 5655294.792 | G13: =G135+G271 -> 5826470.495 | H13: =H135+H271 -> 6005206.742 | K13: =K135+K271 -> 5222581.799 | L13: =L135+L271 -> 5258670.397 | M13: =M135+M271 -> 5299440.87 | N13: =N135+N271 -> 5342837.37 | O13: =O135+O271 -> 5388724.339
A16: Public Lighting - Capital Charge | D16: Capital Charge - Nominal | K16: Capital Charge - Real 2015 $
D17: =D$2 -> 2016 | E17: 2017 | F17: 2018 | G17: 2019 | H17: 2020 | K17: =K$2 -> 2016 | L17: 2017 | M17: 2018 | N17: 2019 | O17: 2020
A19: Total Capital Charge | D19: =D182+D318 -> 2626587.294 | E19: =E182+E318 -> 2774982.456 | F19: =F182+F318 -> 2903747.532 | G19: =G182+G318 -> 2990945.177 | H19: =H182+H318 -> 3068400.325 | K19: =K182+K318 -> 2570297.772 | L19: =L182+L318 -> 2657317.475 | M19: =M182+M318 -> 2721032.044 | N19: =N182+N318 -> 2742678.209 | O19: =O182+O318 -> 2753404.541
A21: Check | C21: =SUM(D21:O21) -> 8.381903172e-09 | D21: =ABS(D7-SUM(D13,D19)) -> 9.313225746e-10 | E21: =ABS(E7-SUM(E13,E19)) -> 0 | F21: =ABS(F7-SUM(F13,F19)) -> 0 | G21: =ABS(G7-SUM(G13,G19)) -> 1.862645149e-09 | H21: =ABS(H7-SUM(H13,H19)) -> 0 | K21: =ABS(K7-SUM(K13,K19)) -> 9.313225746e-10 | L21: =ABS(L7-SUM(L13,L19)) -> 1.862645149e-09 | M21: =ABS(M7-SUM(M13,M19)) -> 9.313225746e-10 | N21: =ABS(N7-SUM(N13,N19)) -> 9.313225746e-10 | O21: =ABS(O7-SUM(O13,O19)) -> 9.313225746e-10
A23: Public Lighting - Capital Expenditure | D23: Forecast Capital Expenditure - Nominal | K23: Forecast Capital Expenditure - Real 2015 $
D24: =D$2 -> 2016 | E24: 2017 | F24: 2018 | G24: 2019 | H24: 2020 | K24: =K$2 -> 2016 | L24: 2017 | M24: 2018 | N24: 2019 | O24: 2020
A26: Total Capital Expenditure | D26: =K26*'Charges Summary'!K$4 -> 2044061.757 | E26: =L26*'Charges Summary'!L$4 -> 2051286.876 | F26: =M26*'Charges Summary'!M$4 -> 2049919.879 | G26: =N26*'Charges Summary'!N$4 -> 2055154.438 | H26: =O26*'Charges Summary'!O$4 -> 2067119.486 | K26: ='DNSP Inputs General'!K14 -> 2000256.147 | L26: ='DNSP Inputs General'!L14 -> 1964308.08 | M26: ='DNSP Inputs General'!M14 -> 1920930.665 | N26: ='DNSP Inputs General'!N14 -> 1884563.895 | O26: ='DNSP Inputs General'!O14 -> 1854913.172
A27: Check | C27: =SUM(D27:H27) -> 6.98491931e-10 | D27: =ABS(D26-D34) -> 2.328306437e-10 | E27: =ABS(E26-E34) -> 2.328306437e-10 | F27: =ABS(F26-F34) -> 0 | G27: =ABS(G26-G34) -> 0 | H27: =ABS(H26-H34) -> 2.328306437e-10
A30: Public Lighting - RAB | D30: RAB - Historical Cost ($)
D31: =D$2 -> 2016 | E31: 2017 | F31: 2018 | G31: 2019 | H31: 2020
A33: Opening RAB | D33: ='Total RAB'!N139 -> 17040447.19 | E33: =D36 -> 18087317.67 | F33: =E36 -> 19068122.22 | G33: 19974935.29 | H33: 20814924.9
A34: Capex | D34: ='Total RAB'!N140 -> 2044061.757 | E34: ='Total RAB'!O140 -> 2051286.876 | F34: ='Total RAB'!P140 -> 2049919.879 | G34: ='Total RAB'!Q140 -> 2055154.438 | H34: ='Total RAB'!R140 -> 2067119.486
A35: Depreciation | D35: ='Total RAB'!N141 -> 997191.2791 | E35: ='Total RAB'!O141 -> 1070482.319 | F35: ='Total RAB'!P141 -> 1143106.809 | G35: ='Total RAB'!Q141 -> 1215164.835 | H35: ='Total RAB'!R141 -> 1286974.984
A36: Closing RAB | D36: =D33+D34-D35 -> 18087317.67 | E36: =E33+E34-E35 -> 19068122.22 | F36: =F33+F34-F35 -> 19974935.29 | G36: =G33+G34-G35 -> 20814924.9 | H36: =H33+H34-H35 -> 21595069.4
A38: Average RAB | D38: =SUM(D33,D36)/2 -> 17563882.43 | E38: =SUM(E33,E36)/2 -> 18577719.95 | F38: =SUM(F33,F36)/2 -> 19521528.76 | G38: =SUM(G33,G36)/2 -> 20394930.1 | H38: =SUM(H33,H36)/2 -> 21204997.15
A40: =WACC!A$8 -> Nominal Pre Tax WACC | D40: =WACC!E$8 -> 0.09276969491 | E40: =WACC!F$8 -> 0.09174969491 | F40: =WACC!G$8 -> 0.09018969491 | G40: =WACC!H$8 -> 0.08706969491 | H40: =WACC!I$8 -> 0.08400969491
A42: Capital Charge | D42: Capital Charge - Nominal
D43: =D$2 -> 2016 | E43: 2017 | F43: 2018 | G43: 2019 | H43: 2020
A45: Depreciation | D45: =D35 -> 997191.2791 | E45: =E35 -> 1070482.319 | F45: =F35 -> 1143106.809 | G45: =G35 -> 1215164.835 | H45: =H35 -> 1286974.984
A46: Return | D46: =D40*D38 -> 1629396.014 | E46: =E40*E38 -> 1704500.137 | F46: =F40*F38 -> 1760640.723 | G46: =G40*G38 -> 1775780.341 | H46: =H40*H38 -> 1781425.341
D48: =SUM(D45:D47) -> 2626587.294 | E48: =SUM(E45:E47) -> 2774982.456 | F48: =SUM(F45:F47) -> 2903747.532 | G48: =SUM(G45:G47) -> 2990945.177 | H48: =SUM(H45:H47) -> 3068400.325
A50: Check | C50: =SUM(D50:H50) -> 1.862645149e-09 | D50: =ABS(D19-D48)*IF('DNSP Inputs General'!K76=0,0,1)*IF('DNSP Inputs General'!K116=0,0,1) -> 0 | E50: =ABS(E19-E48)*IF('DNSP Inputs General'!L76=0,0,1)*IF('DNSP Inputs General'!L116=0,0,1) -> 4.656612873e-10 | F50: =ABS(F19-F48)*IF('DNSP Inputs General'!M76=0,0,1)*IF('DNSP Inputs General'!M116=0,0,1) -> 0 | G50: =ABS(G19-G48)*IF('DNSP Inputs General'!N76=0,0,1)*IF('DNSP Inputs General'!N116=0,0,1) -> 9.313225746e-10 | H50: =ABS(H19-H48)*IF('DNSP Inputs General'!O76=0,0,1)*IF('DNSP Inputs General'!O116=0,0,1) -> 4.656612873e-10
A53: ='DNSP Inputs General'!$B$39 -> Central
A54: Public Lighting - Revenue | C54: Revenue - Nominal | J54: Revenue - Real 2015 $
C55: =C$2 -> 2015 | D55: =D$2 -> 2016 | E55: 2017 | F55: 2018 | G55: 2019 | H55: 2020 | J55: =J$2 -> 2015 | K55: 2016 | L55: 2017 | M55: 2018 | N55: 2019 | O55: 2020
A56: ='DNSP Inputs General'!A$41 -> Existing Lights
A57: ='DNSP Inputs General'!A$42 -> Mercury Vapour 80W | C57: =IF('PL Tariffs'!C7=0,"",'DNSP Inputs General'!J42*'PL Tariffs'!C7) -> 2357181.032 | D57: ='DNSP Inputs General'!K42*'PL Tariffs'!D7 -> 1721464.423 | E57: ='DNSP Inputs General'!L42*'PL Tariffs'!E7 -> 1566750.197 | F57: ='DNSP Inputs General'!M42*'PL Tariffs'!F7 -> 1417645.556 | G57: ='DNSP Inputs General'!N42*'PL Tariffs'!G7 -> 1270709.575 | H57: ='DNSP Inputs General'!O42*'PL Tariffs'!H7 -> 1134457.154 | J57: =C57 -> 2357181.032 | K57: =D57/'Charges Summary'!D$4 -> 1684572.29 | L57: =E57/'Charges Summary'!E$4 -> 1500316.756 | M57: =F57/'Charges Summary'!F$4 -> 1328441.588 | N57: =G57/'Charges Summary'!G$4 -> 1165232.812 | O57: =H57/'Charges Summary'!H$4 -> 1017996.072
A58: ='DNSP Inputs General'!A$43 -> HP Sodium 150W | C58: =IF('PL Tariffs'!C8=0,"",'DNSP Inputs General'!J43*'PL Tariffs'!C8) -> 1503944.395 | D58: ='DNSP Inputs General'!K43*'PL Tariffs'!D8 -> 1415745.732 | E58: ='DNSP Inputs General'!L43*'PL Tariffs'!E8 -> 1491641.079 | F58: ='DNSP Inputs General'!M43*'PL Tariffs'!F8 -> 1567304.24 | G58: ='DNSP Inputs General'!N43*'PL Tariffs'!G8 -> 1639136.371 | H58: ='DNSP Inputs General'!O43*'PL Tariffs'!H8 -> 1710547.482 | J58: 1503944.395 | K58: =D58/'Charges Summary'!D$4 -> 1385405.355 | L58: =E58/'Charges Summary'!E$4 -> 1428392.419 | M58: =F58/'Charges Summary'!F$4 -> 1468683.145 | N58: =G58/'Charges Summary'!G$4 -> 1503077.904 | O58: =H58/'Charges Summary'!H$4 -> 1534946.13
A59: ='DNSP Inputs General'!A$44 -> HP Sodium 250W | C59: =IF('PL Tariffs'!C9=0,"",'DNSP Inputs General'!J44*'PL Tariffs'!C9) -> 685809.6952 | D59: ='DNSP Inputs General'!K44*'PL Tariffs'!D9 -> 643969.927 | E59: ='DNSP Inputs General'!L44*'PL Tariffs'!E9 -> 678537.3913 | F59: ='DNSP Inputs General'!M44*'PL Tariffs'!F9 -> 712999.8871 | G59: ='DNSP Inputs General'!N44*'PL Tariffs'!G9 -> 745720.6181 | H59: ='DNSP Inputs General'!O44*'PL Tariffs'!H9 -> 778247.6349 | J59: 685809.6952 | K59: =D59/'Charges Summary'!D$4 -> 630169.221 | L59: =E59/'Charges Summary'!E$4 -> 649766.0059 | M59: =F59/'Charges Summary'!F$4 -> 668135.0629 | N59: =G59/'Charges Summary'!G$4 -> 683821.1898 | O59: =H59/'Charges Summary'!H$4 -> 698354.3035
A60: ='DNSP Inputs General'!A$45 -> Mercury Vapour 50W | C60: =IF('PL Tariffs'!C10=0,"",'DNSP Inputs General'!J45*'PL Tariffs'!C10) -> 20175.28629 | D60: ='DNSP Inputs General'!K45*'PL Tariffs'!D10 -> 17331.41986 | E60: ='DNSP Inputs General'!L45*'PL Tariffs'!E10 -> 18557.39123 | F60: ='DNSP Inputs General'!M45*'PL Tariffs'!F10 -> 19754.49358 | G60: ='DNSP Inputs General'!N45*'PL Tariffs'!G10 -> 20831.74336 | H60: ='DNSP Inputs General'!O45*'PL Tariffs'!H10 -> 21880.0589 | J60: 20175.28629 | K60: =D60/'Charges Summary'!D$4 -> 16959.99594 | L60: =E60/'Charges Summary'!E$4 -> 17770.51955 | M60: =F60/'Charges Summary'!F$4 -> 18511.46129 | N60: =G60/'Charges Summary'!G$4 -> 19102.57969 | O60: =H60/'Charges Summary'!H$4 -> 19633.89621
A61: ='DNSP Inputs General'!A$46 -> Mercury Vapour 125W | C61: =IF('PL Tariffs'!C11=0,"",'DNSP Inputs General'!J46*'PL Tariffs'!C11) -> 57657.63052 | D61: ='DNSP Inputs General'!K46*'PL Tariffs'!D11 -> 49533.06839 | E61: ='DNSP Inputs General'!L46*'PL Tariffs'!E11 -> 53036.8854 | F61: ='DNSP Inputs General'!M46*'PL Tariffs'!F11 -> 56458.19498 | G61: ='DNSP Inputs General'!N46*'PL Tariffs'!G11 -> 59536.9668 | H61: ='DNSP Inputs General'!O46*'PL Tariffs'!H11 -> 62533.04476 | J61: 57657.63052 | K61: =D61/'Charges Summary'!D$4 -> 48471.54163 | L61: =E61/'Charges Summary'!E$4 -> 50788.01204 | M61: =F61/'Charges Summary'!F$4 -> 52905.618 | N61: =G61/'Charges Summary'!G$4 -> 54595.02994 | O61: =H61/'Charges Summary'!H$4 -> 56113.5286
A62: ='DNSP Inputs General'!A$47 -> Mercury Vapour 250W | C62: =IF('PL Tariffs'!C12=0,"",'DNSP Inputs General'!J47*'PL Tariffs'!C12) -> 89428.13104 | D62: ='DNSP Inputs General'!K47*'PL Tariffs'!D12 -> 83972.31393 | E62: ='DNSP Inputs General'!L47*'PL Tariffs'!E12 -> 88479.83802 | F62: ='DNSP Inputs General'!M47*'PL Tariffs'!F12 -> 92973.67445 | G62: ='DNSP Inputs General'!N47*'PL Tariffs'!G12 -> 97240.38845 | H62: ='DNSP Inputs General'!O47*'PL Tariffs'!H12 -> 101481.8425 | J62: 89428.13104 | K62: =D62/'Charges Summary'!D$4 -> 82172.73112 | L62: =E62/'Charges Summary'!E$4 -> 84728.11034 | M62: =F62/'Charges Summary'!F$4 -> 87123.39645 | N62: =G62/'Charges Summary'!G$4 -> 89168.83415 | O62: =H62/'Charges Summary'!H$4 -> 91063.92139
A63: ='DNSP Inputs General'!A$48 -> Mercury Vapour 400W | C63: =IF('PL Tariffs'!C13=0,"",'DNSP Inputs General'!J48*'PL Tariffs'!C13) -> 17346.03469 | D63: ='DNSP Inputs General'!K48*'PL Tariffs'!D13 -> 16288.63327 | E63: ='DNSP Inputs General'!L48*'PL Tariffs'!E13 -> 17162.98582 | F63: ='DNSP Inputs General'!M48*'PL Tariffs'!F13 -> 18034.68329 | G63: ='DNSP Inputs General'!N48*'PL Tariffs'!G13 -> 18862.3244 | H63: ='DNSP Inputs General'!O48*'PL Tariffs'!H13 -> 19685.06569 | J63: 17346.03469 | K63: =D63/'Charges Summary'!D$4 -> 15939.55697 | L63: =E63/'Charges Summary'!E$4 -> 16435.23981 | M63: =F63/'Charges Summary'!F$4 -> 16899.86839 | N63: =G63/'Charges Summary'!G$4 -> 17296.63469 | O63: =H63/'Charges Summary'!H$4 -> 17664.23658
A64: ='DNSP Inputs General'!A$49 -> HP Sodium 100W | C64: =IF('PL Tariffs'!C14=0,"",'DNSP Inputs General'!J49*'PL Tariffs'!C14) -> 310395.8942 | D64: ='DNSP Inputs General'!K49*'PL Tariffs'!D14 -> 292212.7654 | E64: ='DNSP Inputs General'!L49*'PL Tariffs'!E14 -> 307877.7174 | F64: ='DNSP Inputs General'!M49*'PL Tariffs'!F14 -> 323494.746 | G64: ='DNSP Inputs General'!N49*'PL Tariffs'!G14 -> 338321.0423 | H64: ='DNSP Inputs General'!O49*'PL Tariffs'!H14 -> 353060.4392 | J64: 310395.8942 | K64: =D64/'Charges Summary'!D$4 -> 285950.4505 | L64: =E64/'Charges Summary'!E$4 -> 294823.067 | M64: =F64/'Charges Summary'!F$4 -> 303139.1539 | N64: =G64/'Charges Summary'!G$4 -> 310238.3012 | O64: =H64/'Charges Summary'!H$4 -> 316815.9672
A65: ='DNSP Inputs General'!A50 -> HP Sodium 400W | C65: =IF('PL Tariffs'!C15=0,"",'DNSP Inputs General'!J50*'PL Tariffs'!C15) -> 40930.22663 | D65: ='DNSP Inputs General'!K50*'PL Tariffs'!D15 -> 38435.19703 | E65: ='DNSP Inputs General'!L50*'PL Tariffs'!E15 -> 40498.34818 | F65: ='DNSP Inputs General'!M50*'PL Tariffs'!F15 -> 42555.23432 | G65: ='DNSP Inputs General'!N50*'PL Tariffs'!G15 -> 44508.16363 | H65: ='DNSP Inputs General'!O50*'PL Tariffs'!H15 -> 46449.53115 | J65: 40930.22663 | K65: =D65/'Charges Summary'!D$4 -> 37611.50507 | L65: =E65/'Charges Summary'!E$4 -> 38781.13467 | M65: =F65/'Charges Summary'!F$4 -> 39877.48761 | N65: =G65/'Charges Summary'!G$4 -> 40813.71048 | O65: =H65/'Charges Summary'!H$4 -> 41681.11604
A66: ='DNSP Inputs General'!A51 -> Metal Halide 70W | C66: =IF('PL Tariffs'!C16=0,"",'DNSP Inputs General'!J51*'PL Tariffs'!C16) -> 6603.606946 | D66: ='DNSP Inputs General'!K51*'PL Tariffs'!D16 -> 5673.713529 | E66: ='DNSP Inputs General'!L51*'PL Tariffs'!E16 -> 6075.054585 | F66: ='DNSP Inputs General'!M51*'PL Tariffs'!F16 -> 6466.944914 | G66: ='DNSP Inputs General'!N51*'PL Tariffs'!G16 -> 6819.599613 | H66: ='DNSP Inputs General'!O51*'PL Tariffs'!H16 -> 7162.78223 | J66: =C66 -> 6603.606946 | K66: =D66/'Charges Summary'!D$4 -> 5552.122056 | L66: =E66/'Charges Summary'!E$4 -> 5817.459737 | M66: =F66/'Charges Summary'!F$4 -> 6060.018697 | N66: =G66/'Charges Summary'!G$4 -> 6253.530622 | O66: =H66/'Charges Summary'!H$4 -> 6427.465464
A67: ='DNSP Inputs General'!A52 -> Metal Halide 100W | C67: =IF('PL Tariffs'!C17=0,"",'DNSP Inputs General'!J52*'PL Tariffs'!C17) -> 8628.556946 | D67: ='DNSP Inputs General'!K52*'PL Tariffs'!D17 -> 8122.536123 | E67: ='DNSP Inputs General'!L52*'PL Tariffs'!E17 -> 8557.969319 | F67: ='DNSP Inputs General'!M52*'PL Tariffs'!F17 -> 8992.070406 | G67: ='DNSP Inputs General'!N52*'PL Tariffs'!G17 -> 9404.191785 | H67: ='DNSP Inputs General'!O52*'PL Tariffs'!H17 -> 9813.897649 | J67: 8628.556946 | K67: =D67/'Charges Summary'!D$4 -> 7948.464745 | L67: =E67/'Charges Summary'!E$4 -> 8195.093764 | M67: =F67/'Charges Summary'!F$4 -> 8426.253125 | N67: =G67/'Charges Summary'!G$4 -> 8623.585641 | O67: =H67/'Charges Summary'!H$4 -> 8806.422725
A68: ='DNSP Inputs General'!A53 -> Metal Halide 150W | C68: =IF('PL Tariffs'!C18=0,"",'DNSP Inputs General'!J53*'PL Tariffs'!C18) -> 9274.087369 | D68: ='DNSP Inputs General'!K53*'PL Tariffs'!D18 -> 8730.209481 | E68: ='DNSP Inputs General'!L53*'PL Tariffs'!E18 -> 9198.218852 | F68: ='DNSP Inputs General'!M53*'PL Tariffs'!F18 -> 9664.796453 | G68: ='DNSP Inputs General'!N53*'PL Tariffs'!G18 -> 10107.74997 | H68: ='DNSP Inputs General'!O53*'PL Tariffs'!H18 -> 10548.10727 | J68: 9274.087369 | K68: =D68/'Charges Summary'!D$4 -> 8543.115256 | L68: =E68/'Charges Summary'!E$4 -> 8808.195395 | M68: =F68/'Charges Summary'!F$4 -> 9056.64854 | N68: =G68/'Charges Summary'!G$4 -> 9268.744144 | O68: =H68/'Charges Summary'!H$4 -> 9465.259865
A69: ='DNSP Inputs General'!A54 -> HP Sodium 50W | C69: =IF('PL Tariffs'!C19=0,"",'DNSP Inputs General'!J54*'PL Tariffs'!C19) -> 4476.586327 | D69: ='DNSP Inputs General'!K54*'PL Tariffs'!D19 -> 4214.057388 | E69: ='DNSP Inputs General'!L54*'PL Tariffs'!E19 -> 4439.964722 | F69: ='DNSP Inputs General'!M54*'PL Tariffs'!F19 -> 4665.180943 | G69: ='DNSP Inputs General'!N54*'PL Tariffs'!G19 -> 4878.99386 | H69: ='DNSP Inputs General'!O54*'PL Tariffs'!H19 -> 5091.553583 | J69: 4476.586327 | K69: =D69/'Charges Summary'!D$4 -> 4123.747322 | L69: =E69/'Charges Summary'!E$4 -> 4251.701058 | M69: =F69/'Charges Summary'!F$4 -> 4371.628972 | N69: =G69/'Charges Summary'!G$4 -> 4474.007162 | O69: =H69/'Charges Summary'!H$4 -> 4568.864969
A81: ='DNSP Inputs General'!A$68 -> Energy Efficient Lights
A82: ='DNSP Inputs General'!A$69 -> T5 2X14W | C82: =IF('PL Tariffs'!C23=0,"",'DNSP Inputs General'!J69*'PL Tariffs'!C23) -> 450652.4969 | D82: ='DNSP Inputs General'!K69*'PL Tariffs'!D23 -> 541565.1269 | E82: ='DNSP Inputs General'!L69*'PL Tariffs'!E23 -> 632730.2717 | F82: ='DNSP Inputs General'!M69*'PL Tariffs'!F23 -> 720695.5827 | G82: ='DNSP Inputs General'!N69*'PL Tariffs'!G23 -> 801745.4616 | H82: ='DNSP Inputs General'!O69*'PL Tariffs'!H23 -> 878677.9421 | J82: =C82 -> 450652.4969 | K82: =D82/'Charges Summary'!D$4 -> 529959.0243 | L82: =E82/'Charges Summary'!E$4 -> 605901.2027 | M82: =F82/'Charges Summary'!F$4 -> 675346.5144 | N82: =G82/'Charges Summary'!G$4 -> 735195.6243 | O82: =H82/'Charges Summary'!H$4 -> 788474.6381
A83: ='DNSP Inputs General'!A$70 -> T5 2X24W | C83: =IF('PL Tariffs'!C24=0,"",'DNSP Inputs General'!J70*'PL Tariffs'!C24) -> 41330.12258 | D83: ='DNSP Inputs General'!K70*'PL Tariffs'!D24 -> 56829.35092 | E83: ='DNSP Inputs General'!L70*'PL Tariffs'!E24 -> 70268.68921 | F83: ='DNSP Inputs General'!M70*'PL Tariffs'!F24 -> 82940.6341 | G83: ='DNSP Inputs General'!N70*'PL Tariffs'!G24 -> 94575.44114 | H83: ='DNSP Inputs General'!O70*'PL Tariffs'!H24 -> 105511.8216 | J83: =C83 -> 41330.12258 | K83: =D83/'Charges Summary'!D$4 -> 55611.45994 | L83: =E83/'Charges Summary'!E$4 -> 67289.15181 | M83: =F83/'Charges Summary'!F$4 -> 77721.6754 | N83: =G83/'Charges Summary'!G$4 -> 86725.09397 | O83: =H83/'Charges Summary'!H$4 -> 94680.19092
A84: ='DNSP Inputs General'!A$71 -> LED 18W | C84: =IF('PL Tariffs'!C25=0,"",'DNSP Inputs General'!J71*'PL Tariffs'!C25) -> 63501.44308 | D84: ='DNSP Inputs General'!K71*'PL Tariffs'!D25 -> 119542.7057 | E84: ='DNSP Inputs General'!L71*'PL Tariffs'!E25 -> 159719.7409 | F84: ='DNSP Inputs General'!M71*'PL Tariffs'!F25 -> 195678.5117 | G84: ='DNSP Inputs General'!N71*'PL Tariffs'!G25 -> 226770.7518 | H84: ='DNSP Inputs General'!O71*'PL Tariffs'!H25 -> 255093.4648 | J84: =C84 -> 63501.44308 | K84: =D84/'Charges Summary'!D$4 -> 116980.8256 | L84: =E84/'Charges Summary'!E$4 -> 152947.2943 | M84: =F84/'Charges Summary'!F$4 -> 183365.6317 | N84: =G84/'Charges Summary'!G$4 -> 207947.3754 | O84: =H84/'Charges Summary'!H$4 -> 228906.0846
A85: ='DNSP Inputs General'!A$72 -> Compact Fluorescent 32W | C85: =IF('PL Tariffs'!C26=0,"",'DNSP Inputs General'!J72*'PL Tariffs'!C26) -> 144444.6442 | D85: ='DNSP Inputs General'!K72*'PL Tariffs'!D26 -> 192017.5184 | E85: ='DNSP Inputs General'!L72*'PL Tariffs'!E26 -> 237349.2274 | F85: ='DNSP Inputs General'!M72*'PL Tariffs'!F26 -> 280157.4163 | G85: ='DNSP Inputs General'!N72*'PL Tariffs'!G26 -> 319336.757 | H85: ='DNSP Inputs General'!O72*'PL Tariffs'!H26 -> 356142.5134 | J85: 144444.6442 | K85: =D85/'Charges Summary'!D$4 -> 187902.4546 | L85: =E85/'Charges Summary'!E$4 -> 227285.1304 | M85: =F85/'Charges Summary'!F$4 -> 262528.7835 | N85: =G85/'Charges Summary'!G$4 -> 292829.829 | O85: =H85/'Charges Summary'!H$4 -> 319581.6418
A86: ='DNSP Inputs General'!A$73 -> Compact Fluorescent 42W | C86: =IF('PL Tariffs'!C30=0,"",'DNSP Inputs General'!J73*'PL Tariffs'!C30) ->  | D86: ='DNSP Inputs General'!K73*'PL Tariffs'!D27 -> 62747.75567 | E86: ='DNSP Inputs General'!L73*'PL Tariffs'!E27 -> 77561.3155 | F86: ='DNSP Inputs General'!M73*'PL Tariffs'!F27 -> 91550.2359 | G86: ='DNSP Inputs General'!N73*'PL Tariffs'!G27 -> 104353.3161 | H86: ='DNSP Inputs General'!O73*'PL Tariffs'!H27 -> 116380.7532 | K86: =D86/'Charges Summary'!D$4 -> 61403.02933 | L86: =E86/'Charges Summary'!E$4 -> 74272.5557 | M86: =F86/'Charges Summary'!F$4 -> 85789.52638 | N86: =G86/'Charges Summary'!G$4 -> 95691.34481 | O86: =H86/'Charges Summary'!H$4 -> 104433.3399
A88: Total Revenue | C88: =IF(SUM(C57:C86)=0,0,SUM(C57:C86)) -> 5811779.869 | D88: =SUM(D57:D86) -> 5278396.455 | E88: =SUM(E57:E86) -> 5468442.285 | F88: =SUM(F57:F86) -> 5652032.082 | G88: =SUM(G57:G86) -> 5812859.456 | H88: =SUM(H57:H86) -> 5972765.089 | J88: =IF(SUM(J57:J86)=0,0,SUM(J57:J86)) -> 5811779.869 | K88: =SUM(K57:K86) -> 5165276.891 | L88: =SUM(L57:L86) -> 5236569.049 | M88: =SUM(M57:M86) -> 5296383.463 | N88: =SUM(N57:N86) -> 5330356.131 | O88: =SUM(O57:O86) -> 5359613.08
A91: Public Lighting - O & M | D91: Forecast O & M - Nominal | K91: Forecast O & M - Real 2015 $
D92: =D$2 -> 2016 | E92: 2017 | F92: 2018 | G92: 2019 | H92: 2020 | K92: =K$2 -> 2016 | L92: 2017 | M92: 2018 | N92: 2019 | O92: 2020
A94: Unit cost
A95: ='DNSP Inputs General'!A$42 -> Mercury Vapour 80W | D95: =SUM('Charges Summary'!D25,'Charges Summary'!D8) -> 21.89540867 | E95: =SUM('Charges Summary'!E25,'Charges Summary'!E8) -> 22.35153148 | F95: =SUM('Charges Summary'!F25,'Charges Summary'!F8) -> 22.81800426 | G95: =SUM('Charges Summary'!G25,'Charges Summary'!G8) -> 23.29543752 | H95: =SUM('Charges Summary'!H25,'Charges Summary'!H8) -> 23.78390657
A96: ='DNSP Inputs General'!A$43 -> HP Sodium 150W | D96: =SUM('Charges Summary'!D49,'Charges Summary'!D8) -> 76.45435988 | E96: =SUM('Charges Summary'!E49,'Charges Summary'!E8) -> 78.10439001 | F96: =SUM('Charges Summary'!F49,'Charges Summary'!F8) -> 79.79093109 | G96: =SUM('Charges Summary'!G49,'Charges Summary'!G8) -> 81.51518189 | H96: =SUM('Charges Summary'!H49,'Charges Summary'!H8) -> 83.27779694
A97: ='DNSP Inputs General'!A$44 -> HP Sodium 250W | D97: =SUM('Charges Summary'!D65,'Charges Summary'!D8) -> 77.18982091 | E97: =SUM('Charges Summary'!E65,'Charges Summary'!E8) -> 78.85529351 | F97: =SUM('Charges Summary'!F65,'Charges Summary'!F8) -> 80.55762549 | G97: =SUM('Charges Summary'!G65,'Charges Summary'!G8) -> 82.29803415 | H97: =SUM('Charges Summary'!H65,'Charges Summary'!H8) -> 84.0771774
A99: ='DNSP Inputs General'!A$69 -> T5 2X14W | D99: =SUM('Charges Summary'!D83,'Charges Summary'!D8) -> 22.52824586 | E99: =SUM('Charges Summary'!E83,'Charges Summary'!E8) -> 22.9982278 | F99: =SUM('Charges Summary'!F83,'Charges Summary'!F8) -> 23.47886323 | G99: =SUM('Charges Summary'!G83,'Charges Summary'!G8) -> 23.9707693 | H99: =SUM('Charges Summary'!H83,'Charges Summary'!H8) -> 24.47402812
A100: ='DNSP Inputs General'!A$70 -> T5 2X24W | D100: =SUM('Charges Summary'!D99,'Charges Summary'!D8) -> 28.43872245 | E100: =SUM('Charges Summary'!E99,'Charges Summary'!E8) -> 29.03814383 | F100: =SUM('Charges Summary'!F99,'Charges Summary'!F8) -> 29.65105342 | G100: =SUM('Charges Summary'!G99,'Charges Summary'!G8) -> 30.27813046 | H100: =SUM('Charges Summary'!H99,'Charges Summary'!H8) -> 30.91952049
A101: ='DNSP Inputs General'!A$71 -> LED 18W | D101: =SUM('Charges Summary'!D115,'Charges Summary'!D8) -> 3.364740962 | E101: =SUM('Charges Summary'!E115,'Charges Summary'!E8) -> 3.415042147 | F101: =SUM('Charges Summary'!F115,'Charges Summary'!F8) -> 3.466805809 | G101: =SUM('Charges Summary'!G115,'Charges Summary'!G8) -> 3.520447823 | H101: =SUM('Charges Summary'!H115,'Charges Summary'!H8) -> 3.575844603
A103: ='DNSP Inputs General'!A$41 -> Existing Lights
A104: ='DNSP Inputs General'!A$42 -> Mercury Vapour 80W | D104: =D95*'DNSP Inputs General'!K42 -> 927974.8592 | E104: =E95*'DNSP Inputs General'!L42 -> 817835.7214 | F104: =F95*'DNSP Inputs General'!M42 -> 720553.4762 | G104: =G95*'DNSP Inputs General'!N42 -> 634501.1857 | H104: =H95*'DNSP Inputs General'!O42 -> 558479.8417 | K104: =D104/'Charges Summary'!D$4 -> 908087.7378 | L104: =E104/'Charges Summary'!E$4 -> 783157.7995 | M104: =F104/'Charges Summary'!F$4 -> 675213.3498 | N104: =G104/'Charges Summary'!G$4 -> 581833.6588 | O104: =H104/'Charges Summary'!H$4 -> 501147.4284
A105: ='DNSP Inputs General'!A$43 -> HP Sodium 150W | D105: =D96*'DNSP Inputs General'!K43 -> 1116731.094 | E105: =E96*'DNSP Inputs General'!L43 -> 1158720.01 | F105: =F96*'DNSP Inputs General'!M43 -> 1201897.522 | G105: =G96*'DNSP Inputs General'!N43 -> 1245966.853 | H105: =H96*'DNSP Inputs General'!O43 -> 1291043.971 | K105: =D105/'Charges Summary'!D$4 -> 1092798.801 | L105: =E105/'Charges Summary'!E$4 -> 1109587.891 | M105: =F105/'Charges Summary'!F$4 -> 1126269.29 | N105: =G105/'Charges Summary'!G$4 -> 1142543.89 | O105: =H105/'Charges Summary'!H$4 -> 1158508.003
A106: ='DNSP Inputs General'!A$44 -> HP Sodium 250W | D106: =D97*'DNSP Inputs General'!K44 -> 507902.8324 | E106: =E97*'DNSP Inputs General'!L44 -> 526997.0252 | F106: =F97*'DNSP Inputs General'!M44 -> 546631.6988 | G106: =G97*'DNSP Inputs General'!N44 -> 566671.9259 | H106: =H97*'DNSP Inputs General'!O44 -> 587170.4333 | K106: =D106/'Charges Summary'!D$4 -> 497018.1353 | L106: =E106/'Charges Summary'!E$4 -> 504651.2641 | M106: =F106/'Charges Summary'!F$4 -> 512235.431 | N106: =G106/'Charges Summary'!G$4 -> 519634.6476 | O106: =H106/'Charges Summary'!H$4 -> 526892.7018
A107: ='DNSP Inputs General'!A$45 -> Mercury Vapour 50W | D107: =IF('DNSP Inputs General'!$B45='DNSP Inputs General'!$A$42,D$95,IF('DNSP Inputs General'!$B45='DNSP Inputs General'!$A$43,D$96,D$97))*'DNSP Inputs General'!$D45*'DNSP Inputs General'!K45 -> 9342.697812 | E107: =IF('DNSP Inputs General'!$B45='DNSP Inputs General'!$A$42,E$95,IF('DNSP Inputs General'!$B45='DNSP Inputs General'!$A$43,E$96,E$97))*'DNSP Inputs General'!$D45*'DNSP Inputs General'!L45 -> 9686.864871 | F107: =IF('DNSP Inputs General'!$B45='DNSP Inputs General'!$A$42,F$95,IF('DNSP Inputs General'!$B45='DNSP Inputs General'!$A$43,F$96,F$97))*'DNSP Inputs General'!$D45*'DNSP Inputs General'!M45 -> 10040.71079 | G107: =IF('DNSP Inputs General'!$B45='DNSP Inputs General'!$A$42,G$95,IF('DNSP Inputs General'!$B45='DNSP Inputs General'!$A$43,G$96,G$97))*'DNSP Inputs General'!$D45*'DNSP Inputs General'!N45 -> 10401.87792 | H107: =IF('DNSP Inputs General'!$B45='DNSP Inputs General'!$A$42,H$95,IF('DNSP Inputs General'!$B45='DNSP Inputs General'!$A$43,H$96,H$97))*'DNSP Inputs General'!$D45*'DNSP Inputs General'!O45 -> 10771.29426 | K107: =D107/'Charges Summary'!D$4 -> 9142.477554 | L107: =E107/'Charges Summary'!E$4 -> 9276.121815 | M107: =F107/'Charges Summary'!F$4 -> 9408.908829 | N107: =G107/'Charges Summary'!G$4 -> 9538.457648 | O107: =H107/'Charges Summary'!H$4 -> 9665.534933
A108: ='DNSP Inputs General'!A$46 -> Mercury Vapour 125W | D108: =IF('DNSP Inputs General'!$B46='DNSP Inputs General'!$A$42,D$95,IF('DNSP Inputs General'!$B46='DNSP Inputs General'!$A$43,D$96,D$97))*'DNSP Inputs General'!$D46*'DNSP Inputs General'!K46 -> 26701.36051 | E108: =IF('DNSP Inputs General'!$B46='DNSP Inputs General'!$A$42,E$95,IF('DNSP Inputs General'!$B46='DNSP Inputs General'!$A$43,E$96,E$97))*'DNSP Inputs General'!$D46*'DNSP Inputs General'!L46 -> 27684.98739 | F108: =IF('DNSP Inputs General'!$B46='DNSP Inputs General'!$A$42,F$95,IF('DNSP Inputs General'!$B46='DNSP Inputs General'!$A$43,F$96,F$97))*'DNSP Inputs General'!$D46*'DNSP Inputs General'!M46 -> 28696.27637 | G108: =IF('DNSP Inputs General'!$B46='DNSP Inputs General'!$A$42,G$95,IF('DNSP Inputs General'!$B46='DNSP Inputs General'!$A$43,G$96,G$97))*'DNSP Inputs General'!$D46*'DNSP Inputs General'!N46 -> 29728.48933 | H108: =IF('DNSP Inputs General'!$B46='DNSP Inputs General'!$A$42,H$95,IF('DNSP Inputs General'!$B46='DNSP Inputs General'!$A$43,H$96,H$97))*'DNSP Inputs General'!$D46*'DNSP Inputs General'!O46 -> 30784.27848 | K108: =D108/'Charges Summary'!D$4 -> 26129.13251 | L108: =E108/'Charges Summary'!E$4 -> 26511.0868 | M108: =F108/'Charges Summary'!F$4 -> 26890.5911 | N108: =G108/'Charges Summary'!G$4 -> 27260.84065 | O108: =H108/'Charges Summary'!H$4 -> 27624.02658
A109: ='DNSP Inputs General'!A$47 -> Mercury Vapour 250W | D109: =IF('DNSP Inputs General'!$B47='DNSP Inputs General'!$A$42,D$95,IF('DNSP Inputs General'!$B47='DNSP Inputs General'!$A$43,D$96,D$97))*'DNSP Inputs General'!$D47*'DNSP Inputs General'!K47 -> 66229.45312 | E109: =IF('DNSP Inputs General'!$B47='DNSP Inputs General'!$A$42,E$95,IF('DNSP Inputs General'!$B47='DNSP Inputs General'!$A$43,E$96,E$97))*'DNSP Inputs General'!$D47*'DNSP Inputs General'!L47 -> 68719.2954 | F109: =IF('DNSP Inputs General'!$B47='DNSP Inputs General'!$A$42,F$95,IF('DNSP Inputs General'!$B47='DNSP Inputs General'!$A$43,F$96,F$97))*'DNSP Inputs General'!$D47*'DNSP Inputs General'!M47 -> 71279.61523 | G109: =IF('DNSP Inputs General'!$B47='DNSP Inputs General'!$A$42,G$95,IF('DNSP Inputs General'!$B47='DNSP Inputs General'!$A$43,G$96,G$97))*'DNSP Inputs General'!$D47*'DNSP Inputs General'!N47 -> 73892.81838 | H109: =IF('DNSP Inputs General'!$B47='DNSP Inputs General'!$A$42,H$95,IF('DNSP Inputs General'!$B47='DNSP Inputs General'!$A$43,H$96,H$97))*'DNSP Inputs General'!$D47*'DNSP Inputs General'!O47 -> 76565.78031 | K109: =D109/'Charges Summary'!D$4 -> 64810.11167 | L109: =E109/'Charges Summary'!E$4 -> 65805.4555 | M109: =F109/'Charges Summary'!F$4 -> 66794.4148 | N109: =G109/'Charges Summary'!G$4 -> 67759.25696 | O109: =H109/'Charges Summary'!H$4 -> 68705.69184
A110: ='DNSP Inputs General'!A$48 -> Mercury Vapour 400W | D110: =IF('DNSP Inputs General'!$B48='DNSP Inputs General'!$A$42,D$95,IF('DNSP Inputs General'!$B48='DNSP Inputs General'!$A$43,D$96,D$97))*'DNSP Inputs General'!$D48*'DNSP Inputs General'!K48 -> 12846.93993 | E110: =IF('DNSP Inputs General'!$B48='DNSP Inputs General'!$A$42,E$95,IF('DNSP Inputs General'!$B48='DNSP Inputs General'!$A$43,E$96,E$97))*'DNSP Inputs General'!$D48*'DNSP Inputs General'!L48 -> 13329.91017 | F110: =IF('DNSP Inputs General'!$B48='DNSP Inputs General'!$A$42,F$95,IF('DNSP Inputs General'!$B48='DNSP Inputs General'!$A$43,F$96,F$97))*'DNSP Inputs General'!$D48*'DNSP Inputs General'!M48 -> 13826.55137 | G110: =IF('DNSP Inputs General'!$B48='DNSP Inputs General'!$A$42,G$95,IF('DNSP Inputs General'!$B48='DNSP Inputs General'!$A$43,G$96,G$97))*'DNSP Inputs General'!$D48*'DNSP Inputs General'!N48 -> 14333.45067 | H110: =IF('DNSP Inputs General'!$B48='DNSP Inputs General'!$A$42,H$95,IF('DNSP Inputs General'!$B48='DNSP Inputs General'!$A$43,H$96,H$97))*'DNSP Inputs General'!$D48*'DNSP Inputs General'!O48 -> 14851.94176 | K110: =D110/'Charges Summary'!D$4 -> 12571.62143 | L110: =E110/'Charges Summary'!E$4 -> 12764.69447 | M110: =F110/'Charges Summary'!F$4 -> 12956.52907 | N110: =G110/'Charges Summary'!G$4 -> 13143.68552 | O110: =H110/'Charges Summary'!H$4 -> 13327.2714
A111: ='DNSP Inputs General'!A$49 -> HP Sodium 100W | D111: =IF('DNSP Inputs General'!$B49='DNSP Inputs General'!$A$42,D$95,IF('DNSP Inputs General'!$B49='DNSP Inputs General'!$A$43,D$96,D$97))*'DNSP Inputs General'!$D49*'DNSP Inputs General'!K49 -> 230495.543 | E111: =IF('DNSP Inputs General'!$B49='DNSP Inputs General'!$A$42,E$95,IF('DNSP Inputs General'!$B49='DNSP Inputs General'!$A$43,E$96,E$97))*'DNSP Inputs General'!$D49*'DNSP Inputs General'!L49 -> 239162.1396 | F111: =IF('DNSP Inputs General'!$B49='DNSP Inputs General'!$A$42,F$95,IF('DNSP Inputs General'!$B49='DNSP Inputs General'!$A$43,F$96,F$97))*'DNSP Inputs General'!$D49*'DNSP Inputs General'!M49 -> 248074.0649 | G111: =IF('DNSP Inputs General'!$B49='DNSP Inputs General'!$A$42,G$95,IF('DNSP Inputs General'!$B49='DNSP Inputs General'!$A$43,G$96,G$97))*'DNSP Inputs General'!$D49*'DNSP Inputs General'!N49 -> 257170.0634 | H111: =IF('DNSP Inputs General'!$B49='DNSP Inputs General'!$A$42,H$95,IF('DNSP Inputs General'!$B49='DNSP Inputs General'!$A$43,H$96,H$97))*'DNSP Inputs General'!$D49*'DNSP Inputs General'!O49 -> 266474.0712 | K111: =D111/'Charges Summary'!D$4 -> 225555.8694 | L111: =E111/'Charges Summary'!E$4 -> 229021.1715 | M111: =F111/'Charges Summary'!F$4 -> 232464.2458 | N111: =G111/'Charges Summary'!G$4 -> 235823.3559 | O111: =H111/'Charges Summary'!H$4 -> 239118.3809
A112: ='DNSP Inputs General'!A50 -> HP Sodium 400W | D112: =IF('DNSP Inputs General'!$B50='DNSP Inputs General'!$A$42,D$95,IF('DNSP Inputs General'!$B50='DNSP Inputs General'!$A$43,D$96,D$97))*'DNSP Inputs General'!$D50*'DNSP Inputs General'!K50 -> 30314.06377 | E112: =IF('DNSP Inputs General'!$B50='DNSP Inputs General'!$A$42,E$95,IF('DNSP Inputs General'!$B50='DNSP Inputs General'!$A$43,E$96,E$97))*'DNSP Inputs General'!$D50*'DNSP Inputs General'!L50 -> 31453.69628 | F112: =IF('DNSP Inputs General'!$B50='DNSP Inputs General'!$A$42,F$95,IF('DNSP Inputs General'!$B50='DNSP Inputs General'!$A$43,F$96,F$97))*'DNSP Inputs General'!$D50*'DNSP Inputs General'!M50 -> 32625.58726 | G112: =IF('DNSP Inputs General'!$B50='DNSP Inputs General'!$A$42,G$95,IF('DNSP Inputs General'!$B50='DNSP Inputs General'!$A$43,G$96,G$97))*'DNSP Inputs General'!$D50*'DNSP Inputs General'!N50 -> 33821.68361 | H112: =IF('DNSP Inputs General'!$B50='DNSP Inputs General'!$A$42,H$95,IF('DNSP Inputs General'!$B50='DNSP Inputs General'!$A$43,H$96,H$97))*'DNSP Inputs General'!$D50*'DNSP Inputs General'!O50 -> 35045.13231 | K112: =D112/'Charges Summary'!D$4 -> 29664.41313 | L112: =E112/'Charges Summary'!E$4 -> 30119.99466 | M112: =F112/'Charges Summary'!F$4 -> 30572.65393 | N112: =G112/'Charges Summary'!G$4 -> 31014.27446 | O112: =H112/'Charges Summary'!H$4 -> 31447.46976
A113: ='DNSP Inputs General'!A51 -> Metal Halide 70W | D113: =IF('DNSP Inputs General'!$B51='DNSP Inputs General'!$A$42,D$95,IF('DNSP Inputs General'!$B51='DNSP Inputs General'!$A$43,D$96,D$97))*'DNSP Inputs General'!$D51*'DNSP Inputs General'!K51 -> 3058.479421 | E113: =IF('DNSP Inputs General'!$B51='DNSP Inputs General'!$A$42,E$95,IF('DNSP Inputs General'!$B51='DNSP Inputs General'!$A$43,E$96,E$97))*'DNSP Inputs General'!$D51*'DNSP Inputs General'!L51 -> 3171.147934 | F113: =IF('DNSP Inputs General'!$B51='DNSP Inputs General'!$A$42,F$95,IF('DNSP Inputs General'!$B51='DNSP Inputs General'!$A$43,F$96,F$97))*'DNSP Inputs General'!$D51*'DNSP Inputs General'!M51 -> 3286.984973 | G113: =IF('DNSP Inputs General'!$B51='DNSP Inputs General'!$A$42,G$95,IF('DNSP Inputs General'!$B51='DNSP Inputs General'!$A$43,G$96,G$97))*'DNSP Inputs General'!$D51*'DNSP Inputs General'!N51 -> 3405.218727 | H113: =IF('DNSP Inputs General'!$B51='DNSP Inputs General'!$A$42,H$95,IF('DNSP Inputs General'!$B51='DNSP Inputs General'!$A$43,H$96,H$97))*'DNSP Inputs General'!$D51*'DNSP Inputs General'!O51 -> 3526.152991 | K113: =D113/'Charges Summary'!D$4 -> 2992.934163 | L113: =E113/'Charges Summary'!E$4 -> 3036.684719 | M113: =F113/'Charges Summary'!F$4 -> 3080.154642 | N113: =G113/'Charges Summary'!G$4 -> 3122.56449 | O113: =H113/'Charges Summary'!H$4 -> 3164.165242
A114: ='DNSP Inputs General'!A52 -> Metal Halide 100W | D114: =IF('DNSP Inputs General'!$B52='DNSP Inputs General'!$A$42,D$95,IF('DNSP Inputs General'!$B52='DNSP Inputs General'!$A$43,D$96,D$97))*'DNSP Inputs General'!$D52*'DNSP Inputs General'!K52 -> 6407.004059 | E114: =IF('DNSP Inputs General'!$B52='DNSP Inputs General'!$A$42,E$95,IF('DNSP Inputs General'!$B52='DNSP Inputs General'!$A$43,E$96,E$97))*'DNSP Inputs General'!$D52*'DNSP Inputs General'!L52 -> 6647.906418 | F114: =IF('DNSP Inputs General'!$B52='DNSP Inputs General'!$A$42,F$95,IF('DNSP Inputs General'!$B52='DNSP Inputs General'!$A$43,F$96,F$97))*'DNSP Inputs General'!$D52*'DNSP Inputs General'!M52 -> 6895.628091 | G114: =IF('DNSP Inputs General'!$B52='DNSP Inputs General'!$A$42,G$95,IF('DNSP Inputs General'!$B52='DNSP Inputs General'!$A$43,G$96,G$97))*'DNSP Inputs General'!$D52*'DNSP Inputs General'!N52 -> 7148.466382 | H114: =IF('DNSP Inputs General'!$B52='DNSP Inputs General'!$A$42,H$95,IF('DNSP Inputs General'!$B52='DNSP Inputs General'!$A$43,H$96,H$97))*'DNSP Inputs General'!$D52*'DNSP Inputs General'!O52 -> 7407.086635 | K114: =D114/'Charges Summary'!D$4 -> 6269.69768 | L114: =E114/'Charges Summary'!E$4 -> 6366.02147 | M114: =F114/'Charges Summary'!F$4 -> 6461.727403 | N114: =G114/'Charges Summary'!G$4 -> 6555.099414 | O114: =H114/'Charges Summary'!H$4 -> 6646.690072
A115: ='DNSP Inputs General'!A53 -> Metal Halide 150W | D115: =IF('DNSP Inputs General'!$B53='DNSP Inputs General'!$A$42,D$95,IF('DNSP Inputs General'!$B53='DNSP Inputs General'!$A$43,D$96,D$97))*'DNSP Inputs General'!$D53*'DNSP Inputs General'!K53 -> 6886.332881 | E115: =IF('DNSP Inputs General'!$B53='DNSP Inputs General'!$A$42,E$95,IF('DNSP Inputs General'!$B53='DNSP Inputs General'!$A$43,E$96,E$97))*'DNSP Inputs General'!$D53*'DNSP Inputs General'!L53 -> 7145.25793 | F115: =IF('DNSP Inputs General'!$B53='DNSP Inputs General'!$A$42,F$95,IF('DNSP Inputs General'!$B53='DNSP Inputs General'!$A$43,F$96,F$97))*'DNSP Inputs General'!$D53*'DNSP Inputs General'!M53 -> 7411.512467 | G115: =IF('DNSP Inputs General'!$B53='DNSP Inputs General'!$A$42,G$95,IF('DNSP Inputs General'!$B53='DNSP Inputs General'!$A$43,G$96,G$97))*'DNSP Inputs General'!$D53*'DNSP Inputs General'!N53 -> 7683.266413 | H115: =IF('DNSP Inputs General'!$B53='DNSP Inputs General'!$A$42,H$95,IF('DNSP Inputs General'!$B53='DNSP Inputs General'!$A$43,H$96,H$97))*'DNSP Inputs General'!$D53*'DNSP Inputs General'!O53 -> 7961.234889 | K115: =D115/'Charges Summary'!D$4 -> 6738.754165 | L115: =E115/'Charges Summary'!E$4 -> 6842.284252 | M115: =F115/'Charges Summary'!F$4 -> 6945.150256 | N115: =G115/'Charges Summary'!G$4 -> 7045.507731 | O115: =H115/'Charges Summary'!H$4 -> 7143.950584
A116: ='DNSP Inputs General'!A54 -> HP Sodium 50W | D116: =IF('DNSP Inputs General'!$B54='DNSP Inputs General'!$A$42,D$95,IF('DNSP Inputs General'!$B54='DNSP Inputs General'!$A$43,D$96,D$97))*'DNSP Inputs General'!$D54*'DNSP Inputs General'!K54 -> 3324.021264 | E116: =IF('DNSP Inputs General'!$B54='DNSP Inputs General'!$A$42,E$95,IF('DNSP Inputs General'!$B54='DNSP Inputs General'!$A$43,E$96,E$97))*'DNSP Inputs General'!$D54*'DNSP Inputs General'!L54 -> 3449.003949 | F116: =IF('DNSP Inputs General'!$B54='DNSP Inputs General'!$A$42,F$95,IF('DNSP Inputs General'!$B54='DNSP Inputs General'!$A$43,F$96,F$97))*'DNSP Inputs General'!$D54*'DNSP Inputs General'!M54 -> 3577.524565 | G116: =IF('DNSP Inputs General'!$B54='DNSP Inputs General'!$A$42,G$95,IF('DNSP Inputs General'!$B54='DNSP Inputs General'!$A$43,G$96,G$97))*'DNSP Inputs General'!$D54*'DNSP Inputs General'!N54 -> 3708.699736 | H116: =IF('DNSP Inputs General'!$B54='DNSP Inputs General'!$A$42,H$95,IF('DNSP Inputs General'!$B54='DNSP Inputs General'!$A$43,H$96,H$97))*'DNSP Inputs General'!$D54*'DNSP Inputs General'!O54 -> 3842.87465 | K116: =D116/'Charges Summary'!D$4 -> 3252.785267 | L116: =E116/'Charges Summary'!E$4 -> 3302.759065 | M116: =F116/'Charges Summary'!F$4 -> 3352.412312 | N116: =G116/'Charges Summary'!G$4 -> 3400.854696 | O116: =H116/'Charges Summary'!H$4 -> 3448.372895
A128: ='DNSP Inputs General'!A$68 -> Energy Efficient Lights
A129: ='DNSP Inputs General'!A$69 -> T5 2X14W | D129: =SUM('Charges Summary'!D83,'Charges Summary'!D8)*'DNSP Inputs General'!$D69*'DNSP Inputs General'!K69 -> 323166.8882 | E129: =SUM('Charges Summary'!E83,'Charges Summary'!E8)*'DNSP Inputs General'!$D69*'DNSP Inputs General'!L69 -> 386468.8462 | F129: =SUM('Charges Summary'!F83,'Charges Summary'!F8)*'DNSP Inputs General'!$D69*'DNSP Inputs General'!M69 -> 445873.2996 | G129: =SUM('Charges Summary'!G83,'Charges Summary'!G8)*'DNSP Inputs General'!$D69*'DNSP Inputs General'!N69 -> 501793.885 | H129: =SUM('Charges Summary'!H83,'Charges Summary'!H8)*'DNSP Inputs General'!$D69*'DNSP Inputs General'!O69 -> 554722.0816 | K129: =D129/'Charges Summary'!D$4 -> 316241.2058 | L129: =E129/'Charges Summary'!E$4 -> 370081.7697 | M129: =F129/'Charges Summary'!F$4 -> 417817.156 | N129: =G129/'Charges Summary'!G$4 -> 460141.8857 | O129: =H129/'Charges Summary'!H$4 -> 497775.4323
A130: ='DNSP Inputs General'!A70 -> T5 2X24W | D130: =SUM('Charges Summary'!D99,'Charges Summary'!D8)*'DNSP Inputs General'!$D70*'DNSP Inputs General'!K70 -> 36548.79573 | E130: =SUM('Charges Summary'!E99,'Charges Summary'!E8)*'DNSP Inputs General'!$D70*'DNSP Inputs General'!L70 -> 46252.10773 | F130: =SUM('Charges Summary'!F99,'Charges Summary'!F8)*'DNSP Inputs General'!$D70*'DNSP Inputs General'!M70 -> 55309.29702 | G130: =SUM('Charges Summary'!G99,'Charges Summary'!G8)*'DNSP Inputs General'!$D70*'DNSP Inputs General'!N70 -> 63790.82171 | H130: =SUM('Charges Summary'!H99,'Charges Summary'!H8)*'DNSP Inputs General'!$D70*'DNSP Inputs General'!O70 -> 71774.50274 | K130: =D130/'Charges Summary'!D$4 -> 35765.53061 | L130: =E130/'Charges Summary'!E$4 -> 44290.92294 | M130: =F130/'Charges Summary'!F$4 -> 51829.01332 | N130: =G130/'Charges Summary'!G$4 -> 58495.78855 | O130: =H130/'Charges Summary'!H$4 -> 64406.27716
A131: ='DNSP Inputs General'!A71 -> LED 18W | D131: =SUM('Charges Summary'!D115,'Charges Summary'!D8)*'DNSP Inputs General'!$D71*'DNSP Inputs General'!K71 -> 18953.52123 | E131: =SUM('Charges Summary'!E115,'Charges Summary'!E8)*'DNSP Inputs General'!$D71*'DNSP Inputs General'!L71 -> 27169.06567 | F131: =SUM('Charges Summary'!F115,'Charges Summary'!F8)*'DNSP Inputs General'!$D71*'DNSP Inputs General'!M71 -> 34689.22295 | G131: =SUM('Charges Summary'!G115,'Charges Summary'!G8)*'DNSP Inputs General'!$D71*'DNSP Inputs General'!N71 -> 41600.61417 | H131: =SUM('Charges Summary'!H115,'Charges Summary'!H8)*'DNSP Inputs General'!$D71*'DNSP Inputs General'!O71 -> 47984.74388 | K131: =D131/'Charges Summary'!D$4 -> 18547.3346 | L131: =E131/'Charges Summary'!E$4 -> 26017.04123 | M131: =F131/'Charges Summary'!F$4 -> 32506.43735 | N131: =G131/'Charges Summary'!G$4 -> 38147.50563 | O131: =H131/'Charges Summary'!H$4 -> 43058.72692
A132: ='DNSP Inputs General'!A72 -> Compact Fluorescent 32W | D132: =IF('DNSP Inputs General'!$B72='DNSP Inputs General'!$A$69,D$99,D$100)*'DNSP Inputs General'!$D72*'DNSP Inputs General'!K72 -> 114582.1635 | E132: =IF('DNSP Inputs General'!$B72='DNSP Inputs General'!$A$69,E$99,E$100)*'DNSP Inputs General'!$D72*'DNSP Inputs General'!L72 -> 144971.8563 | F132: =IF('DNSP Inputs General'!$B72='DNSP Inputs General'!$A$69,F$99,F$100)*'DNSP Inputs General'!$D72*'DNSP Inputs General'!M72 -> 173325.2077 | G132: =IF('DNSP Inputs General'!$B72='DNSP Inputs General'!$A$69,G$99,G$100)*'DNSP Inputs General'!$D72*'DNSP Inputs General'!N72 -> 199865.468 | H132: =IF('DNSP Inputs General'!$B72='DNSP Inputs General'!$A$69,H$99,H$100)*'DNSP Inputs General'!$D72*'DNSP Inputs General'!O72 -> 224837.9149 | K132: =D132/'Charges Summary'!D$4 -> 112126.5911 | L132: =E132/'Charges Summary'!E$4 -> 138824.7505 | M132: =F132/'Charges Summary'!F$4 -> 162418.8877 | N132: =G132/'Charges Summary'!G$4 -> 183275.3967 | O132: =H132/'Charges Summary'!H$4 -> 201756.5083
A133: ='DNSP Inputs General'!A73 -> Compact Fluorescent 42W | D133: =IF('DNSP Inputs General'!$B73='DNSP Inputs General'!$A$69,D$99,D$100)*'DNSP Inputs General'!$D73*'DNSP Inputs General'!K73 -> 37443.3211 | E133: =IF('DNSP Inputs General'!$B73='DNSP Inputs General'!$A$69,E$99,E$100)*'DNSP Inputs General'!$D73*'DNSP Inputs General'!L73 -> 47374.10782 | F133: =IF('DNSP Inputs General'!$B73='DNSP Inputs General'!$A$69,F$99,F$100)*'DNSP Inputs General'!$D73*'DNSP Inputs General'!M73 -> 56639.45601 | G133: =IF('DNSP Inputs General'!$B73='DNSP Inputs General'!$A$69,G$99,G$100)*'DNSP Inputs General'!$D73*'DNSP Inputs General'!N73 -> 65312.31972 | H133: =IF('DNSP Inputs General'!$B73='DNSP Inputs General'!$A$69,H$99,H$100)*'DNSP Inputs General'!$D73*'DNSP Inputs General'!O73 -> 73472.85115 | K133: =D133/'Charges Summary'!D$4 -> 36640.8857 | L133: =E133/'Charges Summary'!E$4 -> 45365.3479 | M133: =F133/'Charges Summary'!F$4 -> 53075.47335 | N133: =G133/'Charges Summary'!G$4 -> 59890.99281 | O133: =H133/'Charges Summary'!H$4 -> 65930.27655
A135: Total O & M | D135: =SUM(D104:D133) -> 3478909.372 | E135: =SUM(E104:E133) -> 3566238.951 | F135: =SUM(F104:F133) -> 3660633.637 | G135: =SUM(G104:G133) -> 3760797.108 | H135: =SUM(H104:H133) -> 3866716.188 | K135: =SUM(K104:K133) -> 3404354.019 | L135: =SUM(L104:L133) -> 3415023.062 | M135: =SUM(M104:M133) -> 3430291.827 | N135: =SUM(N104:N133) -> 3448627.664 | O135: =SUM(O104:O133) -> 3469766.909
A138: Public Lighting - Capital Charge | D138: Capital Charge - Nominal | K138: Capital Charge - Real 2015 $
D139: =D$2 -> 2016 | E139: 2017 | F139: 2018 | G139: 2019 | H139: 2020 | K139: =K$2 -> 2016 | L139: 2017 | M139: 2018 | N139: 2019 | O139: 2020
A141: Unit cost
A142: ='DNSP Inputs General'!A$42 -> Mercury Vapour 80W | D142: =SUM('Charges Summary'!D27,'Charges Summary'!D11) -> 18.72225105 | E142: =SUM('Charges Summary'!E27,'Charges Summary'!E11) -> 20.46790698 | F142: =SUM('Charges Summary'!F27,'Charges Summary'!F11) -> 22.07504448 | G142: =SUM('Charges Summary'!G27,'Charges Summary'!G11) -> 23.35811675 | H142: =SUM('Charges Summary'!H27,'Charges Summary'!H11) -> 24.52906901
A143: ='DNSP Inputs General'!A$43 -> HP Sodium 150W | D143: =SUM('Charges Summary'!D51,'Charges Summary'!D11) -> 20.47133178 | E143: =SUM('Charges Summary'!E51,'Charges Summary'!E11) -> 22.4407939 | F143: =SUM('Charges Summary'!F51,'Charges Summary'!F11) -> 24.25842607 | G143: =SUM('Charges Summary'!G51,'Charges Summary'!G11) -> 25.72242165 | H143: =SUM('Charges Summary'!H51,'Charges Summary'!H11) -> 27.05975085
A144: ='DNSP Inputs General'!A$44 -> HP Sodium 250W | D144: =SUM('Charges Summary'!D67,'Charges Summary'!D11) -> 20.67914174 | E144: =SUM('Charges Summary'!E67,'Charges Summary'!E11) -> 22.67519449 | F144: =SUM('Charges Summary'!F67,'Charges Summary'!F11) -> 24.51783574 | G144: =SUM('Charges Summary'!G67,'Charges Summary'!G11) -> 26.00332699 | H144: =SUM('Charges Summary'!H67,'Charges Summary'!H11) -> 27.36042359
A146: ='DNSP Inputs General'!A$69 -> T5 2X14W | D146: =SUM('Charges Summary'!D85,'Charges Summary'!D11) -> 15.22473185 | E146: =SUM('Charges Summary'!E85,'Charges Summary'!E11) -> 14.65467765 | F146: =SUM('Charges Summary'!F85,'Charges Summary'!F11) -> 14.4716331 | G146: =SUM('Charges Summary'!G85,'Charges Summary'!G11) -> 14.32873189 | H146: =SUM('Charges Summary'!H85,'Charges Summary'!H11) -> 14.29275146
A147: ='DNSP Inputs General'!A$70 -> T5 2X24W | D147: =SUM('Charges Summary'!D101,'Charges Summary'!D11) -> 15.78035797 | E147: =SUM('Charges Summary'!E101,'Charges Summary'!E11) -> 15.07816577 | F147: =SUM('Charges Summary'!F101,'Charges Summary'!F11) -> 14.81302956 | G147: =SUM('Charges Summary'!G101,'Charges Summary'!G11) -> 14.61183127 | H147: =SUM('Charges Summary'!H101,'Charges Summary'!H11) -> 14.53359732
A148: ='DNSP Inputs General'!A$71 -> LED 18W | D148: =SUM('Charges Summary'!D117,'Charges Summary'!D11) -> 17.85718576 | E148: =SUM('Charges Summary'!E117,'Charges Summary'!E11) -> 16.6610861 | F148: =SUM('Charges Summary'!F117,'Charges Summary'!F11) -> 16.08910647 | G148: =SUM('Charges Summary'!G117,'Charges Summary'!G11) -> 15.67000442 | H148: =SUM('Charges Summary'!H117,'Charges Summary'!H11) -> 15.43383463
A150: ='DNSP Inputs General'!A$41 -> Existing Lights
A151: ='DNSP Inputs General'!A$42 -> Mercury Vapour 80W | D151: =D142*'DNSP Inputs General'!K42 -> 793489.564 | E151: =E142*'DNSP Inputs General'!L42 -> 748914.4753 | F151: =F142*'DNSP Inputs General'!M42 -> 697092.0794 | G151: =G142*'DNSP Inputs General'!N42 -> 636208.3889 | H151: =H142*'DNSP Inputs General'!O42 -> 575977.312 | K151: =D151/'Charges Summary'!D$4 -> 776484.5523 | L151: =E151/'Charges Summary'!E$4 -> 717158.9564 | M151: =F151/'Charges Summary'!F$4 -> 653228.2386 | N151: =G151/'Charges Summary'!G$4 -> 583399.1536 | O151: =H151/'Charges Summary'!H$4 -> 516848.6437
A152: ='DNSP Inputs General'!A$43 -> HP Sodium 150W | D152: =D143*'DNSP Inputs General'!K43 -> 299014.638 | E152: =E143*'DNSP Inputs General'!L43 -> 332921.068 | F152: =F143*'DNSP Inputs General'!M43 -> 365406.7173 | G152: =G143*'DNSP Inputs General'!N43 -> 393169.5179 | H152: =H143*'DNSP Inputs General'!O43 -> 419503.511 | K152: =D152/'Charges Summary'!D$4 -> 292606.5544 | L152: =E152/'Charges Summary'!E$4 -> 318804.5278 | M152: =F152/'Charges Summary'!F$4 -> 342413.8551 | N152: =G152/'Charges Summary'!G$4 -> 360534.0137 | O152: =H152/'Charges Summary'!H$4 -> 376438.1273
A153: ='DNSP Inputs General'!A$44 -> HP Sodium 250W | D153: =D144*'DNSP Inputs General'!K44 -> 136067.0946 | E153: =E144*'DNSP Inputs General'!L44 -> 151540.366 | F153: =F144*'DNSP Inputs General'!M44 -> 166368.1882 | G153: =G144*'DNSP Inputs General'!N44 -> 179048.6922 | H153: =H144*'DNSP Inputs General'!O44 -> 191077.2016 | K153: =D153/'Charges Summary'!D$4 -> 133151.0858 | L153: =E153/'Charges Summary'!E$4 -> 145114.7418 | M153: =F153/'Charges Summary'!F$4 -> 155899.6319 | N153: =G153/'Charges Summary'!G$4 -> 164186.5422 | O153: =H153/'Charges Summary'!H$4 -> 171461.6017
A154: ='DNSP Inputs General'!A$45 -> Mercury Vapour 50W | D154: =IF('DNSP Inputs General'!$B45='DNSP Inputs General'!$A$42,D$142,IF('DNSP Inputs General'!$B45='DNSP Inputs General'!$A$43,D$143,D$144))*'DNSP Inputs General'!$D45*'DNSP Inputs General'!K45 -> 7988.722044 | E154: =IF('DNSP Inputs General'!$B45='DNSP Inputs General'!$A$42,E$142,IF('DNSP Inputs General'!$B45='DNSP Inputs General'!$A$43,E$143,E$144))*'DNSP Inputs General'!$D45*'DNSP Inputs General'!L45 -> 8870.526356 | F154: =IF('DNSP Inputs General'!$B45='DNSP Inputs General'!$A$42,F$142,IF('DNSP Inputs General'!$B45='DNSP Inputs General'!$A$43,F$143,F$144))*'DNSP Inputs General'!$D45*'DNSP Inputs General'!M45 -> 9713.782796 | G154: =IF('DNSP Inputs General'!$B45='DNSP Inputs General'!$A$42,G$142,IF('DNSP Inputs General'!$B45='DNSP Inputs General'!$A$43,G$143,G$144))*'DNSP Inputs General'!$D45*'DNSP Inputs General'!N45 -> 10429.86544 | H154: =IF('DNSP Inputs General'!$B45='DNSP Inputs General'!$A$42,H$142,IF('DNSP Inputs General'!$B45='DNSP Inputs General'!$A$43,H$143,H$144))*'DNSP Inputs General'!$D45*'DNSP Inputs General'!O45 -> 11108.76464 | K154: =D154/'Charges Summary'!D$4 -> 7817.518391 | L154: =E154/'Charges Summary'!E$4 -> 8494.397737 | M154: =F154/'Charges Summary'!F$4 -> 9102.552465 | N154: =G154/'Charges Summary'!G$4 -> 9564.122037 | O154: =H154/'Charges Summary'!H$4 -> 9968.36128
A155: ='DNSP Inputs General'!A$46 -> Mercury Vapour 125W | D155: =IF('DNSP Inputs General'!$B46='DNSP Inputs General'!$A$42,D$142,IF('DNSP Inputs General'!$B46='DNSP Inputs General'!$A$43,D$143,D$144))*'DNSP Inputs General'!$D46*'DNSP Inputs General'!K46 -> 22831.70788 | E155: =IF('DNSP Inputs General'!$B46='DNSP Inputs General'!$A$42,E$142,IF('DNSP Inputs General'!$B46='DNSP Inputs General'!$A$43,E$143,E$144))*'DNSP Inputs General'!$D46*'DNSP Inputs General'!L46 -> 25351.89802 | F155: =IF('DNSP Inputs General'!$B46='DNSP Inputs General'!$A$42,F$142,IF('DNSP Inputs General'!$B46='DNSP Inputs General'!$A$43,F$143,F$144))*'DNSP Inputs General'!$D46*'DNSP Inputs General'!M46 -> 27761.91862 | G155: =IF('DNSP Inputs General'!$B46='DNSP Inputs General'!$A$42,G$142,IF('DNSP Inputs General'!$B46='DNSP Inputs General'!$A$43,G$143,G$144))*'DNSP Inputs General'!$D46*'DNSP Inputs General'!N46 -> 29808.47747 | H155: =IF('DNSP Inputs General'!$B46='DNSP Inputs General'!$A$42,H$142,IF('DNSP Inputs General'!$B46='DNSP Inputs General'!$A$43,H$143,H$144))*'DNSP Inputs General'!$D46*'DNSP Inputs General'!O46 -> 31748.76629 | K155: =D155/'Charges Summary'!D$4 -> 22342.40912 | L155: =E155/'Charges Summary'!E$4 -> 24276.92523 | M155: =F155/'Charges Summary'!F$4 -> 26015.0269 | N155: =G155/'Charges Summary'!G$4 -> 27334.18929 | O155: =H155/'Charges Summary'!H$4 -> 28489.50202
A156: ='DNSP Inputs General'!A$47 -> Mercury Vapour 250W | D156: =IF('DNSP Inputs General'!$B47='DNSP Inputs General'!$A$42,D$142,IF('DNSP Inputs General'!$B47='DNSP Inputs General'!$A$43,D$143,D$144))*'DNSP Inputs General'!$D47*'DNSP Inputs General'!K47 -> 17742.86081 | E156: =IF('DNSP Inputs General'!$B47='DNSP Inputs General'!$A$42,E$142,IF('DNSP Inputs General'!$B47='DNSP Inputs General'!$A$43,E$143,E$144))*'DNSP Inputs General'!$D47*'DNSP Inputs General'!L47 -> 19760.54262 | F156: =IF('DNSP Inputs General'!$B47='DNSP Inputs General'!$A$42,F$142,IF('DNSP Inputs General'!$B47='DNSP Inputs General'!$A$43,F$143,F$144))*'DNSP Inputs General'!$D47*'DNSP Inputs General'!M47 -> 21694.05922 | G156: =IF('DNSP Inputs General'!$B47='DNSP Inputs General'!$A$42,G$142,IF('DNSP Inputs General'!$B47='DNSP Inputs General'!$A$43,G$143,G$144))*'DNSP Inputs General'!$D47*'DNSP Inputs General'!N47 -> 23347.57006 | H156: =IF('DNSP Inputs General'!$B47='DNSP Inputs General'!$A$42,H$142,IF('DNSP Inputs General'!$B47='DNSP Inputs General'!$A$43,H$143,H$144))*'DNSP Inputs General'!$D47*'DNSP Inputs General'!O47 -> 24916.0622 | K156: =D156/'Charges Summary'!D$4 -> 17362.61944 | L156: =E156/'Charges Summary'!E$4 -> 18922.65484 | M156: =F156/'Charges Summary'!F$4 -> 20328.98165 | N156: =G156/'Charges Summary'!G$4 -> 21409.5772 | O156: =H156/'Charges Summary'!H$4 -> 22358.22955
A157: ='DNSP Inputs General'!A$48 -> Mercury Vapour 400W | D157: =IF('DNSP Inputs General'!$B48='DNSP Inputs General'!$A$42,D$142,IF('DNSP Inputs General'!$B48='DNSP Inputs General'!$A$43,D$143,D$144))*'DNSP Inputs General'!$D48*'DNSP Inputs General'!K48 -> 3441.693331 | E157: =IF('DNSP Inputs General'!$B48='DNSP Inputs General'!$A$42,E$142,IF('DNSP Inputs General'!$B48='DNSP Inputs General'!$A$43,E$143,E$144))*'DNSP Inputs General'!$D48*'DNSP Inputs General'!L48 -> 3833.075651 | F157: =IF('DNSP Inputs General'!$B48='DNSP Inputs General'!$A$42,F$142,IF('DNSP Inputs General'!$B48='DNSP Inputs General'!$A$43,F$143,F$144))*'DNSP Inputs General'!$D48*'DNSP Inputs General'!M48 -> 4208.13192 | G157: =IF('DNSP Inputs General'!$B48='DNSP Inputs General'!$A$42,G$142,IF('DNSP Inputs General'!$B48='DNSP Inputs General'!$A$43,G$143,G$144))*'DNSP Inputs General'!$D48*'DNSP Inputs General'!N48 -> 4528.873728 | H157: =IF('DNSP Inputs General'!$B48='DNSP Inputs General'!$A$42,H$142,IF('DNSP Inputs General'!$B48='DNSP Inputs General'!$A$43,H$143,H$144))*'DNSP Inputs General'!$D48*'DNSP Inputs General'!O48 -> 4833.123927 | K157: =D157/'Charges Summary'!D$4 -> 3367.935542 | L157: =E157/'Charges Summary'!E$4 -> 3670.545335 | M157: =F157/'Charges Summary'!F$4 -> 3943.339314 | N157: =G157/'Charges Summary'!G$4 -> 4152.949169 | O157: =H157/'Charges Summary'!H$4 -> 4336.96518
A158: ='DNSP Inputs General'!A$49 -> HP Sodium 100W | D158: =IF('DNSP Inputs General'!$B49='DNSP Inputs General'!$A$42,D$142,IF('DNSP Inputs General'!$B49='DNSP Inputs General'!$A$43,D$143,D$144))*'DNSP Inputs General'!$D49*'DNSP Inputs General'!K49 -> 61717.22241 | E158: =IF('DNSP Inputs General'!$B49='DNSP Inputs General'!$A$42,E$142,IF('DNSP Inputs General'!$B49='DNSP Inputs General'!$A$43,E$143,E$144))*'DNSP Inputs General'!$D49*'DNSP Inputs General'!L49 -> 68715.57774 | F158: =IF('DNSP Inputs General'!$B49='DNSP Inputs General'!$A$42,F$142,IF('DNSP Inputs General'!$B49='DNSP Inputs General'!$A$43,F$143,F$144))*'DNSP Inputs General'!$D49*'DNSP Inputs General'!M49 -> 75420.68106 | G158: =IF('DNSP Inputs General'!$B49='DNSP Inputs General'!$A$42,G$142,IF('DNSP Inputs General'!$B49='DNSP Inputs General'!$A$43,G$143,G$144))*'DNSP Inputs General'!$D49*'DNSP Inputs General'!N49 -> 81150.97893 | H158: =IF('DNSP Inputs General'!$B49='DNSP Inputs General'!$A$42,H$142,IF('DNSP Inputs General'!$B49='DNSP Inputs General'!$A$43,H$143,H$144))*'DNSP Inputs General'!$D49*'DNSP Inputs General'!O49 -> 86586.36803 | K158: =D158/'Charges Summary'!D$4 -> 60394.58109 | L158: =E158/'Charges Summary'!E$4 -> 65801.89547 | M158: =F158/'Charges Summary'!F$4 -> 70674.90808 | N158: =G158/'Charges Summary'!G$4 -> 74414.94524 | O158: =H158/'Charges Summary'!H$4 -> 77697.58626
A159: ='DNSP Inputs General'!A50 -> HP Sodium 400W | D159: =IF('DNSP Inputs General'!$B50='DNSP Inputs General'!$A$42,D$142,IF('DNSP Inputs General'!$B50='DNSP Inputs General'!$A$43,D$143,D$144))*'DNSP Inputs General'!$D50*'DNSP Inputs General'!K50 -> 8121.133253 | E159: =IF('DNSP Inputs General'!$B50='DNSP Inputs General'!$A$42,E$142,IF('DNSP Inputs General'!$B50='DNSP Inputs General'!$A$43,E$143,E$144))*'DNSP Inputs General'!$D50*'DNSP Inputs General'!L50 -> 9044.651903 | F159: =IF('DNSP Inputs General'!$B50='DNSP Inputs General'!$A$42,F$142,IF('DNSP Inputs General'!$B50='DNSP Inputs General'!$A$43,F$143,F$144))*'DNSP Inputs General'!$D50*'DNSP Inputs General'!M50 -> 9929.647063 | G159: =IF('DNSP Inputs General'!$B50='DNSP Inputs General'!$A$42,G$142,IF('DNSP Inputs General'!$B50='DNSP Inputs General'!$A$43,G$143,G$144))*'DNSP Inputs General'!$D50*'DNSP Inputs General'!N50 -> 10686.48003 | H159: =IF('DNSP Inputs General'!$B50='DNSP Inputs General'!$A$42,H$142,IF('DNSP Inputs General'!$B50='DNSP Inputs General'!$A$43,H$143,H$144))*'DNSP Inputs General'!$D50*'DNSP Inputs General'!O50 -> 11404.39884 | K159: =D159/'Charges Summary'!D$4 -> 7947.09194 | L159: =E159/'Charges Summary'!E$4 -> 8661.140001 | M159: =F159/'Charges Summary'!F$4 -> 9304.833683 | N159: =G159/'Charges Summary'!G$4 -> 9799.43602 | O159: =H159/'Charges Summary'!H$4 -> 10233.64628
A160: ='DNSP Inputs General'!A51 -> Metal Halide 70W | D160: =IF('DNSP Inputs General'!$B51='DNSP Inputs General'!$A$42,D$142,IF('DNSP Inputs General'!$B51='DNSP Inputs General'!$A$43,D$143,D$144))*'DNSP Inputs General'!$D51*'DNSP Inputs General'!K51 -> 2615.234107 | E160: =IF('DNSP Inputs General'!$B51='DNSP Inputs General'!$A$42,E$142,IF('DNSP Inputs General'!$B51='DNSP Inputs General'!$A$43,E$143,E$144))*'DNSP Inputs General'!$D51*'DNSP Inputs General'!L51 -> 2903.906651 | F160: =IF('DNSP Inputs General'!$B51='DNSP Inputs General'!$A$42,F$142,IF('DNSP Inputs General'!$B51='DNSP Inputs General'!$A$43,F$143,F$144))*'DNSP Inputs General'!$D51*'DNSP Inputs General'!M51 -> 3179.959941 | G160: =IF('DNSP Inputs General'!$B51='DNSP Inputs General'!$A$42,G$142,IF('DNSP Inputs General'!$B51='DNSP Inputs General'!$A$43,G$143,G$144))*'DNSP Inputs General'!$D51*'DNSP Inputs General'!N51 -> 3414.380886 | H160: =IF('DNSP Inputs General'!$B51='DNSP Inputs General'!$A$42,H$142,IF('DNSP Inputs General'!$B51='DNSP Inputs General'!$A$43,H$143,H$144))*'DNSP Inputs General'!$D51*'DNSP Inputs General'!O51 -> 3636.629239 | K160: =D160/'Charges Summary'!D$4 -> 2559.187892 | L160: =E160/'Charges Summary'!E$4 -> 2780.775018 | M160: =F160/'Charges Summary'!F$4 -> 2979.864056 | N160: =G160/'Charges Summary'!G$4 -> 3130.966132 | O160: =H160/'Charges Summary'!H$4 -> 3263.300221
A161: ='DNSP Inputs General'!A52 -> Metal Halide 100W | D161: =IF('DNSP Inputs General'!$B52='DNSP Inputs General'!$A$42,D$142,IF('DNSP Inputs General'!$B52='DNSP Inputs General'!$A$43,D$143,D$144))*'DNSP Inputs General'!$D52*'DNSP Inputs General'!K52 -> 1715.532064 | E161: =IF('DNSP Inputs General'!$B52='DNSP Inputs General'!$A$42,E$142,IF('DNSP Inputs General'!$B52='DNSP Inputs General'!$A$43,E$143,E$144))*'DNSP Inputs General'!$D52*'DNSP Inputs General'!L52 -> 1910.062901 | F161: =IF('DNSP Inputs General'!$B52='DNSP Inputs General'!$A$42,F$142,IF('DNSP Inputs General'!$B52='DNSP Inputs General'!$A$43,F$143,F$144))*'DNSP Inputs General'!$D52*'DNSP Inputs General'!M52 -> 2096.442315 | G161: =IF('DNSP Inputs General'!$B52='DNSP Inputs General'!$A$42,G$142,IF('DNSP Inputs General'!$B52='DNSP Inputs General'!$A$43,G$143,G$144))*'DNSP Inputs General'!$D52*'DNSP Inputs General'!N52 -> 2255.725402 | H161: =IF('DNSP Inputs General'!$B52='DNSP Inputs General'!$A$42,H$142,IF('DNSP Inputs General'!$B52='DNSP Inputs General'!$A$43,H$143,H$144))*'DNSP Inputs General'!$D52*'DNSP Inputs General'!O52 -> 2406.811014 | K161: =D161/'Charges Summary'!D$4 -> 1678.767065 | L161: =E161/'Charges Summary'!E$4 -> 1829.072293 | M161: =F161/'Charges Summary'!F$4 -> 1964.525722 | N161: =G161/'Charges Summary'!G$4 -> 2068.486228 | O161: =H161/'Charges Summary'!H$4 -> 2159.732653
A162: ='DNSP Inputs General'!A53 -> Metal Halide 150W | D162: =IF('DNSP Inputs General'!$B53='DNSP Inputs General'!$A$42,D$142,IF('DNSP Inputs General'!$B53='DNSP Inputs General'!$A$43,D$143,D$144))*'DNSP Inputs General'!$D53*'DNSP Inputs General'!K53 -> 1843.8766 | E162: =IF('DNSP Inputs General'!$B53='DNSP Inputs General'!$A$42,E$142,IF('DNSP Inputs General'!$B53='DNSP Inputs General'!$A$43,E$143,E$144))*'DNSP Inputs General'!$D53*'DNSP Inputs General'!L53 -> 2052.960922 | F162: =IF('DNSP Inputs General'!$B53='DNSP Inputs General'!$A$42,F$142,IF('DNSP Inputs General'!$B53='DNSP Inputs General'!$A$43,F$143,F$144))*'DNSP Inputs General'!$D53*'DNSP Inputs General'!M53 -> 2253.283986 | G162: =IF('DNSP Inputs General'!$B53='DNSP Inputs General'!$A$42,G$142,IF('DNSP Inputs General'!$B53='DNSP Inputs General'!$A$43,G$143,G$144))*'DNSP Inputs General'!$D53*'DNSP Inputs General'!N53 -> 2424.48356 | H162: =IF('DNSP Inputs General'!$B53='DNSP Inputs General'!$A$42,H$142,IF('DNSP Inputs General'!$B53='DNSP Inputs General'!$A$43,H$143,H$144))*'DNSP Inputs General'!$D53*'DNSP Inputs General'!O53 -> 2586.872377 | K162: =D162/'Charges Summary'!D$4 -> 1804.361092 | L162: =E162/'Charges Summary'!E$4 -> 1965.911143 | M162: =F162/'Charges Summary'!F$4 -> 2111.498284 | N162: =G162/'Charges Summary'!G$4 -> 2223.236413 | O162: =H162/'Charges Summary'!H$4 -> 2321.309281
A163: ='DNSP Inputs General'!A54 -> HP Sodium 50W | D163: =IF('DNSP Inputs General'!$B54='DNSP Inputs General'!$A$42,D$142,IF('DNSP Inputs General'!$B54='DNSP Inputs General'!$A$43,D$143,D$144))*'DNSP Inputs General'!$D54*'DNSP Inputs General'!K54 -> 890.0361241 | E163: =IF('DNSP Inputs General'!$B54='DNSP Inputs General'!$A$42,E$142,IF('DNSP Inputs General'!$B54='DNSP Inputs General'!$A$43,E$143,E$144))*'DNSP Inputs General'!$D54*'DNSP Inputs General'!L54 -> 990.9607738 | F163: =IF('DNSP Inputs General'!$B54='DNSP Inputs General'!$A$42,F$142,IF('DNSP Inputs General'!$B54='DNSP Inputs General'!$A$43,F$143,F$144))*'DNSP Inputs General'!$D54*'DNSP Inputs General'!M54 -> 1087.656379 | G163: =IF('DNSP Inputs General'!$B54='DNSP Inputs General'!$A$42,G$142,IF('DNSP Inputs General'!$B54='DNSP Inputs General'!$A$43,G$143,G$144))*'DNSP Inputs General'!$D54*'DNSP Inputs General'!N54 -> 1170.294124 | H163: =IF('DNSP Inputs General'!$B54='DNSP Inputs General'!$A$42,H$142,IF('DNSP Inputs General'!$B54='DNSP Inputs General'!$A$43,H$143,H$144))*'DNSP Inputs General'!$D54*'DNSP Inputs General'!O54 -> 1248.678933 | K163: =D163/'Charges Summary'!D$4 -> 870.9620551 | L163: =E163/'Charges Summary'!E$4 -> 948.9419924 | M163: =F163/'Charges Summary'!F$4 -> 1019.21666 | N163: =G163/'Charges Summary'!G$4 -> 1073.152466 | O163: =H163/'Charges Summary'!H$4 -> 1120.492074
A175: ='DNSP Inputs General'!A$68 -> Energy Efficient Lights
A176: ='DNSP Inputs General'!A$69 -> T5 2X14W | D176: =SUM('Charges Summary'!D85,'Charges Summary'!D11)*'DNSP Inputs General'!$D69*'DNSP Inputs General'!K69 -> 218398.2386 | E176: =SUM('Charges Summary'!E85,'Charges Summary'!E11)*'DNSP Inputs General'!$D69*'DNSP Inputs General'!L69 -> 246261.4255 | F176: =SUM('Charges Summary'!F85,'Charges Summary'!F11)*'DNSP Inputs General'!$D69*'DNSP Inputs General'!M69 -> 274822.2832 | G176: =SUM('Charges Summary'!G85,'Charges Summary'!G11)*'DNSP Inputs General'!$D69*'DNSP Inputs General'!N69 -> 299951.5766 | H176: =SUM('Charges Summary'!H85,'Charges Summary'!H11)*'DNSP Inputs General'!$D69*'DNSP Inputs General'!O69 -> 323955.8605 | K176: =D176/'Charges Summary'!D$4 -> 213717.8184 | L176: =E176/'Charges Summary'!E$4 -> 235819.433 | M176: =F176/'Charges Summary'!F$4 -> 257529.3584 | N176: =G176/'Charges Summary'!G$4 -> 275053.7386 | O176: =H176/'Charges Summary'!H$4 -> 290699.2058
A177: ='DNSP Inputs General'!A70 -> T5 2X24W | D177: =SUM('Charges Summary'!D101,'Charges Summary'!D11)*'DNSP Inputs General'!$D70*'DNSP Inputs General'!K70 -> 20280.55518 | E177: =SUM('Charges Summary'!E101,'Charges Summary'!E11)*'DNSP Inputs General'!$D70*'DNSP Inputs General'!L70 -> 24016.58148 | F177: =SUM('Charges Summary'!F101,'Charges Summary'!F11)*'DNSP Inputs General'!$D70*'DNSP Inputs General'!M70 -> 27631.33708 | G177: =SUM('Charges Summary'!G101,'Charges Summary'!G11)*'DNSP Inputs General'!$D70*'DNSP Inputs General'!N70 -> 30784.61943 | H177: =SUM('Charges Summary'!H101,'Charges Summary'!H11)*'DNSP Inputs General'!$D70*'DNSP Inputs General'!O70 -> 33737.31881 | K177: =D177/'Charges Summary'!D$4 -> 19845.92933 | L177: =E177/'Charges Summary'!E$4 -> 22998.22887 | M177: =F177/'Charges Summary'!F$4 -> 25892.66208 | N177: =G177/'Charges Summary'!G$4 -> 28229.30542 | O177: =H177/'Charges Summary'!H$4 -> 30273.91376
A178: ='DNSP Inputs General'!A71 -> LED 18W | D178: =SUM('Charges Summary'!D117,'Charges Summary'!D11)*'DNSP Inputs General'!$D71*'DNSP Inputs General'!K71 -> 100589.1845 | E178: =SUM('Charges Summary'!E117,'Charges Summary'!E11)*'DNSP Inputs General'!$D71*'DNSP Inputs General'!L71 -> 132550.6752 | F178: =SUM('Charges Summary'!F117,'Charges Summary'!F11)*'DNSP Inputs General'!$D71*'DNSP Inputs General'!M71 -> 160989.2887 | G178: =SUM('Charges Summary'!G117,'Charges Summary'!G11)*'DNSP Inputs General'!$D71*'DNSP Inputs General'!N71 -> 185170.1376 | H178: =SUM('Charges Summary'!H117,'Charges Summary'!H11)*'DNSP Inputs General'!$D71*'DNSP Inputs General'!O71 -> 207108.7209 | K178: =D178/'Charges Summary'!D$4 -> 98433.49104 | L178: =E178/'Charges Summary'!E$4 -> 126930.2531 | M178: =F178/'Charges Summary'!F$4 -> 150859.1944 | N178: =G178/'Charges Summary'!G$4 -> 169799.8698 | O178: =H178/'Charges Summary'!H$4 -> 185847.3576
A179: ='DNSP Inputs General'!A72 -> Compact Fluorescent 32W | D179: =IF('DNSP Inputs General'!$B72='DNSP Inputs General'!$A$69,D$146,D$147)*'DNSP Inputs General'!$D72*'DNSP Inputs General'!K72 -> 77435.35491 | E179: =IF('DNSP Inputs General'!$B72='DNSP Inputs General'!$A$69,E$146,E$147)*'DNSP Inputs General'!$D72*'DNSP Inputs General'!L72 -> 92377.37103 | F179: =IF('DNSP Inputs General'!$B72='DNSP Inputs General'!$A$69,F$146,F$147)*'DNSP Inputs General'!$D72*'DNSP Inputs General'!M72 -> 106832.2085 | G179: =IF('DNSP Inputs General'!$B72='DNSP Inputs General'!$A$69,G$146,G$147)*'DNSP Inputs General'!$D72*'DNSP Inputs General'!N72 -> 119471.289 | H179: =IF('DNSP Inputs General'!$B72='DNSP Inputs General'!$A$69,H$146,H$147)*'DNSP Inputs General'!$D72*'DNSP Inputs General'!O72 -> 131304.5985 | K179: =D179/'Charges Summary'!D$4 -> 75775.8635 | L179: =E179/'Charges Summary'!E$4 -> 88460.37991 | M179: =F179/'Charges Summary'!F$4 -> 100109.8958 | N179: =G179/'Charges Summary'!G$4 -> 109554.4323 | O179: =H179/'Charges Summary'!H$4 -> 117825.1334
A180: ='DNSP Inputs General'!A73 -> Compact Fluorescent 42W | D180: =IF('DNSP Inputs General'!$B73='DNSP Inputs General'!$A$69,D$146,D$147)*'DNSP Inputs General'!$D73*'DNSP Inputs General'!K73 -> 25304.43457 | E180: =IF('DNSP Inputs General'!$B73='DNSP Inputs General'!$A$69,E$146,E$147)*'DNSP Inputs General'!$D73*'DNSP Inputs General'!L73 -> 30187.20768 | F180: =IF('DNSP Inputs General'!$B73='DNSP Inputs General'!$A$69,F$146,F$147)*'DNSP Inputs General'!$D73*'DNSP Inputs General'!M73 -> 34910.77989 | G180: =IF('DNSP Inputs General'!$B73='DNSP Inputs General'!$A$69,G$146,G$147)*'DNSP Inputs General'!$D73*'DNSP Inputs General'!N73 -> 39040.99643 | H180: =IF('DNSP Inputs General'!$B73='DNSP Inputs General'!$A$69,H$146,H$147)*'DNSP Inputs General'!$D73*'DNSP Inputs General'!O73 -> 42907.90201 | K180: =D180/'Charges Summary'!D$4 -> 24762.14362 | L180: =E180/'Charges Summary'!E$4 -> 28907.2078 | M180: =F180/'Charges Summary'!F$4 -> 32714.05303 | N180: =G180/'Charges Summary'!G$4 -> 35800.35201 | O180: =H180/'Charges Summary'!H$4 -> 38503.0634
A182: Total Capital Charge | D182: =SUM(D151:D180) -> 1799487.083 | E182: =SUM(E151:E180) -> 1902203.334 | F182: =SUM(F151:F180) -> 1991398.446 | G182: =SUM(G151:G180) -> 2052062.348 | H182: =SUM(H151:H180) -> 2106048.901 | K182: =SUM(K151:K180) -> 1760922.872 | L182: =SUM(L151:L180) -> 1821545.988 | M182: =SUM(M151:M180) -> 1866091.636 | N182: =SUM(N151:N180) -> 1881728.468 | O182: =SUM(O151:O180) -> 1889846.172
A184: Check | C184: =SUM(D184:O184) -> 1.210719347e-08 | D184: =ABS(D88-SUM(D135,D182)) -> 9.313225746e-10 | E184: =ABS(E88-SUM(E135,E182)) -> 9.313225746e-10 | F184: =ABS(F88-SUM(F135,F182)) -> 1.862645149e-09 | G184: =ABS(G88-SUM(G135,G182)) -> 1.862645149e-09 | H184: =ABS(H88-SUM(H135,H182)) -> 2.793967724e-09 | K184: =ABS(K88-SUM(K135,K182)) -> 9.313225746e-10 | L184: =ABS(L88-SUM(L135,L182)) -> 0 | M184: =ABS(M88-SUM(M135,M182)) -> 0 | N184: =ABS(N88-SUM(N135,N182)) -> 9.313225746e-10 | O184: =ABS(O88-SUM(O135,O182)) -> 1.862645149e-09
A189: ='DNSP Inputs General'!$B$79 -> North & East
A190: Public Lighting - Revenue | C190: Revenue - Nominal | J190: Revenue - Real 2015 $
C191: =C$2 -> 2015 | D191: =D$2 -> 2016 | E191: 2017 | F191: 2018 | G191: 2019 | H191: 2020 | J191: =J$2 -> 2015 | K191: 2016 | L191: 2017 | M191: 2018 | N191: 2019 | O191: 2020
A192: ='DNSP Inputs General'!A$81 -> Existing Lights
A193: ='DNSP Inputs General'!A$82 -> Mercury Vapour 80W | C193: =IF('PL Tariffs'!C34=0,"",'DNSP Inputs General'!J82*'PL Tariffs'!C34) -> 1248741.237 | D193: ='DNSP Inputs General'!K82*'PL Tariffs'!D34 -> 901071.6448 | E193: ='DNSP Inputs General'!L82*'PL Tariffs'!E34 -> 818948.3075 | F193: ='DNSP Inputs General'!M82*'PL Tariffs'!F34 -> 740242.0851 | G193: ='DNSP Inputs General'!N82*'PL Tariffs'!G34 -> 663212.9649 | H193: ='DNSP Inputs General'!O82*'PL Tariffs'!H34 -> 591921.794 | J193: =C193 -> 1248741.237 | K193: =D193/'Charges Summary'!K$4 -> 881761.0772 | L193: =E193/'Charges Summary'!L$4 -> 784223.2096 | M193: =F193/'Charges Summary'!M$4 -> 693663.0722 | N193: =G193/'Charges Summary'!N$4 -> 608162.1826 | O193: =H193/'Charges Summary'!O$4 -> 531156.2974
A194: ='DNSP Inputs General'!A$83 -> HP Sodium 150W | C194: =IF('PL Tariffs'!C35=0,"",'DNSP Inputs General'!J83*'PL Tariffs'!C35) -> 578145.6325 | D194: ='DNSP Inputs General'!K83*'PL Tariffs'!D35 -> 549018.9374 | E194: ='DNSP Inputs General'!L83*'PL Tariffs'!E35 -> 577920.6368 | F194: ='DNSP Inputs General'!M83*'PL Tariffs'!F35 -> 606790.8791 | G194: ='DNSP Inputs General'!N83*'PL Tariffs'!G35 -> 634336.431 | H194: ='DNSP Inputs General'!O83*'PL Tariffs'!H35 -> 661765.4616 | J194: 578145.6325 | K194: =D194/'Charges Summary'!K$4 -> 537253.0946 | L194: =E194/'Charges Summary'!L$4 -> 553415.6094 | M194: =F194/'Charges Summary'!M$4 -> 568609.1535 | N194: =G194/'Charges Summary'!N$4 -> 581682.5798 | O194: =H194/'Charges Summary'!O$4 -> 593829.955
A195: ='DNSP Inputs General'!A$84 -> HP Sodium 250W | C195: =IF('PL Tariffs'!C36=0,"",'DNSP Inputs General'!J84*'PL Tariffs'!C36) -> 560371.3666 | D195: ='DNSP Inputs General'!K84*'PL Tariffs'!D36 -> 530452.8499 | E195: ='DNSP Inputs General'!L84*'PL Tariffs'!E36 -> 558504.3642 | F195: ='DNSP Inputs General'!M84*'PL Tariffs'!F36 -> 586516.6155 | G195: ='DNSP Inputs General'!N84*'PL Tariffs'!G36 -> 613223.6945 | H195: ='DNSP Inputs General'!O84*'PL Tariffs'!H36 -> 639808.6359 | J195: 560371.3666 | K195: =D195/'Charges Summary'!K$4 -> 519084.8908 | L195: =E195/'Charges Summary'!L$4 -> 534822.6269 | M195: =F195/'Charges Summary'!M$4 -> 549610.6281 | N195: =G195/'Charges Summary'!N$4 -> 562322.3312 | O195: =H195/'Charges Summary'!O$4 -> 574127.1727
A196: ='DNSP Inputs General'!A$85 -> Mercury Vapour 50W | C196: =IF('PL Tariffs'!C37=0,"",'DNSP Inputs General'!J85*'PL Tariffs'!C37) -> 23989.20824 | D196: ='DNSP Inputs General'!K85*'PL Tariffs'!D37 -> 20363.08574 | E196: ='DNSP Inputs General'!L85*'PL Tariffs'!E37 -> 21773.17838 | F196: ='DNSP Inputs General'!M85*'PL Tariffs'!F37 -> 23153.68858 | G196: ='DNSP Inputs General'!N85*'PL Tariffs'!G37 -> 24405.09469 | H196: ='DNSP Inputs General'!O85*'PL Tariffs'!H37 -> 25625.53223 | J196: 23989.20824 | K196: =D196/'Charges Summary'!K$4 -> 19926.69121 | L196: =E196/'Charges Summary'!L$4 -> 20849.95069 | M196: =F196/'Charges Summary'!M$4 -> 21696.76525 | N196: =G196/'Charges Summary'!N$4 -> 22379.32073 | O196: =H196/'Charges Summary'!O$4 -> 22994.86682
A197: ='DNSP Inputs General'!A$86 -> Mercury Vapour 125W | C197: =IF('PL Tariffs'!C38=0,"",'DNSP Inputs General'!J86*'PL Tariffs'!C38) -> 4524.310796 | D197: ='DNSP Inputs General'!K86*'PL Tariffs'!D38 -> 3840.432238 | E197: ='DNSP Inputs General'!L86*'PL Tariffs'!E38 -> 4106.372542 | F197: ='DNSP Inputs General'!M86*'PL Tariffs'!F38 -> 4366.733665 | G197: ='DNSP Inputs General'!N86*'PL Tariffs'!G38 -> 4602.746046 | H197: ='DNSP Inputs General'!O86*'PL Tariffs'!H38 -> 4832.917827 | J197: 4524.310796 | K197: =D197/'Charges Summary'!K$4 -> 3758.129208 | L197: =E197/'Charges Summary'!L$4 -> 3932.253874 | M197: =F197/'Charges Summary'!M$4 -> 4091.961198 | N197: =G197/'Charges Summary'!N$4 -> 4220.689627 | O197: =H197/'Charges Summary'!O$4 -> 4336.780237
A198: ='DNSP Inputs General'!A$87 -> Mercury Vapour 250W | C198: =IF('PL Tariffs'!C39=0,"",'DNSP Inputs General'!J87*'PL Tariffs'!C39) -> 51646.39567 | D198: ='DNSP Inputs General'!K87*'PL Tariffs'!D39 -> 48886.08929 | E198: ='DNSP Inputs General'!L87*'PL Tariffs'!E39 -> 51471.2933 | F198: ='DNSP Inputs General'!M87*'PL Tariffs'!F39 -> 54052.87886 | G198: ='DNSP Inputs General'!N87*'PL Tariffs'!G39 -> 56514.18084 | H198: ='DNSP Inputs General'!O87*'PL Tariffs'!H39 -> 58964.22671 | J198: 51646.39567 | K198: =D198/'Charges Summary'!K$4 -> 47838.42773 | L198: =E198/'Charges Summary'!L$4 -> 49288.80427 | M198: =F198/'Charges Summary'!M$4 -> 50651.65405 | N198: =G198/'Charges Summary'!N$4 -> 51823.15393 | O198: =H198/'Charges Summary'!O$4 -> 52911.07821
A199: ='DNSP Inputs General'!A$88 -> Mercury Vapour 400W | C199: =IF('PL Tariffs'!C40=0,"",'DNSP Inputs General'!J88*'PL Tariffs'!C40) -> 15667.91732 | D199: ='DNSP Inputs General'!K88*'PL Tariffs'!D40 -> 14831.38733 | E199: ='DNSP Inputs General'!L88*'PL Tariffs'!E40 -> 15615.70374 | F199: ='DNSP Inputs General'!M88*'PL Tariffs'!F40 -> 16398.92236 | G199: ='DNSP Inputs General'!N88*'PL Tariffs'!G40 -> 17145.64855 | H199: ='DNSP Inputs General'!O88*'PL Tariffs'!H40 -> 17888.95978 | J199: 15667.91732 | K199: =D199/'Charges Summary'!K$4 -> 14513.54079 | L199: =E199/'Charges Summary'!L$4 -> 14953.56568 | M199: =F199/'Charges Summary'!M$4 -> 15367.03613 | N199: =G199/'Charges Summary'!N$4 -> 15722.45356 | O199: =H199/'Charges Summary'!O$4 -> 16052.51528
A200: ='DNSP Inputs General'!A$89 -> HP Sodium 100W | C200: =IF('PL Tariffs'!C41=0,"",'DNSP Inputs General'!J89*'PL Tariffs'!C41) -> 31862.73771 | D200: ='DNSP Inputs General'!K89*'PL Tariffs'!D41 -> 30258.86868 | E200: ='DNSP Inputs General'!L89*'PL Tariffs'!E41 -> 31851.76952 | F200: ='DNSP Inputs General'!M89*'PL Tariffs'!F41 -> 33442.93662 | G200: ='DNSP Inputs General'!N89*'PL Tariffs'!G41 -> 34961.09416 | H200: ='DNSP Inputs General'!O89*'PL Tariffs'!H41 -> 36472.82968 | J200: 31862.73771 | K200: =D200/'Charges Summary'!K$4 -> 29610.4009 | L200: =E200/'Charges Summary'!L$4 -> 30501.18877 | M200: =F200/'Charges Summary'!M$4 -> 31338.57237 | N200: =G200/'Charges Summary'!N$4 -> 32059.10688 | O200: =H200/'Charges Summary'!O$4 -> 32728.60261
A201: ='DNSP Inputs General'!A90 -> HP Sodium 400W | C201: =IF('PL Tariffs'!C42=0,"",'DNSP Inputs General'!J90*'PL Tariffs'!C42) -> 55728.00222 | D201: ='DNSP Inputs General'!K90*'PL Tariffs'!D42 -> 52749.30622 | E201: ='DNSP Inputs General'!L90*'PL Tariffs'!E42 -> 55538.80564 | F201: ='DNSP Inputs General'!M90*'PL Tariffs'!F42 -> 58324.40067 | G201: ='DNSP Inputs General'!N90*'PL Tariffs'!G42 -> 60980.20672 | H201: ='DNSP Inputs General'!O90*'PL Tariffs'!H42 -> 63623.86716 | J201: 55728.00222 | K201: =D201/'Charges Summary'!K$4 -> 51618.85334 | L201: =E201/'Charges Summary'!L$4 -> 53183.8457 | M201: =F201/'Charges Summary'!M$4 -> 54654.39451 | N201: =G201/'Charges Summary'!N$4 -> 55918.47201 | O201: =H201/'Charges Summary'!O$4 -> 57092.36938
A202: ='DNSP Inputs General'!A91 -> Metal Halide 70W | C202: =IF('PL Tariffs'!C43=0,"",'DNSP Inputs General'!J91*'PL Tariffs'!C43) -> 0 | D202: ='DNSP Inputs General'!K91*'PL Tariffs'!D43 -> 0 | E202: ='DNSP Inputs General'!L91*'PL Tariffs'!E43 -> 0 | F202: ='DNSP Inputs General'!M91*'PL Tariffs'!F43 -> 0 | G202: ='DNSP Inputs General'!N91*'PL Tariffs'!G43 -> 0 | H202: ='DNSP Inputs General'!O91*'PL Tariffs'!H43 -> 0 | J202: =C202 -> 0 | K202: =D202/'Charges Summary'!K$4 -> 0 | L202: =E202/'Charges Summary'!L$4 -> 0 | M202: =F202/'Charges Summary'!M$4 -> 0 | N202: =G202/'Charges Summary'!N$4 -> 0 | O202: =H202/'Charges Summary'!O$4 -> 0
A203: ='DNSP Inputs General'!A92 -> Metal Halide 100W | C203: =IF('PL Tariffs'!C44=0,"",'DNSP Inputs General'!J92*'PL Tariffs'!C44) -> 0 | D203: ='DNSP Inputs General'!K92*'PL Tariffs'!D44 -> 0 | E203: ='DNSP Inputs General'!L92*'PL Tariffs'!E44 -> 0 | F203: ='DNSP Inputs General'!M92*'PL Tariffs'!F44 -> 0 | G203: ='DNSP Inputs General'!N92*'PL Tariffs'!G44 -> 0 | H203: ='DNSP Inputs General'!O92*'PL Tariffs'!H44 -> 0 | J203: 0 | K203: =D203/'Charges Summary'!K$4 -> 0 | L203: =E203/'Charges Summary'!L$4 -> 0 | M203: =F203/'Charges Summary'!M$4 -> 0 | N203: =G203/'Charges Summary'!N$4 -> 0 | O203: =H203/'Charges Summary'!O$4 -> 0
A204: ='DNSP Inputs General'!A93 -> Metal Halide 150W | C204: =IF('PL Tariffs'!C45=0,"",'DNSP Inputs General'!J93*'PL Tariffs'!C45) -> 0 | D204: ='DNSP Inputs General'!K93*'PL Tariffs'!D45 -> 0 | E204: ='DNSP Inputs General'!L93*'PL Tariffs'!E45 -> 0 | F204: ='DNSP Inputs General'!M93*'PL Tariffs'!F45 -> 0 | G204: ='DNSP Inputs General'!N93*'PL Tariffs'!G45 -> 0 | H204: ='DNSP Inputs General'!O93*'PL Tariffs'!H45 -> 0 | J204: 0 | K204: =D204/'Charges Summary'!K$4 -> 0 | L204: =E204/'Charges Summary'!L$4 -> 0 | M204: =F204/'Charges Summary'!M$4 -> 0 | N204: =G204/'Charges Summary'!N$4 -> 0 | O204: =H204/'Charges Summary'!O$4 -> 0
A205: ='DNSP Inputs General'!A94 -> HP Sodium 50W | C205: =IF('PL Tariffs'!C46=0,"",'DNSP Inputs General'!J94*'PL Tariffs'!C46) -> 0 | D205: ='DNSP Inputs General'!K94*'PL Tariffs'!D46 -> 0 | E205: ='DNSP Inputs General'!L94*'PL Tariffs'!E46 -> 0 | F205: ='DNSP Inputs General'!M94*'PL Tariffs'!F46 -> 0 | G205: ='DNSP Inputs General'!N94*'PL Tariffs'!G46 -> 0 | H205: ='DNSP Inputs General'!O94*'PL Tariffs'!H46 -> 0 | J205: 0 | K205: =D205/'Charges Summary'!K$4 -> 0 | L205: =E205/'Charges Summary'!L$4 -> 0 | M205: =F205/'Charges Summary'!M$4 -> 0 | N205: =G205/'Charges Summary'!N$4 -> 0 | O205: =H205/'Charges Summary'!O$4 -> 0
A217: ='DNSP Inputs General'!A$108 -> Energy Efficient Lights
A218: ='DNSP Inputs General'!A$109 -> T5 2X14W | C218: =IF('PL Tariffs'!C50=0,"",'DNSP Inputs General'!J109*'PL Tariffs'!C50) -> 236962.9617 | D218: ='DNSP Inputs General'!K109*'PL Tariffs'!D50 -> 306169.3086 | E218: ='DNSP Inputs General'!L109*'PL Tariffs'!E50 -> 380212.4938 | F218: ='DNSP Inputs General'!M109*'PL Tariffs'!F50 -> 450071.9463 | G218: ='DNSP Inputs General'!N109*'PL Tariffs'!G50 -> 514218.5251 | H218: ='DNSP Inputs General'!O109*'PL Tariffs'!H50 -> 574514.0041 | J218: =C218 -> 236962.9617 | K218: =D218/'Charges Summary'!K$4 -> 299607.8957 | L218: =E218/'Charges Summary'!L$4 -> 364090.6996 | M218: =F218/'Charges Summary'!M$4 -> 421751.607 | N218: =G218/'Charges Summary'!N$4 -> 471535.2038 | O218: =H218/'Charges Summary'!O$4 -> 515535.5561
A219: ='DNSP Inputs General'!A110 -> T5 2X24W | C219: =IF('PL Tariffs'!C51=0,"",'DNSP Inputs General'!J110*'PL Tariffs'!C51) -> 6498.919766 | D219: ='DNSP Inputs General'!K110*'PL Tariffs'!D51 -> 7956.755153 | E219: ='DNSP Inputs General'!L110*'PL Tariffs'!E51 -> 9341.92985 | F219: ='DNSP Inputs General'!M110*'PL Tariffs'!F51 -> 10671.55349 | G219: ='DNSP Inputs General'!N110*'PL Tariffs'!G51 -> 11904.37954 | H219: ='DNSP Inputs General'!O110*'PL Tariffs'!H51 -> 13074.82547 | J219: =C219 -> 6498.919766 | K219: =D219/'Charges Summary'!K$4 -> 7786.236573 | L219: =E219/'Charges Summary'!L$4 -> 8945.812751 | M219: =F219/'Charges Summary'!M$4 -> 10000.05637 | N219: =G219/'Charges Summary'!N$4 -> 10916.24233 | O219: =H219/'Charges Summary'!O$4 -> 11732.59028
A220: ='DNSP Inputs General'!A111 -> LED 18W | C220: =IF('PL Tariffs'!C52=0,"",'DNSP Inputs General'!J111*'PL Tariffs'!C52) -> 772.108892 | D220: ='DNSP Inputs General'!K111*'PL Tariffs'!D52 -> 1375.873956 | E220: ='DNSP Inputs General'!L111*'PL Tariffs'!E52 -> 1842.64555 | F220: ='DNSP Inputs General'!M111*'PL Tariffs'!F52 -> 2261.637189 | G220: ='DNSP Inputs General'!N111*'PL Tariffs'!G52 -> 2625.189479 | H220: ='DNSP Inputs General'!O111*'PL Tariffs'!H52 -> 2957.01662 | J220: =C220 -> 772.108892 | K220: =D220/'Charges Summary'!K$4 -> 1346.388058 | L220: =E220/'Charges Summary'!L$4 -> 1764.513576 | M220: =F220/'Charges Summary'!M$4 -> 2119.32587 | N220: =G220/'Charges Summary'!N$4 -> 2407.282499 | O220: =H220/'Charges Summary'!O$4 -> 2653.455262
A221: ='DNSP Inputs General'!A112 -> Compact Fluorescent 32W | C221: =IF('PL Tariffs'!C53=0,"",'DNSP Inputs General'!J112*'PL Tariffs'!C53) -> 37532.20027 | D221: ='DNSP Inputs General'!K112*'PL Tariffs'!D53 -> 48493.68746 | E221: ='DNSP Inputs General'!L112*'PL Tariffs'!E53 -> 60221.27407 | F221: ='DNSP Inputs General'!M112*'PL Tariffs'!F53 -> 71286.20566 | G221: ='DNSP Inputs General'!N112*'PL Tariffs'!G53 -> 81446.28396 | H221: ='DNSP Inputs General'!O112*'PL Tariffs'!H53 -> 90996.39245 | J221: 37532.20027 | K221: =D221/'Charges Summary'!K$4 -> 47454.43533 | L221: =E221/'Charges Summary'!L$4 -> 57667.7678 | M221: =F221/'Charges Summary'!M$4 -> 66800.59053 | N221: =G221/'Charges Summary'!N$4 -> 74685.73812 | O221: =H221/'Charges Summary'!O$4 -> 81654.88647
A222: ='DNSP Inputs General'!A113 -> Compact Fluorescent 42W | C222: =IF('PL Tariffs'!C54=0,"",'DNSP Inputs General'!J113*'PL Tariffs'!C54) -> 131324.8132 | D222: ='DNSP Inputs General'!K113*'PL Tariffs'!D54 -> 169678.953 | E222: ='DNSP Inputs General'!L113*'PL Tariffs'!E54 -> 210713.6675 | F222: ='DNSP Inputs General'!M113*'PL Tariffs'!F54 -> 249429.7583 | G222: ='DNSP Inputs General'!N113*'PL Tariffs'!G54 -> 284979.776 | H222: ='DNSP Inputs General'!O113*'PL Tariffs'!H54 -> 318395.5151 | J222: 131324.8132 | K222: =D222/'Charges Summary'!K$4 -> 166042.6197 | L222: =E222/'Charges Summary'!L$4 -> 201778.9732 | M222: =F222/'Charges Summary'!M$4 -> 233734.6334 | N222: =G222/'Charges Summary'!N$4 -> 261324.6902 | O222: =H222/'Charges Summary'!O$4 -> 285709.6742
A224: Total Revenue | C224: =IF(SUM(C193:C222)=0,0,SUM(C193:C222)) -> 2983767.812 | D224: =SUM(D193:D222) -> 2685147.18 | E224: =SUM(E193:E222) -> 2798062.442 | F224: =SUM(F193:F222) -> 2907010.241 | G224: =SUM(G193:G222) -> 3004556.216 | H224: =SUM(H193:H222) -> 3100841.979 | J224: =IF(SUM(J193:J222)=0,0,SUM(J193:J222)) -> 2983767.812 | K224: =SUM(K193:K222) -> 2627602.681 | L224: =SUM(L193:L222) -> 2679418.822 | M224: =SUM(M193:M222) -> 2724089.45 | N224: =SUM(N193:N222) -> 2755159.447 | O224: =SUM(O193:O222) -> 2782515.8
A227: Public Lighting - O & M | D227: Forecast O & M - Nominal | K227: Forecast O & M - Real 2015 $
D228: =D$2 -> 2016 | E228: 2017 | F228: 2018 | G228: 2019 | H228: 2020 | K228: =K$2 -> 2016 | L228: 2017 | M228: 2018 | N228: 2019 | O228: 2020
A230: Unit cost
A231: ='DNSP Inputs General'!A$82 -> Mercury Vapour 80W | D231: =SUM('Charges Summary'!K25,'Charges Summary'!K8) -> 26.39357121 | E231: =SUM('Charges Summary'!L25,'Charges Summary'!L8) -> 26.94820377 | F231: =SUM('Charges Summary'!M25,'Charges Summary'!M8) -> 27.51534367 | G231: =SUM('Charges Summary'!N25,'Charges Summary'!N8) -> 28.09564867 | H231: =SUM('Charges Summary'!O25,'Charges Summary'!O8) -> 28.68924235
A232: ='DNSP Inputs General'!A$83 -> HP Sodium 150W | D232: =SUM('Charges Summary'!K49,'Charges Summary'!K8) -> 88.90119665 | E232: =SUM('Charges Summary'!L49,'Charges Summary'!L8) -> 90.82381251 | F232: =SUM('Charges Summary'!M49,'Charges Summary'!M8) -> 92.78890895 | G232: =SUM('Charges Summary'!N49,'Charges Summary'!N8) -> 94.79781546 | H232: =SUM('Charges Summary'!O49,'Charges Summary'!O8) -> 96.85132018
A233: ='DNSP Inputs General'!A$84 -> HP Sodium 250W | D233: =SUM('Charges Summary'!K65,'Charges Summary'!K8) -> 87.59796023 | E233: =SUM('Charges Summary'!L65,'Charges Summary'!L8) -> 89.49137108 | F233: =SUM('Charges Summary'!M65,'Charges Summary'!M8) -> 91.42663316 | G233: =SUM('Charges Summary'!N65,'Charges Summary'!N8) -> 93.40507309 | H233: =SUM('Charges Summary'!O65,'Charges Summary'!O8) -> 95.42746049
A235: ='DNSP Inputs General'!A$109 -> T5 2X14W | D235: =SUM('Charges Summary'!K83,'Charges Summary'!K8) -> 27.12838214 | E235: =SUM('Charges Summary'!L83,'Charges Summary'!L8) -> 27.69910707 | F235: =SUM('Charges Summary'!M83,'Charges Summary'!M8) -> 28.28269175 | G235: =SUM('Charges Summary'!N83,'Charges Summary'!N8) -> 28.87980167 | H235: =SUM('Charges Summary'!O83,'Charges Summary'!O8) -> 29.4905683
A236: ='DNSP Inputs General'!A$110 -> T5 2X24W | D236: =SUM('Charges Summary'!K99,'Charges Summary'!K8) -> 33.82042394 | E236: =SUM('Charges Summary'!L99,'Charges Summary'!L8) -> 34.53770458 | F236: =SUM('Charges Summary'!M99,'Charges Summary'!M8) -> 35.27105455 | G236: =SUM('Charges Summary'!N99,'Charges Summary'!N8) -> 36.02120961 | H236: =SUM('Charges Summary'!O99,'Charges Summary'!O8) -> 36.78837308
A237: ='DNSP Inputs General'!A$111 -> LED 18W | D237: =SUM('Charges Summary'!K115,'Charges Summary'!K8) -> 3.683121259 | E237: =SUM('Charges Summary'!L115,'Charges Summary'!L8) -> 3.740394972 | F237: =SUM('Charges Summary'!M115,'Charges Summary'!M8) -> 3.799283861 | G237: =SUM('Charges Summary'!N115,'Charges Summary'!N8) -> 3.860207144 | H237: =SUM('Charges Summary'!O115,'Charges Summary'!O8) -> 3.923044653
A239: ='DNSP Inputs General'!A$81 -> Existing Lights
A240: ='DNSP Inputs General'!A$82 -> Mercury Vapour 80W | D240: =D231*'DNSP Inputs General'!K82 -> 516410.6544 | E240: =E231*'DNSP Inputs General'!L82 -> 455200.2535 | F240: =F231*'DNSP Inputs General'!M82 -> 401122.8338 | G240: =G231*'DNSP Inputs General'!N82 -> 353276.3073 | H240: =H231*'DNSP Inputs General'!O82 -> 310997.7687 | K240: =D240/'Charges Summary'!K$4 -> 505343.6289 | L240: =E240/'Charges Summary'!L$4 -> 435898.8236 | M240: =F240/'Charges Summary'!M$4 -> 375882.5698 | N240: =G240/'Charges Summary'!N$4 -> 323952.1866 | O240: =H240/'Charges Summary'!O$4 -> 279071.3654
A241: ='DNSP Inputs General'!A$83 -> HP Sodium 150W | D241: =D232*'DNSP Inputs General'!K83 -> 442739.7005 | E241: =E232*'DNSP Inputs General'!L83 -> 459406.672 | F241: =F232*'DNSP Inputs General'!M83 -> 476545.6207 | G241: =G232*'DNSP Inputs General'!N83 -> 494038.5338 | H241: =H232*'DNSP Inputs General'!O83 -> 511931.5069 | K241: =D241/'Charges Summary'!K$4 -> 433251.4928 | L241: =E241/'Charges Summary'!L$4 -> 439926.8813 | M241: =F241/'Charges Summary'!M$4 -> 446559.4512 | N241: =G241/'Charges Summary'!N$4 -> 453030.2767 | O241: =H241/'Charges Summary'!O$4 -> 459377.6517
A242: ='DNSP Inputs General'!A$84 -> HP Sodium 250W | D242: =D233*'DNSP Inputs General'!K84 -> 426218.2291 | E242: =E233*'DNSP Inputs General'!L84 -> 442258.2045 | F242: =F233*'DNSP Inputs General'!M84 -> 458752.3567 | G242: =G233*'DNSP Inputs General'!N84 -> 475587.1655 | H242: =H233*'DNSP Inputs General'!O84 -> 492806.9765 | K242: =D242/'Charges Summary'!K$4 -> 417084.0876 | L242: =E242/'Charges Summary'!L$4 -> 423505.5441 | M242: =F242/'Charges Summary'!M$4 -> 429885.811 | N242: =G242/'Charges Summary'!N$4 -> 436110.4862 | O242: =H242/'Charges Summary'!O$4 -> 442216.407
A243: ='DNSP Inputs General'!A$85 -> Mercury Vapour 50W | D243: =IF('DNSP Inputs General'!$B85='DNSP Inputs General'!$A$82,D$231,IF('DNSP Inputs General'!$B85='DNSP Inputs General'!$A$83,D$232,D$233))*'DNSP Inputs General'!$D85*'DNSP Inputs General'!K85 -> 11670.23121 | E243: =IF('DNSP Inputs General'!$B85='DNSP Inputs General'!$A$82,E$231,IF('DNSP Inputs General'!$B85='DNSP Inputs General'!$A$83,E$232,E$233))*'DNSP Inputs General'!$D85*'DNSP Inputs General'!L85 -> 12102.29782 | F243: =IF('DNSP Inputs General'!$B85='DNSP Inputs General'!$A$82,F$231,IF('DNSP Inputs General'!$B85='DNSP Inputs General'!$A$83,F$232,F$233))*'DNSP Inputs General'!$D85*'DNSP Inputs General'!M85 -> 12546.53493 | G243: =IF('DNSP Inputs General'!$B85='DNSP Inputs General'!$A$82,G$231,IF('DNSP Inputs General'!$B85='DNSP Inputs General'!$A$83,G$232,G$233))*'DNSP Inputs General'!$D85*'DNSP Inputs General'!N85 -> 12999.95957 | H243: =IF('DNSP Inputs General'!$B85='DNSP Inputs General'!$A$82,H$231,IF('DNSP Inputs General'!$B85='DNSP Inputs General'!$A$83,H$232,H$233))*'DNSP Inputs General'!$D85*'DNSP Inputs General'!O85 -> 13463.74373 | K243: =D243/'Charges Summary'!K$4 -> 11420.13036 | L243: =E243/'Charges Summary'!L$4 -> 11589.13542 | M243: =F243/'Charges Summary'!M$4 -> 11757.05642 | N243: =G243/'Charges Summary'!N$4 -> 11920.88244 | O243: =H243/'Charges Summary'!O$4 -> 12081.58298
A244: ='DNSP Inputs General'!A$86 -> Mercury Vapour 125W | D244: =IF('DNSP Inputs General'!$B86='DNSP Inputs General'!$A$82,D$231,IF('DNSP Inputs General'!$B86='DNSP Inputs General'!$A$83,D$232,D$233))*'DNSP Inputs General'!$D86*'DNSP Inputs General'!K86 -> 2200.979397 | E244: =IF('DNSP Inputs General'!$B86='DNSP Inputs General'!$A$82,E$231,IF('DNSP Inputs General'!$B86='DNSP Inputs General'!$A$83,E$232,E$233))*'DNSP Inputs General'!$D86*'DNSP Inputs General'!L86 -> 2282.466188 | F244: =IF('DNSP Inputs General'!$B86='DNSP Inputs General'!$A$82,F$231,IF('DNSP Inputs General'!$B86='DNSP Inputs General'!$A$83,F$232,F$233))*'DNSP Inputs General'!$D86*'DNSP Inputs General'!M86 -> 2366.248309 | G244: =IF('DNSP Inputs General'!$B86='DNSP Inputs General'!$A$82,G$231,IF('DNSP Inputs General'!$B86='DNSP Inputs General'!$A$83,G$232,G$233))*'DNSP Inputs General'!$D86*'DNSP Inputs General'!N86 -> 2451.763178 | H244: =IF('DNSP Inputs General'!$B86='DNSP Inputs General'!$A$82,H$231,IF('DNSP Inputs General'!$B86='DNSP Inputs General'!$A$83,H$232,H$233))*'DNSP Inputs General'!$D86*'DNSP Inputs General'!O86 -> 2539.23183 | K244: =D244/'Charges Summary'!K$4 -> 2153.810937 | L244: =E244/'Charges Summary'!L$4 -> 2185.684913 | M244: =F244/'Charges Summary'!M$4 -> 2217.354436 | N244: =G244/'Charges Summary'!N$4 -> 2248.251655 | O244: =H244/'Charges Summary'!O$4 -> 2278.559416
A245: ='DNSP Inputs General'!A$87 -> Mercury Vapour 250W | D245: =IF('DNSP Inputs General'!$B87='DNSP Inputs General'!$A$82,D$231,IF('DNSP Inputs General'!$B87='DNSP Inputs General'!$A$83,D$232,D$233))*'DNSP Inputs General'!$D87*'DNSP Inputs General'!K87 -> 39279.91415 | E245: =IF('DNSP Inputs General'!$B87='DNSP Inputs General'!$A$82,E$231,IF('DNSP Inputs General'!$B87='DNSP Inputs General'!$A$83,E$232,E$233))*'DNSP Inputs General'!$D87*'DNSP Inputs General'!L87 -> 40758.14481 | F245: =IF('DNSP Inputs General'!$B87='DNSP Inputs General'!$A$82,F$231,IF('DNSP Inputs General'!$B87='DNSP Inputs General'!$A$83,F$232,F$233))*'DNSP Inputs General'!$D87*'DNSP Inputs General'!M87 -> 42278.23203 | G245: =IF('DNSP Inputs General'!$B87='DNSP Inputs General'!$A$82,G$231,IF('DNSP Inputs General'!$B87='DNSP Inputs General'!$A$83,G$232,G$233))*'DNSP Inputs General'!$D87*'DNSP Inputs General'!N87 -> 43829.71388 | H245: =IF('DNSP Inputs General'!$B87='DNSP Inputs General'!$A$82,H$231,IF('DNSP Inputs General'!$B87='DNSP Inputs General'!$A$83,H$232,H$233))*'DNSP Inputs General'!$D87*'DNSP Inputs General'!O87 -> 45416.6772 | K245: =D245/'Charges Summary'!K$4 -> 38438.11934 | L245: =E245/'Charges Summary'!L$4 -> 39029.91538 | M245: =F245/'Charges Summary'!M$4 -> 39617.91542 | N245: =G245/'Charges Summary'!N$4 -> 40191.57626 | O245: =H245/'Charges Summary'!O$4 -> 40754.29279
A246: ='DNSP Inputs General'!A$88 -> Mercury Vapour 400W | D246: =IF('DNSP Inputs General'!$B88='DNSP Inputs General'!$A$82,D$231,IF('DNSP Inputs General'!$B88='DNSP Inputs General'!$A$83,D$232,D$233))*'DNSP Inputs General'!$D88*'DNSP Inputs General'!K88 -> 11917.00194 | E246: =IF('DNSP Inputs General'!$B88='DNSP Inputs General'!$A$82,E$231,IF('DNSP Inputs General'!$B88='DNSP Inputs General'!$A$83,E$232,E$233))*'DNSP Inputs General'!$D88*'DNSP Inputs General'!L88 -> 12365.47741 | F246: =IF('DNSP Inputs General'!$B88='DNSP Inputs General'!$A$82,F$231,IF('DNSP Inputs General'!$B88='DNSP Inputs General'!$A$83,F$232,F$233))*'DNSP Inputs General'!$D88*'DNSP Inputs General'!M88 -> 12826.65159 | G246: =IF('DNSP Inputs General'!$B88='DNSP Inputs General'!$A$82,G$231,IF('DNSP Inputs General'!$B88='DNSP Inputs General'!$A$83,G$232,G$233))*'DNSP Inputs General'!$D88*'DNSP Inputs General'!N88 -> 13297.35049 | H246: =IF('DNSP Inputs General'!$B88='DNSP Inputs General'!$A$82,H$231,IF('DNSP Inputs General'!$B88='DNSP Inputs General'!$A$83,H$232,H$233))*'DNSP Inputs General'!$D88*'DNSP Inputs General'!O88 -> 13778.81399 | K246: =D246/'Charges Summary'!K$4 -> 11661.61263 | L246: =E246/'Charges Summary'!L$4 -> 11841.15565 | M246: =F246/'Charges Summary'!M$4 -> 12019.54702 | N246: =G246/'Charges Summary'!N$4 -> 12193.58807 | O246: =H246/'Charges Summary'!O$4 -> 12364.30876
A247: ='DNSP Inputs General'!A$89 -> HP Sodium 100W | D247: =IF('DNSP Inputs General'!$B89='DNSP Inputs General'!$A$82,D$231,IF('DNSP Inputs General'!$B89='DNSP Inputs General'!$A$83,D$232,D$233))*'DNSP Inputs General'!$D89*'DNSP Inputs General'!K89 -> 24401.34856 | E247: =IF('DNSP Inputs General'!$B89='DNSP Inputs General'!$A$82,E$231,IF('DNSP Inputs General'!$B89='DNSP Inputs General'!$A$83,E$232,E$233))*'DNSP Inputs General'!$D89*'DNSP Inputs General'!L89 -> 25319.93928 | F247: =IF('DNSP Inputs General'!$B89='DNSP Inputs General'!$A$82,F$231,IF('DNSP Inputs General'!$B89='DNSP Inputs General'!$A$83,F$232,F$233))*'DNSP Inputs General'!$D89*'DNSP Inputs General'!M89 -> 26264.54276 | G247: =IF('DNSP Inputs General'!$B89='DNSP Inputs General'!$A$82,G$231,IF('DNSP Inputs General'!$B89='DNSP Inputs General'!$A$83,G$232,G$233))*'DNSP Inputs General'!$D89*'DNSP Inputs General'!N89 -> 27228.65478 | H247: =IF('DNSP Inputs General'!$B89='DNSP Inputs General'!$A$82,H$231,IF('DNSP Inputs General'!$B89='DNSP Inputs General'!$A$83,H$232,H$233))*'DNSP Inputs General'!$D89*'DNSP Inputs General'!O89 -> 28214.81589 | K247: =D247/'Charges Summary'!K$4 -> 23878.41135 | L247: =E247/'Charges Summary'!L$4 -> 24246.32161 | M247: =F247/'Charges Summary'!M$4 -> 24611.87196 | N247: =G247/'Charges Summary'!N$4 -> 24968.50785 | O247: =H247/'Charges Summary'!O$4 -> 25318.33984
A248: ='DNSP Inputs General'!A90 -> HP Sodium 400W | D248: =IF('DNSP Inputs General'!$B90='DNSP Inputs General'!$A$82,D$231,IF('DNSP Inputs General'!$B90='DNSP Inputs General'!$A$83,D$232,D$233))*'DNSP Inputs General'!$D90*'DNSP Inputs General'!K90 -> 42384.00432 | E248: =IF('DNSP Inputs General'!$B90='DNSP Inputs General'!$A$82,E$231,IF('DNSP Inputs General'!$B90='DNSP Inputs General'!$A$83,E$232,E$233))*'DNSP Inputs General'!$D90*'DNSP Inputs General'!L90 -> 43979.05198 | F248: =IF('DNSP Inputs General'!$B90='DNSP Inputs General'!$A$82,F$231,IF('DNSP Inputs General'!$B90='DNSP Inputs General'!$A$83,F$232,F$233))*'DNSP Inputs General'!$D90*'DNSP Inputs General'!M90 -> 45619.26389 | G248: =IF('DNSP Inputs General'!$B90='DNSP Inputs General'!$A$82,G$231,IF('DNSP Inputs General'!$B90='DNSP Inputs General'!$A$83,G$232,G$233))*'DNSP Inputs General'!$D90*'DNSP Inputs General'!N90 -> 47293.35139 | H248: =IF('DNSP Inputs General'!$B90='DNSP Inputs General'!$A$82,H$231,IF('DNSP Inputs General'!$B90='DNSP Inputs General'!$A$83,H$232,H$233))*'DNSP Inputs General'!$D90*'DNSP Inputs General'!O90 -> 49005.72429 | K248: =D248/'Charges Summary'!K$4 -> 41475.68678 | L248: =E248/'Charges Summary'!L$4 -> 42114.24944 | M248: =F248/'Charges Summary'!M$4 -> 42748.7161 | N248: =G248/'Charges Summary'!N$4 -> 43367.71041 | O248: =H248/'Charges Summary'!O$4 -> 43974.89555
A249: ='DNSP Inputs General'!A91 -> Metal Halide 70W | D249: =IF('DNSP Inputs General'!$B91='DNSP Inputs General'!$A$82,D$231,IF('DNSP Inputs General'!$B91='DNSP Inputs General'!$A$83,D$232,D$233))*'DNSP Inputs General'!$D91*'DNSP Inputs General'!K91 -> 0 | E249: =IF('DNSP Inputs General'!$B91='DNSP Inputs General'!$A$82,E$231,IF('DNSP Inputs General'!$B91='DNSP Inputs General'!$A$83,E$232,E$233))*'DNSP Inputs General'!$D91*'DNSP Inputs General'!L91 -> 0 | F249: =IF('DNSP Inputs General'!$B91='DNSP Inputs General'!$A$82,F$231,IF('DNSP Inputs General'!$B91='DNSP Inputs General'!$A$83,F$232,F$233))*'DNSP Inputs General'!$D91*'DNSP Inputs General'!M91 -> 0 | G249: =IF('DNSP Inputs General'!$B91='DNSP Inputs General'!$A$82,G$231,IF('DNSP Inputs General'!$B91='DNSP Inputs General'!$A$83,G$232,G$233))*'DNSP Inputs General'!$D91*'DNSP Inputs General'!N91 -> 0 | H249: =IF('DNSP Inputs General'!$B91='DNSP Inputs General'!$A$82,H$231,IF('DNSP Inputs General'!$B91='DNSP Inputs General'!$A$83,H$232,H$233))*'DNSP Inputs General'!$D91*'DNSP Inputs General'!O91 -> 0 | K249: =D249/'Charges Summary'!K$4 -> 0 | L249: =E249/'Charges Summary'!L$4 -> 0 | M249: =F249/'Charges Summary'!M$4 -> 0 | N249: =G249/'Charges Summary'!N$4 -> 0 | O249: =H249/'Charges Summary'!O$4 -> 0
A250: ='DNSP Inputs General'!A92 -> Metal Halide 100W | D250: =IF('DNSP Inputs General'!$B92='DNSP Inputs General'!$A$82,D$231,IF('DNSP Inputs General'!$B92='DNSP Inputs General'!$A$83,D$232,D$233))*'DNSP Inputs General'!$D92*'DNSP Inputs General'!K92 -> 0 | E250: =IF('DNSP Inputs General'!$B92='DNSP Inputs General'!$A$82,E$231,IF('DNSP Inputs General'!$B92='DNSP Inputs General'!$A$83,E$232,E$233))*'DNSP Inputs General'!$D92*'DNSP Inputs General'!L92 -> 0 | F250: =IF('DNSP Inputs General'!$B92='DNSP Inputs General'!$A$82,F$231,IF('DNSP Inputs General'!$B92='DNSP Inputs General'!$A$83,F$232,F$233))*'DNSP Inputs General'!$D92*'DNSP Inputs General'!M92 -> 0 | G250: =IF('DNSP Inputs General'!$B92='DNSP Inputs General'!$A$82,G$231,IF('DNSP Inputs General'!$B92='DNSP Inputs General'!$A$83,G$232,G$233))*'DNSP Inputs General'!$D92*'DNSP Inputs General'!N92 -> 0 | H250: =IF('DNSP Inputs General'!$B92='DNSP Inputs General'!$A$82,H$231,IF('DNSP Inputs General'!$B92='DNSP Inputs General'!$A$83,H$232,H$233))*'DNSP Inputs General'!$D92*'DNSP Inputs General'!O92 -> 0 | K250: =D250/'Charges Summary'!K$4 -> 0 | L250: =E250/'Charges Summary'!L$4 -> 0 | M250: =F250/'Charges Summary'!M$4 -> 0 | N250: =G250/'Charges Summary'!N$4 -> 0 | O250: =H250/'Charges Summary'!O$4 -> 0
A251: ='DNSP Inputs General'!A93 -> Metal Halide 150W | D251: =IF('DNSP Inputs General'!$B93='DNSP Inputs General'!$A$82,D$231,IF('DNSP Inputs General'!$B93='DNSP Inputs General'!$A$83,D$232,D$233))*'DNSP Inputs General'!$D93*'DNSP Inputs General'!K93 -> 0 | E251: =IF('DNSP Inputs General'!$B93='DNSP Inputs General'!$A$82,E$231,IF('DNSP Inputs General'!$B93='DNSP Inputs General'!$A$83,E$232,E$233))*'DNSP Inputs General'!$D93*'DNSP Inputs General'!L93 -> 0 | F251: =IF('DNSP Inputs General'!$B93='DNSP Inputs General'!$A$82,F$231,IF('DNSP Inputs General'!$B93='DNSP Inputs General'!$A$83,F$232,F$233))*'DNSP Inputs General'!$D93*'DNSP Inputs General'!M93 -> 0 | G251: =IF('DNSP Inputs General'!$B93='DNSP Inputs General'!$A$82,G$231,IF('DNSP Inputs General'!$B93='DNSP Inputs General'!$A$83,G$232,G$233))*'DNSP Inputs General'!$D93*'DNSP Inputs General'!N93 -> 0 | H251: =IF('DNSP Inputs General'!$B93='DNSP Inputs General'!$A$82,H$231,IF('DNSP Inputs General'!$B93='DNSP Inputs General'!$A$83,H$232,H$233))*'DNSP Inputs General'!$D93*'DNSP Inputs General'!O93 -> 0 | K251: =D251/'Charges Summary'!K$4 -> 0 | L251: =E251/'Charges Summary'!L$4 -> 0 | M251: =F251/'Charges Summary'!M$4 -> 0 | N251: =G251/'Charges Summary'!N$4 -> 0 | O251: =H251/'Charges Summary'!O$4 -> 0
A252: ='DNSP Inputs General'!A94 -> HP Sodium 50W | D252: =IF('DNSP Inputs General'!$B94='DNSP Inputs General'!$A$82,D$231,IF('DNSP Inputs General'!$B94='DNSP Inputs General'!$A$83,D$232,D$233))*'DNSP Inputs General'!$D94*'DNSP Inputs General'!K94 -> 0 | E252: =IF('DNSP Inputs General'!$B94='DNSP Inputs General'!$A$82,E$231,IF('DNSP Inputs General'!$B94='DNSP Inputs General'!$A$83,E$232,E$233))*'DNSP Inputs General'!$D94*'DNSP Inputs General'!L94 -> 0 | F252: =IF('DNSP Inputs General'!$B94='DNSP Inputs General'!$A$82,F$231,IF('DNSP Inputs General'!$B94='DNSP Inputs General'!$A$83,F$232,F$233))*'DNSP Inputs General'!$D94*'DNSP Inputs General'!M94 -> 0 | G252: =IF('DNSP Inputs General'!$B94='DNSP Inputs General'!$A$82,G$231,IF('DNSP Inputs General'!$B94='DNSP Inputs General'!$A$83,G$232,G$233))*'DNSP Inputs General'!$D94*'DNSP Inputs General'!N94 -> 0 | H252: =IF('DNSP Inputs General'!$B94='DNSP Inputs General'!$A$82,H$231,IF('DNSP Inputs General'!$B94='DNSP Inputs General'!$A$83,H$232,H$233))*'DNSP Inputs General'!$D94*'DNSP Inputs General'!O94 -> 0 | K252: =D252/'Charges Summary'!K$4 -> 0 | L252: =E252/'Charges Summary'!L$4 -> 0 | M252: =F252/'Charges Summary'!M$4 -> 0 | N252: =G252/'Charges Summary'!N$4 -> 0 | O252: =H252/'Charges Summary'!O$4 -> 0
A264: ='DNSP Inputs General'!A$108 -> Energy Efficient Lights
A265: ='DNSP Inputs General'!A$109 -> T5 2X14W | D265: =SUM('Charges Summary'!K83,'Charges Summary'!K8)*'DNSP Inputs General'!$D109*'DNSP Inputs General'!K109 -> 195712.3431 | E265: =SUM('Charges Summary'!L83,'Charges Summary'!L8)*'DNSP Inputs General'!$D109*'DNSP Inputs General'!L109 -> 248037.2211 | F265: =SUM('Charges Summary'!M83,'Charges Summary'!M8)*'DNSP Inputs General'!$D109*'DNSP Inputs General'!M109 -> 296868.0885 | G265: =SUM('Charges Summary'!N83,'Charges Summary'!N8)*'DNSP Inputs General'!$D109*'DNSP Inputs General'!N109 -> 342586.5702 | H265: =SUM('Charges Summary'!O83,'Charges Summary'!O8)*'DNSP Inputs General'!$D109*'DNSP Inputs General'!O109 -> 385613.1283 | K265: =D265/'Charges Summary'!K$4 -> 191518.0968 | L265: =E265/'Charges Summary'!L$4 -> 237519.9312 | M265: =F265/'Charges Summary'!M$4 -> 278187.9529 | N265: =G265/'Charges Summary'!N$4 -> 314149.7637 | O265: =H265/'Charges Summary'!O$4 -> 346026.8629
A266: ='DNSP Inputs General'!A110 -> T5 2X24W | D266: =SUM('Charges Summary'!K99,'Charges Summary'!K8)*'DNSP Inputs General'!$D110*'DNSP Inputs General'!K110 -> 5415.933186 | E266: =SUM('Charges Summary'!L99,'Charges Summary'!L8)*'DNSP Inputs General'!$D110*'DNSP Inputs General'!L110 -> 6489.104135 | F266: =SUM('Charges Summary'!M99,'Charges Summary'!M8)*'DNSP Inputs General'!$D110*'DNSP Inputs General'!M110 -> 7496.719847 | G266: =SUM('Charges Summary'!N99,'Charges Summary'!N8)*'DNSP Inputs General'!$D110*'DNSP Inputs General'!N110 -> 8445.673533 | H266: =SUM('Charges Summary'!O99,'Charges Summary'!O8)*'DNSP Inputs General'!$D110*'DNSP Inputs General'!O110 -> 9344.225598 | K266: =D266/'Charges Summary'!K$4 -> 5299.866118 | L266: =E266/'Charges Summary'!L$4 -> 6213.952731 | M266: =F266/'Charges Summary'!M$4 -> 7024.996045 | N266: =G266/'Charges Summary'!N$4 -> 7744.630339 | O266: =H266/'Charges Summary'!O$4 -> 8384.966258
A267: ='DNSP Inputs General'!A111 -> LED 18W | D267: =SUM('Charges Summary'!K115,'Charges Summary'!K8)*'DNSP Inputs General'!$D111*'DNSP Inputs General'!K111 -> 234.3205055 | E267: =SUM('Charges Summary'!L115,'Charges Summary'!L8)*'DNSP Inputs General'!$D111*'DNSP Inputs General'!L111 -> 336.0873045 | F267: =SUM('Charges Summary'!M115,'Charges Summary'!M8)*'DNSP Inputs General'!$D111*'DNSP Inputs General'!M111 -> 429.36121 | G267: =SUM('Charges Summary'!N115,'Charges Summary'!N8)*'DNSP Inputs General'!$D111*'DNSP Inputs General'!N111 -> 515.191214 | H267: =SUM('Charges Summary'!O115,'Charges Summary'!O8)*'DNSP Inputs General'!$D111*'DNSP Inputs General'!O111 -> 594.5711094 | K267: =D267/'Charges Summary'!K$4 -> 229.2988604 | L267: =E267/'Charges Summary'!L$4 -> 321.8365094 | M267: =F267/'Charges Summary'!M$4 -> 402.3440736 | N267: =G267/'Charges Summary'!N$4 -> 472.4271535 | O267: =H267/'Charges Summary'!O$4 -> 533.5336394
A268: ='DNSP Inputs General'!A112 -> Compact Fluorescent 32W | D268: =IF('DNSP Inputs General'!$B112='DNSP Inputs General'!$A$109,D$235,D$236)*'DNSP Inputs General'!$D112*'DNSP Inputs General'!K112 -> 30998.57802 | E268: =IF('DNSP Inputs General'!$B112='DNSP Inputs General'!$A$109,E$235,E$236)*'DNSP Inputs General'!$D112*'DNSP Inputs General'!L112 -> 39286.23523 | F268: =IF('DNSP Inputs General'!$B112='DNSP Inputs General'!$A$109,F$235,F$236)*'DNSP Inputs General'!$D112*'DNSP Inputs General'!M112 -> 47020.48147 | G268: =IF('DNSP Inputs General'!$B112='DNSP Inputs General'!$A$109,G$235,G$236)*'DNSP Inputs General'!$D112*'DNSP Inputs General'!N112 -> 54261.7617 | H268: =IF('DNSP Inputs General'!$B112='DNSP Inputs General'!$A$109,H$235,H$236)*'DNSP Inputs General'!$D112*'DNSP Inputs General'!O112 -> 61076.67229 | K268: =D268/'Charges Summary'!K$4 -> 30334.25777 | L268: =E268/'Charges Summary'!L$4 -> 37620.4178 | M268: =F268/'Charges Summary'!M$4 -> 44061.76342 | N268: =G268/'Charges Summary'!N$4 -> 49757.69952 | O268: =H268/'Charges Summary'!O$4 -> 54806.66439
A269: ='DNSP Inputs General'!A113 -> Compact Fluorescent 42W | D269: =IF('DNSP Inputs General'!$B113='DNSP Inputs General'!$A$109,D$235,D$236)*'DNSP Inputs General'!$D113*'DNSP Inputs General'!K113 -> 108463.7308 | E269: =IF('DNSP Inputs General'!$B113='DNSP Inputs General'!$A$109,E$235,E$236)*'DNSP Inputs General'!$D113*'DNSP Inputs General'!L113 -> 137462.1649 | F269: =IF('DNSP Inputs General'!$B113='DNSP Inputs General'!$A$109,F$235,F$236)*'DNSP Inputs General'!$D113*'DNSP Inputs General'!M113 -> 164524.2192 | G269: =IF('DNSP Inputs General'!$B113='DNSP Inputs General'!$A$109,G$235,G$236)*'DNSP Inputs General'!$D113*'DNSP Inputs General'!N113 -> 189861.3901 | H269: =IF('DNSP Inputs General'!$B113='DNSP Inputs General'!$A$109,H$235,H$236)*'DNSP Inputs General'!$D113*'DNSP Inputs General'!O113 -> 213706.6977 | K269: =D269/'Charges Summary'!K$4 -> 106139.2806 | L269: =E269/'Charges Summary'!L$4 -> 131633.4855 | M269: =F269/'Charges Summary'!M$4 -> 154171.6928 | N269: =G269/'Charges Summary'!N$4 -> 174101.7193 | O269: =H269/'Charges Summary'!O$4 -> 191767.9995
A271: Total O & M | D271: =SUM(D240:D269) -> 1858046.969 | E271: =SUM(E240:E269) -> 1925283.32 | F271: =SUM(F240:F269) -> 1994661.155 | G271: =SUM(G240:G269) -> 2065673.387 | H271: =SUM(H240:H269) -> 2138490.554 | K271: =SUM(K240:K269) -> 1818227.781 | L271: =SUM(L240:L269) -> 1843647.335 | M271: =SUM(M240:M269) -> 1869149.043 | N271: =SUM(N240:N269) -> 1894209.706 | O271: =SUM(O240:O269) -> 1918957.43
A274: Public Lighting - Capital Charge | D274: Capital Charge - Nominal | K274: Capital Charge - Real 2015 $
D275: =D$2 -> 2016 | E275: 2017 | F275: 2018 | G275: 2019 | H275: 2020 | K275: =K$2 -> 2016 | L275: 2017 | M275: 2018 | N275: 2019 | O275: 2020
A277: Unit cost
A278: ='DNSP Inputs General'!A$82 -> Mercury Vapour 80W | D278: =SUM('Charges Summary'!K27,'Charges Summary'!K11) -> 19.65989112 | E278: =SUM('Charges Summary'!L27,'Charges Summary'!L11) -> 21.5341635 | F278: =SUM('Charges Summary'!M27,'Charges Summary'!M11) -> 23.26215802 | G278: =SUM('Charges Summary'!N27,'Charges Summary'!N11) -> 24.64889736 | H278: =SUM('Charges Summary'!O27,'Charges Summary'!O11) -> 25.91496871
A279: ='DNSP Inputs General'!A$83 -> HP Sodium 150W | D279: =SUM('Charges Summary'!K51,'Charges Summary'!K11) -> 21.34064627 | E279: =SUM('Charges Summary'!L51,'Charges Summary'!L11) -> 23.42998213 | F279: =SUM('Charges Summary'!M51,'Charges Summary'!M11) -> 25.36024863 | G279: =SUM('Charges Summary'!N51,'Charges Summary'!N11) -> 26.92084374 | H279: =SUM('Charges Summary'!O51,'Charges Summary'!O11) -> 28.34679272
A280: ='DNSP Inputs General'!A$84 -> HP Sodium 250W | D280: =SUM('Charges Summary'!K67,'Charges Summary'!K11) -> 21.42268807 | E280: =SUM('Charges Summary'!L67,'Charges Summary'!L11) -> 23.52252171 | F280: =SUM('Charges Summary'!M67,'Charges Summary'!M11) -> 25.46266161 | G280: =SUM('Charges Summary'!N67,'Charges Summary'!N11) -> 27.03174305 | H280: =SUM('Charges Summary'!O67,'Charges Summary'!O11) -> 28.46549605
A282: ='DNSP Inputs General'!A$109 -> T5 2X14W | D282: =SUM('Charges Summary'!K85,'Charges Summary'!K11) -> 15.31083182 | E282: =SUM('Charges Summary'!L85,'Charges Summary'!L11) -> 14.760434 | F282: =SUM('Charges Summary'!M85,'Charges Summary'!M11) -> 14.59576712 | G282: =SUM('Charges Summary'!N85,'Charges Summary'!N11) -> 14.46845046 | H282: =SUM('Charges Summary'!O85,'Charges Summary'!O11) -> 14.44658849
A283: ='DNSP Inputs General'!A$110 -> T5 2X24W | D283: =SUM('Charges Summary'!K101,'Charges Summary'!K11) -> 15.86645794 | E283: =SUM('Charges Summary'!L101,'Charges Summary'!L11) -> 15.18392212 | F283: =SUM('Charges Summary'!M101,'Charges Summary'!M11) -> 14.93716359 | G283: =SUM('Charges Summary'!N101,'Charges Summary'!N11) -> 14.75154983 | H283: =SUM('Charges Summary'!O101,'Charges Summary'!O11) -> 14.68743434
A284: ='DNSP Inputs General'!A$111 -> LED 18W | D284: =SUM('Charges Summary'!K117,'Charges Summary'!K11) -> 17.94328573 | E284: =SUM('Charges Summary'!L117,'Charges Summary'!L11) -> 16.76684245 | F284: =SUM('Charges Summary'!M117,'Charges Summary'!M11) -> 16.2132405 | G284: =SUM('Charges Summary'!N117,'Charges Summary'!N11) -> 15.80972299 | H284: =SUM('Charges Summary'!O117,'Charges Summary'!O11) -> 15.58767166
A286: ='DNSP Inputs General'!A$81 -> Existing Lights
A287: ='DNSP Inputs General'!A$82 -> Mercury Vapour 80W | D287: =D278*'DNSP Inputs General'!K82 -> 384660.9904 | E287: =E278*'DNSP Inputs General'!L82 -> 363748.054 | F287: =F278*'DNSP Inputs General'!M82 -> 339119.2513 | G287: =G278*'DNSP Inputs General'!N82 -> 309936.6576 | H287: =H278*'DNSP Inputs General'!O82 -> 280924.0253 | K287: =D287/'Charges Summary'!K$4 -> 376417.4483 | L287: =E287/'Charges Summary'!L$4 -> 348324.3861 | M287: =F287/'Charges Summary'!M$4 -> 317780.5024 | N287: =G287/'Charges Summary'!N$4 -> 284209.9961 | O287: =H287/'Charges Summary'!O$4 -> 252084.9319
A288: ='DNSP Inputs General'!A$83 -> HP Sodium 150W | D288: =D279*'DNSP Inputs General'!K83 -> 106279.2369 | E288: =E279*'DNSP Inputs General'!L83 -> 118513.9647 | F288: =F279*'DNSP Inputs General'!M83 -> 130245.2584 | G288: =G279*'DNSP Inputs General'!N83 -> 140297.8972 | H288: =H279*'DNSP Inputs General'!O83 -> 149833.9547 | K288: =D288/'Charges Summary'!K$4 -> 104001.6018 | L288: =E288/'Charges Summary'!L$4 -> 113488.7281 | M288: =F288/'Charges Summary'!M$4 -> 122049.7023 | N288: =G288/'Charges Summary'!N$4 -> 128652.3031 | O288: =H288/'Charges Summary'!O$4 -> 134452.3033
A289: ='DNSP Inputs General'!A$84 -> HP Sodium 250W | D289: =D280*'DNSP Inputs General'!K84 -> 104234.6208 | E289: =E280*'DNSP Inputs General'!L84 -> 116246.1597 | F289: =F280*'DNSP Inputs General'!M84 -> 127764.2588 | G289: =G280*'DNSP Inputs General'!N84 -> 137636.529 | H289: =H280*'DNSP Inputs General'!O84 -> 147001.6594 | K289: =D289/'Charges Summary'!K$4 -> 102000.8032 | L289: =E289/'Charges Summary'!L$4 -> 111317.0827 | M289: =F289/'Charges Summary'!M$4 -> 119724.8171 | N289: =G289/'Charges Summary'!N$4 -> 126211.845 | O289: =H289/'Charges Summary'!O$4 -> 131910.7657
A290: ='DNSP Inputs General'!A$85 -> Mercury Vapour 50W | D290: =IF('DNSP Inputs General'!$B85='DNSP Inputs General'!$A$82,D$278,IF('DNSP Inputs General'!$B85='DNSP Inputs General'!$A$83,D$279,D$280))*'DNSP Inputs General'!$D85*'DNSP Inputs General'!K85 -> 8692.85453 | E290: =IF('DNSP Inputs General'!$B85='DNSP Inputs General'!$A$82,E$278,IF('DNSP Inputs General'!$B85='DNSP Inputs General'!$A$83,E$279,E$280))*'DNSP Inputs General'!$D85*'DNSP Inputs General'!L85 -> 9670.880558 | F290: =IF('DNSP Inputs General'!$B85='DNSP Inputs General'!$A$82,F$278,IF('DNSP Inputs General'!$B85='DNSP Inputs General'!$A$83,F$279,F$280))*'DNSP Inputs General'!$D85*'DNSP Inputs General'!M85 -> 10607.15365 | G290: =IF('DNSP Inputs General'!$B85='DNSP Inputs General'!$A$82,G$278,IF('DNSP Inputs General'!$B85='DNSP Inputs General'!$A$83,G$279,G$280))*'DNSP Inputs General'!$D85*'DNSP Inputs General'!N85 -> 11405.13512 | H290: =IF('DNSP Inputs General'!$B85='DNSP Inputs General'!$A$82,H$278,IF('DNSP Inputs General'!$B85='DNSP Inputs General'!$A$83,H$279,H$280))*'DNSP Inputs General'!$D85*'DNSP Inputs General'!O85 -> 12161.7885 | K290: =D290/'Charges Summary'!K$4 -> 8506.560848 | L290: =E290/'Charges Summary'!L$4 -> 9260.81527 | M290: =F290/'Charges Summary'!M$4 -> 9939.708829 | N290: =G290/'Charges Summary'!N$4 -> 10458.43829 | O290: =H290/'Charges Summary'!O$4 -> 10913.28384
A291: ='DNSP Inputs General'!A$86 -> Mercury Vapour 125W | D291: =IF('DNSP Inputs General'!$B86='DNSP Inputs General'!$A$82,D$278,IF('DNSP Inputs General'!$B86='DNSP Inputs General'!$A$83,D$279,D$280))*'DNSP Inputs General'!$D86*'DNSP Inputs General'!K86 -> 1639.452841 | E291: =IF('DNSP Inputs General'!$B86='DNSP Inputs General'!$A$82,E$278,IF('DNSP Inputs General'!$B86='DNSP Inputs General'!$A$83,E$279,E$280))*'DNSP Inputs General'!$D86*'DNSP Inputs General'!L86 -> 1823.906354 | F291: =IF('DNSP Inputs General'!$B86='DNSP Inputs General'!$A$82,F$278,IF('DNSP Inputs General'!$B86='DNSP Inputs General'!$A$83,F$279,F$280))*'DNSP Inputs General'!$D86*'DNSP Inputs General'!M86 -> 2000.485356 | G291: =IF('DNSP Inputs General'!$B86='DNSP Inputs General'!$A$82,G$278,IF('DNSP Inputs General'!$B86='DNSP Inputs General'!$A$83,G$279,G$280))*'DNSP Inputs General'!$D86*'DNSP Inputs General'!N86 -> 2150.982868 | H291: =IF('DNSP Inputs General'!$B86='DNSP Inputs General'!$A$82,H$278,IF('DNSP Inputs General'!$B86='DNSP Inputs General'!$A$83,H$279,H$280))*'DNSP Inputs General'!$D86*'DNSP Inputs General'!O86 -> 2293.685997 | K291: =D291/'Charges Summary'!K$4 -> 1604.318271 | L291: =E291/'Charges Summary'!L$4 -> 1746.568961 | M291: =F291/'Charges Summary'!M$4 -> 1874.606762 | N291: =G291/'Charges Summary'!N$4 -> 1972.437972 | O291: =H291/'Charges Summary'!O$4 -> 2058.220822
A292: ='DNSP Inputs General'!A$87 -> Mercury Vapour 250W | D292: =IF('DNSP Inputs General'!$B87='DNSP Inputs General'!$A$82,D$278,IF('DNSP Inputs General'!$B87='DNSP Inputs General'!$A$83,D$279,D$280))*'DNSP Inputs General'!$D87*'DNSP Inputs General'!K87 -> 9606.175143 | E292: =IF('DNSP Inputs General'!$B87='DNSP Inputs General'!$A$82,E$278,IF('DNSP Inputs General'!$B87='DNSP Inputs General'!$A$83,E$279,E$280))*'DNSP Inputs General'!$D87*'DNSP Inputs General'!L87 -> 10713.14848 | F292: =IF('DNSP Inputs General'!$B87='DNSP Inputs General'!$A$82,F$278,IF('DNSP Inputs General'!$B87='DNSP Inputs General'!$A$83,F$279,F$280))*'DNSP Inputs General'!$D87*'DNSP Inputs General'!M87 -> 11774.64682 | G292: =IF('DNSP Inputs General'!$B87='DNSP Inputs General'!$A$82,G$278,IF('DNSP Inputs General'!$B87='DNSP Inputs General'!$A$83,G$279,G$280))*'DNSP Inputs General'!$D87*'DNSP Inputs General'!N87 -> 12684.46696 | H292: =IF('DNSP Inputs General'!$B87='DNSP Inputs General'!$A$82,H$278,IF('DNSP Inputs General'!$B87='DNSP Inputs General'!$A$83,H$279,H$280))*'DNSP Inputs General'!$D87*'DNSP Inputs General'!O87 -> 13547.54951 | K292: =D292/'Charges Summary'!K$4 -> 9400.30839 | L292: =E292/'Charges Summary'!L$4 -> 10258.88888 | M292: =F292/'Charges Summary'!M$4 -> 11033.73863 | N292: =G292/'Charges Summary'!N$4 -> 11631.57767 | O292: =H292/'Charges Summary'!O$4 -> 12156.78542
A293: ='DNSP Inputs General'!A$88 -> Mercury Vapour 400W | D293: =IF('DNSP Inputs General'!$B88='DNSP Inputs General'!$A$82,D$278,IF('DNSP Inputs General'!$B88='DNSP Inputs General'!$A$83,D$279,D$280))*'DNSP Inputs General'!$D88*'DNSP Inputs General'!K88 -> 2914.385389 | E293: =IF('DNSP Inputs General'!$B88='DNSP Inputs General'!$A$82,E$278,IF('DNSP Inputs General'!$B88='DNSP Inputs General'!$A$83,E$279,E$280))*'DNSP Inputs General'!$D88*'DNSP Inputs General'!L88 -> 3250.226332 | F293: =IF('DNSP Inputs General'!$B88='DNSP Inputs General'!$A$82,F$278,IF('DNSP Inputs General'!$B88='DNSP Inputs General'!$A$83,F$279,F$280))*'DNSP Inputs General'!$D88*'DNSP Inputs General'!M88 -> 3572.270768 | G293: =IF('DNSP Inputs General'!$B88='DNSP Inputs General'!$A$82,G$278,IF('DNSP Inputs General'!$B88='DNSP Inputs General'!$A$83,G$279,G$280))*'DNSP Inputs General'!$D88*'DNSP Inputs General'!N88 -> 3848.29806 | H293: =IF('DNSP Inputs General'!$B88='DNSP Inputs General'!$A$82,H$278,IF('DNSP Inputs General'!$B88='DNSP Inputs General'!$A$83,H$279,H$280))*'DNSP Inputs General'!$D88*'DNSP Inputs General'!O88 -> 4110.145792 | K293: =D293/'Charges Summary'!K$4 -> 2851.928162 | L293: =E293/'Charges Summary'!L$4 -> 3112.41003 | M293: =F293/'Charges Summary'!M$4 -> 3347.489105 | N293: =G293/'Charges Summary'!N$4 -> 3528.865495 | O293: =H293/'Charges Summary'!O$4 -> 3688.206521
